Workbook

Sheet ＴＯＰ
B5: 基本情報 | D5: 投資計画 | F5: 借入金計画 | H5: 人件費計画 | J5: 運転資金計画 | L5: 財務三表計画 | P5: 返済見直し計画 | R5: その他書式など
H9: 損益計画
B11: 決算情報登録 | J11: 税金計画
R17: 提供：小林敬幸税理士事務所
R18: Ver. 1.0
B19: ★当事務所の税理士の著書
C21: 帳簿初心者な方向けに、パソコン会計で徹底的に簡単に青色申告を行うためのTipsを詰め込んだ、自信の一作です！
C22: ★参考
C23: このファイルの保護パスワードは、こちらの本の背面の２つめのバーコードの数字（1922で始まる１３ケタの数字（半角））になっています。
C24: マクロを有効にすると、保護を解除しなくともすべての機能は使えますが、保護を解除して改造等挑戦される方は是非本書もお求めください。
C31: 個人事業を会社にした場合の税金や社会保険料の変化が、誰でも簡単にシミュレーションできるソフトが付録についた、法人成りのノウハウ満載のマニュアル本です！

Sheet 基本情報
B7: 会社名を入力 | C7: 株式会社一木運送
B9: 計画開始期の期末日を入力 | C9: 2015-03-31
B11: 消費税の経理処理 | C11: 税込
B13: 消費税の計算方法 | C13: 原則課税
B15: 直前期の消費税等年税額 | C15: 2164000
B16: 消費税の納付回数 | C16: =IF(C15>60000000,12,IF(C15>5000000,4,IF(C15>600000,2,1))) -> 2
B18: 直前期の法人税額 | C18: ２０万円以下
B19: 直前期の未払事業税額 | C19: 0
B20: （地方法人特別税を含む）
B22: 過年度欠損金の入力 | C22: 繰越欠損金額 | D22: 有効期間 | E22: 控除可能期間 | F22: =DATE(YEAR(基本情報!$C$9),MONTH(基本情報!$C$9),DAY(基本情報!$C$9)) -> 2015-03-31 | H22: =DATE(YEAR(基本情報!$C$9)+1,MONTH(基本情報!$C$9),DAY(基本情報!$C$9)) -> 2016-03-31 | I22: 前期利用済控除後の金額 | J22: =DATE(YEAR(基本情報!$C$9)+2,MONTH(基本情報!$C$9),DAY(基本情報!$C$9)) -> 2017-03-31 | K22: 前期利用済控除後の金額 | L22: =DATE(YEAR(基本情報!$C$9)+3,MONTH(基本情報!$C$9),DAY(基本情報!$C$9)) -> 2018-03-31 | M22: 前期利用済控除後の金額 | N22: =DATE(YEAR(基本情報!$C$9)+4,MONTH(基本情報!$C$9),DAY(基本情報!$C$9)) -> 2019-03-31 | O22: 前期利用済控除後の金額
B23: =EOMONTH(C$9,-108) -> 2006-03-31 | C23: 0 | D23: =IF(B23<39539,7,9) -> 7 | E23: =EOMONTH(B23,D23*12) -> 2013-03-31 | F23: =IF(F$22<=$E23,$C23,0) -> 0 | H23: =IF(H$22<=$E23,$C23,0) -> 0 | I23: =IF(H23-F35<0,0,H23-F35) -> 0 | J23: =IF(J$22<=$E23,I23,0) -> 0 | K23: =IF(J23-H35<0,0,J23-H35) -> 0 | L23: =IF(L$22<=$E23,K23,0) -> 0 | M23: =IF(L23-J35<0,0,L23-J35) -> 0 | N23: =IF(N$22<=$E23,M23,0) -> 0 | O23: =IF(N23-L35<0,0,N23-L35) -> 0
B24: =EOMONTH(C$9,-96) -> 2007-03-31 | C24: 0 | D24: =IF(B24<39539,7,9) -> 7 | E24: =EOMONTH(B24,D24*12) -> 2014-03-31 | F24: =IF(F$22<=$E24,$C24,0) -> 0 | H24: 0 | I24: =IF(H24-F36<0,0,H24-F36) -> 0 | J24: =IF(J$22<=$E24,I24,0) -> 0 | K24: 0 | L24: 0 | M24: 0 | N24: =IF(N$22<=$E24,M24,0) -> 0 | O24: 0
B25: =EOMONTH(C$9,-84) -> 2008-03-31 | C25: 0 | D25: 7 | E25: 2015-03-31 | F25: 0 | H25: 0 | I25: 0 | J25: 0 | K25: 0 | L25: 0 | M25: 0 | N25: =IF(N$22<=$E25,M25,0) -> 0 | O25: 0
B26: =EOMONTH(C$9,-72) -> 2009-03-31 | C26: 0 | D26: 9 | E26: 2018-03-31 | F26: 0 | H26: 0 | I26: 0 | J26: 0 | K26: 0 | L26: 0 | M26: 0 | N26: =IF(N$22<=$E26,M26,0) -> 0 | O26: 0
B27: =EOMONTH(C$9,-60) -> 2010-03-31 | C27: 654123 | D27: 9 | E27: 2019-03-31 | F27: 654123 | H27: 654123 | I27: 654123 | J27: 654123 | K27: 0 | L27: 0 | M27: 0 | N27: =IF(N$22<=$E27,M27,0) -> 0 | O27: 0
B28: =EOMONTH(C$9,-48) -> 2011-03-31 | C28: 0 | D28: 9 | E28: 2020-03-31 | F28: 0 | H28: 0 | I28: 0 | J28: 0 | K28: 0 | L28: 0 | M28: 0 | N28: =IF(N$22<=$E28,M28,0) -> 0 | O28: 0
B29: =EOMONTH(C$9,-36) -> 2012-03-31 | C29: 1235411 | D29: 9 | E29: 2021-03-31 | F29: 1235411 | H29: 1235411 | I29: 1235411 | J29: 1235411 | K29: 0 | L29: 0 | M29: 0 | N29: =IF(N$22<=$E29,M29,0) -> 0 | O29: 0
B30: =EOMONTH(C$9,-24) -> 2013-03-31 | C30: 0 | D30: 9 | E30: 2022-03-31 | F30: 0 | H30: 0 | I30: 0 | J30: 0 | K30: 0 | L30: 0 | M30: 0 | N30: =IF(N$22<=$E30,M30,0) -> 0 | O30: 0
B31: =EOMONTH(C$9,-12) -> 2014-03-31 | C31: 2354531 | D31: 9 | E31: 2023-03-31 | F31: 2354531 | H31: 2354531 | I31: 2354531 | J31: 2354531 | K31: 1834868 | L31: 1834868 | M31: 159577 | N31: =IF(N$22<=$E31,M31,0) -> 159577 | O31: 0
B32: 合計 | C32: =SUM(C23:C31) -> 4244065 | F32: =SUM(F23:F31) -> 4244065 | H32: =SUM(H23:H31) -> 4244065 | I32: =SUM(I23:I31) -> 4244065 | J32: 4244065 | K32: =SUM(K23:K31) -> 1834868 | L32: 1834868 | M32: =SUM(M23:M31) -> 159577 | N32: 159577 | O32: =SUM(O23:O31) -> 0
E33: 当期所得金額 | F33: =法人税等計画!D19 -> -5368469 | H33: =法人税等計画!G19 -> 2409197 | J33: =法人税等計画!J19 -> 1675291 | L33: =法人税等計画!M19 -> 5705162 | N33: =法人税等計画!P19 -> 6029746
E34: 控除額 | F34: =DATE(YEAR(基本情報!$C$9),MONTH(基本情報!$C$9),DAY(基本情報!$C$9)) -> 2015-03-31 | G34: 控除後残所得額 | H34: =DATE(YEAR(基本情報!$C$9)+1,MONTH(基本情報!$C$9),DAY(基本情報!$C$9)) -> 2016-03-31 | I34: 控除後残所得額 | J34: =DATE(YEAR(基本情報!$C$9)+2,MONTH(基本情報!$C$9),DAY(基本情報!$C$9)) -> 2017-03-31 | K34: 控除後残所得額 | L34: =DATE(YEAR(基本情報!$C$9)+3,MONTH(基本情報!$C$9),DAY(基本情報!$C$9)) -> 2018-03-31 | M34: 控除後残所得額 | N34: =DATE(YEAR(基本情報!$C$9)+4,MONTH(基本情報!$C$9),DAY(基本情報!$C$9)) -> 2019-03-31 | O34: 控除後残所得額
E35: =E23 -> 2013-03-31 | F35: =IF(F33<0,0,IF(F33>=F23,F23,F33)) -> 0 | G35: =IF(F33-F35<0,0,F33-F35) -> 0 | H35: =IF(H33<0,0,IF(H33>=I23,I23,H33)) -> 0 | I35: =IF(H33-H35<0,0,H33-H35) -> 2409197 | J35: =IF(J33<0,0,IF(J33>=K23,K23,J33)) -> 0 | K35: =IF(J33-J35<0,0,J33-J35) -> 1675291 | L35: =IF(L33<0,0,IF(L33>=M23,M23,L33)) -> 0 | M35: =IF(L33-L35<0,0,L33-L35) -> 5705162 | N35: =IF(N33<0,0,IF(N33>=O23,O23,N33)) -> 0 | O35: =IF(N33-N35<0,0,N33-N35) -> 6029746
E36: =E24 -> 2014-03-31 | F36: =IF(G35>=F24,F24,G35) -> 0 | G36: =G35-F36 -> 0 | H36: =IF(I35>=I24,I24,I35) -> 0 | I36: =I35-H36 -> 2409197 | J36: =IF(K35>=K24,K24,K35) -> 0 | K36: =K35-J36 -> 1675291 | L36: =IF(M35>=M24,M24,M35) -> 0 | M36: =M35-L36 -> 5705162 | N36: =IF(O35>=O24,O24,O35) -> 0 | O36: =O35-N36 -> 6029746
E37: 2015-03-31 | F37: =IF(G36>=F25,F25,G36) -> 0 | G37: =G36-F37 -> 0 | H37: =IF(I36>=I25,I25,I36) -> 0 | I37: =I36-H37 -> 2409197 | J37: 0 | K37: =K36-J37 -> 1675291 | L37: =IF(M36>=M25,M25,M36) -> 0 | M37: =M36-L37 -> 5705162 | N37: =IF(O36>=O25,O25,O36) -> 0 | O37: 6029746
E38: 2018-03-31 | F38: 0 | G38: 0 | H38: 0 | I38: 2409197 | J38: 0 | K38: 1675291 | L38: =IF(M37>=M26,M26,M37) -> 0 | M38: 5705162 | N38: =IF(O37>=O26,O26,O37) -> 0 | O38: 6029746
E39: 2019-03-31 | F39: 0 | G39: 0 | H39: 654123 | I39: 1755074 | J39: 0 | K39: 1675291 | L39: =IF(M38>=M27,M27,M38) -> 0 | M39: 5705162 | N39: =IF(O38>=O27,O27,O38) -> 0 | O39: 6029746
E40: 2020-03-31 | F40: 0 | G40: 0 | H40: 0 | I40: 1755074 | J40: 0 | K40: 1675291 | L40: =IF(M39>=M28,M28,M39) -> 0 | M40: 5705162 | N40: =IF(O39>=O28,O28,O39) -> 0 | O40: 6029746
E41: 2021-03-31 | F41: 0 | G41: 0 | H41: 1235411 | I41: 519663 | J41: 0 | K41: 1675291 | L41: =IF(M40>=M29,M29,M40) -> 0 | M41: 5705162 | N41: =IF(O40>=O29,O29,O40) -> 0 | O41: 6029746
E42: 2022-03-31 | F42: 0 | G42: 0 | H42: 0 | I42: 519663 | J42: 0 | K42: 1675291 | L42: =IF(M41>=M30,M30,M41) -> 0 | M42: 5705162 | N42: =IF(O41>=O30,O30,O41) -> 0 | O42: 6029746
E43: 2023-03-31 | F43: 0 | G43: 0 | H43: 519663 | I43: 0 | J43: 1675291 | K43: 0 | L43: =IF(M42>=M31,M31,M42) -> 159577 | M43: 5545585 | N43: =IF(O42>=O31,O31,O42) -> 0 | O43: 6029746
F44: =SUM(F35:F43) -> 0 | H44: =SUM(H35:H43) -> 2409197 | J44: =SUM(J35:J43) -> 1675291 | L44: =SUM(L35:L43) -> 159577 | N44: =SUM(N35:N43) -> 0
E45: 翌期繰越欠損金額 | F45: =IF(F33>C32,0,F32-IF(F33<0,F33,0)-F44) -> 9612534 | H45: =IF(H33>F45,0,I32-IF(F33<0,F33,0)-IF(H33<0,H33,0)-H44) -> 7203337 | J45: =IF(J33>H45,0,K32-IF(F33<0,F33,0)-IF(H33<0,H33,0)-IF(J33<0,J33,0)-J44) -> 5528046 | L45: =IF(L33>J45,0,M32-IF(F33<0,F33,0)-IF(H33<0,H33,0)-IF(J33<0,J33,0)-IF(L33<0,L33,0)-L44) -> 0 | N45: =IF(N33>L45,0,O32-IF(F33<0,F33,0)-IF(H33<0,H33,0)-IF(J33<0,J33,0)-IF(L33<0,L33,0)-IF(N33<0,N33,0)-N44) -> 0

Sheet 法人概況表
A5: ① 対象先・概要 | B5: 事業者 | D5: =基本情報!C7 -> 株式会社一木運送 | W5: ④ 銀行別借入金明細（単位 千円） | X5: 金融機関名 | Y5: =F42 -> 2014-03-31 | Z5: シェア | AA5: =G42 -> 2015-03-31 | AB5: シェア | AC5: =H42 -> 2016-03-31 | AD5: シェア | AE5: 保全額
X6: =K10 -> 四菱大江戸ＵＳＪ銀行 | Y6: =銀行別借入金!F12 -> 15000000 | Z6: =Y6/Y10 -> 0.46875 | AA6: =銀行別借入金!H12 -> 12428580 | AB6: =AA6/AA10 -> 0.3949161525 | AC6: =銀行別借入金!J12 -> 9857160 | AD6: =AC6/AC10 -> 0.3967800835 | AE6: =資産保全状況!H9 -> 0
B7: 連絡先 | D7: 078-897-0000 | H7: 住所 | J7: 兵庫県神戸市東灘区御影○－○－○ | X7: =N10 -> 東灘信用金庫 | Y7: =銀行別借入金!F16 -> 17000000 | Z7: =Y7/Y10 -> 0.53125 | AA7: =銀行別借入金!H16 -> 19042860 | AB7: =AA7/AA10 -> 0.6050838475 | AC7: =銀行別借入金!J16 -> 14985720 | AD7: =AC7/AC10 -> 0.6032199165 | AE7: =資産保全状況!H13 -> 0
B8: 業種 | D8: 貨物運送業 | H8: 設立年月日 | J8: 2005-06-01 | R8: 年商 | S8: =決算情報登録!K13/1000000 -> 95.214632 | U8: 百万円 | X8: =Q10 ->  | Y8: =銀行別借入金!F20 -> 0 | Z8: =Y8/Y10 -> 0 | AA8: =銀行別借入金!H20 -> 0 | AB8: =AA8/AA10 -> 0 | AC8: =銀行別借入金!J20 -> 0 | AD8: =AC8/AC10 -> 0 | AE8: =資産保全状況!H17 -> 0
B9: (事業内容） | D9: ４ｔトラックによる貨物の運送 | H9: 代表者 | J9: 一木 好起 | R9: 年齢 | S9: 42 | U9: 歳 | X9: =T10 ->  | Y9: =銀行別借入金!F24 -> 0 | Z9: =Y9/Y10 -> 0 | AA9: =銀行別借入金!H24 -> 0 | AB9: =AA9/AA10 -> 0 | AC9: =銀行別借入金!J24 -> 0 | AD9: =AC9/AC10 -> 0 | AE9: =資産保全状況!H21 -> 0
B10: 資本金 | D10: =決算情報登録!E70/1000000 -> 5 | F10: 従業員数 (うちﾊﾟｰﾄ人員数) | G10: =人件費計画!F20+人件費計画!F33 -> 8 | H10: 主要金融機関 | J10: ① | K10: =IF(借入・返済計画!B8="","",借入・返済計画!B8) -> 四菱大江戸ＵＳＪ銀行 | M10: ② | N10: =IF(借入・返済計画!B9="","",借入・返済計画!B9) -> 東灘信用金庫 | P10: ③ | Q10: =IF(借入・返済計画!B10="","",借入・返済計画!B10) ->  | S10: ④ | T10: =IF(借入・返済計画!B11="","",借入・返済計画!B11) ->  | X10: 合計 | Y10: =SUM(Y6:Y9) -> 32000000 | Z10: =Y10/Y10 -> 1 | AA10: =SUM(AA6:AA9) -> 31471440 | AB10: =AA10/AA10 -> 1 | AC10: =SUM(AC6:AC9) -> 24842880 | AD10: =AC10/AC10 -> 1
G11: =人件費計画!F21+人件費計画!F34 -> 1
B12: 事業内容・沿革 | M12: 株主構成 | N12: 名前 | P12: 株数 | R12: 関係 | S12: 役員構成 | T12: 名前 | V12: 役職 | X12: 【今後の返済計画】
N13: 一木 好起 | P13: 700 | R13: 本人 | T13: 一木 好起 | V13: 代表取締役
N14: 一木 菜穂美 | P14: 300 | R14: 妻 | T14: 一木 菜穂美 | V14: 取締役
T15: 中垣 泰裕 | V15: 取締役
T16: 紺野 典子 | V16: 監査役
N20: 計 | P20: =SUM(P13:Q19) -> 1000
A21: ② 財務内容及び問題点 | B21: =BS実態調整!F7 -> 2014-03-31 | H21: 単位：千円 | R21: 主要項目コメント及び問題点 | W21: ⑤ 現状と認識課題
B22: 資産の部 | E22: 決算 | F22: 修正 | G22: 実質 | H22: 負債の部 | K22: 決算 | M22: 修正 | O22: 実質 | R22: 【資産査定】
C23: 現預金 | E23: =BS実態調整!D9 -> 1100654 | F23: =BS実態調整!E9 -> 0 | G23: =BS実態調整!F9 -> 1100654 | I23: 仕入債務 | K23: =BS実態調整!D49+BS実態調整!D50 -> 4200654 | M23: =BS実態調整!E49+BS実態調整!E50 -> 0 | O23: =BS実態調整!F49+BS実態調整!F50 -> 4200654
C24: 売上債権 | E24: =BS実態調整!D10+BS実態調整!D11 -> 14326123 | F24: =BS実態調整!E10+BS実態調整!E11 -> 0 | G24: =BS実態調整!F10+BS実態調整!F11 -> 14326123 | I24: 短期借入金 | K24: =BS実態調整!D51 -> 0 | M24: =BS実態調整!E51 -> 0 | O24: =BS実態調整!F51 -> 0
C25: 棚卸資産 | E25: =BS実態調整!D13+BS実態調整!D14 -> 0 | F25: =BS実態調整!E13+BS実態調整!E14 -> 0 | G25: =BS実態調整!F13+BS実態調整!F14 -> 0 | I25: その他 | K25: =K26-K23-K24 -> 1837267 | M25: =M26-M23-M24 -> 0 | O25: =O26-O23-O24 -> 1837267
C26: その他 | E26: =E27-E23-E24-E25 -> 757200 | F26: =F27-F23-F24-F25 -> 0 | G26: 757200 | H26: 流動負債計 | K26: =BS実態調整!D59 -> 6037921 | M26: =BS実態調整!E59 -> 0 | O26: =BS実態調整!F59 -> 6037921
B27: 流動資産計 | E27: =BS実態調整!D22 -> 16183977 | F27: =BS実態調整!E22 -> 0 | G27: =BS実態調整!F22 -> 16183977 | I27: 長期借入金 | K27: =BS実態調整!D60 -> 33000000 | M27: =BS実態調整!E60 -> 0 | O27: =BS実態調整!F60 -> 33000000 | R27: 【財務上の問題点】
C28: 土地 | E28: =BS実態調整!D30 -> 0 | F28: =BS実態調整!E30 -> 0 | G28: =BS実態調整!F30 -> 0 | I28: =BS実態調整!C61 -> 長期未払金 | K28: =BS実態調整!D61 -> 0 | M28: =BS実態調整!E61 -> 0 | O28: =BS実態調整!F61 -> 0
C29: 建物（附属含む） | E29: =BS実態調整!D23+BS実態調整!D24 -> 0 | F29: =BS実態調整!E23+BS実態調整!E24 -> 0 | G29: =BS実態調整!F23+BS実態調整!F24 -> 0 | I29: =BS実態調整!C62 -> 社債 | K29: =BS実態調整!D62 -> 0 | M29: =BS実態調整!E62 -> 0 | O29: =BS実態調整!F62 -> 0
C30: その他 | E30: =E31-E28-E29 -> 19040649 | F30: =F31-F28-F29 -> 0 | G30: 19040649 | I30: その他 | K30: =K31-K27-K28-K29 -> 0 | M30: =M31-M27-M28-M29 -> 0 | O30: =O31-O27-O28-O29 -> 0
B31: 有形固定資産 | E31: =BS実態調整!D32 -> 19040649 | F31: =BS実態調整!E32 -> 0 | G31: =BS実態調整!F32 -> 19040649 | H31: 固定負債計 | K31: =BS実態調整!D66 -> 33000000 | M31: =BS実態調整!E66 -> 0 | O31: =BS実態調整!F66 -> 33000000
B32: 無形固定資産 | E32: =BS実態調整!D35 -> 0 | F32: =BS実態調整!E35 -> 0 | G32: =BS実態調整!F35 -> 0 | H32: 負債合計 | K32: =BS実態調整!D67 -> 39037921 | M32: =BS実態調整!E67 -> 0 | O32: =BS実態調整!F67 -> 39037921
C33: 投資有価証券・出資金 | E33: =BS実態調整!D36 -> 50000 | F33: =BS実態調整!E36 -> 0 | G33: =BS実態調整!F36 -> 50000 | H33: 純資産の部 | K33: 決算 | M33: 修正 | O33: 実質
C34: 長期貸付金 | E34: =BS実態調整!D37 -> 0 | F34: =BS実態調整!E37 -> 0 | G34: =BS実態調整!F37 -> 0 | I34: 資本金 | K34: =BS実態調整!D70 -> 5000000 | M34: =BS実態調整!E70 -> 0 | O34: =BS実態調整!F70 -> 5000000
C35: その他 | E35: =E36-E33-E34 -> 1000000 | F35: =F36-F33-F34 -> 0 | G35: 1000000 | I35: 資本剰余金 | K35: =BS実態調整!D71 -> 0 | M35: =BS実態調整!E71 -> 0 | O35: =BS実態調整!F71 -> 0
B36: 投資等 | E36: =BS実態調整!D42 -> 1050000 | F36: =BS実態調整!E42 -> 0 | G36: =BS実態調整!F42 -> 1050000 | I36: 利益剰余金 | K36: =BS実態調整!D72+BS実態調整!D73+BS実態調整!D74+BS実態調整!D75 -> -7763295 | M36: =BS実態調整!E72+BS実態調整!E73+BS実態調整!E74+BS実態調整!E75 -> 0 | O36: =BS実態調整!F72+BS実態調整!F73+BS実態調整!F74+BS実態調整!F75 -> -7763295
B37: 固定資産計 | E37: =BS実態調整!D43 -> 20090649 | F37: =BS実態調整!E43 -> 0 | G37: =BS実態調整!F43 -> 20090649 | I37: 中小企業特性調整額 | K37: =BS実態調整!D76+BS実態調整!D77 -> 0 | M37: =BS実態調整!E76+BS実態調整!E77 -> 0 | O37: =BS実態調整!F76+BS実態調整!F77 -> 0
B38: 繰延資産 | E38: =BS実態調整!D44 -> 0 | F38: =BS実態調整!E44 -> 0 | G38: =BS実態調整!F44 -> 0 | H38: 自己資本 | K38: =BS実態調整!D78 -> -2763295 | M38: =BS実態調整!E78 -> 0 | O38: =BS実態調整!F78 -> -2763295
B39: 資産合計 | E39: =BS実態調整!D45 -> 36274626 | F39: =BS実態調整!E45 -> 0 | G39: =BS実態調整!F45 -> 36274626 | H39: 負債・資本合計 | K39: =BS実態調整!D79 -> 36274626 | M39: =BS実態調整!E79 -> 0 | O39: =BS実態調整!F79 -> 36274626
A41: ③ 業績推移等 | W41: ⑥ 経営改善計画策定方針
B42: （単位：千円） | E42: =決算情報登録!D47 -> 2013-03-31 | F42: =決算情報登録!E47 -> 2014-03-31 | G42: =損益計画２!M8 -> 2015-03-31 | H42: =損益計画２!O8 -> 2016-03-31 | K42: 【分析結果】
E43: （実績） | F43: （実績） | G43: （見込） | H43: （見込）
B44: 売上高 | E44: =決算情報登録!J13 -> 98523145 | F44: =決算情報登録!K13 -> 95214632 | G44: =損益計画２!M13 -> 96000000 | H44: =損益計画２!O13 -> 98000000
B45: 営業利益 | E45: =決算情報登録!J66 -> 3930344 | F45: =決算情報登録!K66 -> -3903114 | G45: =損益計画２!M66 -> -4979317 | H45: =損益計画２!O66 -> 2178890
B46: 経常利益 | E46: =決算情報登録!J77 -> 2799827 | F46: =決算情報登録!K77 -> -4584255 | G46: =損益計画２!M77 -> -5464732 | H46: =損益計画２!O77 -> 1792192
B47: 当期利益 | E47: =決算情報登録!J91 -> 2729827 | F47: =決算情報登録!K91 -> -4654255 | G47: =損益計画２!M91 -> -5438469 | H47: =損益計画２!O91 -> 2339197
B48: 減価償却 | E48: =決算情報登録!J63+決算情報登録!J64+決算情報登録!O47 -> 8576867 | F48: =決算情報登録!K63+決算情報登録!K64+決算情報登録!P47 -> 9379340 | G48: =損益計画２!M63+損益計画２!M64+原価計画１!K47 -> 12354799 | H48: =損益計画２!O63+損益計画２!O64+原価計画１!M47 -> 6357137
B49: 決算上自己資本 | E49: =決算情報登録!D76 -> 1890960 | F49: =決算情報登録!E76 -> -2763295 | G49: =貸借対照表計画!J79-貸借対照表計画!J77-貸借対照表計画!J78 -> -8201764 | H49: =貸借対照表計画!K79-貸借対照表計画!K77-貸借対照表計画!K78 -> -5862567 | I49: =貸借対照表計画!L79-貸借対照表計画!L77-貸借対照表計画!L78 -> -4257276
B50: 修正 | F50: =BS実態調整!E78 -> 0 | G50: =貸借対照表計画!J77+貸借対照表計画!J78 -> 0 | H50: =貸借対照表計画!K77+貸借対照表計画!K78 -> 0 | I50: =貸借対照表計画!L77+貸借対照表計画!L78 -> 0 | K50: 収益弁済原資 | N50: =F47+F48 -> 4725085 | O50: 百万円
B51: 実質自己資本 | F51: =SUM(F49:F50) -> -2763295 | G51: =SUM(G49:G50) -> -8201764 | H51: =SUM(H49:I50) -> -10119843 | K51: 債務超過解消年数 | O51: 年
B52: 金融機関からの借入金 | F52: =銀行別借入金!F36-銀行別借入金!F40 -> 32000000 | G52: =銀行別借入金!H36-銀行別借入金!H40 -> 31471440 | H52: =銀行別借入金!J36-銀行別借入金!J40 -> 24842880 | K52: 債務償還年数 | N52: =Y10/N50 -> 6.772364942 | O52: 年

Sheet 決算情報登録
B5: １、貸借対照表の入力 | G5: ２、損益計算書の入力 | M5: ３、製造原価報告書の入力
P6: =基本情報!C7 -> 株式会社一木運送
B7: ●資産の部 | D7: =DATE(YEAR(基本情報!$C$9)-2,MONTH(基本情報!$C$9),DAY(基本情報!$C$9)) -> 2013-03-31 | E7: =DATE(YEAR(基本情報!$C$9)-1,MONTH(基本情報!$C$9),DAY(基本情報!$C$9)) -> 2014-03-31 | G7: ●売上高 | J7: =DATE(YEAR(基本情報!$C$9)-2,MONTH(基本情報!$C$9),DAY(基本情報!$C$9)) -> 2013-03-31 | K7: =DATE(YEAR(基本情報!$C$9)-1,MONTH(基本情報!$C$9),DAY(基本情報!$C$9)) -> 2014-03-31 | M7: ●製造原価 | O7: =DATE(YEAR(基本情報!$C$9)-2,MONTH(基本情報!$C$9),DAY(基本情報!$C$9)) -> 2013-03-31 | P7: =DATE(YEAR(基本情報!$C$9)-1,MONTH(基本情報!$C$9),DAY(基本情報!$C$9)) -> 2014-03-31
C9: 現金・預金 | D9: 4503265 | E9: 1100654 | H9: 一般貨物運送 | I9: 部門 | J9: 98523145 | K9: 95214632 | N9: [製]期首材料棚卸高 | P9: =-O11 -> 0
C10: 受取手形 | I10: 部門 | N10: [製]材料仕入高
C11: 売掛金 | D11: 15983211 | E11: 14326123 | I11: 部門 | N11: [製]期末材料棚卸高
C12: 有価証券 | I12: 部門 | M12: 材料費合計 | O12: =SUM(O9:O11) -> 0 | P12: =SUM(P9:P10,P11) -> 0
C13: 商品・製品 | D13: =SUM(-J18,-J21) -> 0 | E13: =SUM(-K18,-K21) -> 0 | G13: 売上高合計 | J13: =SUM(J9:J12) -> 98523145 | K13: =SUM(K9:K12) -> 95214632 | N13: [製]給料手当 | O13: 20546211 | P13: 18757152
C14: 原材料・仕掛品 | D14: =SUM(-O11,-O50) -> 0 | E14: =SUM(-P11,-P50) -> 0 | G14: ●売上・製造原価 | J14: =DATE(YEAR(基本情報!$C$9)-2,MONTH(基本情報!$C$9),DAY(基本情報!$C$9)) -> 2013-03-31 | K14: =DATE(YEAR(基本情報!$C$9)-1,MONTH(基本情報!$C$9),DAY(基本情報!$C$9)) -> 2014-03-31 | N14: [製]雑給 | O14: 1200000 | P14: 390000
C15: 未収入金・未収収益 | E15: 7200 | N15: [製]賞与
C16: 未収還付消費税等 | H16: 期首商品棚卸高 | J16: 0 | K16: =-J18 -> 0 | N16: [製]退職金
C17: 短期貸付金 | D17: 540000 | E17: 630000 | H17: 当期商品仕入高 | J17: 0 | N17: [製]法定福利費
C18: 仮払金 | H18: 期末商品棚卸高 | J18: 0 | N18: [製]福利厚生費
C19: 前払金・前払費用 | H19: 期首製品棚卸高 | K19: =-J21 -> 0 | N19: [製]その他労務費
C20: その他の流動資産 | D20: 150000 | E20: 120000 | H20: 当期製品製造原価 | J20: =O51 -> 61120345 | K20: =P51 -> 63076584 | M20: 労務費合計 | O20: =SUM(O13:O19) -> 21746211 | P20: =SUM(P13:P19) -> 19147152
C21: 貸倒引当金 | H21: 期末製品棚卸高 | N21: [製]外注加工費 | O21: 3256332 | P21: 4028460
B22: 流動資産合計 | D22: =SUM(D9:D21) -> 21176476 | E22: =SUM(E9:E21) -> 16183977 | G22: 売上原価 | J22: =SUM(J16:J21) -> 61120345 | K22: =SUM(K16:K21) -> 63076584 | N22: [製]動力費 | O22: 10654123 | P22: 12358723
C23: 建物 | G23: 売上総利益 | J23: =J13-J22 -> 37402800 | K23: =K13-K22 -> 32138048 | N23: [製]荷造運賃
C24: 附属設備 | G24: 売上総利益率 | J24: =IF(ISERROR(J23/J13),0,J23/J13) -> 0.3796346534 | K24: =IF(ISERROR(K23/K13),0,K23/K13) -> 0.3375326599 | N24: [製]会議費
C25: 構築物 | G25: ●販売費・一般管理費 | J25: =DATE(YEAR(基本情報!$C$9)-2,MONTH(基本情報!$C$9),DAY(基本情報!$C$9)) -> 2013-03-31 | K25: =DATE(YEAR(基本情報!$C$9)-1,MONTH(基本情報!$C$9),DAY(基本情報!$C$9)) -> 2014-03-31 | N25: [製]旅費交通費 | O25: 1485321 | P25: 1587200
C26: 機械装置 | N26: [製]通信費
C27: 車両運搬具 | D27: 36000000 | E27: 36000000 | H27: 役員報酬 | J27: 12042000 | K27: 12042000 | N27: [製]消耗品費
C28: 工具器具備品 | D28: 840000 | E28: 840000 | H28: 給料手当 | J28: 4800000 | K28: 5352000 | N28: [製]事務用品費
C29: 減価償却累計額 | D29: -8420011 | E29: -17799351 | H29: 雑給 | K29: 89200 | N29: [製]消耗工具費
C30: 土地 | H30: 賞与 | N30: [製]車両費 | O30: 5036541 | P30: 5277488
C31: 建設仮勘定 | H31: 退職金 | N31: [製]修繕費 | O31: 1854213 | P31: 2177675
B32: 有形固定資産合計 | D32: =SUM(D23:D31) -> 28419989 | E32: =SUM(E23:E31) -> 19040649 | H32: 法定福利費 | J32: 1458321 | K32: 3425295 | N32: [製]水道光熱費
C33: ソフトウェア | H33: 福利厚生費 | J33: 286541 | K33: 580676 | N33: [製]新聞図書費
C34: その他無形固定資産 | H34: その他人件費 | N34: [製]諸会費
B35: 無形固定資産合計 | D35: =SUM(D33:D34) -> 0 | E35: =SUM(E33:E34) -> 0 | H35: 人件費計 | J35: =SUM(J27:J34) -> 18586862 | K35: =SUM(K27:K34) -> 21489171 | N35: [製]地代家賃
C36: 投資有価証券・出資金 | D36: 50000 | E36: 50000 | H36: 外注費 | J36: 0 | K36: 0 | N36: [製]賃借料 | O36: 2165412 | P36: 2169720
C37: 長期貸付金 | H37: 荷造運賃 | J37: 0 | K37: 0 | N37: [製]租税公課 | O37: 4400658 | P37: 4824152
C38: 敷金・差入保証金 | D38: 1000000 | E38: 1000000 | H38: 広告宣伝費 | J38: 50654 | K38: 72586 | N38: [製]保険料 | O38: 2065321 | P38: 2220693
C39: 長期前払費用 | H39: 交際費 | J39: 458213 | K39: 703067 | N39: [製]支払報酬料
C40: 各種引当金 | H40: 会議費 | J40: 600321 | K40: 534283 | N40: [製]寄付金
C41: その他投資等 | H41: 旅費交通費 | J41: 680321 | K41: 772695 | N41: [製]研究開発費
B42: 投資その他の資産合計 | D42: =SUM(D36:D41) -> 1050000 | E42: =SUM(E36:E41) -> 1050000 | H42: 通信費 | J42: 1655781 | K42: 1735406 | N42: [製]保管料
B43: 固定資産合計 | D43: =SUM(D32,D35,D42) -> 29469989 | E43: =SUM(E32,E35,E42) -> 20090649 | H43: 消耗品費 | J43: 420655 | K43: 385765 | N43: [製]特許使用料
B44: 繰延資産 | D44: 0 | E44: 0 | H44: 事務用品費 | J44: 110654 | K44: 132622 | N44: [製]棚卸減耗損
B45: 資産合計 | D45: =SUM(D22,D43,D44) -> 50646465 | E45: =SUM(E22,E43,E44) -> 36274626 | H45: 修繕費 | J45: 6300 | K45: 0 | N45: [製]雑費
D46: =IF(D45=D77,"貸借一致","貸借不一致") -> 貸借一致 | E46: =IF(E45=E77,"貸借一致","貸借不一致") -> 貸借一致 | H46: 水道光熱費 | J46: 380123 | K46: 397087 | N46: [製]その他製造経費
B47: ●負債の部 | D47: =DATE(YEAR(基本情報!$C$9)-2,MONTH(基本情報!$C$9),DAY(基本情報!$C$9)) -> 2013-03-31 | E47: =DATE(YEAR(基本情報!$C$9)-1,MONTH(基本情報!$C$9),DAY(基本情報!$C$9)) -> 2014-03-31 | H47: 新聞図書費 | J47: 12000 | K47: 7492 | N47: [製]減価償却費 | O47: 8456213 | P47: 9285321
H48: 諸会費 | K48: 0 | M48: 製造経費合計 | O48: =SUM(O21:O47) -> 39374134 | P48: =SUM(P21:P47) -> 43929432
C49: 支払手形 | D49: 0 | E49: 0 | H49: 支払手数料 | J49: 520452 | K49: 479496 | N49: [製]期首仕掛品 | P49: =-O50 -> 0
C50: 買掛金 | D50: 3200854 | E50: 4200654 | H50: 車両費 | K50: 0 | N50: [製]期末仕掛品
C51: 短期借入金 | H51: 地代家賃 | J51: 7200000 | K51: 7200000 | M51: 当期製品製造原価 | O51: =SUM(O12,O20,O48,O49-O50) -> 61120345 | P51: =SUM(P12,P20,P48,P49-P50) -> 63076584
C52: 未払金・未払費用 | D52: 8800651 | E52: 1130267 | H52: 賃借料 | K52: 0
C53: 前受金・前受収益 | H53: リース料 | J53: 480000 | K53: 480000
C54: 未払法人税等 | D54: 70000 | E54: 70000 | H54: 保険料 | J54: 32145 | K54: 69821
C55: 未払消費税等 | D55: 582000 | E55: 541000 | H55: 租税公課 | J55: 1206321 | K55: 141605
C56: 預り金 | D56: 102000 | E56: 96000 | H56: 支払報酬料 | J56: 630000 | K56: 840000
C57: 各種引当金 | H57: 寄付金 | K57: 0
C58: その他流動負債 | H58: 雑費 | J58: 321000 | K58: 506047
B59: 流動負債合計 | D59: =SUM(D49:D58) -> 12755505 | E59: =SUM(E49:E58) -> 6037921 | K59: 0
C60: 長期借入金 | D60: 36000000 | E60: 33000000 | K60: 0
C61: 長期未払金 | H61: その他販管費 | K61: 0
C62: 社債 | H62: 貸倒引当金繰入額 | K62: 0
C63: 敷金・保証金 | H63: 減価償却費 | J63: 120654 | K63: 94019
C64: 各種引当金 | H64: 長期前払費用償却
C65: その他固定負債 | G65: 販売費・一般管理費合計 | J65: =SUM(J35:J64) -> 33472456 | K65: =SUM(K35:K64) -> 36041162
B66: 固定負債合計 | D66: =SUM(D60:D65) -> 36000000 | E66: =SUM(E60:E65) -> 33000000 | G66: 営業利益 | J66: =SUM(J23-J65) -> 3930344 | K66: =SUM(K23-K65) -> -3903114
B67: 負債合計 | D67: =SUM(D66,D59) -> 48755505 | E67: =SUM(E66,E59) -> 39037921 | G67: ●営業外損益・特別損益 | J67: =DATE(YEAR(基本情報!$C$9)-2,MONTH(基本情報!$C$9),DAY(基本情報!$C$9)) -> 2013-03-31 | K67: =DATE(YEAR(基本情報!$C$9)-1,MONTH(基本情報!$C$9),DAY(基本情報!$C$9)) -> 2014-03-31
B68: ●純資産の部 | D68: =DATE(YEAR(基本情報!$C$9)-2,MONTH(基本情報!$C$9),DAY(基本情報!$C$9)) -> 2013-03-31 | E68: =DATE(YEAR(基本情報!$C$9)-1,MONTH(基本情報!$C$9),DAY(基本情報!$C$9)) -> 2014-03-31
H69: 受取利息・配当金 | J69: 18645 | K69: 15745
C70: 資本金 | D70: 5000000 | E70: 5000000 | H70: 雑収入 | J70: 100000 | K70: 152605
C71: 資本剰余金 | D71: 0 | H71: その他営業外収益 | J71: 0 | K71: 0
C72: 利益準備金 | G72: 営業外収益合計 | J72: =SUM(J69:J71) -> 118645 | K72: =SUM(K69:K71) -> 168350
C73: 任意積立金 | H73: 支払利息 | J73: 1098812 | K73: 721275
C74: 繰越利益剰余金 | D74: -3109040 | E74: =D74+K91 -> -7763295 | H74: 雑損失 | J74: 150350 | K74: 128216
C75: その他自己資本 | H75: その他営業外費用
B76: 純資産合計 | D76: =SUM(D70:D75) -> 1890960 | E76: =SUM(E70:E75) -> -2763295 | G76: 営業外費用合計 | J76: =SUM(J73:J75) -> 1249162 | K76: =SUM(K73:K75) -> 849491
B77: 負債・純資産合計 | D77: =SUM(D67,D76) -> 50646465 | E77: =SUM(E67,E76) -> 36274626 | G77: 経常利益 | J77: =J66+J72-J76 -> 2799827 | K77: =K66+K72-K76 -> -4584255
D78: =IF(D45=D77,"貸借一致","貸借不一致") -> 貸借一致 | E78: =IF(E45=E77,"貸借一致","貸借不一致") -> 貸借一致 | H78: 固定資産売却益
H79: 有価証券売却益
H80: 引当金繰戻額
H81: その他特別利益
G82: 特別利益合計 | J82: =SUM(J78:J81) -> 0 | K82: =SUM(K78:K81) -> 0
H83: 固定資産処分損 | K83: 0
H84: 有価証券処分損
H85: 引当金繰入額
H86: その他特別損失
G87: 特別損失合計 | J87: =SUM(J83:J86) -> 0 | K87: =SUM(K83:K86) -> 0
G88: 税引前当期純利益 | J88: =J77+J82-J87 -> 2799827 | K88: =K77+K82-K87 -> -4584255
H89: 法人税・住民税及び事業税 | J89: 70000 | K89: 70000
H90: 法人税等調整額
G91: 税引後当期純利益 | J91: =J88-J89-J90 -> 2729827 | K91: =K88-K89-K90 -> -4654255
C95: =C30 -> 土地
C96: =C33 -> ソフトウェア
C97: =C34 -> その他無形固定資産
C99: =C23 -> 建物
C100: 附属設備
C101: 構築物
C102: 機械装置
C103: 車両運搬具
C104: 工具器具備品
C105: =C33 -> ソフトウェア
C106: =C34 -> その他無形固定資産

Sheet BS実態調整
B5: １、貸借対照表の帳簿上残高と実質残高への調整 | H5: ２、実質残高への調整の明細を入力
B7: ●資産の部 | D7: =DATE(YEAR(基本情報!$C$9)-1,MONTH(基本情報!$C$9),DAY(基本情報!$C$9)) -> 2014-03-31 | E7: 実態調整 | F7: =D7 -> 2014-03-31 | H7: 項目 | I7: 勘定科目 | J7: 金額
F8: 調整後残高
C9: 現金・預金 | D9: =決算情報登録!E9 -> 1100654 | E9: =SUMIF(I$11:J$39,C9,J$11:J$39) -> 0 | F9: =D9+E9 -> 1100654 | H9: １、帳簿上の純資産額 | K9: =BS実態調整!D78 -> -2763295
C10: 受取手形 | D10: =決算情報登録!E10 -> 0 | E10: =SUMIF(I$11:J$39,C10,J$11:J$39) -> 0 | F10: =D10+E10 -> 0 | H10: ２、調整事項
C11: 売掛金 | D11: =決算情報登録!E11 -> 14326123 | E11: 0 | F11: 14326123
C12: 有価証券 | D12: =決算情報登録!E12 -> 0 | E12: 0 | F12: 0
C13: 商品・製品 | D13: =決算情報登録!E13 -> 0 | E13: 0 | F13: 0
C14: 原材料・仕掛品 | D14: =決算情報登録!E14 -> 0 | E14: 0 | F14: 0
C15: 未収入金・未収収益 | D15: =決算情報登録!E15 -> 7200 | E15: 0 | F15: 7200
C16: 未収還付消費税等 | D16: =決算情報登録!E16 -> 0 | E16: 0 | F16: 0
C17: 短期貸付金 | D17: =決算情報登録!E17 -> 630000 | E17: 0 | F17: 630000
C18: 仮払金 | D18: =決算情報登録!E18 -> 0 | E18: 0 | F18: 0
C19: 前払金・前払費用 | D19: =決算情報登録!E19 -> 0 | E19: 0 | F19: 0
C20: その他の流動資産 | D20: =決算情報登録!E20 -> 120000 | E20: 0 | F20: 120000
C21: 貸倒引当金 | D21: =決算情報登録!E21 -> 0 | E21: 0 | F21: 0
B22: 流動資産合計 | D22: =SUM(D9:D21) -> 16183977 | E22: =SUM(E9:E21) -> 0 | F22: =SUM(F9:F21) -> 16183977
C23: 建物 | D23: =決算情報登録!E23 -> 0 | E23: 0 | F23: =D23+E23 -> 0
C24: 附属設備 | D24: =決算情報登録!E24 -> 0 | E24: 0 | F24: 0
C25: 構築物 | D25: =決算情報登録!E25 -> 0 | E25: 0 | F25: 0
C26: 機械装置 | D26: =決算情報登録!E26 -> 0 | E26: 0 | F26: 0
C27: 車両運搬具 | D27: =決算情報登録!E27 -> 36000000 | E27: 0 | F27: 36000000
C28: 工具器具備品 | D28: =決算情報登録!E28 -> 840000 | E28: 0 | F28: 840000
C29: 減価償却累計額 | D29: =決算情報登録!E29 -> -17799351 | E29: 0 | F29: -17799351
C30: 土地 | D30: =決算情報登録!E30 -> 0 | E30: 0 | F30: 0
C31: 建設仮勘定 | D31: =決算情報登録!E31 -> 0 | E31: 0 | F31: 0
B32: 有形固定資産合計 | D32: =SUM(D23:D31) -> 19040649 | E32: =SUM(E23:E31) -> 0 | F32: =SUM(F23:F31) -> 19040649
C33: ソフトウェア | D33: =決算情報登録!E33 -> 0 | E33: 0 | F33: =D33+E33 -> 0 | K33: =SUM(J11:J33) -> 0
C34: その他無形固定資産 | D34: =決算情報登録!E34 -> 0 | E34: 0 | F34: 0 | H34: ３、調整事項反映後の純資産額（１＋２） | K34: =SUM(K9:K33) -> -2763295
B35: 無形固定資産合計 | D35: =SUM(D33:D34) -> 0 | E35: =SUM(E33:E34) -> 0 | F35: =SUM(F33:F34) -> 0 | H35: ４、中小企業特性に係る調整事項
C36: 投資有価証券・出資金 | D36: =決算情報登録!E36 -> 50000 | E36: 0 | F36: =D36+E36 -> 50000
C37: 長期貸付金 | D37: =決算情報登録!E37 -> 0 | E37: 0 | F37: 0
C38: 敷金・差入保証金 | D38: =決算情報登録!E38 -> 1000000 | E38: 0 | F38: 1000000
C39: 長期前払費用 | D39: =決算情報登録!E39 -> 0 | E39: 0 | F39: 0 | K39: =SUM(J36:J39) -> 0
C40: 各種引当金 | D40: =決算情報登録!E40 -> 0 | E40: 0 | F40: 0 | H40: ５、中小企業特性反映後の純資産額（３＋４） | K40: =SUM(K15:K39) -> -2763295
C41: その他投資等 | D41: =決算情報登録!E41 -> 0 | E41: 0 | F41: 0
B42: 投資その他の資産合計 | D42: =SUM(D36:D41) -> 1050000 | E42: =SUM(E36:E41) -> 0 | F42: =SUM(F36:F41) -> 1050000
B43: 固定資産合計 | D43: =SUM(D32,D35,D42) -> 20090649 | E43: =SUM(E32,E35,E42) -> 0 | F43: =SUM(F32,F35,F42) -> 20090649
B44: 繰延資産 | D44: =決算情報登録!E44 -> 0 | E44: =SUMIF(I$11:J$39,C44,J$11:J$39) -> 0 | F44: =D44+E44 -> 0
B45: 資産合計 | D45: =SUM(D22,D43,D44) -> 36274626 | E45: =SUM(E22,E43,E44) -> 0 | F45: =SUM(F22,F43,F44) -> 36274626
D46: =IF(D45=D79,"貸借一致","貸借不一致") -> 貸借一致 | F46: =IF(F45=F79,"貸借一致","貸借不一致") -> 貸借一致
B47: ●負債の部 | D47: =DATE(YEAR(基本情報!$C$9)-1,MONTH(基本情報!$C$9),DAY(基本情報!$C$9)) -> 2014-03-31 | E47: 実態調整 | F47: 実態調整
C49: 支払手形 | D49: =決算情報登録!E49 -> 0 | E49: =-SUMIF(I$11:J$39,C49,J$11:J$39) -> 0 | F49: =D49+E49 -> 0
C50: 買掛金 | D50: =決算情報登録!E50 -> 4200654 | E50: =-SUMIF(I$11:J$39,C50,J$11:J$39) -> 0 | F50: 4200654
C51: 短期借入金 | D51: =決算情報登録!E51 -> 0 | E51: 0 | F51: 0
C52: 未払金・未払費用 | D52: =決算情報登録!E52 -> 1130267 | E52: 0 | F52: 1130267
C53: 前受金・前受収益 | D53: =決算情報登録!E53 -> 0 | E53: 0 | F53: 0
C54: 未払法人税等 | D54: =決算情報登録!E54 -> 70000 | E54: 0 | F54: 70000
C55: 未払消費税等 | D55: =決算情報登録!E55 -> 541000 | E55: 0 | F55: 541000
C56: 預り金 | D56: =決算情報登録!E56 -> 96000 | E56: 0 | F56: 96000
C57: 各種引当金 | D57: =決算情報登録!E57 -> 0 | E57: 0 | F57: 0
C58: その他流動負債 | D58: =決算情報登録!E58 -> 0 | E58: 0 | F58: 0
B59: 流動負債合計 | D59: =SUM(D49:D58) -> 6037921 | E59: =SUM(E49:E58) -> 0 | F59: =SUM(F49:F58) -> 6037921
C60: 長期借入金 | D60: =決算情報登録!E60 -> 33000000 | E60: =-SUMIF(I$11:J$39,C60,J$11:J$39) -> 0 | F60: =D60+E60 -> 33000000
C61: 長期未払金 | D61: =決算情報登録!E61 -> 0 | E61: 0 | F61: 0
C62: 社債 | D62: =決算情報登録!E62 -> 0 | E62: 0 | F62: 0
C63: 敷金・保証金 | D63: =決算情報登録!E63 -> 0 | E63: 0 | F63: 0
C64: 各種引当金 | D64: =決算情報登録!E64 -> 0 | E64: 0 | F64: 0
C65: その他固定負債 | D65: =決算情報登録!E65 -> 0 | E65: 0 | F65: 0
B66: 固定負債合計 | D66: =SUM(D60:D65) -> 33000000 | E66: =SUM(E60:E65) -> 0 | F66: =SUM(F60:F65) -> 33000000
B67: 負債合計 | D67: =SUM(D66,D59) -> 39037921 | E67: =SUM(E66,E59) -> 0 | F67: =SUM(F66,F59) -> 39037921
B68: ●純資産の部 | D68: =DATE(YEAR(基本情報!$C$9)-1,MONTH(基本情報!$C$9),DAY(基本情報!$C$9)) -> 2014-03-31 | E68: =DATE(YEAR(基本情報!$C$9)-1,MONTH(基本情報!$C$9),DAY(基本情報!$C$9)) -> 2014-03-31 | F68: =DATE(YEAR(基本情報!$C$9)-1,MONTH(基本情報!$C$9),DAY(基本情報!$C$9)) -> 2014-03-31
C70: 資本金 | D70: =決算情報登録!E70 -> 5000000 | E70: =-SUMIF(I$11:J$39,C70,J$11:J$39) -> 0 | F70: =D70+E70 -> 5000000
C71: 資本剰余金 | D71: =決算情報登録!E71 -> 0 | E71: 0 | F71: 0
C72: 利益準備金 | D72: =決算情報登録!E72 -> 0 | E72: 0 | F72: 0
C73: 任意積立金 | D73: =決算情報登録!E73 -> 0 | E73: 0 | F73: 0
C74: 繰越利益剰余金 | D74: =決算情報登録!E74 -> -7763295 | E74: 0 | F74: -7763295
C75: その他自己資本 | D75: =決算情報登録!E75 -> 0 | E75: 0 | F75: 0
C76: 実態調整額 | E76: =K33 -> 0 | F76: 0
C77: 中小企業特性調整額 | E77: =K39 -> 0 | F77: =D77+E77 -> 0
B78: 純資産合計 | D78: =SUM(D70:D75) -> -2763295 | E78: =SUM(E70:E75) -> 0 | F78: =SUM(F70:F77) -> -2763295
B79: 負債・純資産合計 | D79: =SUM(D67,D78) -> 36274626 | E79: =SUM(E67,E78) -> 0 | F79: =SUM(F67,F78) -> 36274626
D80: =IF(D45=D79,"貸借一致","貸借不一致") -> 貸借一致 | F80: =IF(F45=F79,"貸借一致","貸借不一致") -> 貸借一致
C83: 現金・預金
C84: 受取手形
C85: 売掛金
C86: 有価証券
C87: 商品・製品
C88: 原材料・仕掛品
C89: 未収入金・未収収益
C90: 未収還付消費税等
C91: 短期貸付金
C92: 仮払金
C93: 前払金・前払費用
C94: その他の流動資産
C95: 貸倒引当金
C96: 建物
C97: 附属設備
C98: 構築物
C99: 機械装置
C100: 車両運搬具
C101: 工具器具備品
C102: 減価償却累計額
C103: 土地
C104: 建設仮勘定
C105: ソフトウェア
C106: その他無形固定資産
C107: 投資有価証券・出資金
C108: 長期貸付金
C109: 敷金・差入保証金
C110: 長期前払費用
C111: 各種引当金
C112: その他投資等
C113: 支払手形
C114: 買掛金
C115: 短期借入金
C116: 未払金・未払費用
C117: 前受金・前受収益
C118: 未払法人税等
C119: 未払消費税等
C120: 預り金
C121: 各種引当金
C122: その他流動負債
C123: 長期借入金
C124: 長期未払金
C125: 社債
C126: 敷金・保証金
C127: 各種引当金
C128: その他固定負債
C129: 資本金
C130: 資本剰余金
C131: 利益準備金
C132: 任意積立金
C133: 繰越利益剰余金
C134: その他自己資本
C135: 実態調整額
C136: 中小企業特性調整額

Sheet 投資・償却費計画
A5: １、既存・更新・新規投資予定の固定資産の情報入力
G6: ※期首残高チェック
C7: 減価償却費の計算方法 | D7: 間接法 | G7: 区分 | L7: 明細の残高 | O7: 決算情報 | U7: 一致／不一致
G8: 建物 | L8: =IF(D$7="直接法",SUMIF(B$24:Q$73,G8,Q$24:Q$73),SUMIF(B$24:Q$73,G8,P$24:P$73)) -> 0 | O8: =決算情報登録!E23 -> 0 | U8: =IF(L8=O8,"一致","不一致") -> 一致
G9: 附属設備 | L9: 0 | O9: =決算情報登録!E24 -> 0 | U9: =IF(L9=O9,"一致","不一致") -> 一致
G10: 構築物 | L10: 0 | O10: =決算情報登録!E25 -> 0 | U10: 一致
G11: 機械装置 | L11: 0 | O11: =決算情報登録!E26 -> 0 | U11: 一致
G12: 車両運搬具 | L12: 36000000 | O12: =決算情報登録!E27 -> 36000000 | U12: 一致
G13: 工具器具備品 | L13: 840000 | O13: =決算情報登録!E28 -> 840000 | U13: 一致
G14: 減価償却累計額 | L14: =IF(D$7="直接法",0,-(P74-Q74)) -> -17799351 | O14: =決算情報登録!E29 -> -17799351 | U14: =IF(L14=O14,"一致","不一致") -> 一致
G15: 有形固定資産合計 | L15: =SUM(L8:N14) -> 19040649 | O15: =SUM(O8:Q14) -> 19040649
G16: ソフトウェア | L16: =IF(D$7="直接法",SUMIF(B$24:Q$73,G16,Q$24:Q$73),SUMIF(B$24:Q$73,G16,P$24:P$73)) -> 0 | O16: =決算情報登録!E33 -> 0 | U16: =IF(L16=O16,"一致","不一致") -> 一致
G17: その他無形固定資産 | L17: =IF(D$7="直接法",SUMIF(B$24:Q$73,G17,Q$24:Q$73),SUMIF(B$24:Q$73,G17,P$24:P$73)) -> 0 | O17: =決算情報登録!E34 -> 0 | U17: 一致
G18: 無形固定資産合計 | L18: =SUM(L16:N17) -> 0 | O18: =SUM(O16:Q17) -> 0
G19: 長期前払費用 | L19: =Q104 -> 0 | O19: =決算情報登録!E39 -> 0 | U19: =IF(L19=O19,"一致","不一致") -> 一致 | BU19: =基本情報!C7 -> 株式会社一木運送
C21: 1 | D21: 2 | E21: 3 | F21: 4 | G21: 5 | H21: 6 | I21: 7 | J21: 8 | K21: 9 | L21: 10 | M21: 11 | N21: 12 | O21: 13 | Q21: 14 | R21: 15 | S21: 16 | T21: 17 | U21: 18 | V21: 19 | W21: 20 | X21: 21 | Y21: 22 | Z21: 23 | AA21: 24 | AB21: 25 | AC21: 26 | AD21: 27 | AE21: 28 | AF21: 29 | AG21: 30 | AH21: 31 | AI21: 32 | AJ21: 33 | AK21: 34 | AL21: 35 | AM21: 36 | AN21: 37 | AO21: 38 | AP21: 39 | AQ21: 40 | AR21: 41 | AS21: 42 | AT21: 43 | AU21: 44 | AV21: 45 | AW21: 46 | AX21: 47 | AY21: 48 | AZ21: 49 | BA21: 50 | BB21: 51 | BC21: 52 | BD21: 53 | BE21: 54 | BF21: 55 | BG21: 56 | BH21: 57 | BI21: 58 | BJ21: 59 | BK21: 60 | BL21: 61 | BM21: 62 | BN21: 63 | BO21: 64 | BP21: 65 | BQ21: 66 | BR21: 67 | BS21: 68 | BT21: 69 | BU21: 70 | BV21: 71 | BW21: 72 | BX21: 73 | BY21: 74 | BZ21: 75 | CA21: 76 | CB21: 77 | CC21: 78 | CD21: 79 | CE21: 80 | CF21: 81 | CG21: 82 | CH21: 83 | CI21: 84 | CJ21: 85 | CK21: 86 | CL21: 87 | CM21: 88 | CN21: 89
A22: 資産 番号 | B22: 資産の種類 | C22: 資 産 の 名 称 等 | D22: 取得（予定） 年月 | F22: 製造原価 ／販管費 | G22: 耐用 年数 | H22: 償却方法 | L22: 償却率 | M22: 改訂 償却率 | N22: 保証率 | O22: 取得(予定) 価額 | Q22: 期首簿価 （既存資産のみ） | R22: 残存価額 （取得価額×10%) | S22: 取得価額×5% | T22: 備忘価額 | U22: 取得期 | V22: 除却期 | W22: 計画第一期 償却費 | X22: 計画第一期 簿価 | Y22: 計画第一期 償却累計額 | Z22: 計画第一期 期末日 | AA22: 償却月数 | AB22: 旧定額法 償却費 | AC22: 新定額法 償却費 | AD22: 旧定率法 償却費 | AE22: 新定率法 償却費（本来） | AF22: 償却保証額 | AG22: 改訂償却費 | AH22: 新定率法 償却費 | AI22: 計画第二期 償却費 | AJ22: 計画第二期 簿価 | AK22: 計画第二期 償却累計額 | AL22: 計画第二期 期末日 | AM22: 償却月数 | AN22: 旧定額法 償却費 | AO22: 新定額法 償却費 | AP22: 旧定率法 償却費 | AQ22: 新定率法 償却費（本来） | AR22: 償却保証額 | AS22: 改訂償却費 | AT22: 新定率法 償却費 | AU22: 計画第三期 償却費 | AV22: 計画第三期 簿価 | AW22: 計画第三期 償却累計額 | AX22: 計画第三期 期末日 | AY22: 償却月数 | AZ22: 旧定額法 償却費 | BA22: 新定額法 償却費 | BB22: 旧定率法 償却費 | BC22: 新定率法 償却費（本来） | BD22: 償却保証額 | BE22: 改訂償却費 | BF22: 新定率法 償却費 | BG22: 計画第四期 償却費 | BH22: 計画第四期 簿価 | BI22: 計画第四期 償却累計額 | BJ22: 計画第四期 期末日 | BK22: 償却月数 | BL22: 旧定額法 償却費 | BM22: 新定額法 償却費 | BN22: 旧定率法 償却費 | BO22: 新定率法 償却費（本来） | BP22: 償却保証額 | BQ22: 改訂償却費 | BR22: 新定率法 償却費 | BS22: 計画第五期 償却費 | BT22: 計画第五期 簿価 | BU22: 計画第五期 償却累計額 | BV22: 計画第五期 期末日 | BW22: 償却月数 | BX22: 旧定額法 償却費 | BY22: 新定額法 償却費 | BZ22: 旧定率法 償却費 | CA22: 新定率法 償却費（本来） | CB22: 償却保証額 | CC22: 改訂償却費 | CD22: 新定率法 償却費 | CE22: 第一期 取得額 | CF22: 第二期 取得額 | CG22: 第三期 取得額 | CH22: 第四期 取得額 | CI22: 第五期 取得額 | CJ22: 第一期 償却費 | CK22: 第二期 償却費 | CL22: 第三期 償却費 | CM22: 第四期 償却費 | CN22: 第五期 償却費 | CO22: 第一期 販管費 償却費 | CP22: 第二期 販管費 償却費 | CQ22: 第三期 販管費 償却費 | CR22: 第四期 販管費 償却費 | CS22: 第五期 販管費 償却費 | CT22: 第一期 製造原価 償却費 | CU22: 第二期 製造原価 償却費 | CV22: 第三期 製造原価 償却費 | CW22: 第四期 製造原価 償却費 | CX22: 第五期 製造原価 償却費
W23: =損益計画１!M$8 -> 2015-03-31 | AI23: =損益計画１!O$8 -> 2016-03-31 | AU23: =損益計画１!Q$8 -> 2017-03-31 | BG23: =損益計画１!S$8 -> 2018-03-31 | BS23: =損益計画１!U$8 -> 2019-03-31
A24: 1 | B24: 車両運搬具 | C24: 四菱 キャンター① | D24: 2013-03-01 | E24: =DATE(YEAR(基本情報!$C$9)-1,MONTH(基本情報!$C$9),DAY(基本情報!$C$9))+1 -> 2014-04-01 | F24: 製造原価 | G24: 4 | H24: 定率法 | I24: =IF(H24="定率法","",IF(D24>39172,"新定額法","旧定額法")) ->  | J24: =IF(H24="定額法","",IF(D24>40999,"定率法200",IF(D24>39172,"定率法250","旧定率法"))) -> 定率法200 | K24: =IF(H24="非償却",H24,IF(I24="",J24,IF(J24="",I24,""))) -> 定率法200 | L24: =IF(K24="非償却",0,IF(ISERROR(VLOOKUP(G24,INDIRECT(K24),2,FALSE)),"",VLOOKUP(G24,INDIRECT(K24),2,FALSE))) -> 0.5 | M24: =IF(ISERROR(VLOOKUP(G24,INDIRECT(K24),3,FALSE)),"",VLOOKUP(G24,INDIRECT(K24),3,FALSE)) -> 1 | N24: =IF(ISERROR(VLOOKUP(G24,INDIRECT(K24),4,FALSE)),"",VLOOKUP(G24,INDIRECT(K24),4,FALSE)) -> 0.12499 | O24: 4200000 | P24: =IF(U24="前期以前",O24,0) -> 4200000 | Q24: 3200000 | R24: =ROUNDDOWN(O24*0.1,0) -> 420000 | S24: =ROUNDDOWN(O24*0.05,0) -> 210000 | T24: 1 | U24: =IF($D24="","",IF($D24<$E24,"前期以前",IF($D24<=W$23,1,IF($D24<=AI$23,2,IF($D24<=AU$23,3,IF($D24<=BG$23,4,5)))))) -> 前期以前 | V24: =IF(ISERROR(VLOOKUP(C24,資産処分計画!$D$14:$G$38,4,FALSE)),"",VLOOKUP(C24,資産処分計画!$D$14:$G$38,4,FALSE)) ->  | W24: =IF($K24="旧定額法",AB24,IF($K24="新定額法",AC24,IF($K24="旧定率法",AD24,AH24))) -> 1600000 | X24: =IF($U24="前期以前",$O24-Y24,IF($U24<=1,$O24-Y24,0)) -> 1600000 | Y24: =IF(U24="前期以前",O24-Q24+W24,W24) -> 2600000 | Z24: =損益計画１!M$8 -> 2015-03-31 | AA24: =IF(Z24-$D24<0,0,IF(DATEDIF($D24,Z24,"M")+1>12,12,DATEDIF($D24,Z24,"M")+1)) -> 12 | AB24: =IF(O24="",0,IF(Q24="",ROUNDDOWN(($O24-$O24*0.1)*$L24*AA24/12,0),IF(Q24>S24,MIN(ROUNDDOWN(($O24-$O24*0.1)*$L24*AA24/12,0),Q24-S24),ROUNDDOWN((S24-1)/5,0)))) -> 1890000 | AC24: =IF($O24="",0,IF(Q24="",ROUNDDOWN($O24*$L24*AA24/12,0),IF(Q24>T24,MIN(ROUNDDOWN($O24*$L24*AA24/12,0),Q24-T24),0))) -> 2100000 | AD24: =IF(O24="",0,IF(Q24="",ROUNDDOWN(Q24*$L24*AA24/12,0),IF(Q24>S24,MIN(ROUNDDOWN(Q24*$L24*AA24/12,0),Q24-S24),MIN(ROUNDDOWN((S24-1)/5,0),Q24-1)))) -> 1600000 | AE24: =IF($O24="",0,IF(Q24="",ROUNDDOWN(O24*$L24*AA24/12,0),ROUNDDOWN(Q24*$L24*AA24/12,0))) -> 1600000 | AF24: =IF(ISERROR(ROUNDDOWN(O24*N24,0)),0,ROUNDDOWN(O24*N24,0)) -> 524958 | AG24: =IF(ISERROR(ROUNDDOWN(Q24*M24,0)),0,IF((ROUNDDOWN(Q24*M24,0)-T24)<0,0,ROUNDDOWN(Q24*M24,0)-T24)) -> 3199999 | AH24: =IF(U24=1,AE24,IF(AE24<AF24,AG24,AE24)) -> 1600000 | AI24: =IF($K24="旧定額法",AN24,IF($K24="新定額法",AO24,IF($K24="旧定率法",AP24,AT24))) -> 800000 | AJ24: =IF($V24<=2,0,IF($U24="前期以前",$O24-AK24,IF($U24<=2,$O24-AK24,0))) -> 800000 | AK24: =IF($V24<=2,0,IF($U24="前期以前",$O24-X24+AI24,IF($U24<=1,$O24-X24+AI24,AI24))) -> 3400000 | AL24: =損益計画１!O$8 -> 2016-03-31 | AM24: =IF(AL24-$D24<0,0,IF(DATEDIF($D24,AL24,"M")+1>12,12,DATEDIF($D24,AL24,"M")+1)) -> 12 | AN24: =IF($O24="",0,IF(X24=0,0,IF(X24="",ROUNDDOWN(($O24-$O24*0.1)*$L24*AM24/12,0),IF(X24>$S24,MIN(ROUNDDOWN(($O24-$O24*0.1)*$L24*AM24/12,0),X24-$S24),ROUNDDOWN(($S24-1)/5,0))))) -> 1390000 | AO24: =IF($O24="",0,IF($U24=2,ROUNDDOWN($O24*$L24*AM24/12,0),IF(X24>$T24,MIN(ROUNDDOWN($O24*$L24*AM24/12,0),X24-$T24),0))) -> 1599999 | AP24: =IF($O24="",0,IF(X24=0,0,IF(X24=0,ROUNDDOWN($O24*$L24*AM24/12,0),IF(X24>$S24,MIN(ROUNDDOWN(X24*$L24*AM24/12,0),X24-$S24),MIN(ROUNDDOWN(($S24-1)/5,0),X24-1))))) -> 800000 | AQ24: =IF($O24="",0,IF($U24=2,ROUNDDOWN($O24*$L24*AM24/12,0),IF(X24=0,0,ROUNDDOWN(X24*$L24*AM24/12,0)))) -> 800000 | AR24: =IF(ISERROR(ROUNDDOWN($O24*$N24,0)),0,ROUNDDOWN($O24*$N24,0)) -> 524958 | AS24: =IF(ISERROR(ROUNDDOWN(X24*$M24,0)),0,IF((ROUNDDOWN(X24*$M24,0)-$T24)<0,0,ROUNDDOWN(X24*$M24,0)-$T24)) -> 1599999 | AT24: =IF($U24=2,AQ24,IF(AQ24<AR24,AS24,AQ24)) -> 800000 | AU24: =IF($K24="旧定額法",AZ24,IF($K24="新定額法",BA24,IF($K24="旧定率法",BB24,BF24))) -> 799999 | AV24: =IF($V24<=3,0,IF($U24="前期以前",$O24-AW24,IF($U24<=3,$O24-AW24,0))) -> 1 | AW24: =IF($V24<=3,0,IF($U24="前期以前",$O24-AJ24+AU24,IF($U24<=2,$O24-AJ24+AU24,AU24))) -> 4199999 | AX24: =損益計画１!Q$8 -> 2017-03-31 | AY24: =IF(AX24-$D24<0,0,IF(DATEDIF($D24,AX24,"M")+1>12,12,DATEDIF($D24,AX24,"M")+1)) -> 12 | AZ24: =IF($O24="",0,IF(AJ24=0,0,IF(AJ24="",ROUNDDOWN(($O24-$O24*0.1)*$L24*AY24/12,0),IF(AJ24>$S24,MIN(ROUNDDOWN(($O24-$O24*0.1)*$L24*AY24/12,0),AJ24-$S24),ROUNDDOWN(($S24-1)/5,0))))) -> 590000 | BA24: =IF($O24="",0,IF($U24=3,ROUNDDOWN($O24*$L24*AY24/12,0),IF(AJ24>$T24,MIN(ROUNDDOWN($O24*$L24*AY24/12,0),AJ24-$T24),0))) -> 799999 | BB24: =IF($O24="",0,IF(AJ24=0,0,IF(AJ24=0,ROUNDDOWN($O24*$L24*AY24/12,0),IF(AJ24>$S24,MIN(ROUNDDOWN(AJ24*$L24*AY24/12,0),AJ24-$S24),MIN(ROUNDDOWN(($S24-1)/5,0),AJ24-1))))) -> 400000 | BC24: =IF($O24="",0,IF($U24=3,ROUNDDOWN($O24*$L24*AY24/12,0),IF(AJ24=0,0,ROUNDDOWN(AJ24*$L24*AY24/12,0)))) -> 400000 | BD24: =IF(ISERROR(ROUNDDOWN($O24*$N24,0)),0,ROUNDDOWN($O24*$N24,0)) -> 524958 | BE24: =IF(ISERROR(ROUNDDOWN(AJ24*$M24,0)),0,IF((ROUNDDOWN(AJ24*$M24,0)-$T24)<0,0,ROUNDDOWN(AJ24*$M24,0)-$T24)) -> 799999 | BF24: =IF($U24=2,BC24,IF(BC24<BD24,BE24,BC24)) -> 799999 | BG24: =IF($K24="旧定額法",BL24,IF($K24="新定額法",BM24,IF($K24="旧定率法",BN24,BR24))) -> 0 | BH24: =IF($V24<=4,0,IF($U24="前期以前",$O24-BI24,IF($U24<=4,$O24-BI24,0))) -> 1 | BI24: =IF($V24<=4,0,IF($U24="前期以前",$O24-AV24+BG24,IF($U24<=3,$O24-AV24+BG24,BG24))) -> 4199999 | BJ24: =損益計画１!S$8 -> 2018-03-31 | BK24: =IF(BJ24-$D24<0,0,IF(DATEDIF($D24,BJ24,"M")+1>12,12,DATEDIF($D24,BJ24,"M")+1)) -> 12 | BL24: =IF($O24="",0,IF(AV24=0,0,IF(AV24="",ROUNDDOWN(($O24-$O24*0.1)*$L24*BK24/12,0),IF(AV24>$S24,MIN(ROUNDDOWN(($O24-$O24*0.1)*$L24*BK24/12,0),AV24-$S24),ROUNDDOWN(($S24-1)/5,0))))) -> 41999 | BM24: =IF($O24="",0,IF($U24=4,ROUNDDOWN($O24*$L24*BK24/12,0),IF(AV24>$T24,MIN(ROUNDDOWN($O24*$L24*BK24/12,0),AV24-$T24),0))) -> 0 | BN24: =IF($O24="",0,IF(AV24=0,0,IF(AV24="",ROUNDDOWN($O24*$L24*BK24/12,0),IF(AV24>$S24,MIN(ROUNDDOWN(AV24*$L24*BK24/12,0),AV24-$S24),MIN(ROUNDDOWN(($S24-1)/5,0),AV24-1))))) -> 0 | BO24: =IF($O24="",0,IF($U24=4,ROUNDDOWN($O24*$L24*BK24/12,0),IF(AV24=0,0,ROUNDDOWN(AV24*$L24*BK24/12,0)))) -> 0 | BP24: =IF(ISERROR(ROUNDDOWN($O24*$N24,0)),0,ROUNDDOWN($O24*$N24,0)) -> 524958 | BQ24: =IF(ISERROR(ROUNDDOWN(AV24*$M24,0)),0,IF((ROUNDDOWN(AV24*$M24,0)-$T24)<0,0,ROUNDDOWN(AV24*$M24,0)-$T24)) -> 0 | BR24: =IF($U24=2,BO24,IF(BO24<BP24,BQ24,BO24)) -> 0 | BS24: =IF($K24="旧定額法",BX24,IF($K24="新定額法",BY24,IF($K24="旧定率法",BZ24,CD24))) -> 0 | BT24: =IF($V24<=5,0,IF($U24="前期以前",$O24-BU24,IF($U24<=5,$O24-BU24,0))) -> 1 | BU24: =IF($V24<=5,0,IF($U24="前期以前",$O24-BH24+BS24,IF($U24<=4,$O24-BH24+BS24,BS24))) -> 4199999 | BV24: =損益計画１!U$8 -> 2019-03-31 | BW24: =IF(BV24-$D24<0,0,IF(DATEDIF($D24,BV24,"M")+1>12,12,DATEDIF($D24,BV24,"M")+1)) -> 12 | BX24: =IF($O24="",0,IF(BH24=0,0,IF(BH24="",ROUNDDOWN(($O24-$O24*0.1)*$L24*BW24/12,0),IF(BH24>$S24,MIN(ROUNDDOWN(($O24-$O24*0.1)*$L24*BW24/12,0),BH24-$S24),ROUNDDOWN(($S24-1)/5,0))))) -> 41999 | BY24: =IF($O24="",0,IF($U24=5,ROUNDDOWN($O24*$L24*BW24/12,0),IF(BH24>$T24,MIN(ROUNDDOWN($O24*$L24*BW24/12,0),BH24-$T24),0))) -> 0 | BZ24: =IF($O24="",0,IF(BH24=0,0,IF(BH24="",ROUNDDOWN($O24*$L24*BW24/12,0),IF(BH24>$S24,MIN(ROUNDDOWN(BH24*$L24*BW24/12,0),BH24-$S24),MIN(ROUNDDOWN(($S24-1)/5,0),BH24-1))))) -> 0 | CA24: =IF($O24="",0,IF($U24=5,ROUNDDOWN($O24*$L24*BW24/12,0),IF(BH24=0,0,ROUNDDOWN(BH24*$L24*BW24/12,0)))) -> 0 | CB24: =IF(ISERROR(ROUNDDOWN($O24*$N24,0)),0,ROUNDDOWN($O24*$N24,0)) -> 524958 | CC24: =IF(ISERROR(ROUNDDOWN(BH24*$M24,0)),0,IF((ROUNDDOWN(BH24*$M24,0)-$T24)<0,0,ROUNDDOWN(BH24*$M24,0)-$T24)) -> 0 | CD24: =IF($U24=2,CA24,IF(CA24<CB24,CC24,CA24)) -> 0 | CE24: =IF($U24=1,$O24,0) -> 0 | CF24: =IF($U24=2,$O24,0) -> 0 | CG24: =IF($U24=3,$O24,0) -> 0 | CH24: =IF($U24=4,$O24,0) -> 0 | CI24: =IF($U24=5,$O24,0) -> 0 | CJ24: =W24 -> 1600000 | CK24: =AI24 -> 800000 | CL24: =AU24 -> 799999 | CM24: =BG24 -> 0 | CN24: =BS24 -> 0 | CO24: =IF($F24="販管費",W24,0) -> 0 | CP24: =IF($F24="販管費",AI24,0) -> 0 | CQ24: =IF($F24="販管費",AU24,0) -> 0 | CR24: =IF($F24="販管費",BG24,0) -> 0 | CS24: =IF($F24="販管費",BS24,0) -> 0 | CT24: =IF($F24="製造原価",W24,0) -> 1600000 | CU24: =IF($F24="製造原価",AI24,0) -> 800000 | CV24: =IF($F24="製造原価",AU24,0) -> 799999 | CW24: =IF($F24="製造原価",BG24,0) -> 0 | CX24: =IF($F24="製造原価",BS24,0) -> 0
A25: 2 | B25: 車両運搬具 | C25: 四菱 キャンター② | D25: 2012-04-01 | E25: =DATE(YEAR(基本情報!$C$9)-1,MONTH(基本情報!$C$9),DAY(基本情報!$C$9))+1 -> 2014-04-01 | F25: 製造原価 | G25: 4 | H25: 定率法 | I25: =IF(H25="定率法","",IF(D25>39172,"新定額法","旧定額法")) ->  | J25: =IF(H25="定額法","",IF(D25>40999,"定率法200",IF(D25>39172,"定率法250","旧定率法"))) -> 定率法200 | K25: =IF(H25="非償却",H25,IF(I25="",J25,IF(J25="",I25,""))) -> 定率法200 | L25: =IF(K25="非償却",0,IF(ISERROR(VLOOKUP(G25,INDIRECT(K25),2,FALSE)),"",VLOOKUP(G25,INDIRECT(K25),2,FALSE))) -> 0.5 | M25: =IF(ISERROR(VLOOKUP(G25,INDIRECT(K25),3,FALSE)),"",VLOOKUP(G25,INDIRECT(K25),3,FALSE)) -> 1 | N25: =IF(ISERROR(VLOOKUP(G25,INDIRECT(K25),4,FALSE)),"",VLOOKUP(G25,INDIRECT(K25),4,FALSE)) -> 0.12499 | O25: 5200000 | P25: =IF(U25="前期以前",O25,0) -> 5200000 | Q25: 2800000 | R25: =ROUNDDOWN(O25*0.1,0) -> 520000 | S25: =ROUNDDOWN(O25*0.05,0) -> 260000 | T25: 1 | U25: 前期以前 | V25: =IF(ISERROR(VLOOKUP(C25,資産処分計画!$D$14:$G$38,4,FALSE)),"",VLOOKUP(C25,資産処分計画!$D$14:$G$38,4,FALSE)) -> 3 | W25: =IF($K25="旧定額法",AB25,IF($K25="新定額法",AC25,IF($K25="旧定率法",AD25,AH25))) -> 1400000 | X25: =IF($U25="前期以前",$O25-Y25,IF($U25<=1,$O25-Y25,0)) -> 1400000 | Y25: =IF(U25="前期以前",O25-Q25+W25,W25) -> 3800000 | Z25: =損益計画１!M$8 -> 2015-03-31 | AA25: 12 | AB25: =IF(O25="",0,IF(Q25="",ROUNDDOWN(($O25-$O25*0.1)*$L25*AA25/12,0),IF(Q25>S25,MIN(ROUNDDOWN(($O25-$O25*0.1)*$L25*AA25/12,0),Q25-S25),ROUNDDOWN((S25-1)/5,0)))) -> 2340000 | AC25: =IF(O25="",0,IF(Q25="",ROUNDDOWN($O25*$L25*AA25/12,0),IF(Q25>T25,MIN(ROUNDDOWN($O25*$L25*AA25/12,0),Q25-T25),0))) -> 2600000 | AD25: 1400000 | AE25: =IF($O25="",0,IF(Q25="",ROUNDDOWN(O25*$L25*AA25/12,0),ROUNDDOWN(Q25*$L25*AA25/12,0))) -> 1400000 | AF25: 649948 | AG25: 2799999 | AH25: =IF(U25=1,AE25,IF(AE25<AF25,AG25,AE25)) -> 1400000 | AI25: =IF($K25="旧定額法",AN25,IF($K25="新定額法",AO25,IF($K25="旧定率法",AP25,AT25))) -> 700000 | AJ25: =IF($V25<=2,0,IF($U25="前期以前",$O25-AK25,IF($U25<=2,$O25-AK25,0))) -> 700000 | AK25: =IF($V25<=2,0,IF($U25="前期以前",$O25-X25+AI25,IF($U25<=1,$O25-X25+AI25,AI25))) -> 4500000 | AL25: =損益計画１!O$8 -> 2016-03-31 | AM25: =IF(AL25-$D25<0,0,IF(DATEDIF($D25,AL25,"M")+1>12,12,DATEDIF($D25,AL25,"M")+1)) -> 12 | AN25: =IF($O25="",0,IF(X25=0,0,IF(X25="",ROUNDDOWN(($O25-$O25*0.1)*$L25*AM25/12,0),IF(X25>$S25,MIN(ROUNDDOWN(($O25-$O25*0.1)*$L25*AM25/12,0),X25-$S25),ROUNDDOWN(($S25-1)/5,0))))) -> 1140000 | AO25: =IF($O25="",0,IF($U25=2,ROUNDDOWN($O25*$L25*AM25/12,0),IF(X25>$T25,MIN(ROUNDDOWN($O25*$L25*AM25/12,0),X25-$T25),0))) -> 1399999 | AP25: =IF($O25="",0,IF(X25=0,0,IF(X25=0,ROUNDDOWN($O25*$L25*AM25/12,0),IF(X25>$S25,MIN(ROUNDDOWN(X25*$L25*AM25/12,0),X25-$S25),MIN(ROUNDDOWN(($S25-1)/5,0),X25-1))))) -> 700000 | AQ25: =IF($O25="",0,IF($U25=2,ROUNDDOWN($O25*$L25*AM25/12,0),IF(X25=0,0,ROUNDDOWN(X25*$L25*AM25/12,0)))) -> 700000 | AR25: =IF(ISERROR(ROUNDDOWN($O25*$N25,0)),0,ROUNDDOWN($O25*$N25,0)) -> 649948 | AS25: =IF(ISERROR(ROUNDDOWN(X25*$M25,0)),0,IF((ROUNDDOWN(X25*$M25,0)-$T25)<0,0,ROUNDDOWN(X25*$M25,0)-$T25)) -> 1399999 | AT25: =IF($U25=2,AQ25,IF(AQ25<AR25,AS25,AQ25)) -> 700000 | AU25: =IF($K25="旧定額法",AZ25,IF($K25="新定額法",BA25,IF($K25="旧定率法",BB25,BF25))) -> 699999 | AV25: 0 | AW25: =IF($V25<=3,0,IF($U25="前期以前",$O25-AJ25+AU25,IF($U25<=2,$O25-AJ25+AU25,AU25))) -> 0 | AX25: =損益計画１!Q$8 -> 2017-03-31 | AY25: =IF(AX25-$D25<0,0,IF(DATEDIF($D25,AX25,"M")+1>12,12,DATEDIF($D25,AX25,"M")+1)) -> 12 | AZ25: =IF($O25="",0,IF(AJ25=0,0,IF(AJ25="",ROUNDDOWN(($O25-$O25*0.1)*$L25*AY25/12,0),IF(AJ25>$S25,MIN(ROUNDDOWN(($O25-$O25*0.1)*$L25*AY25/12,0),AJ25-$S25),ROUNDDOWN(($S25-1)/5,0))))) -> 440000 | BA25: =IF($O25="",0,IF($U25=3,ROUNDDOWN($O25*$L25*AY25/12,0),IF(AJ25>$T25,MIN(ROUNDDOWN($O25*$L25*AY25/12,0),AJ25-$T25),0))) -> 699999 | BB25: =IF($O25="",0,IF(AJ25=0,0,IF(AJ25=0,ROUNDDOWN($O25*$L25*AY25/12,0),IF(AJ25>$S25,MIN(ROUNDDOWN(AJ25*$L25*AY25/12,0),AJ25-$S25),MIN(ROUNDDOWN(($S25-1)/5,0),AJ25-1))))) -> 350000 | BC25: 350000 | BD25: =IF(ISERROR(ROUNDDOWN($O25*$N25,0)),0,ROUNDDOWN($O25*$N25,0)) -> 649948 | BE25: =IF(ISERROR(ROUNDDOWN(AJ25*$M25,0)),0,IF((ROUNDDOWN(AJ25*$M25,0)-$T25)<0,0,ROUNDDOWN(AJ25*$M25,0)-$T25)) -> 699999 | BF25: =IF($U25=2,BC25,IF(BC25<BD25,BE25,BC25)) -> 699999 | BG25: =IF($K25="旧定額法",BL25,IF($K25="新定額法",BM25,IF($K25="旧定率法",BN25,BR25))) -> 0 | BH25: =IF($V25<=4,0,IF($U25="前期以前",$O25-BI25,IF($U25<=4,$O25-BI25,0))) -> 0 | BI25: =IF($V25<=4,0,IF($U25="前期以前",$O25-AV25+BG25,IF($U25<=3,$O25-AV25+BG25,BG25))) -> 0 | BJ25: =損益計画１!S$8 -> 2018-03-31 | BK25: =IF(BJ25-$D25<0,0,IF(DATEDIF($D25,BJ25,"M")+1>12,12,DATEDIF($D25,BJ25,"M")+1)) -> 12 | BL25: =IF($O25="",0,IF(AV25=0,0,IF(AV25="",ROUNDDOWN(($O25-$O25*0.1)*$L25*BK25/12,0),IF(AV25>$S25,MIN(ROUNDDOWN(($O25-$O25*0.1)*$L25*BK25/12,0),AV25-$S25),ROUNDDOWN(($S25-1)/5,0))))) -> 0 | BM25: =IF($O25="",0,IF($U25=4,ROUNDDOWN($O25*$L25*BK25/12,0),IF(AV25>$T25,MIN(ROUNDDOWN($O25*$L25*BK25/12,0),AV25-$T25),0))) -> 0 | BN25: =IF($O25="",0,IF(AV25=0,0,IF(AV25="",ROUNDDOWN($O25*$L25*BK25/12,0),IF(AV25>$S25,MIN(ROUNDDOWN(AV25*$L25*BK25/12,0),AV25-$S25),MIN(ROUNDDOWN(($S25-1)/5,0),AV25-1))))) -> 0 | BO25: =IF($O25="",0,IF($U25=4,ROUNDDOWN($O25*$L25*BK25/12,0),IF(AV25=0,0,ROUNDDOWN(AV25*$L25*BK25/12,0)))) -> 0 | BP25: =IF(ISERROR(ROUNDDOWN($O25*$N25,0)),0,ROUNDDOWN($O25*$N25,0)) -> 649948 | BQ25: =IF(ISERROR(ROUNDDOWN(AV25*$M25,0)),0,IF((ROUNDDOWN(AV25*$M25,0)-$T25)<0,0,ROUNDDOWN(AV25*$M25,0)-$T25)) -> 0 | BR25: =IF($U25=2,BO25,IF(BO25<BP25,BQ25,BO25)) -> 0 | BS25: =IF($K25="旧定額法",BX25,IF($K25="新定額法",BY25,IF($K25="旧定率法",BZ25,CD25))) -> 0 | BT25: =IF($V25<=5,0,IF($U25="前期以前",$O25-BU25,IF($U25<=5,$O25-BU25,0))) -> 0 | BU25: =IF($V25<=5,0,IF($U25="前期以前",$O25-BH25+BS25,IF($U25<=4,$O25-BH25+BS25,BS25))) -> 0 | BV25: =損益計画１!U$8 -> 2019-03-31 | BW25: =IF(BV25-$D25<0,0,IF(DATEDIF($D25,BV25,"M")+1>12,12,DATEDIF($D25,BV25,"M")+1)) -> 12 | BX25: =IF($O25="",0,IF(BH25=0,0,IF(BH25="",ROUNDDOWN(($O25-$O25*0.1)*$L25*BW25/12,0),IF(BH25>$S25,MIN(ROUNDDOWN(($O25-$O25*0.1)*$L25*BW25/12,0),BH25-$S25),ROUNDDOWN(($S25-1)/5,0))))) -> 0 | BY25: =IF($O25="",0,IF($U25=5,ROUNDDOWN($O25*$L25*BW25/12,0),IF(BH25>$T25,MIN(ROUNDDOWN($O25*$L25*BW25/12,0),BH25-$T25),0))) -> 0 | BZ25: =IF($O25="",0,IF(BH25=0,0,IF(BH25="",ROUNDDOWN($O25*$L25*BW25/12,0),IF(BH25>$S25,MIN(ROUNDDOWN(BH25*$L25*BW25/12,0),BH25-$S25),MIN(ROUNDDOWN(($S25-1)/5,0),BH25-1))))) -> 0 | CA25: =IF($O25="",0,IF($U25=5,ROUNDDOWN($O25*$L25*BW25/12,0),IF(BH25=0,0,ROUNDDOWN(BH25*$L25*BW25/12,0)))) -> 0 | CB25: =IF(ISERROR(ROUNDDOWN($O25*$N25,0)),0,ROUNDDOWN($O25*$N25,0)) -> 649948 | CC25: =IF(ISERROR(ROUNDDOWN(BH25*$M25,0)),0,IF((ROUNDDOWN(BH25*$M25,0)-$T25)<0,0,ROUNDDOWN(BH25*$M25,0)-$T25)) -> 0 | CD25: =IF($U25=2,CA25,IF(CA25<CB25,CC25,CA25)) -> 0 | CE25: =IF($U25=1,$O25,0) -> 0 | CF25: =IF($U25=2,$O25,0) -> 0 | CG25: =IF($U25=3,$O25,0) -> 0 | CH25: =IF($U25=4,$O25,0) -> 0 | CI25: =IF($U25=5,$O25,0) -> 0 | CJ25: =W25 -> 1400000 | CK25: =AI25 -> 700000 | CL25: =AU25 -> 699999 | CM25: =BG25 -> 0 | CN25: =BS25 -> 0 | CO25: =IF($F25="販管費",W25,0) -> 0 | CP25: =IF($F25="販管費",AI25,0) -> 0 | CQ25: =IF($F25="販管費",AU25,0) -> 0 | CR25: =IF($F25="販管費",BG25,0) -> 0 | CS25: =IF($F25="販管費",BS25,0) -> 0 | CT25: =IF($F25="製造原価",W25,0) -> 1400000 | CU25: =IF($F25="製造原価",AI25,0) -> 700000 | CV25: =IF($F25="製造原価",AU25,0) -> 699999 | CW25: =IF($F25="製造原価",BG25,0) -> 0 | CX25: =IF($F25="製造原価",BS25,0) -> 0
A26: 3 | B26: 車両運搬具 | C26: 阿野 デュトロ① | D26: 2011-05-01 | E26: =DATE(YEAR(基本情報!$C$9)-1,MONTH(基本情報!$C$9),DAY(基本情報!$C$9))+1 -> 2014-04-01 | F26: 製造原価 | G26: 4 | H26: 定率法 | J26: 定率法250 | K26: 定率法250 | L26: 0.625 | M26: 1 | N26: 0.05274 | O26: 5400000 | P26: 5400000 | Q26: 1600000 | R26: 540000 | S26: 270000 | T26: 1 | U26: 前期以前 | V26: =IF(ISERROR(VLOOKUP(C26,資産処分計画!$D$14:$G$38,4,FALSE)),"",VLOOKUP(C26,資産処分計画!$D$14:$G$38,4,FALSE)) -> 2 | W26: 1000000 | X26: 600000 | Y26: 4800000 | Z26: =損益計画１!M$8 -> 2015-03-31 | AA26: 12 | AB26: 1330000 | AC26: 1599999 | AD26: 1000000 | AE26: 1000000 | AF26: 284796 | AG26: 1599999 | AH26: 1000000 | AI26: 375000 | AJ26: 0 | AK26: 0 | AL26: =損益計画１!O$8 -> 2016-03-31 | AM26: 12 | AN26: 330000 | AO26: 599999 | AP26: 330000 | AQ26: 375000 | AR26: 284796 | AS26: 599999 | AT26: 375000 | AU26: 0 | AV26: 0 | AW26: 0 | AX26: =損益計画１!Q$8 -> 2017-03-31 | AY26: 12 | AZ26: 0 | BA26: 0 | BB26: 0 | BC26: 0 | BD26: 284796 | BE26: 0 | BF26: 0 | BG26: 0 | BH26: 0 | BI26: 0 | BJ26: =損益計画１!S$8 -> 2018-03-31 | BK26: 12 | BL26: 0 | BM26: 0 | BN26: 0 | BO26: 0 | BP26: 284796 | BQ26: 0 | BR26: 0 | BS26: 0 | BT26: 0 | BU26: 0 | BV26: =損益計画１!U$8 -> 2019-03-31 | BW26: 12 | BX26: 0 | BY26: 0 | BZ26: 0 | CA26: 0 | CB26: 284796 | CC26: 0 | CD26: 0 | CE26: 0 | CF26: 0 | CG26: 0 | CH26: 0 | CI26: 0 | CJ26: 1000000 | CK26: 375000 | CL26: 0 | CM26: 0 | CN26: 0 | CO26: 0 | CP26: 0 | CQ26: 0 | CR26: 0 | CS26: 0 | CT26: 1000000 | CU26: 375000 | CV26: 0 | CW26: 0 | CX26: 0
A27: 4 | B27: 車両運搬具 | C27: 阿野 デュトロ② | D27: 2013-09-01 | E27: =DATE(YEAR(基本情報!$C$9)-1,MONTH(基本情報!$C$9),DAY(基本情報!$C$9))+1 -> 2014-04-01 | F27: 製造原価 | G27: 4 | H27: 定率法 | J27: 定率法200 | K27: 定率法200 | L27: 0.5 | M27: 1 | N27: 0.12499 | O27: 6400000 | P27: 6400000 | Q27: 4688863 | R27: 640000 | S27: 320000 | T27: 1 | U27: 前期以前 | V27: =IF(ISERROR(VLOOKUP(C27,資産処分計画!$D$14:$G$38,4,FALSE)),"",VLOOKUP(C27,資産処分計画!$D$14:$G$38,4,FALSE)) ->  | W27: 2344431 | X27: 2344432 | Y27: 4055568 | Z27: =損益計画１!M$8 -> 2015-03-31 | AA27: 12 | AB27: 2880000 | AC27: 3200000 | AD27: 2344431 | AE27: 2344431 | AF27: 799936 | AG27: 4688862 | AH27: 2344431 | AI27: 1172216 | AJ27: 1172216 | AK27: 5227784 | AL27: =損益計画１!O$8 -> 2016-03-31 | AM27: 12 | AN27: 2024432 | AO27: 2344431 | AP27: 1172216 | AQ27: 1172216 | AR27: 799936 | AS27: 2344431 | AT27: 1172216 | AU27: 1172215 | AV27: 1 | AW27: 6399999 | AX27: =損益計画１!Q$8 -> 2017-03-31 | AY27: 12 | AZ27: 852216 | BA27: 1172215 | BB27: 586108 | BC27: 586108 | BD27: 799936 | BE27: 1172215 | BF27: 1172215 | BG27: 0 | BH27: 1 | BI27: 6399999 | BJ27: =損益計画１!S$8 -> 2018-03-31 | BK27: 12 | BL27: 63999 | BM27: 0 | BN27: 0 | BO27: 0 | BP27: 799936 | BQ27: 0 | BR27: 0 | BS27: 0 | BT27: 1 | BU27: 6399999 | BV27: =損益計画１!U$8 -> 2019-03-31 | BW27: 12 | BX27: 63999 | BY27: 0 | BZ27: 0 | CA27: 0 | CB27: 799936 | CC27: 0 | CD27: 0 | CE27: 0 | CF27: 0 | CG27: 0 | CH27: 0 | CI27: 0 | CJ27: 2344431 | CK27: 1172216 | CL27: 1172215 | CM27: 0 | CN27: 0 | CO27: 0 | CP27: 0 | CQ27: 0 | CR27: 0 | CS27: 0 | CT27: 2344431 | CU27: 1172216 | CV27: 1172215 | CW27: 0 | CX27: 0
A28: 5 | B28: 車両運搬具 | C28: 大江戸自動車 フロント | D28: 2011-07-01 | E28: =DATE(YEAR(基本情報!$C$9)-1,MONTH(基本情報!$C$9),DAY(基本情報!$C$9))+1 -> 2014-04-01 | F28: 製造原価 | G28: 4 | H28: 定率法 | J28: 定率法250 | K28: 定率法250 | L28: 0.625 | M28: 1 | N28: 0.05274 | O28: 6400000 | P28: 6400000 | Q28: 1275805 | R28: 640000 | S28: 320000 | T28: 1 | U28: 前期以前 | V28: =IF(ISERROR(VLOOKUP(C28,資産処分計画!$D$14:$G$38,4,FALSE)),"",VLOOKUP(C28,資産処分計画!$D$14:$G$38,4,FALSE)) ->  | W28: 797378 | X28: 478427 | Y28: 5921573 | Z28: =損益計画１!M$8 -> 2015-03-31 | AA28: 12 | AB28: 955805 | AC28: 1275804 | AD28: 797378 | AE28: 797378 | AF28: 337536 | AG28: 1275804 | AH28: 797378 | AI28: 478426 | AJ28: 1 | AK28: 6399999 | AL28: =損益計画１!O$8 -> 2016-03-31 | AM28: 12 | AN28: 158427 | AO28: 478426 | AP28: 158427 | AQ28: 299016 | AR28: 337536 | AS28: 478426 | AT28: 478426 | AU28: 0 | AV28: 1 | AW28: 6399999 | AX28: =損益計画１!Q$8 -> 2017-03-31 | AY28: 12 | AZ28: 63999 | BA28: 0 | BB28: 0 | BC28: 0 | BD28: 337536 | BE28: 0 | BF28: 0 | BG28: 0 | BH28: 1 | BI28: 6399999 | BJ28: =損益計画１!S$8 -> 2018-03-31 | BK28: 12 | BL28: 63999 | BM28: 0 | BN28: 0 | BO28: 0 | BP28: 337536 | BQ28: 0 | BR28: 0 | BS28: 0 | BT28: 1 | BU28: 6399999 | BV28: =損益計画１!U$8 -> 2019-03-31 | BW28: 12 | BX28: 63999 | BY28: 0 | BZ28: 0 | CA28: 0 | CB28: 337536 | CC28: 0 | CD28: 0 | CE28: 0 | CF28: 0 | CG28: 0 | CH28: 0 | CI28: 0 | CJ28: 797378 | CK28: 478426 | CL28: 0 | CM28: 0 | CN28: 0 | CO28: 0 | CP28: 0 | CQ28: 0 | CR28: 0 | CS28: 0 | CT28: 797378 | CU28: 478426 | CV28: 0 | CW28: 0 | CX28: 0
A29: 6 | B29: 車両運搬具 | C29: 大江戸自動車 エルフ | D29: 2012-09-01 | E29: =DATE(YEAR(基本情報!$C$9)-1,MONTH(基本情報!$C$9),DAY(基本情報!$C$9))+1 -> 2014-04-01 | F29: 製造原価 | G29: 4 | H29: 定率法 | J29: 定率法200 | K29: 定率法200 | L29: 0.5 | M29: 1 | N29: 0.12499 | O29: 4800000 | P29: 4800000 | Q29: 2400000 | R29: 480000 | S29: 240000 | T29: 1 | U29: 前期以前 | V29: =IF(ISERROR(VLOOKUP(C29,資産処分計画!$D$14:$G$38,4,FALSE)),"",VLOOKUP(C29,資産処分計画!$D$14:$G$38,4,FALSE)) ->  | W29: 1200000 | X29: 1200000 | Y29: 3600000 | Z29: =損益計画１!M$8 -> 2015-03-31 | AA29: 12 | AB29: 2160000 | AC29: 2399999 | AD29: 1200000 | AE29: 1200000 | AF29: 599952 | AG29: 2399999 | AH29: 1200000 | AI29: 600000 | AJ29: 600000 | AK29: 4200000 | AL29: =損益計画１!O$8 -> 2016-03-31 | AM29: 12 | AN29: 960000 | AO29: 1199999 | AP29: 600000 | AQ29: 600000 | AR29: 599952 | AS29: 1199999 | AT29: 600000 | AU29: 599999 | AV29: 1 | AW29: 4799999 | AX29: =損益計画１!Q$8 -> 2017-03-31 | AY29: 12 | AZ29: 360000 | BA29: 599999 | BB29: 300000 | BC29: 300000 | BD29: 599952 | BE29: 599999 | BF29: 599999 | BG29: 0 | BH29: 1 | BI29: 4799999 | BJ29: =損益計画１!S$8 -> 2018-03-31 | BK29: 12 | BL29: 47999 | BM29: 0 | BN29: 0 | BO29: 0 | BP29: 599952 | BQ29: 0 | BR29: 0 | BS29: 0 | BT29: 1 | BU29: 4799999 | BV29: =損益計画１!U$8 -> 2019-03-31 | BW29: 12 | BX29: 47999 | BY29: 0 | BZ29: 0 | CA29: 0 | CB29: 599952 | CC29: 0 | CD29: 0 | CE29: 0 | CF29: 0 | CG29: 0 | CH29: 0 | CI29: 0 | CJ29: 1200000 | CK29: 600000 | CL29: 599999 | CM29: 0 | CN29: 0 | CO29: 0 | CP29: 0 | CQ29: 0 | CR29: 0 | CS29: 0 | CT29: 1200000 | CU29: 600000 | CV29: 599999 | CW29: 0 | CX29: 0
A30: 7 | B30: 車両運搬具 | C30: スバル アルシオーネ | D30: 2013-12-01 | E30: =DATE(YEAR(基本情報!$C$9)-1,MONTH(基本情報!$C$9),DAY(基本情報!$C$9))+1 -> 2014-04-01 | F30: 製造原価 | G30: 4 | H30: 定率法 | J30: 定率法200 | K30: 定率法200 | L30: 0.5 | M30: 1 | N30: 0.12499 | O30: 3600000 | P30: 3600000 | Q30: 2800000 | R30: 360000 | S30: 180000 | T30: 1 | U30: 前期以前 | V30: =IF(ISERROR(VLOOKUP(C30,資産処分計画!$D$14:$G$38,4,FALSE)),"",VLOOKUP(C30,資産処分計画!$D$14:$G$38,4,FALSE)) ->  | W30: 1400000 | X30: 1400000 | Y30: 2200000 | Z30: =損益計画１!M$8 -> 2015-03-31 | AA30: 12 | AB30: 1620000 | AC30: 1800000 | AD30: 1400000 | AE30: 1400000 | AF30: 449964 | AG30: 2799999 | AH30: 1400000 | AI30: 700000 | AJ30: 700000 | AK30: 2900000 | AL30: =損益計画１!O$8 -> 2016-03-31 | AM30: 12 | AN30: 1220000 | AO30: 1399999 | AP30: 700000 | AQ30: 700000 | AR30: 449964 | AS30: 1399999 | AT30: 700000 | AU30: 699999 | AV30: 1 | AW30: 3599999 | AX30: =損益計画１!Q$8 -> 2017-03-31 | AY30: 12 | AZ30: 520000 | BA30: 699999 | BB30: 350000 | BC30: 350000 | BD30: 449964 | BE30: 699999 | BF30: 699999 | BG30: 0 | BH30: 1 | BI30: 3599999 | BJ30: =損益計画１!S$8 -> 2018-03-31 | BK30: 12 | BL30: 35999 | BM30: 0 | BN30: 0 | BO30: 0 | BP30: 449964 | BQ30: 0 | BR30: 0 | BS30: 0 | BT30: 1 | BU30: 3599999 | BV30: =損益計画１!U$8 -> 2019-03-31 | BW30: 12 | BX30: 35999 | BY30: 0 | BZ30: 0 | CA30: 0 | CB30: 449964 | CC30: 0 | CD30: 0 | CE30: 0 | CF30: 0 | CG30: 0 | CH30: 0 | CI30: 0 | CJ30: 1400000 | CK30: 700000 | CL30: 699999 | CM30: 0 | CN30: 0 | CO30: 0 | CP30: 0 | CQ30: 0 | CR30: 0 | CS30: 0 | CT30: 1400000 | CU30: 700000 | CV30: 699999 | CW30: 0 | CX30: 0
A31: 8 | B31: 工具器具備品 | C31: 事務所複合機 | D31: 2010-03-01 | E31: =DATE(YEAR(基本情報!$C$9)-1,MONTH(基本情報!$C$9),DAY(基本情報!$C$9))+1 -> 2014-04-01 | F31: 販管費 | G31: 5 | H31: 定率法 | J31: 定率法250 | K31: 定率法250 | L31: 0.5 | M31: 1 | N31: 0.06249 | O31: 840000 | P31: 840000 | Q31: 275981 | R31: 84000 | S31: 42000 | T31: 1 | U31: 前期以前 | V31: =IF(ISERROR(VLOOKUP(C31,資産処分計画!$D$14:$G$38,4,FALSE)),"",VLOOKUP(C31,資産処分計画!$D$14:$G$38,4,FALSE)) ->  | W31: 137990 | X31: 137991 | Y31: 702009 | Z31: =損益計画１!M$8 -> 2015-03-31 | AA31: 12 | AB31: 233981 | AC31: 275980 | AD31: 137990 | AE31: 137990 | AF31: 52491 | AG31: 275980 | AH31: 137990 | AI31: 68995 | AJ31: 68996 | AK31: 771004 | AL31: =損益計画１!O$8 -> 2016-03-31 | AM31: 12 | AN31: 95991 | AO31: 137990 | AP31: 68995 | AQ31: 68995 | AR31: 52491 | AS31: 137990 | AT31: 68995 | AU31: 68995 | AV31: 1 | AW31: 839999 | AX31: =損益計画１!Q$8 -> 2017-03-31 | AY31: 12 | AZ31: 26996 | BA31: 68995 | BB31: 26996 | BC31: 34498 | BD31: 52491 | BE31: 68995 | BF31: 68995 | BG31: 0 | BH31: 1 | BI31: 839999 | BJ31: =損益計画１!S$8 -> 2018-03-31 | BK31: 12 | BL31: 8399 | BM31: 0 | BN31: 0 | BO31: 0 | BP31: 52491 | BQ31: 0 | BR31: 0 | BS31: 0 | BT31: 1 | BU31: 839999 | BV31: =損益計画１!U$8 -> 2019-03-31 | BW31: 12 | BX31: 8399 | BY31: 0 | BZ31: 0 | CA31: 0 | CB31: 52491 | CC31: 0 | CD31: 0 | CE31: 0 | CF31: 0 | CG31: 0 | CH31: 0 | CI31: 0 | CJ31: 137990 | CK31: 68995 | CL31: 68995 | CM31: 0 | CN31: 0 | CO31: 137990 | CP31: 68995 | CQ31: 68995 | CR31: 0 | CS31: 0 | CT31: 0 | CU31: 0 | CV31: 0 | CW31: 0 | CX31: 0
A32: 9 | B32: 車両運搬具 | C32: ４ｔトラック 更新 | D32: 2014-05-01 | E32: =DATE(YEAR(基本情報!$C$9)-1,MONTH(基本情報!$C$9),DAY(基本情報!$C$9))+1 -> 2014-04-01 | F32: 製造原価 | G32: 4 | H32: 定率法 | J32: 定率法200 | K32: 定率法200 | L32: 0.5 | M32: 1 | N32: 0.12499 | O32: 5400000 | P32: 0 | R32: 540000 | S32: 270000 | T32: 1 | U32: 1 | V32: =IF(ISERROR(VLOOKUP(C32,資産処分計画!$D$14:$G$38,4,FALSE)),"",VLOOKUP(C32,資産処分計画!$D$14:$G$38,4,FALSE)) ->  | W32: 2475000 | X32: 2925000 | Y32: 2475000 | Z32: =損益計画１!M$8 -> 2015-03-31 | AA32: 11 | AB32: 2227500 | AC32: 2475000 | AD32: 0 | AE32: 2475000 | AF32: 674946 | AG32: 0 | AH32: 2475000 | AI32: 1462500 | AJ32: 1462500 | AK32: 3937500 | AL32: =損益計画１!O$8 -> 2016-03-31 | AM32: 12 | AN32: 2430000 | AO32: 2700000 | AP32: 1462500 | AQ32: 1462500 | AR32: 674946 | AS32: 2924999 | AT32: 1462500 | AU32: 731250 | AV32: 731250 | AW32: 4668750 | AX32: =損益計画１!Q$8 -> 2017-03-31 | AY32: 12 | AZ32: 1192500 | BA32: 1462499 | BB32: 731250 | BC32: 731250 | BD32: 674946 | BE32: 1462499 | BF32: 731250 | BG32: 731249 | BH32: 1 | BI32: 5399999 | BJ32: =損益計画１!S$8 -> 2018-03-31 | BK32: 12 | BL32: 461250 | BM32: 731249 | BN32: 365625 | BO32: 365625 | BP32: 674946 | BQ32: 731249 | BR32: 731249 | BS32: 0 | BT32: 1 | BU32: 5399999 | BV32: =損益計画１!U$8 -> 2019-03-31 | BW32: 12 | BX32: 53999 | BY32: 0 | BZ32: 0 | CA32: 0 | CB32: 674946 | CC32: 0 | CD32: 0 | CE32: 5400000 | CF32: 0 | CG32: 0 | CH32: 0 | CI32: 0 | CJ32: 2475000 | CK32: 1462500 | CL32: 731250 | CM32: 731249 | CN32: 0 | CO32: 0 | CP32: 0 | CQ32: 0 | CR32: 0 | CS32: 0 | CT32: 2475000 | CU32: 1462500 | CV32: 731250 | CW32: 731249 | CX32: 0
A33: 10 | B33: 車両運搬具 | C33: ４ｔトラック 更新 | D33: 2016-07-01 | E33: =DATE(YEAR(基本情報!$C$9)-1,MONTH(基本情報!$C$9),DAY(基本情報!$C$9))+1 -> 2014-04-01 | F33: 製造原価 | G33: 4 | H33: 定率法 | J33: 定率法200 | K33: 定率法200 | L33: 0.5 | M33: 1 | N33: 0.12499 | O33: 5400000 | P33: 0 | R33: 540000 | S33: 270000 | T33: 1 | U33: 3 | V33: =IF(ISERROR(VLOOKUP(C33,資産処分計画!$D$14:$G$38,4,FALSE)),"",VLOOKUP(C33,資産処分計画!$D$14:$G$38,4,FALSE)) ->  | W33: 0 | X33: 0 | Y33: 0 | Z33: =損益計画１!M$8 -> 2015-03-31 | AA33: 0 | AB33: 0 | AC33: 0 | AD33: 0 | AE33: 0 | AF33: 674946 | AG33: 0 | AH33: 0 | AI33: 0 | AJ33: 0 | AK33: 0 | AL33: =損益計画１!O$8 -> 2016-03-31 | AM33: 0 | AN33: 0 | AO33: 0 | AP33: 0 | AQ33: 0 | AR33: 674946 | AS33: 0 | AT33: 0 | AU33: 2025000 | AV33: =IF($V33<=3,0,IF($U33="前期以前",$O33-AW33,IF($U33<=3,$O33-AW33,0))) -> 3375000 | AW33: 2025000 | AX33: =損益計画１!Q$8 -> 2017-03-31 | AY33: 9 | AZ33: 0 | BA33: 2025000 | BB33: 0 | BC33: =IF($O33="",0,IF($U33=3,ROUNDDOWN($O33*$L33*AY33/12,0),IF(AJ33=0,0,ROUNDDOWN(AJ33*$L33*AY33/12,0)))) -> 2025000 | BD33: 674946 | BE33: 0 | BF33: 2025000 | BG33: 1687500 | BH33: 1687500 | BI33: 3712500 | BJ33: =損益計画１!S$8 -> 2018-03-31 | BK33: 12 | BL33: 2430000 | BM33: 2700000 | BN33: 1687500 | BO33: 1687500 | BP33: 674946 | BQ33: 3374999 | BR33: 1687500 | BS33: 843750 | BT33: 843750 | BU33: 4556250 | BV33: =損益計画１!U$8 -> 2019-03-31 | BW33: 12 | BX33: 1417500 | BY33: 1687499 | BZ33: 843750 | CA33: 843750 | CB33: 674946 | CC33: 1687499 | CD33: 843750 | CE33: 0 | CF33: 0 | CG33: 5400000 | CH33: 0 | CI33: 0 | CJ33: 0 | CK33: 0 | CL33: 2025000 | CM33: 1687500 | CN33: 843750 | CO33: 0 | CP33: 0 | CQ33: 0 | CR33: 0 | CS33: 0 | CT33: 0 | CU33: 0 | CV33: 2025000 | CW33: 1687500 | CX33: 843750
A34: 11 | B34: 車両運搬具 | C34: ４ｔトラック 更新 | D34: 2018-09-01 | E34: =DATE(YEAR(基本情報!$C$9)-1,MONTH(基本情報!$C$9),DAY(基本情報!$C$9))+1 -> 2014-04-01 | F34: 製造原価 | G34: 4 | H34: 定率法 | J34: 定率法200 | K34: 定率法200 | L34: 0.5 | M34: 1 | N34: 0.12499 | O34: 5400000 | P34: 0 | R34: 540000 | S34: 270000 | T34: 1 | U34: 5 | V34: =IF(ISERROR(VLOOKUP(C34,資産処分計画!$D$14:$G$38,4,FALSE)),"",VLOOKUP(C34,資産処分計画!$D$14:$G$38,4,FALSE)) ->  | W34: 0 | X34: 0 | Y34: 0 | Z34: =損益計画１!M$8 -> 2015-03-31 | AA34: 0 | AB34: 0 | AC34: 0 | AD34: =IF(O34="",0,IF(Q34="",ROUNDDOWN(Q34*$L34*AA34/12,0),IF(Q34>S34,MIN(ROUNDDOWN(Q34*$L34*AA34/12,0),Q34-S34),MIN(ROUNDDOWN((S34-1)/5,0),Q34-1)))) -> 0 | AE34: 0 | AF34: 674946 | AG34: 0 | AH34: 0 | AI34: 0 | AJ34: 0 | AK34: 0 | AL34: =損益計画１!O$8 -> 2016-03-31 | AM34: 0 | AN34: 0 | AO34: 0 | AP34: 0 | AQ34: 0 | AR34: 674946 | AS34: 0 | AT34: 0 | AU34: 0 | AV34: =IF($V34<=3,0,IF($U34="前期以前",$O34-AW34,IF($U34<=3,$O34-AW34,0))) -> 0 | AW34: 0 | AX34: =損益計画１!Q$8 -> 2017-03-31 | AY34: 0 | AZ34: 0 | BA34: 0 | BB34: 0 | BC34: =IF($O34="",0,IF($U34=3,ROUNDDOWN($O34*$L34*AY34/12,0),IF(AJ34=0,0,ROUNDDOWN(AJ34*$L34*AY34/12,0)))) -> 0 | BD34: 674946 | BE34: 0 | BF34: 0 | BG34: 0 | BH34: 0 | BI34: 0 | BJ34: =損益計画１!S$8 -> 2018-03-31 | BK34: 0 | BL34: 0 | BM34: 0 | BN34: 0 | BO34: 0 | BP34: 674946 | BQ34: 0 | BR34: 0 | BS34: 1575000 | BT34: 3825000 | BU34: 1575000 | BV34: =損益計画１!U$8 -> 2019-03-31 | BW34: 7 | BX34: 0 | BY34: 1575000 | BZ34: 0 | CA34: 1575000 | CB34: 674946 | CC34: 0 | CD34: 1575000 | CE34: 0 | CF34: 0 | CG34: 0 | CH34: 0 | CI34: 5400000 | CJ34: 0 | CK34: 0 | CL34: 0 | CM34: 0 | CN34: 1575000 | CO34: 0 | CP34: 0 | CQ34: 0 | CR34: 0 | CS34: 0 | CT34: 0 | CU34: 0 | CV34: 0 | CW34: 0 | CX34: 1575000
A35: 12 | E35: =DATE(YEAR(基本情報!$C$9)-1,MONTH(基本情報!$C$9),DAY(基本情報!$C$9))+1 -> 2014-04-01 | I35: 旧定額法 | J35: 旧定率法 | P35: 0 | R35: 0 | S35: 0 | T35: 1 | V35: =IF(ISERROR(VLOOKUP(C35,資産処分計画!$D$14:$G$38,4,FALSE)),"",VLOOKUP(C35,資産処分計画!$D$14:$G$38,4,FALSE)) ->  | W35: 0 | X35: 0 | Y35: 0 | Z35: =損益計画１!M$8 -> 2015-03-31 | AA35: 12 | AB35: 0 | AC35: 0 | AD35: =IF(O35="",0,IF(Q35="",ROUNDDOWN(Q35*$L35*AA35/12,0),IF(Q35>S35,MIN(ROUNDDOWN(Q35*$L35*AA35/12,0),Q35-S35),MIN(ROUNDDOWN((S35-1)/5,0),Q35-1)))) -> 0 | AE35: 0 | AF35: 0 | AG35: 0 | AH35: 0 | AI35: 0 | AJ35: 0 | AK35: 0 | AL35: =損益計画１!O$8 -> 2016-03-31 | AM35: 12 | AN35: 0 | AO35: 0 | AP35: 0 | AQ35: 0 | AR35: 0 | AS35: 0 | AT35: 0 | AU35: 0 | AV35: 0 | AW35: 0 | AX35: =損益計画１!Q$8 -> 2017-03-31 | AY35: 12 | AZ35: 0 | BA35: 0 | BB35: 0 | BC35: 0 | BD35: 0 | BE35: 0 | BF35: 0 | BG35: 0 | BH35: 0 | BI35: 0 | BJ35: =損益計画１!S$8 -> 2018-03-31 | BK35: 12 | BL35: 0 | BM35: 0 | BN35: 0 | BO35: 0 | BP35: 0 | BQ35: 0 | BR35: 0 | BS35: 0 | BT35: 0 | BU35: 0 | BV35: =損益計画１!U$8 -> 2019-03-31 | BW35: 12 | BX35: 0 | BY35: 0 | BZ35: 0 | CA35: 0 | CB35: 0 | CC35: 0 | CD35: 0 | CE35: 0 | CF35: 0 | CG35: 0 | CH35: 0 | CI35: 0 | CJ35: 0 | CK35: 0 | CL35: 0 | CM35: 0 | CN35: 0 | CO35: 0 | CP35: 0 | CQ35: 0 | CR35: 0 | CS35: 0 | CT35: 0 | CU35: 0 | CV35: 0 | CW35: 0 | CX35: 0
A36: 13 | E36: =DATE(YEAR(基本情報!$C$9)-1,MONTH(基本情報!$C$9),DAY(基本情報!$C$9))+1 -> 2014-04-01 | I36: 旧定額法 | J36: 旧定率法 | P36: 0 | R36: 0 | S36: 0 | T36: 1 | V36: =IF(ISERROR(VLOOKUP(C36,資産処分計画!$D$14:$G$38,4,FALSE)),"",VLOOKUP(C36,資産処分計画!$D$14:$G$38,4,FALSE)) ->  | W36: 0 | X36: 0 | Y36: 0 | Z36: =損益計画１!M$8 -> 2015-03-31 | AA36: 12 | AB36: 0 | AC36: 0 | AD36: 0 | AE36: 0 | AF36: 0 | AG36: 0 | AH36: 0 | AI36: 0 | AJ36: 0 | AK36: 0 | AL36: =損益計画１!O$8 -> 2016-03-31 | AM36: 12 | AN36: 0 | AO36: 0 | AP36: 0 | AQ36: 0 | AR36: 0 | AS36: 0 | AT36: 0 | AU36: 0 | AV36: 0 | AW36: 0 | AX36: =損益計画１!Q$8 -> 2017-03-31 | AY36: 12 | AZ36: 0 | BA36: 0 | BB36: 0 | BC36: 0 | BD36: 0 | BE36: 0 | BF36: 0 | BG36: 0 | BH36: 0 | BI36: 0 | BJ36: =損益計画１!S$8 -> 2018-03-31 | BK36: 12 | BL36: 0 | BM36: 0 | BN36: 0 | BO36: 0 | BP36: 0 | BQ36: 0 | BR36: 0 | BS36: 0 | BT36: 0 | BU36: 0 | BV36: =損益計画１!U$8 -> 2019-03-31 | BW36: 12 | BX36: 0 | BY36: 0 | BZ36: 0 | CA36: 0 | CB36: 0 | CC36: 0 | CD36: 0 | CE36: 0 | CF36: 0 | CG36: 0 | CH36: 0 | CI36: 0 | CJ36: 0 | CK36: 0 | CL36: 0 | CM36: 0 | CN36: 0 | CO36: 0 | CP36: 0 | CQ36: 0 | CR36: 0 | CS36: 0 | CT36: 0 | CU36: 0 | CV36: 0 | CW36: 0 | CX36: 0
A37: 14 | E37: =DATE(YEAR(基本情報!$C$9)-1,MONTH(基本情報!$C$9),DAY(基本情報!$C$9))+1 -> 2014-04-01 | I37: 旧定額法 | J37: 旧定率法 | P37: 0 | R37: 0 | S37: 0 | T37: 1 | V37: =IF(ISERROR(VLOOKUP(C37,資産処分計画!$D$14:$G$38,4,FALSE)),"",VLOOKUP(C37,資産処分計画!$D$14:$G$38,4,FALSE)) ->  | W37: 0 | X37: 0 | Y37: 0 | Z37: =損益計画１!M$8 -> 2015-03-31 | AA37: 12 | AB37: 0 | AC37: 0 | AD37: 0 | AE37: 0 | AF37: 0 | AG37: 0 | AH37: 0 | AI37: 0 | AJ37: 0 | AK37: 0 | AL37: =損益計画１!O$8 -> 2016-03-31 | AM37: 12 | AN37: 0 | AO37: 0 | AP37: 0 | AQ37: 0 | AR37: 0 | AS37: 0 | AT37: 0 | AU37: 0 | AV37: 0 | AW37: 0 | AX37: =損益計画１!Q$8 -> 2017-03-31 | AY37: 12 | AZ37: 0 | BA37: 0 | BB37: 0 | BC37: 0 | BD37: 0 | BE37: 0 | BF37: 0 | BG37: 0 | BH37: 0 | BI37: 0 | BJ37: =損益計画１!S$8 -> 2018-03-31 | BK37: 12 | BL37: 0 | BM37: 0 | BN37: 0 | BO37: 0 | BP37: 0 | BQ37: 0 | BR37: 0 | BS37: 0 | BT37: 0 | BU37: 0 | BV37: =損益計画１!U$8 -> 2019-03-31 | BW37: 12 | BX37: 0 | BY37: 0 | BZ37: 0 | CA37: 0 | CB37: 0 | CC37: 0 | CD37: 0 | CE37: 0 | CF37: 0 | CG37: 0 | CH37: 0 | CI37: 0 | CJ37: 0 | CK37: 0 | CL37: 0 | CM37: 0 | CN37: 0 | CO37: 0 | CP37: 0 | CQ37: 0 | CR37: 0 | CS37: 0 | CT37: 0 | CU37: 0 | CV37: 0 | CW37: 0 | CX37: 0
A38: 15 | E38: =DATE(YEAR(基本情報!$C$9)-1,MONTH(基本情報!$C$9),DAY(基本情報!$C$9))+1 -> 2014-04-01 | I38: 旧定額法 | J38: 旧定率法 | P38: 0 | R38: 0 | S38: 0 | T38: 1 | V38: =IF(ISERROR(VLOOKUP(C38,資産処分計画!$D$14:$G$38,4,FALSE)),"",VLOOKUP(C38,資産処分計画!$D$14:$G$38,4,FALSE)) ->  | W38: 0 | X38: 0 | Y38: 0 | Z38: =損益計画１!M$8 -> 2015-03-31 | AA38: 12 | AB38: 0 | AC38: 0 | AD38: 0 | AE38: 0 | AF38: 0 | AG38: 0 | AH38: 0 | AI38: 0 | AJ38: 0 | AK38: 0 | AL38: =損益計画１!O$8 -> 2016-03-31 | AM38: 12 | AN38: 0 | AO38: 0 | AP38: 0 | AQ38: 0 | AR38: 0 | AS38: 0 | AT38: 0 | AU38: 0 | AV38: 0 | AW38: 0 | AX38: =損益計画１!Q$8 -> 2017-03-31 | AY38: 12 | AZ38: 0 | BA38: 0 | BB38: 0 | BC38: 0 | BD38: 0 | BE38: 0 | BF38: 0 | BG38: 0 | BH38: 0 | BI38: 0 | BJ38: =損益計画１!S$8 -> 2018-03-31 | BK38: 12 | BL38: 0 | BM38: 0 | BN38: 0 | BO38: 0 | BP38: 0 | BQ38: 0 | BR38: 0 | BS38: 0 | BT38: 0 | BU38: 0 | BV38: =損益計画１!U$8 -> 2019-03-31 | BW38: 12 | BX38: 0 | BY38: 0 | BZ38: 0 | CA38: 0 | CB38: 0 | CC38: 0 | CD38: 0 | CE38: 0 | CF38: 0 | CG38: 0 | CH38: 0 | CI38: 0 | CJ38: 0 | CK38: 0 | CL38: 0 | CM38: 0 | CN38: 0 | CO38: 0 | CP38: 0 | CQ38: 0 | CR38: 0 | CS38: 0 | CT38: 0 | CU38: 0 | CV38: 0 | CW38: 0 | CX38: 0
A39: 16 | E39: =DATE(YEAR(基本情報!$C$9)-1,MONTH(基本情報!$C$9),DAY(基本情報!$C$9))+1 -> 2014-04-01 | I39: 旧定額法 | J39: 旧定率法 | P39: 0 | R39: 0 | S39: 0 | T39: 1 | V39: =IF(ISERROR(VLOOKUP(C39,資産処分計画!$D$14:$G$38,4,FALSE)),"",VLOOKUP(C39,資産処分計画!$D$14:$G$38,4,FALSE)) ->  | W39: 0 | X39: 0 | Y39: 0 | Z39: =損益計画１!M$8 -> 2015-03-31 | AA39: 12 | AB39: 0 | AC39: 0 | AD39: 0 | AE39: 0 | AF39: 0 | AG39: 0 | AH39: 0 | AI39: 0 | AJ39: 0 | AK39: 0 | AL39: =損益計画１!O$8 -> 2016-03-31 | AM39: 12 | AN39: 0 | AO39: 0 | AP39: 0 | AQ39: 0 | AR39: 0 | AS39: 0 | AT39: 0 | AU39: 0 | AV39: 0 | AW39: 0 | AX39: =損益計画１!Q$8 -> 2017-03-31 | AY39: 12 | AZ39: 0 | BA39: 0 | BB39: 0 | BC39: 0 | BD39: 0 | BE39: 0 | BF39: 0 | BG39: 0 | BH39: 0 | BI39: 0 | BJ39: =損益計画１!S$8 -> 2018-03-31 | BK39: 12 | BL39: 0 | BM39: 0 | BN39: 0 | BO39: 0 | BP39: 0 | BQ39: 0 | BR39: 0 | BS39: 0 | BT39: 0 | BU39: 0 | BV39: =損益計画１!U$8 -> 2019-03-31 | BW39: 12 | BX39: 0 | BY39: 0 | BZ39: 0 | CA39: 0 | CB39: 0 | CC39: 0 | CD39: 0 | CE39: 0 | CF39: 0 | CG39: 0 | CH39: 0 | CI39: 0 | CJ39: 0 | CK39: 0 | CL39: 0 | CM39: 0 | CN39: 0 | CO39: 0 | CP39: 0 | CQ39: 0 | CR39: 0 | CS39: 0 | CT39: 0 | CU39: 0 | CV39: 0 | CW39: 0 | CX39: 0
A40: 17 | E40: =DATE(YEAR(基本情報!$C$9)-1,MONTH(基本情報!$C$9),DAY(基本情報!$C$9))+1 -> 2014-04-01 | I40: 旧定額法 | J40: 旧定率法 | P40: 0 | R40: 0 | S40: 0 | T40: 1 | V40: =IF(ISERROR(VLOOKUP(C40,資産処分計画!$D$14:$G$38,4,FALSE)),"",VLOOKUP(C40,資産処分計画!$D$14:$G$38,4,FALSE)) ->  | W40: 0 | X40: 0 | Y40: 0 | Z40: =損益計画１!M$8 -> 2015-03-31 | AA40: 12 | AB40: 0 | AC40: 0 | AD40: 0 | AE40: 0 | AF40: 0 | AG40: 0 | AH40: 0 | AI40: 0 | AJ40: 0 | AK40: 0 | AL40: =損益計画１!O$8 -> 2016-03-31 | AM40: 12 | AN40: 0 | AO40: 0 | AP40: 0 | AQ40: 0 | AR40: 0 | AS40: 0 | AT40: 0 | AU40: 0 | AV40: 0 | AW40: 0 | AX40: =損益計画１!Q$8 -> 2017-03-31 | AY40: 12 | AZ40: 0 | BA40: 0 | BB40: 0 | BC40: 0 | BD40: 0 | BE40: 0 | BF40: 0 | BG40: 0 | BH40: 0 | BI40: 0 | BJ40: =損益計画１!S$8 -> 2018-03-31 | BK40: 12 | BL40: 0 | BM40: 0 | BN40: 0 | BO40: 0 | BP40: 0 | BQ40: 0 | BR40: 0 | BS40: 0 | BT40: 0 | BU40: 0 | BV40: =損益計画１!U$8 -> 2019-03-31 | BW40: 12 | BX40: 0 | BY40: 0 | BZ40: 0 | CA40: 0 | CB40: 0 | CC40: 0 | CD40: 0 | CE40: 0 | CF40: 0 | CG40: 0 | CH40: 0 | CI40: 0 | CJ40: 0 | CK40: 0 | CL40: 0 | CM40: 0 | CN40: 0 | CO40: 0 | CP40: 0 | CQ40: 0 | CR40: 0 | CS40: 0 | CT40: 0 | CU40: 0 | CV40: 0 | CW40: 0 | CX40: 0
A41: 18 | E41: =DATE(YEAR(基本情報!$C$9)-1,MONTH(基本情報!$C$9),DAY(基本情報!$C$9))+1 -> 2014-04-01 | I41: 旧定額法 | J41: 旧定率法 | P41: 0 | R41: 0 | S41: 0 | T41: 1 | V41: =IF(ISERROR(VLOOKUP(C41,資産処分計画!$D$14:$G$38,4,FALSE)),"",VLOOKUP(C41,資産処分計画!$D$14:$G$38,4,FALSE)) ->  | W41: 0 | X41: 0 | Y41: 0 | Z41: =損益計画１!M$8 -> 2015-03-31 | AA41: 12 | AB41: 0 | AC41: 0 | AD41: 0 | AE41: 0 | AF41: 0 | AG41: 0 | AH41: 0 | AI41: 0 | AJ41: 0 | AK41: 0 | AL41: =損益計画１!O$8 -> 2016-03-31 | AM41: 12 | AN41: 0 | AO41: 0 | AP41: 0 | AQ41: 0 | AR41: 0 | AS41: 0 | AT41: 0 | AU41: 0 | AV41: 0 | AW41: 0 | AX41: =損益計画１!Q$8 -> 2017-03-31 | AY41: 12 | AZ41: 0 | BA41: 0 | BB41: 0 | BC41: 0 | BD41: 0 | BE41: 0 | BF41: 0 | BG41: 0 | BH41: 0 | BI41: 0 | BJ41: =損益計画１!S$8 -> 2018-03-31 | BK41: 12 | BL41: 0 | BM41: 0 | BN41: 0 | BO41: 0 | BP41: 0 | BQ41: 0 | BR41: 0 | BS41: 0 | BT41: 0 | BU41: 0 | BV41: =損益計画１!U$8 -> 2019-03-31 | BW41: 12 | BX41: 0 | BY41: 0 | BZ41: 0 | CA41: 0 | CB41: 0 | CC41: 0 | CD41: 0 | CE41: 0 | CF41: 0 | CG41: 0 | CH41: 0 | CI41: 0 | CJ41: 0 | CK41: 0 | CL41: 0 | CM41: 0 | CN41: 0 | CO41: 0 | CP41: 0 | CQ41: 0 | CR41: 0 | CS41: 0 | CT41: 0 | CU41: 0 | CV41: 0 | CW41: 0 | CX41: 0
A42: 19 | E42: =DATE(YEAR(基本情報!$C$9)-1,MONTH(基本情報!$C$9),DAY(基本情報!$C$9))+1 -> 2014-04-01 | I42: 旧定額法 | J42: 旧定率法 | P42: 0 | R42: 0 | S42: 0 | T42: 1 | V42: =IF(ISERROR(VLOOKUP(C42,資産処分計画!$D$14:$G$38,4,FALSE)),"",VLOOKUP(C42,資産処分計画!$D$14:$G$38,4,FALSE)) ->  | W42: 0 | X42: 0 | Y42: 0 | Z42: =損益計画１!M$8 -> 2015-03-31 | AA42: 12 | AB42: 0 | AC42: 0 | AD42: 0 | AE42: 0 | AF42: 0 | AG42: 0 | AH42: 0 | AI42: 0 | AJ42: 0 | AK42: 0 | AL42: =損益計画１!O$8 -> 2016-03-31 | AM42: 12 | AN42: 0 | AO42: 0 | AP42: 0 | AQ42: 0 | AR42: 0 | AS42: 0 | AT42: 0 | AU42: 0 | AV42: 0 | AW42: 0 | AX42: =損益計画１!Q$8 -> 2017-03-31 | AY42: 12 | AZ42: 0 | BA42: 0 | BB42: 0 | BC42: 0 | BD42: 0 | BE42: 0 | BF42: 0 | BG42: 0 | BH42: 0 | BI42: 0 | BJ42: =損益計画１!S$8 -> 2018-03-31 | BK42: 12 | BL42: 0 | BM42: 0 | BN42: 0 | BO42: 0 | BP42: 0 | BQ42: 0 | BR42: 0 | BS42: 0 | BT42: 0 | BU42: 0 | BV42: =損益計画１!U$8 -> 2019-03-31 | BW42: 12 | BX42: 0 | BY42: 0 | BZ42: 0 | CA42: 0 | CB42: 0 | CC42: 0 | CD42: 0 | CE42: 0 | CF42: 0 | CG42: 0 | CH42: 0 | CI42: 0 | CJ42: 0 | CK42: 0 | CL42: 0 | CM42: 0 | CN42: 0 | CO42: 0 | CP42: 0 | CQ42: 0 | CR42: 0 | CS42: 0 | CT42: 0 | CU42: 0 | CV42: 0 | CW42: 0 | CX42: 0
A43: 20 | E43: =DATE(YEAR(基本情報!$C$9)-1,MONTH(基本情報!$C$9),DAY(基本情報!$C$9))+1 -> 2014-04-01 | I43: 旧定額法 | J43: 旧定率法 | P43: 0 | R43: 0 | S43: 0 | T43: 1 | V43: =IF(ISERROR(VLOOKUP(C43,資産処分計画!$D$14:$G$38,4,FALSE)),"",VLOOKUP(C43,資産処分計画!$D$14:$G$38,4,FALSE)) ->  | W43: 0 | X43: 0 | Y43: 0 | Z43: =損益計画１!M$8 -> 2015-03-31 | AA43: 12 | AB43: 0 | AC43: 0 | AD43: 0 | AE43: 0 | AF43: 0 | AG43: 0 | AH43: 0 | AI43: 0 | AJ43: 0 | AK43: 0 | AL43: =損益計画１!O$8 -> 2016-03-31 | AM43: 12 | AN43: 0 | AO43: 0 | AP43: 0 | AQ43: 0 | AR43: 0 | AS43: 0 | AT43: 0 | AU43: 0 | AV43: 0 | AW43: 0 | AX43: =損益計画１!Q$8 -> 2017-03-31 | AY43: 12 | AZ43: 0 | BA43: 0 | BB43: 0 | BC43: 0 | BD43: 0 | BE43: 0 | BF43: 0 | BG43: 0 | BH43: 0 | BI43: 0 | BJ43: =損益計画１!S$8 -> 2018-03-31 | BK43: 12 | BL43: 0 | BM43: 0 | BN43: 0 | BO43: 0 | BP43: 0 | BQ43: 0 | BR43: 0 | BS43: 0 | BT43: 0 | BU43: 0 | BV43: =損益計画１!U$8 -> 2019-03-31 | BW43: 12 | BX43: 0 | BY43: 0 | BZ43: 0 | CA43: 0 | CB43: 0 | CC43: 0 | CD43: 0 | CE43: 0 | CF43: 0 | CG43: 0 | CH43: 0 | CI43: 0 | CJ43: 0 | CK43: 0 | CL43: 0 | CM43: 0 | CN43: 0 | CO43: 0 | CP43: 0 | CQ43: 0 | CR43: 0 | CS43: 0 | CT43: 0 | CU43: 0 | CV43: 0 | CW43: 0 | CX43: 0
A44: 21 | E44: =DATE(YEAR(基本情報!$C$9)-1,MONTH(基本情報!$C$9),DAY(基本情報!$C$9))+1 -> 2014-04-01 | I44: 旧定額法 | J44: 旧定率法 | P44: 0 | R44: 0 | S44: 0 | T44: 1 | V44: =IF(ISERROR(VLOOKUP(C44,資産処分計画!$D$14:$G$38,4,FALSE)),"",VLOOKUP(C44,資産処分計画!$D$14:$G$38,4,FALSE)) ->  | W44: 0 | X44: 0 | Y44: 0 | Z44: =損益計画１!M$8 -> 2015-03-31 | AA44: 12 | AB44: 0 | AC44: 0 | AD44: 0 | AE44: 0 | AF44: 0 | AG44: 0 | AH44: 0 | AI44: 0 | AJ44: 0 | AK44: 0 | AL44: =損益計画１!O$8 -> 2016-03-31 | AM44: 12 | AN44: 0 | AO44: 0 | AP44: 0 | AQ44: 0 | AR44: 0 | AS44: 0 | AT44: 0 | AU44: 0 | AV44: 0 | AW44: 0 | AX44: =損益計画１!Q$8 -> 2017-03-31 | AY44: 12 | AZ44: 0 | BA44: 0 | BB44: 0 | BC44: 0 | BD44: 0 | BE44: 0 | BF44: 0 | BG44: 0 | BH44: 0 | BI44: 0 | BJ44: =損益計画１!S$8 -> 2018-03-31 | BK44: 12 | BL44: 0 | BM44: 0 | BN44: 0 | BO44: 0 | BP44: 0 | BQ44: 0 | BR44: 0 | BS44: 0 | BT44: 0 | BU44: 0 | BV44: =損益計画１!U$8 -> 2019-03-31 | BW44: 12 | BX44: 0 | BY44: 0 | BZ44: 0 | CA44: 0 | CB44: 0 | CC44: 0 | CD44: 0 | CE44: 0 | CF44: 0 | CG44: 0 | CH44: 0 | CI44: 0 | CJ44: 0 | CK44: 0 | CL44: 0 | CM44: 0 | CN44: 0 | CO44: 0 | CP44: 0 | CQ44: 0 | CR44: 0 | CS44: 0 | CT44: 0 | CU44: 0 | CV44: 0 | CW44: 0 | CX44: 0
A45: 22 | E45: =DATE(YEAR(基本情報!$C$9)-1,MONTH(基本情報!$C$9),DAY(基本情報!$C$9))+1 -> 2014-04-01 | I45: 旧定額法 | J45: 旧定率法 | P45: 0 | R45: 0 | S45: 0 | T45: 1 | V45: =IF(ISERROR(VLOOKUP(C45,資産処分計画!$D$14:$G$38,4,FALSE)),"",VLOOKUP(C45,資産処分計画!$D$14:$G$38,4,FALSE)) ->  | W45: 0 | X45: 0 | Y45: 0 | Z45: =損益計画１!M$8 -> 2015-03-31 | AA45: 12 | AB45: 0 | AC45: 0 | AD45: 0 | AE45: 0 | AF45: 0 | AG45: 0 | AH45: 0 | AI45: 0 | AJ45: 0 | AK45: 0 | AL45: =損益計画１!O$8 -> 2016-03-31 | AM45: 12 | AN45: 0 | AO45: 0 | AP45: 0 | AQ45: 0 | AR45: 0 | AS45: 0 | AT45: 0 | AU45: 0 | AV45: 0 | AW45: 0 | AX45: =損益計画１!Q$8 -> 2017-03-31 | AY45: 12 | AZ45: 0 | BA45: 0 | BB45: 0 | BC45: 0 | BD45: 0 | BE45: 0 | BF45: 0 | BG45: 0 | BH45: 0 | BI45: 0 | BJ45: =損益計画１!S$8 -> 2018-03-31 | BK45: 12 | BL45: 0 | BM45: 0 | BN45: 0 | BO45: 0 | BP45: 0 | BQ45: 0 | BR45: 0 | BS45: 0 | BT45: 0 | BU45: 0 | BV45: =損益計画１!U$8 -> 2019-03-31 | BW45: 12 | BX45: 0 | BY45: 0 | BZ45: 0 | CA45: 0 | CB45: 0 | CC45: 0 | CD45: 0 | CE45: 0 | CF45: 0 | CG45: 0 | CH45: 0 | CI45: 0 | CJ45: 0 | CK45: 0 | CL45: 0 | CM45: 0 | CN45: 0 | CO45: 0 | CP45: 0 | CQ45: 0 | CR45: 0 | CS45: 0 | CT45: 0 | CU45: 0 | CV45: 0 | CW45: 0 | CX45: 0
A46: 23 | E46: =DATE(YEAR(基本情報!$C$9)-1,MONTH(基本情報!$C$9),DAY(基本情報!$C$9))+1 -> 2014-04-01 | I46: 旧定額法 | J46: 旧定率法 | P46: 0 | R46: 0 | S46: 0 | T46: 1 | V46: =IF(ISERROR(VLOOKUP(C46,資産処分計画!$D$14:$G$38,4,FALSE)),"",VLOOKUP(C46,資産処分計画!$D$14:$G$38,4,FALSE)) ->  | W46: 0 | X46: 0 | Y46: 0 | Z46: =損益計画１!M$8 -> 2015-03-31 | AA46: 12 | AB46: 0 | AC46: 0 | AD46: 0 | AE46: 0 | AF46: 0 | AG46: 0 | AH46: 0 | AI46: 0 | AJ46: 0 | AK46: 0 | AL46: =損益計画１!O$8 -> 2016-03-31 | AM46: 12 | AN46: 0 | AO46: 0 | AP46: 0 | AQ46: 0 | AR46: 0 | AS46: 0 | AT46: 0 | AU46: 0 | AV46: 0 | AW46: 0 | AX46: =損益計画１!Q$8 -> 2017-03-31 | AY46: 12 | AZ46: 0 | BA46: 0 | BB46: 0 | BC46: 0 | BD46: 0 | BE46: 0 | BF46: 0 | BG46: 0 | BH46: 0 | BI46: 0 | BJ46: =損益計画１!S$8 -> 2018-03-31 | BK46: 12 | BL46: 0 | BM46: 0 | BN46: 0 | BO46: 0 | BP46: 0 | BQ46: 0 | BR46: 0 | BS46: 0 | BT46: 0 | BU46: 0 | BV46: =損益計画１!U$8 -> 2019-03-31 | BW46: 12 | BX46: 0 | BY46: 0 | BZ46: 0 | CA46: 0 | CB46: 0 | CC46: 0 | CD46: 0 | CE46: 0 | CF46: 0 | CG46: 0 | CH46: 0 | CI46: 0 | CJ46: 0 | CK46: 0 | CL46: 0 | CM46: 0 | CN46: 0 | CO46: 0 | CP46: 0 | CQ46: 0 | CR46: 0 | CS46: 0 | CT46: 0 | CU46: 0 | CV46: 0 | CW46: 0 | CX46: 0
A47: 24 | E47: =DATE(YEAR(基本情報!$C$9)-1,MONTH(基本情報!$C$9),DAY(基本情報!$C$9))+1 -> 2014-04-01 | I47: 旧定額法 | J47: 旧定率法 | P47: 0 | R47: 0 | S47: 0 | T47: 1 | V47: =IF(ISERROR(VLOOKUP(C47,資産処分計画!$D$14:$G$38,4,FALSE)),"",VLOOKUP(C47,資産処分計画!$D$14:$G$38,4,FALSE)) ->  | W47: 0 | X47: 0 | Y47: 0 | Z47: =損益計画１!M$8 -> 2015-03-31 | AA47: 12 | AB47: 0 | AC47: 0 | AD47: 0 | AE47: 0 | AF47: 0 | AG47: 0 | AH47: 0 | AI47: 0 | AJ47: 0 | AK47: 0 | AL47: =損益計画１!O$8 -> 2016-03-31 | AM47: 12 | AN47: 0 | AO47: 0 | AP47: 0 | AQ47: 0 | AR47: 0 | AS47: 0 | AT47: 0 | AU47: 0 | AV47: 0 | AW47: 0 | AX47: =損益計画１!Q$8 -> 2017-03-31 | AY47: 12 | AZ47: 0 | BA47: 0 | BB47: 0 | BC47: 0 | BD47: 0 | BE47: 0 | BF47: 0 | BG47: 0 | BH47: 0 | BI47: 0 | BJ47: =損益計画１!S$8 -> 2018-03-31 | BK47: 12 | BL47: 0 | BM47: 0 | BN47: 0 | BO47: 0 | BP47: 0 | BQ47: 0 | BR47: 0 | BS47: 0 | BT47: 0 | BU47: 0 | BV47: =損益計画１!U$8 -> 2019-03-31 | BW47: 12 | BX47: 0 | BY47: 0 | BZ47: 0 | CA47: 0 | CB47: 0 | CC47: 0 | CD47: 0 | CE47: 0 | CF47: 0 | CG47: 0 | CH47: 0 | CI47: 0 | CJ47: 0 | CK47: 0 | CL47: 0 | CM47: 0 | CN47: 0 | CO47: 0 | CP47: 0 | CQ47: 0 | CR47: 0 | CS47: 0 | CT47: 0 | CU47: 0 | CV47: 0 | CW47: 0 | CX47: 0
A48: 25 | E48: =DATE(YEAR(基本情報!$C$9)-1,MONTH(基本情報!$C$9),DAY(基本情報!$C$9))+1 -> 2014-04-01 | I48: 旧定額法 | J48: 旧定率法 | P48: 0 | R48: 0 | S48: 0 | T48: 1 | V48: =IF(ISERROR(VLOOKUP(C48,資産処分計画!$D$14:$G$38,4,FALSE)),"",VLOOKUP(C48,資産処分計画!$D$14:$G$38,4,FALSE)) ->  | W48: 0 | X48: 0 | Y48: 0 | Z48: =損益計画１!M$8 -> 2015-03-31 | AA48: 12 | AB48: 0 | AC48: 0 | AD48: 0 | AE48: 0 | AF48: 0 | AG48: 0 | AH48: 0 | AI48: 0 | AJ48: 0 | AK48: 0 | AL48: =損益計画１!O$8 -> 2016-03-31 | AM48: 12 | AN48: 0 | AO48: 0 | AP48: 0 | AQ48: 0 | AR48: 0 | AS48: 0 | AT48: 0 | AU48: 0 | AV48: 0 | AW48: 0 | AX48: =損益計画１!Q$8 -> 2017-03-31 | AY48: 12 | AZ48: 0 | BA48: 0 | BB48: 0 | BC48: 0 | BD48: 0 | BE48: 0 | BF48: 0 | BG48: 0 | BH48: 0 | BI48: 0 | BJ48: =損益計画１!S$8 -> 2018-03-31 | BK48: 12 | BL48: 0 | BM48: 0 | BN48: 0 | BO48: 0 | BP48: 0 | BQ48: 0 | BR48: 0 | BS48: 0 | BT48: 0 | BU48: 0 | BV48: =損益計画１!U$8 -> 2019-03-31 | BW48: 12 | BX48: 0 | BY48: 0 | BZ48: 0 | CA48: 0 | CB48: 0 | CC48: 0 | CD48: 0 | CE48: 0 | CF48: 0 | CG48: 0 | CH48: 0 | CI48: 0 | CJ48: 0 | CK48: 0 | CL48: 0 | CM48: 0 | CN48: 0 | CO48: 0 | CP48: 0 | CQ48: 0 | CR48: 0 | CS48: 0 | CT48: 0 | CU48: 0 | CV48: 0 | CW48: 0 | CX48: 0
A49: 26 | E49: =DATE(YEAR(基本情報!$C$9)-1,MONTH(基本情報!$C$9),DAY(基本情報!$C$9))+1 -> 2014-04-01 | I49: 旧定額法 | J49: 旧定率法 | P49: 0 | R49: 0 | S49: 0 | T49: 1 | V49: =IF(ISERROR(VLOOKUP(C49,資産処分計画!$D$14:$G$38,4,FALSE)),"",VLOOKUP(C49,資産処分計画!$D$14:$G$38,4,FALSE)) ->  | W49: 0 | X49: 0 | Y49: 0 | Z49: =損益計画１!M$8 -> 2015-03-31 | AA49: 12 | AB49: 0 | AC49: 0 | AD49: 0 | AE49: 0 | AF49: 0 | AG49: 0 | AH49: 0 | AI49: 0 | AJ49: 0 | AK49: 0 | AL49: =損益計画１!O$8 -> 2016-03-31 | AM49: 12 | AN49: 0 | AO49: 0 | AP49: 0 | AQ49: 0 | AR49: 0 | AS49: 0 | AT49: 0 | AU49: 0 | AV49: 0 | AW49: 0 | AX49: =損益計画１!Q$8 -> 2017-03-31 | AY49: 12 | AZ49: 0 | BA49: 0 | BB49: 0 | BC49: 0 | BD49: 0 | BE49: 0 | BF49: 0 | BG49: 0 | BH49: 0 | BI49: 0 | BJ49: =損益計画１!S$8 -> 2018-03-31 | BK49: 12 | BL49: 0 | BM49: 0 | BN49: 0 | BO49: 0 | BP49: 0 | BQ49: 0 | BR49: 0 | BS49: 0 | BT49: 0 | BU49: 0 | BV49: =損益計画１!U$8 -> 2019-03-31 | BW49: 12 | BX49: 0 | BY49: 0 | BZ49: 0 | CA49: 0 | CB49: 0 | CC49: 0 | CD49: 0 | CE49: 0 | CF49: 0 | CG49: 0 | CH49: 0 | CI49: 0 | CJ49: 0 | CK49: 0 | CL49: 0 | CM49: 0 | CN49: 0 | CO49: 0 | CP49: 0 | CQ49: 0 | CR49: 0 | CS49: 0 | CT49: 0 | CU49: 0 | CV49: 0 | CW49: 0 | CX49: 0
A50: 27 | E50: =DATE(YEAR(基本情報!$C$9)-1,MONTH(基本情報!$C$9),DAY(基本情報!$C$9))+1 -> 2014-04-01 | I50: 旧定額法 | J50: 旧定率法 | P50: 0 | R50: 0 | S50: 0 | T50: 1 | V50: =IF(ISERROR(VLOOKUP(C50,資産処分計画!$D$14:$G$38,4,FALSE)),"",VLOOKUP(C50,資産処分計画!$D$14:$G$38,4,FALSE)) ->  | W50: 0 | X50: 0 | Y50: 0 | Z50: =損益計画１!M$8 -> 2015-03-31 | AA50: 12 | AB50: 0 | AC50: 0 | AD50: 0 | AE50: 0 | AF50: 0 | AG50: 0 | AH50: 0 | AI50: 0 | AJ50: 0 | AK50: 0 | AL50: =損益計画１!O$8 -> 2016-03-31 | AM50: 12 | AN50: 0 | AO50: 0 | AP50: 0 | AQ50: 0 | AR50: 0 | AS50: 0 | AT50: 0 | AU50: 0 | AV50: 0 | AW50: 0 | AX50: =損益計画１!Q$8 -> 2017-03-31 | AY50: 12 | AZ50: 0 | BA50: 0 | BB50: 0 | BC50: 0 | BD50: 0 | BE50: 0 | BF50: 0 | BG50: 0 | BH50: 0 | BI50: 0 | BJ50: =損益計画１!S$8 -> 2018-03-31 | BK50: 12 | BL50: 0 | BM50: 0 | BN50: 0 | BO50: 0 | BP50: 0 | BQ50: 0 | BR50: 0 | BS50: 0 | BT50: 0 | BU50: 0 | BV50: =損益計画１!U$8 -> 2019-03-31 | BW50: 12 | BX50: 0 | BY50: 0 | BZ50: 0 | CA50: 0 | CB50: 0 | CC50: 0 | CD50: 0 | CE50: 0 | CF50: 0 | CG50: 0 | CH50: 0 | CI50: 0 | CJ50: 0 | CK50: 0 | CL50: 0 | CM50: 0 | CN50: 0 | CO50: 0 | CP50: 0 | CQ50: 0 | CR50: 0 | CS50: 0 | CT50: 0 | CU50: 0 | CV50: 0 | CW50: 0 | CX50: 0
A51: 28 | E51: =DATE(YEAR(基本情報!$C$9)-1,MONTH(基本情報!$C$9),DAY(基本情報!$C$9))+1 -> 2014-04-01 | I51: 旧定額法 | J51: 旧定率法 | P51: 0 | R51: 0 | S51: 0 | T51: 1 | V51: =IF(ISERROR(VLOOKUP(C51,資産処分計画!$D$14:$G$38,4,FALSE)),"",VLOOKUP(C51,資産処分計画!$D$14:$G$38,4,FALSE)) ->  | W51: 0 | X51: 0 | Y51: 0 | Z51: =損益計画１!M$8 -> 2015-03-31 | AA51: 12 | AB51: 0 | AC51: 0 | AD51: 0 | AE51: 0 | AF51: 0 | AG51: 0 | AH51: 0 | AI51: 0 | AJ51: 0 | AK51: 0 | AL51: =損益計画１!O$8 -> 2016-03-31 | AM51: 12 | AN51: 0 | AO51: 0 | AP51: 0 | AQ51: 0 | AR51: 0 | AS51: 0 | AT51: 0 | AU51: 0 | AV51: 0 | AW51: 0 | AX51: =損益計画１!Q$8 -> 2017-03-31 | AY51: 12 | AZ51: 0 | BA51: 0 | BB51: 0 | BC51: 0 | BD51: 0 | BE51: 0 | BF51: 0 | BG51: 0 | BH51: 0 | BI51: 0 | BJ51: =損益計画１!S$8 -> 2018-03-31 | BK51: 12 | BL51: 0 | BM51: 0 | BN51: 0 | BO51: 0 | BP51: 0 | BQ51: 0 | BR51: 0 | BS51: 0 | BT51: 0 | BU51: 0 | BV51: =損益計画１!U$8 -> 2019-03-31 | BW51: 12 | BX51: 0 | BY51: 0 | BZ51: 0 | CA51: 0 | CB51: 0 | CC51: 0 | CD51: 0 | CE51: 0 | CF51: 0 | CG51: 0 | CH51: 0 | CI51: 0 | CJ51: 0 | CK51: 0 | CL51: 0 | CM51: 0 | CN51: 0 | CO51: 0 | CP51: 0 | CQ51: 0 | CR51: 0 | CS51: 0 | CT51: 0 | CU51: 0 | CV51: 0 | CW51: 0 | CX51: 0
A52: 29 | E52: =DATE(YEAR(基本情報!$C$9)-1,MONTH(基本情報!$C$9),DAY(基本情報!$C$9))+1 -> 2014-04-01 | I52: 旧定額法 | J52: 旧定率法 | P52: 0 | R52: 0 | S52: 0 | T52: 1 | V52: =IF(ISERROR(VLOOKUP(C52,資産処分計画!$D$14:$G$38,4,FALSE)),"",VLOOKUP(C52,資産処分計画!$D$14:$G$38,4,FALSE)) ->  | W52: 0 | X52: 0 | Y52: 0 | Z52: =損益計画１!M$8 -> 2015-03-31 | AA52: 12 | AB52: 0 | AC52: 0 | AD52: 0 | AE52: 0 | AF52: 0 | AG52: 0 | AH52: 0 | AI52: 0 | AJ52: 0 | AK52: 0 | AL52: =損益計画１!O$8 -> 2016-03-31 | AM52: 12 | AN52: 0 | AO52: 0 | AP52: 0 | AQ52: 0 | AR52: 0 | AS52: 0 | AT52: 0 | AU52: 0 | AV52: 0 | AW52: 0 | AX52: =損益計画１!Q$8 -> 2017-03-31 | AY52: 12 | AZ52: 0 | BA52: 0 | BB52: 0 | BC52: 0 | BD52: 0 | BE52: 0 | BF52: 0 | BG52: 0 | BH52: 0 | BI52: 0 | BJ52: =損益計画１!S$8 -> 2018-03-31 | BK52: 12 | BL52: 0 | BM52: 0 | BN52: 0 | BO52: 0 | BP52: 0 | BQ52: 0 | BR52: 0 | BS52: 0 | BT52: 0 | BU52: 0 | BV52: =損益計画１!U$8 -> 2019-03-31 | BW52: 12 | BX52: 0 | BY52: 0 | BZ52: 0 | CA52: 0 | CB52: 0 | CC52: 0 | CD52: 0 | CE52: 0 | CF52: 0 | CG52: 0 | CH52: 0 | CI52: 0 | CJ52: 0 | CK52: 0 | CL52: 0 | CM52: 0 | CN52: 0 | CO52: 0 | CP52: 0 | CQ52: 0 | CR52: 0 | CS52: 0 | CT52: 0 | CU52: 0 | CV52: 0 | CW52: 0 | CX52: 0
A53: 30 | E53: =DATE(YEAR(基本情報!$C$9)-1,MONTH(基本情報!$C$9),DAY(基本情報!$C$9))+1 -> 2014-04-01 | I53: 旧定額法 | J53: 旧定率法 | P53: 0 | R53: 0 | S53: 0 | T53: 1 | V53: =IF(ISERROR(VLOOKUP(C53,資産処分計画!$D$14:$G$38,4,FALSE)),"",VLOOKUP(C53,資産処分計画!$D$14:$G$38,4,FALSE)) ->  | W53: 0 | X53: 0 | Y53: 0 | Z53: =損益計画１!M$8 -> 2015-03-31 | AA53: 12 | AB53: 0 | AC53: 0 | AD53: 0 | AE53: 0 | AF53: 0 | AG53: 0 | AH53: 0 | AI53: 0 | AJ53: 0 | AK53: 0 | AL53: =損益計画１!O$8 -> 2016-03-31 | AM53: 12 | AN53: 0 | AO53: 0 | AP53: 0 | AQ53: 0 | AR53: 0 | AS53: 0 | AT53: 0 | AU53: 0 | AV53: 0 | AW53: 0 | AX53: =損益計画１!Q$8 -> 2017-03-31 | AY53: 12 | AZ53: 0 | BA53: 0 | BB53: 0 | BC53: 0 | BD53: 0 | BE53: 0 | BF53: 0 | BG53: 0 | BH53: 0 | BI53: 0 | BJ53: =損益計画１!S$8 -> 2018-03-31 | BK53: 12 | BL53: 0 | BM53: 0 | BN53: 0 | BO53: 0 | BP53: 0 | BQ53: 0 | BR53: 0 | BS53: 0 | BT53: 0 | BU53: 0 | BV53: =損益計画１!U$8 -> 2019-03-31 | BW53: 12 | BX53: 0 | BY53: 0 | BZ53: 0 | CA53: 0 | CB53: 0 | CC53: 0 | CD53: 0 | CE53: 0 | CF53: 0 | CG53: 0 | CH53: 0 | CI53: 0 | CJ53: 0 | CK53: 0 | CL53: 0 | CM53: 0 | CN53: 0 | CO53: 0 | CP53: 0 | CQ53: 0 | CR53: 0 | CS53: 0 | CT53: 0 | CU53: 0 | CV53: 0 | CW53: 0 | CX53: 0
A54: 31 | E54: =DATE(YEAR(基本情報!$C$9)-1,MONTH(基本情報!$C$9),DAY(基本情報!$C$9))+1 -> 2014-04-01 | I54: 旧定額法 | J54: 旧定率法 | P54: 0 | R54: 0 | S54: 0 | T54: 1 | V54: =IF(ISERROR(VLOOKUP(C54,資産処分計画!$D$14:$G$38,4,FALSE)),"",VLOOKUP(C54,資産処分計画!$D$14:$G$38,4,FALSE)) ->  | W54: 0 | X54: 0 | Y54: 0 | Z54: =損益計画１!M$8 -> 2015-03-31 | AA54: 12 | AB54: 0 | AC54: 0 | AD54: 0 | AE54: 0 | AF54: 0 | AG54: 0 | AH54: 0 | AI54: 0 | AJ54: 0 | AK54: 0 | AL54: =損益計画１!O$8 -> 2016-03-31 | AM54: 12 | AN54: 0 | AO54: 0 | AP54: 0 | AQ54: 0 | AR54: 0 | AS54: 0 | AT54: 0 | AU54: 0 | AV54: 0 | AW54: 0 | AX54: =損益計画１!Q$8 -> 2017-03-31 | AY54: 12 | AZ54: 0 | BA54: 0 | BB54: 0 | BC54: 0 | BD54: 0 | BE54: 0 | BF54: 0 | BG54: 0 | BH54: 0 | BI54: 0 | BJ54: =損益計画１!S$8 -> 2018-03-31 | BK54: 12 | BL54: 0 | BM54: 0 | BN54: 0 | BO54: 0 | BP54: 0 | BQ54: 0 | BR54: 0 | BS54: 0 | BT54: 0 | BU54: 0 | BV54: =損益計画１!U$8 -> 2019-03-31 | BW54: 12 | BX54: 0 | BY54: 0 | BZ54: 0 | CA54: 0 | CB54: 0 | CC54: 0 | CD54: 0 | CE54: 0 | CF54: 0 | CG54: 0 | CH54: 0 | CI54: 0 | CJ54: 0 | CK54: 0 | CL54: 0 | CM54: 0 | CN54: 0 | CO54: 0 | CP54: 0 | CQ54: 0 | CR54: 0 | CS54: 0 | CT54: 0 | CU54: 0 | CV54: 0 | CW54: 0 | CX54: 0
A55: 32 | E55: =DATE(YEAR(基本情報!$C$9)-1,MONTH(基本情報!$C$9),DAY(基本情報!$C$9))+1 -> 2014-04-01 | I55: 旧定額法 | J55: 旧定率法 | P55: 0 | R55: 0 | S55: 0 | T55: 1 | V55: =IF(ISERROR(VLOOKUP(C55,資産処分計画!$D$14:$G$38,4,FALSE)),"",VLOOKUP(C55,資産処分計画!$D$14:$G$38,4,FALSE)) ->  | W55: 0 | X55: 0 | Y55: 0 | Z55: =損益計画１!M$8 -> 2015-03-31 | AA55: 12 | AB55: 0 | AC55: 0 | AD55: 0 | AE55: 0 | AF55: 0 | AG55: 0 | AH55: 0 | AI55: 0 | AJ55: 0 | AK55: 0 | AL55: =損益計画１!O$8 -> 2016-03-31 | AM55: 12 | AN55: 0 | AO55: 0 | AP55: 0 | AQ55: 0 | AR55: 0 | AS55: 0 | AT55: 0 | AU55: 0 | AV55: 0 | AW55: 0 | AX55: =損益計画１!Q$8 -> 2017-03-31 | AY55: 12 | AZ55: 0 | BA55: 0 | BB55: 0 | BC55: 0 | BD55: 0 | BE55: 0 | BF55: 0 | BG55: 0 | BH55: 0 | BI55: 0 | BJ55: =損益計画１!S$8 -> 2018-03-31 | BK55: 12 | BL55: 0 | BM55: 0 | BN55: 0 | BO55: 0 | BP55: 0 | BQ55: 0 | BR55: 0 | BS55: 0 | BT55: 0 | BU55: 0 | BV55: =損益計画１!U$8 -> 2019-03-31 | BW55: 12 | BX55: 0 | BY55: 0 | BZ55: 0 | CA55: 0 | CB55: 0 | CC55: 0 | CD55: 0 | CE55: 0 | CF55: 0 | CG55: 0 | CH55: 0 | CI55: 0 | CJ55: 0 | CK55: 0 | CL55: 0 | CM55: 0 | CN55: 0 | CO55: 0 | CP55: 0 | CQ55: 0 | CR55: 0 | CS55: 0 | CT55: 0 | CU55: 0 | CV55: 0 | CW55: 0 | CX55: 0
A56: 33 | E56: =DATE(YEAR(基本情報!$C$9)-1,MONTH(基本情報!$C$9),DAY(基本情報!$C$9))+1 -> 2014-04-01 | I56: 旧定額法 | J56: 旧定率法 | P56: 0 | R56: 0 | S56: 0 | T56: 1 | U56: =IF($D56="","",IF($D56<$E56,"前期以前",IF($D56<=W$23,1,IF($D56<=AI$23,2,IF($D56<=AU$23,3,IF($D56<=BG$23,4,5)))))) ->  | V56: =IF(ISERROR(VLOOKUP(C56,資産処分計画!$D$14:$G$38,4,FALSE)),"",VLOOKUP(C56,資産処分計画!$D$14:$G$38,4,FALSE)) ->  | W56: 0 | X56: 0 | Y56: 0 | Z56: =損益計画１!M$8 -> 2015-03-31 | AA56: 12 | AB56: 0 | AC56: 0 | AD56: 0 | AE56: 0 | AF56: =IF(ISERROR(ROUNDDOWN(O56*N56,0)),0,ROUNDDOWN(O56*N56,0)) -> 0 | AG56: =IF(ISERROR(ROUNDDOWN(Q56*M56,0)),0,IF((ROUNDDOWN(Q56*M56,0)-T56)<0,0,ROUNDDOWN(Q56*M56,0)-T56)) -> 0 | AH56: 0 | AI56: 0 | AJ56: 0 | AK56: 0 | AL56: =損益計画１!O$8 -> 2016-03-31 | AM56: 12 | AN56: 0 | AO56: 0 | AP56: 0 | AQ56: 0 | AR56: 0 | AS56: 0 | AT56: 0 | AU56: 0 | AV56: 0 | AW56: 0 | AX56: =損益計画１!Q$8 -> 2017-03-31 | AY56: 12 | AZ56: 0 | BA56: 0 | BB56: 0 | BC56: 0 | BD56: 0 | BE56: 0 | BF56: 0 | BG56: 0 | BH56: 0 | BI56: 0 | BJ56: =損益計画１!S$8 -> 2018-03-31 | BK56: 12 | BL56: 0 | BM56: 0 | BN56: 0 | BO56: 0 | BP56: 0 | BQ56: 0 | BR56: 0 | BS56: 0 | BT56: 0 | BU56: 0 | BV56: =損益計画１!U$8 -> 2019-03-31 | BW56: 12 | BX56: 0 | BY56: 0 | BZ56: 0 | CA56: 0 | CB56: 0 | CC56: 0 | CD56: 0 | CE56: 0 | CF56: 0 | CG56: 0 | CH56: 0 | CI56: 0 | CJ56: 0 | CK56: 0 | CL56: 0 | CM56: 0 | CN56: 0 | CO56: 0 | CP56: 0 | CQ56: 0 | CR56: 0 | CS56: 0 | CT56: 0 | CU56: 0 | CV56: 0 | CW56: 0 | CX56: 0
A57: 34 | E57: =DATE(YEAR(基本情報!$C$9)-1,MONTH(基本情報!$C$9),DAY(基本情報!$C$9))+1 -> 2014-04-01 | I57: 旧定額法 | J57: 旧定率法 | P57: 0 | R57: 0 | S57: 0 | T57: 1 | V57: =IF(ISERROR(VLOOKUP(C57,資産処分計画!$D$14:$G$38,4,FALSE)),"",VLOOKUP(C57,資産処分計画!$D$14:$G$38,4,FALSE)) ->  | W57: 0 | X57: 0 | Y57: 0 | Z57: =損益計画１!M$8 -> 2015-03-31 | AA57: 12 | AB57: 0 | AC57: 0 | AD57: 0 | AE57: 0 | AF57: 0 | AG57: 0 | AH57: 0 | AI57: 0 | AJ57: 0 | AK57: 0 | AL57: =損益計画１!O$8 -> 2016-03-31 | AM57: 12 | AN57: 0 | AO57: 0 | AP57: 0 | AQ57: 0 | AR57: 0 | AS57: 0 | AT57: 0 | AU57: 0 | AV57: 0 | AW57: 0 | AX57: =損益計画１!Q$8 -> 2017-03-31 | AY57: 12 | AZ57: 0 | BA57: 0 | BB57: 0 | BC57: 0 | BD57: 0 | BE57: 0 | BF57: 0 | BG57: 0 | BH57: 0 | BI57: 0 | BJ57: =損益計画１!S$8 -> 2018-03-31 | BK57: 12 | BL57: 0 | BM57: 0 | BN57: 0 | BO57: 0 | BP57: 0 | BQ57: 0 | BR57: 0 | BS57: 0 | BT57: 0 | BU57: 0 | BV57: =損益計画１!U$8 -> 2019-03-31 | BW57: 12 | BX57: 0 | BY57: 0 | BZ57: 0 | CA57: 0 | CB57: 0 | CC57: 0 | CD57: 0 | CE57: 0 | CF57: 0 | CG57: 0 | CH57: 0 | CI57: 0 | CJ57: 0 | CK57: 0 | CL57: 0 | CM57: 0 | CN57: 0 | CO57: 0 | CP57: 0 | CQ57: 0 | CR57: 0 | CS57: 0 | CT57: 0 | CU57: 0 | CV57: 0 | CW57: 0 | CX57: 0
A58: 35 | E58: =DATE(YEAR(基本情報!$C$9)-1,MONTH(基本情報!$C$9),DAY(基本情報!$C$9))+1 -> 2014-04-01 | I58: 旧定額法 | J58: 旧定率法 | P58: 0 | R58: 0 | S58: 0 | T58: 1 | V58: =IF(ISERROR(VLOOKUP(C58,資産処分計画!$D$14:$G$38,4,FALSE)),"",VLOOKUP(C58,資産処分計画!$D$14:$G$38,4,FALSE)) ->  | W58: 0 | X58: 0 | Y58: 0 | Z58: =損益計画１!M$8 -> 2015-03-31 | AA58: 12 | AB58: 0 | AC58: 0 | AD58: 0 | AE58: 0 | AF58: 0 | AG58: 0 | AH58: 0 | AI58: 0 | AJ58: 0 | AK58: 0 | AL58: =損益計画１!O$8 -> 2016-03-31 | AM58: 12 | AN58: 0 | AO58: 0 | AP58: 0 | AQ58: 0 | AR58: 0 | AS58: 0 | AT58: 0 | AU58: 0 | AV58: 0 | AW58: 0 | AX58: =損益計画１!Q$8 -> 2017-03-31 | AY58: 12 | AZ58: 0 | BA58: 0 | BB58: 0 | BC58: 0 | BD58: 0 | BE58: 0 | BF58: 0 | BG58: 0 | BH58: 0 | BI58: 0 | BJ58: =損益計画１!S$8 -> 2018-03-31 | BK58: 12 | BL58: 0 | BM58: 0 | BN58: 0 | BO58: 0 | BP58: 0 | BQ58: 0 | BR58: 0 | BS58: 0 | BT58: 0 | BU58: 0 | BV58: =損益計画１!U$8 -> 2019-03-31 | BW58: 12 | BX58: 0 | BY58: 0 | BZ58: 0 | CA58: 0 | CB58: 0 | CC58: 0 | CD58: 0 | CE58: 0 | CF58: 0 | CG58: 0 | CH58: 0 | CI58: 0 | CJ58: 0 | CK58: 0 | CL58: 0 | CM58: 0 | CN58: 0 | CO58: 0 | CP58: 0 | CQ58: 0 | CR58: 0 | CS58: 0 | CT58: 0 | CU58: 0 | CV58: 0 | CW58: 0 | CX58: 0
A59: 36 | E59: =DATE(YEAR(基本情報!$C$9)-1,MONTH(基本情報!$C$9),DAY(基本情報!$C$9))+1 -> 2014-04-01 | I59: 旧定額法 | J59: 旧定率法 | P59: 0 | R59: 0 | S59: 0 | T59: 1 | V59: =IF(ISERROR(VLOOKUP(C59,資産処分計画!$D$14:$G$38,4,FALSE)),"",VLOOKUP(C59,資産処分計画!$D$14:$G$38,4,FALSE)) ->  | W59: 0 | X59: 0 | Y59: 0 | Z59: =損益計画１!M$8 -> 2015-03-31 | AA59: 12 | AB59: 0 | AC59: 0 | AD59: 0 | AE59: 0 | AF59: 0 | AG59: 0 | AH59: 0 | AI59: 0 | AJ59: 0 | AK59: 0 | AL59: =損益計画１!O$8 -> 2016-03-31 | AM59: 12 | AN59: 0 | AO59: 0 | AP59: 0 | AQ59: 0 | AR59: 0 | AS59: 0 | AT59: 0 | AU59: 0 | AV59: 0 | AW59: 0 | AX59: =損益計画１!Q$8 -> 2017-03-31 | AY59: 12 | AZ59: 0 | BA59: 0 | BB59: 0 | BC59: 0 | BD59: 0 | BE59: 0 | BF59: 0 | BG59: 0 | BH59: 0 | BI59: 0 | BJ59: =損益計画１!S$8 -> 2018-03-31 | BK59: 12 | BL59: 0 | BM59: 0 | BN59: 0 | BO59: 0 | BP59: 0 | BQ59: 0 | BR59: 0 | BS59: 0 | BT59: 0 | BU59: 0 | BV59: =損益計画１!U$8 -> 2019-03-31 | BW59: 12 | BX59: 0 | BY59: 0 | BZ59: 0 | CA59: 0 | CB59: 0 | CC59: 0 | CD59: 0 | CE59: 0 | CF59: 0 | CG59: 0 | CH59: 0 | CI59: 0 | CJ59: 0 | CK59: 0 | CL59: 0 | CM59: 0 | CN59: 0 | CO59: 0 | CP59: 0 | CQ59: 0 | CR59: 0 | CS59: 0 | CT59: 0 | CU59: 0 | CV59: 0 | CW59: 0 | CX59: 0
A60: 37 | E60: =DATE(YEAR(基本情報!$C$9)-1,MONTH(基本情報!$C$9),DAY(基本情報!$C$9))+1 -> 2014-04-01 | I60: 旧定額法 | J60: 旧定率法 | P60: 0 | R60: 0 | S60: 0 | T60: 1 | V60: =IF(ISERROR(VLOOKUP(C60,資産処分計画!$D$14:$G$38,4,FALSE)),"",VLOOKUP(C60,資産処分計画!$D$14:$G$38,4,FALSE)) ->  | W60: 0 | X60: 0 | Y60: 0 | Z60: =損益計画１!M$8 -> 2015-03-31 | AA60: 12 | AB60: 0 | AC60: 0 | AD60: 0 | AE60: 0 | AF60: 0 | AG60: 0 | AH60: 0 | AI60: 0 | AJ60: 0 | AK60: 0 | AL60: =損益計画１!O$8 -> 2016-03-31 | AM60: 12 | AN60: 0 | AO60: 0 | AP60: 0 | AQ60: 0 | AR60: 0 | AS60: 0 | AT60: 0 | AU60: 0 | AV60: 0 | AW60: 0 | AX60: =損益計画１!Q$8 -> 2017-03-31 | AY60: 12 | AZ60: 0 | BA60: 0 | BB60: 0 | BC60: 0 | BD60: 0 | BE60: 0 | BF60: 0 | BG60: 0 | BH60: 0 | BI60: 0 | BJ60: =損益計画１!S$8 -> 2018-03-31 | BK60: 12 | BL60: 0 | BM60: 0 | BN60: 0 | BO60: 0 | BP60: 0 | BQ60: 0 | BR60: 0 | BS60: 0 | BT60: 0 | BU60: 0 | BV60: =損益計画１!U$8 -> 2019-03-31 | BW60: 12 | BX60: 0 | BY60: 0 | BZ60: 0 | CA60: 0 | CB60: 0 | CC60: 0 | CD60: 0 | CE60: 0 | CF60: 0 | CG60: 0 | CH60: 0 | CI60: 0 | CJ60: 0 | CK60: 0 | CL60: 0 | CM60: 0 | CN60: 0 | CO60: 0 | CP60: 0 | CQ60: 0 | CR60: 0 | CS60: 0 | CT60: 0 | CU60: 0 | CV60: 0 | CW60: 0 | CX60: 0
A61: 38 | E61: =DATE(YEAR(基本情報!$C$9)-1,MONTH(基本情報!$C$9),DAY(基本情報!$C$9))+1 -> 2014-04-01 | I61: 旧定額法 | J61: 旧定率法 | P61: 0 | R61: 0 | S61: 0 | T61: 1 | V61: =IF(ISERROR(VLOOKUP(C61,資産処分計画!$D$14:$G$38,4,FALSE)),"",VLOOKUP(C61,資産処分計画!$D$14:$G$38,4,FALSE)) ->  | W61: 0 | X61: 0 | Y61: 0 | Z61: =損益計画１!M$8 -> 2015-03-31 | AA61: 12 | AB61: 0 | AC61: 0 | AD61: 0 | AE61: 0 | AF61: 0 | AG61: 0 | AH61: 0 | AI61: 0 | AJ61: 0 | AK61: 0 | AL61: =損益計画１!O$8 -> 2016-03-31 | AM61: 12 | AN61: 0 | AO61: 0 | AP61: 0 | AQ61: 0 | AR61: 0 | AS61: 0 | AT61: 0 | AU61: 0 | AV61: 0 | AW61: 0 | AX61: =損益計画１!Q$8 -> 2017-03-31 | AY61: 12 | AZ61: 0 | BA61: 0 | BB61: 0 | BC61: 0 | BD61: 0 | BE61: 0 | BF61: 0 | BG61: 0 | BH61: 0 | BI61: 0 | BJ61: =損益計画１!S$8 -> 2018-03-31 | BK61: 12 | BL61: 0 | BM61: 0 | BN61: 0 | BO61: 0 | BP61: 0 | BQ61: 0 | BR61: 0 | BS61: 0 | BT61: 0 | BU61: 0 | BV61: =損益計画１!U$8 -> 2019-03-31 | BW61: 12 | BX61: 0 | BY61: 0 | BZ61: 0 | CA61: 0 | CB61: 0 | CC61: 0 | CD61: 0 | CE61: 0 | CF61: 0 | CG61: 0 | CH61: 0 | CI61: 0 | CJ61: 0 | CK61: 0 | CL61: 0 | CM61: 0 | CN61: 0 | CO61: 0 | CP61: 0 | CQ61: 0 | CR61: 0 | CS61: 0 | CT61: 0 | CU61: 0 | CV61: 0 | CW61: 0 | CX61: 0
A62: 39 | E62: =DATE(YEAR(基本情報!$C$9)-1,MONTH(基本情報!$C$9),DAY(基本情報!$C$9))+1 -> 2014-04-01 | I62: 旧定額法 | J62: 旧定率法 | P62: 0 | R62: 0 | S62: 0 | T62: 1 | V62: =IF(ISERROR(VLOOKUP(C62,資産処分計画!$D$14:$G$38,4,FALSE)),"",VLOOKUP(C62,資産処分計画!$D$14:$G$38,4,FALSE)) ->  | W62: 0 | X62: 0 | Y62: 0 | Z62: =損益計画１!M$8 -> 2015-03-31 | AA62: 12 | AB62: 0 | AC62: 0 | AD62: 0 | AE62: 0 | AF62: 0 | AG62: 0 | AH62: 0 | AI62: 0 | AJ62: 0 | AK62: 0 | AL62: =損益計画１!O$8 -> 2016-03-31 | AM62: 12 | AN62: 0 | AO62: 0 | AP62: 0 | AQ62: 0 | AR62: 0 | AS62: 0 | AT62: 0 | AU62: 0 | AV62: 0 | AW62: 0 | AX62: =損益計画１!Q$8 -> 2017-03-31 | AY62: 12 | AZ62: 0 | BA62: 0 | BB62: 0 | BC62: 0 | BD62: 0 | BE62: 0 | BF62: 0 | BG62: 0 | BH62: 0 | BI62: 0 | BJ62: =損益計画１!S$8 -> 2018-03-31 | BK62: 12 | BL62: 0 | BM62: 0 | BN62: 0 | BO62: 0 | BP62: 0 | BQ62: 0 | BR62: 0 | BS62: 0 | BT62: 0 | BU62: 0 | BV62: =損益計画１!U$8 -> 2019-03-31 | BW62: 12 | BX62: 0 | BY62: 0 | BZ62: 0 | CA62: 0 | CB62: 0 | CC62: 0 | CD62: 0 | CE62: 0 | CF62: 0 | CG62: 0 | CH62: 0 | CI62: 0 | CJ62: 0 | CK62: 0 | CL62: 0 | CM62: 0 | CN62: 0 | CO62: 0 | CP62: 0 | CQ62: 0 | CR62: 0 | CS62: 0 | CT62: 0 | CU62: 0 | CV62: 0 | CW62: 0 | CX62: 0
A63: 40 | E63: =DATE(YEAR(基本情報!$C$9)-1,MONTH(基本情報!$C$9),DAY(基本情報!$C$9))+1 -> 2014-04-01 | I63: 旧定額法 | J63: 旧定率法 | P63: 0 | R63: 0 | S63: 0 | T63: 1 | V63: =IF(ISERROR(VLOOKUP(C63,資産処分計画!$D$14:$G$38,4,FALSE)),"",VLOOKUP(C63,資産処分計画!$D$14:$G$38,4,FALSE)) ->  | W63: 0 | X63: 0 | Y63: 0 | Z63: =損益計画１!M$8 -> 2015-03-31 | AA63: 12 | AB63: 0 | AC63: 0 | AD63: 0 | AE63: 0 | AF63: 0 | AG63: 0 | AH63: 0 | AI63: 0 | AJ63: 0 | AK63: 0 | AL63: =損益計画１!O$8 -> 2016-03-31 | AM63: 12 | AN63: 0 | AO63: 0 | AP63: 0 | AQ63: 0 | AR63: 0 | AS63: 0 | AT63: 0 | AU63: 0 | AV63: 0 | AW63: 0 | AX63: =損益計画１!Q$8 -> 2017-03-31 | AY63: 12 | AZ63: 0 | BA63: 0 | BB63: 0 | BC63: 0 | BD63: 0 | BE63: 0 | BF63: 0 | BG63: 0 | BH63: 0 | BI63: 0 | BJ63: =損益計画１!S$8 -> 2018-03-31 | BK63: 12 | BL63: 0 | BM63: 0 | BN63: 0 | BO63: 0 | BP63: 0 | BQ63: 0 | BR63: 0 | BS63: 0 | BT63: 0 | BU63: 0 | BV63: =損益計画１!U$8 -> 2019-03-31 | BW63: 12 | BX63: 0 | BY63: 0 | BZ63: 0 | CA63: 0 | CB63: 0 | CC63: 0 | CD63: 0 | CE63: 0 | CF63: 0 | CG63: 0 | CH63: 0 | CI63: 0 | CJ63: 0 | CK63: 0 | CL63: 0 | CM63: 0 | CN63: 0 | CO63: 0 | CP63: 0 | CQ63: 0 | CR63: 0 | CS63: 0 | CT63: 0 | CU63: 0 | CV63: 0 | CW63: 0 | CX63: 0
A64: 41 | E64: =DATE(YEAR(基本情報!$C$9)-1,MONTH(基本情報!$C$9),DAY(基本情報!$C$9))+1 -> 2014-04-01 | I64: 旧定額法 | J64: 旧定率法 | P64: 0 | R64: 0 | S64: 0 | T64: 1 | V64: =IF(ISERROR(VLOOKUP(C64,資産処分計画!$D$14:$G$38,4,FALSE)),"",VLOOKUP(C64,資産処分計画!$D$14:$G$38,4,FALSE)) ->  | W64: 0 | X64: 0 | Y64: 0 | Z64: =損益計画１!M$8 -> 2015-03-31 | AA64: 12 | AB64: 0 | AC64: 0 | AD64: 0 | AE64: 0 | AF64: 0 | AG64: 0 | AH64: 0 | AI64: 0 | AJ64: 0 | AK64: 0 | AL64: =損益計画１!O$8 -> 2016-03-31 | AM64: 12 | AN64: 0 | AO64: 0 | AP64: 0 | AQ64: 0 | AR64: 0 | AS64: 0 | AT64: 0 | AU64: 0 | AV64: 0 | AW64: 0 | AX64: =損益計画１!Q$8 -> 2017-03-31 | AY64: 12 | AZ64: 0 | BA64: 0 | BB64: 0 | BC64: 0 | BD64: 0 | BE64: 0 | BF64: 0 | BG64: 0 | BH64: 0 | BI64: 0 | BJ64: =損益計画１!S$8 -> 2018-03-31 | BK64: 12 | BL64: 0 | BM64: 0 | BN64: 0 | BO64: 0 | BP64: 0 | BQ64: 0 | BR64: 0 | BS64: 0 | BT64: 0 | BU64: 0 | BV64: =損益計画１!U$8 -> 2019-03-31 | BW64: 12 | BX64: 0 | BY64: 0 | BZ64: 0 | CA64: 0 | CB64: 0 | CC64: 0 | CD64: 0 | CE64: 0 | CF64: 0 | CG64: 0 | CH64: 0 | CI64: 0 | CJ64: 0 | CK64: 0 | CL64: 0 | CM64: 0 | CN64: 0 | CO64: 0 | CP64: 0 | CQ64: 0 | CR64: 0 | CS64: 0 | CT64: 0 | CU64: 0 | CV64: 0 | CW64: 0 | CX64: 0
A65: 42 | E65: =DATE(YEAR(基本情報!$C$9)-1,MONTH(基本情報!$C$9),DAY(基本情報!$C$9))+1 -> 2014-04-01 | I65: 旧定額法 | J65: 旧定率法 | P65: 0 | R65: 0 | S65: 0 | T65: 1 | V65: =IF(ISERROR(VLOOKUP(C65,資産処分計画!$D$14:$G$38,4,FALSE)),"",VLOOKUP(C65,資産処分計画!$D$14:$G$38,4,FALSE)) ->  | W65: 0 | X65: 0 | Y65: 0 | Z65: =損益計画１!M$8 -> 2015-03-31 | AA65: 12 | AB65: 0 | AC65: 0 | AD65: 0 | AE65: 0 | AF65: 0 | AG65: 0 | AH65: 0 | AI65: 0 | AJ65: 0 | AK65: 0 | AL65: =損益計画１!O$8 -> 2016-03-31 | AM65: 12 | AN65: 0 | AO65: 0 | AP65: 0 | AQ65: 0 | AR65: 0 | AS65: 0 | AT65: 0 | AU65: 0 | AV65: 0 | AW65: 0 | AX65: =損益計画１!Q$8 -> 2017-03-31 | AY65: 12 | AZ65: 0 | BA65: 0 | BB65: 0 | BC65: 0 | BD65: 0 | BE65: 0 | BF65: 0 | BG65: 0 | BH65: 0 | BI65: 0 | BJ65: =損益計画１!S$8 -> 2018-03-31 | BK65: 12 | BL65: 0 | BM65: 0 | BN65: 0 | BO65: 0 | BP65: 0 | BQ65: 0 | BR65: 0 | BS65: 0 | BT65: 0 | BU65: 0 | BV65: =損益計画１!U$8 -> 2019-03-31 | BW65: 12 | BX65: 0 | BY65: 0 | BZ65: 0 | CA65: 0 | CB65: 0 | CC65: 0 | CD65: 0 | CE65: 0 | CF65: 0 | CG65: 0 | CH65: 0 | CI65: 0 | CJ65: 0 | CK65: 0 | CL65: 0 | CM65: 0 | CN65: 0 | CO65: 0 | CP65: 0 | CQ65: 0 | CR65: 0 | CS65: 0 | CT65: 0 | CU65: 0 | CV65: 0 | CW65: 0 | CX65: 0
A66: 43 | E66: =DATE(YEAR(基本情報!$C$9)-1,MONTH(基本情報!$C$9),DAY(基本情報!$C$9))+1 -> 2014-04-01 | I66: 旧定額法 | J66: 旧定率法 | P66: 0 | R66: 0 | S66: 0 | T66: 1 | V66: =IF(ISERROR(VLOOKUP(C66,資産処分計画!$D$14:$G$38,4,FALSE)),"",VLOOKUP(C66,資産処分計画!$D$14:$G$38,4,FALSE)) ->  | W66: 0 | X66: 0 | Y66: 0 | Z66: =損益計画１!M$8 -> 2015-03-31 | AA66: 12 | AB66: 0 | AC66: 0 | AD66: 0 | AE66: 0 | AF66: 0 | AG66: 0 | AH66: 0 | AI66: 0 | AJ66: 0 | AK66: 0 | AL66: =損益計画１!O$8 -> 2016-03-31 | AM66: 12 | AN66: 0 | AO66: 0 | AP66: 0 | AQ66: 0 | AR66: 0 | AS66: 0 | AT66: 0 | AU66: 0 | AV66: 0 | AW66: 0 | AX66: =損益計画１!Q$8 -> 2017-03-31 | AY66: 12 | AZ66: 0 | BA66: 0 | BB66: 0 | BC66: 0 | BD66: 0 | BE66: 0 | BF66: 0 | BG66: 0 | BH66: 0 | BI66: 0 | BJ66: =損益計画１!S$8 -> 2018-03-31 | BK66: 12 | BL66: 0 | BM66: 0 | BN66: 0 | BO66: 0 | BP66: 0 | BQ66: 0 | BR66: 0 | BS66: 0 | BT66: 0 | BU66: 0 | BV66: =損益計画１!U$8 -> 2019-03-31 | BW66: 12 | BX66: 0 | BY66: 0 | BZ66: 0 | CA66: 0 | CB66: 0 | CC66: 0 | CD66: 0 | CE66: 0 | CF66: 0 | CG66: 0 | CH66: 0 | CI66: 0 | CJ66: 0 | CK66: 0 | CL66: 0 | CM66: 0 | CN66: 0 | CO66: 0 | CP66: 0 | CQ66: 0 | CR66: 0 | CS66: 0 | CT66: 0 | CU66: 0 | CV66: 0 | CW66: 0 | CX66: 0
A67: 44 | E67: =DATE(YEAR(基本情報!$C$9)-1,MONTH(基本情報!$C$9),DAY(基本情報!$C$9))+1 -> 2014-04-01 | I67: 旧定額法 | J67: 旧定率法 | P67: 0 | R67: 0 | S67: 0 | T67: 1 | V67: =IF(ISERROR(VLOOKUP(C67,資産処分計画!$D$14:$G$38,4,FALSE)),"",VLOOKUP(C67,資産処分計画!$D$14:$G$38,4,FALSE)) ->  | W67: 0 | X67: 0 | Y67: 0 | Z67: =損益計画１!M$8 -> 2015-03-31 | AA67: 12 | AB67: 0 | AC67: 0 | AD67: 0 | AE67: 0 | AF67: 0 | AG67: 0 | AH67: 0 | AI67: 0 | AJ67: 0 | AK67: 0 | AL67: =損益計画１!O$8 -> 2016-03-31 | AM67: 12 | AN67: 0 | AO67: 0 | AP67: 0 | AQ67: 0 | AR67: 0 | AS67: 0 | AT67: 0 | AU67: 0 | AV67: 0 | AW67: 0 | AX67: =損益計画１!Q$8 -> 2017-03-31 | AY67: 12 | AZ67: 0 | BA67: 0 | BB67: 0 | BC67: 0 | BD67: 0 | BE67: 0 | BF67: 0 | BG67: 0 | BH67: 0 | BI67: 0 | BJ67: =損益計画１!S$8 -> 2018-03-31 | BK67: 12 | BL67: 0 | BM67: 0 | BN67: 0 | BO67: 0 | BP67: 0 | BQ67: 0 | BR67: 0 | BS67: 0 | BT67: 0 | BU67: 0 | BV67: =損益計画１!U$8 -> 2019-03-31 | BW67: 12 | BX67: 0 | BY67: 0 | BZ67: 0 | CA67: 0 | CB67: 0 | CC67: 0 | CD67: 0 | CE67: 0 | CF67: 0 | CG67: 0 | CH67: 0 | CI67: 0 | CJ67: 0 | CK67: 0 | CL67: 0 | CM67: 0 | CN67: 0 | CO67: 0 | CP67: 0 | CQ67: 0 | CR67: 0 | CS67: 0 | CT67: 0 | CU67: 0 | CV67: 0 | CW67: 0 | CX67: 0
A68: 45 | E68: =DATE(YEAR(基本情報!$C$9)-1,MONTH(基本情報!$C$9),DAY(基本情報!$C$9))+1 -> 2014-04-01 | I68: 旧定額法 | J68: 旧定率法 | P68: 0 | R68: 0 | S68: 0 | T68: 1 | V68: =IF(ISERROR(VLOOKUP(C68,資産処分計画!$D$14:$G$38,4,FALSE)),"",VLOOKUP(C68,資産処分計画!$D$14:$G$38,4,FALSE)) ->  | W68: 0 | X68: 0 | Y68: 0 | Z68: =損益計画１!M$8 -> 2015-03-31 | AA68: 12 | AB68: 0 | AC68: 0 | AD68: 0 | AE68: 0 | AF68: 0 | AG68: 0 | AH68: 0 | AI68: 0 | AJ68: 0 | AK68: 0 | AL68: =損益計画１!O$8 -> 2016-03-31 | AM68: 12 | AN68: 0 | AO68: 0 | AP68: 0 | AQ68: 0 | AR68: 0 | AS68: 0 | AT68: 0 | AU68: 0 | AV68: 0 | AW68: 0 | AX68: =損益計画１!Q$8 -> 2017-03-31 | AY68: 12 | AZ68: 0 | BA68: 0 | BB68: 0 | BC68: 0 | BD68: 0 | BE68: 0 | BF68: 0 | BG68: 0 | BH68: 0 | BI68: 0 | BJ68: =損益計画１!S$8 -> 2018-03-31 | BK68: 12 | BL68: 0 | BM68: 0 | BN68: 0 | BO68: 0 | BP68: 0 | BQ68: 0 | BR68: 0 | BS68: 0 | BT68: 0 | BU68: 0 | BV68: =損益計画１!U$8 -> 2019-03-31 | BW68: 12 | BX68: 0 | BY68: 0 | BZ68: 0 | CA68: 0 | CB68: 0 | CC68: 0 | CD68: 0 | CE68: 0 | CF68: 0 | CG68: 0 | CH68: 0 | CI68: 0 | CJ68: 0 | CK68: 0 | CL68: 0 | CM68: 0 | CN68: 0 | CO68: 0 | CP68: 0 | CQ68: 0 | CR68: 0 | CS68: 0 | CT68: 0 | CU68: 0 | CV68: 0 | CW68: 0 | CX68: 0
A69: 46 | E69: =DATE(YEAR(基本情報!$C$9)-1,MONTH(基本情報!$C$9),DAY(基本情報!$C$9))+1 -> 2014-04-01 | I69: 旧定額法 | J69: 旧定率法 | P69: 0 | R69: 0 | S69: 0 | T69: 1 | V69: =IF(ISERROR(VLOOKUP(C69,資産処分計画!$D$14:$G$38,4,FALSE)),"",VLOOKUP(C69,資産処分計画!$D$14:$G$38,4,FALSE)) ->  | W69: 0 | X69: 0 | Y69: 0 | Z69: =損益計画１!M$8 -> 2015-03-31 | AA69: 12 | AB69: 0 | AC69: 0 | AD69: 0 | AE69: 0 | AF69: 0 | AG69: 0 | AH69: 0 | AI69: 0 | AJ69: 0 | AK69: 0 | AL69: =損益計画１!O$8 -> 2016-03-31 | AM69: 12 | AN69: 0 | AO69: 0 | AP69: 0 | AQ69: 0 | AR69: 0 | AS69: 0 | AT69: 0 | AU69: 0 | AV69: 0 | AW69: 0 | AX69: =損益計画１!Q$8 -> 2017-03-31 | AY69: 12 | AZ69: 0 | BA69: 0 | BB69: 0 | BC69: 0 | BD69: 0 | BE69: 0 | BF69: 0 | BG69: 0 | BH69: 0 | BI69: 0 | BJ69: =損益計画１!S$8 -> 2018-03-31 | BK69: 12 | BL69: 0 | BM69: 0 | BN69: 0 | BO69: 0 | BP69: 0 | BQ69: 0 | BR69: 0 | BS69: 0 | BT69: 0 | BU69: 0 | BV69: =損益計画１!U$8 -> 2019-03-31 | BW69: 12 | BX69: 0 | BY69: 0 | BZ69: 0 | CA69: 0 | CB69: 0 | CC69: 0 | CD69: 0 | CE69: 0 | CF69: 0 | CG69: 0 | CH69: 0 | CI69: 0 | CJ69: 0 | CK69: 0 | CL69: 0 | CM69: 0 | CN69: 0 | CO69: 0 | CP69: 0 | CQ69: 0 | CR69: 0 | CS69: 0 | CT69: 0 | CU69: 0 | CV69: 0 | CW69: 0 | CX69: 0
A70: 47 | E70: =DATE(YEAR(基本情報!$C$9)-1,MONTH(基本情報!$C$9),DAY(基本情報!$C$9))+1 -> 2014-04-01 | I70: 旧定額法 | J70: 旧定率法 | P70: 0 | R70: 0 | S70: 0 | T70: 1 | V70: =IF(ISERROR(VLOOKUP(C70,資産処分計画!$D$14:$G$38,4,FALSE)),"",VLOOKUP(C70,資産処分計画!$D$14:$G$38,4,FALSE)) ->  | W70: 0 | X70: 0 | Y70: 0 | Z70: =損益計画１!M$8 -> 2015-03-31 | AA70: 12 | AB70: 0 | AC70: 0 | AD70: 0 | AE70: 0 | AF70: 0 | AG70: 0 | AH70: 0 | AI70: 0 | AJ70: 0 | AK70: 0 | AL70: =損益計画１!O$8 -> 2016-03-31 | AM70: 12 | AN70: 0 | AO70: 0 | AP70: 0 | AQ70: 0 | AR70: 0 | AS70: 0 | AT70: 0 | AU70: 0 | AV70: 0 | AW70: 0 | AX70: =損益計画１!Q$8 -> 2017-03-31 | AY70: 12 | AZ70: 0 | BA70: 0 | BB70: 0 | BC70: 0 | BD70: 0 | BE70: 0 | BF70: 0 | BG70: 0 | BH70: 0 | BI70: 0 | BJ70: =損益計画１!S$8 -> 2018-03-31 | BK70: 12 | BL70: 0 | BM70: 0 | BN70: 0 | BO70: 0 | BP70: 0 | BQ70: 0 | BR70: 0 | BS70: 0 | BT70: 0 | BU70: 0 | BV70: =損益計画１!U$8 -> 2019-03-31 | BW70: 12 | BX70: 0 | BY70: 0 | BZ70: 0 | CA70: 0 | CB70: 0 | CC70: 0 | CD70: 0 | CE70: 0 | CF70: 0 | CG70: 0 | CH70: 0 | CI70: 0 | CJ70: 0 | CK70: 0 | CL70: 0 | CM70: 0 | CN70: 0 | CO70: 0 | CP70: 0 | CQ70: 0 | CR70: 0 | CS70: 0 | CT70: 0 | CU70: 0 | CV70: 0 | CW70: 0 | CX70: 0
A71: 48 | E71: =DATE(YEAR(基本情報!$C$9)-1,MONTH(基本情報!$C$9),DAY(基本情報!$C$9))+1 -> 2014-04-01 | I71: 旧定額法 | J71: 旧定率法 | P71: 0 | R71: 0 | S71: 0 | T71: 1 | V71: =IF(ISERROR(VLOOKUP(C71,資産処分計画!$D$14:$G$38,4,FALSE)),"",VLOOKUP(C71,資産処分計画!$D$14:$G$38,4,FALSE)) ->  | W71: 0 | X71: 0 | Y71: 0 | Z71: =損益計画１!M$8 -> 2015-03-31 | AA71: 12 | AB71: 0 | AC71: 0 | AD71: 0 | AE71: 0 | AF71: 0 | AG71: 0 | AH71: 0 | AI71: 0 | AJ71: 0 | AK71: 0 | AL71: =損益計画１!O$8 -> 2016-03-31 | AM71: 12 | AN71: 0 | AO71: 0 | AP71: 0 | AQ71: 0 | AR71: 0 | AS71: 0 | AT71: 0 | AU71: 0 | AV71: 0 | AW71: 0 | AX71: =損益計画１!Q$8 -> 2017-03-31 | AY71: 12 | AZ71: 0 | BA71: 0 | BB71: 0 | BC71: 0 | BD71: 0 | BE71: 0 | BF71: 0 | BG71: 0 | BH71: 0 | BI71: 0 | BJ71: =損益計画１!S$8 -> 2018-03-31 | BK71: 12 | BL71: 0 | BM71: 0 | BN71: 0 | BO71: 0 | BP71: 0 | BQ71: 0 | BR71: 0 | BS71: 0 | BT71: 0 | BU71: 0 | BV71: =損益計画１!U$8 -> 2019-03-31 | BW71: 12 | BX71: 0 | BY71: 0 | BZ71: 0 | CA71: 0 | CB71: 0 | CC71: 0 | CD71: 0 | CE71: 0 | CF71: 0 | CG71: 0 | CH71: 0 | CI71: 0 | CJ71: 0 | CK71: 0 | CL71: 0 | CM71: 0 | CN71: 0 | CO71: 0 | CP71: 0 | CQ71: 0 | CR71: 0 | CS71: 0 | CT71: 0 | CU71: 0 | CV71: 0 | CW71: 0 | CX71: 0
A72: 49 | E72: =DATE(YEAR(基本情報!$C$9)-1,MONTH(基本情報!$C$9),DAY(基本情報!$C$9))+1 -> 2014-04-01 | I72: 旧定額法 | J72: 旧定率法 | P72: 0 | R72: 0 | S72: 0 | T72: 1 | V72: =IF(ISERROR(VLOOKUP(C72,資産処分計画!$D$14:$G$38,4,FALSE)),"",VLOOKUP(C72,資産処分計画!$D$14:$G$38,4,FALSE)) ->  | W72: 0 | X72: 0 | Y72: 0 | Z72: =損益計画１!M$8 -> 2015-03-31 | AA72: 12 | AB72: 0 | AC72: 0 | AD72: 0 | AE72: 0 | AF72: 0 | AG72: 0 | AH72: 0 | AI72: 0 | AJ72: 0 | AK72: 0 | AL72: =損益計画１!O$8 -> 2016-03-31 | AM72: 12 | AN72: 0 | AO72: 0 | AP72: 0 | AQ72: 0 | AR72: 0 | AS72: 0 | AT72: 0 | AU72: 0 | AV72: 0 | AW72: 0 | AX72: =損益計画１!Q$8 -> 2017-03-31 | AY72: 12 | AZ72: 0 | BA72: 0 | BB72: 0 | BC72: 0 | BD72: 0 | BE72: 0 | BF72: 0 | BG72: 0 | BH72: 0 | BI72: 0 | BJ72: =損益計画１!S$8 -> 2018-03-31 | BK72: 12 | BL72: 0 | BM72: 0 | BN72: 0 | BO72: 0 | BP72: 0 | BQ72: 0 | BR72: 0 | BS72: 0 | BT72: 0 | BU72: 0 | BV72: =損益計画１!U$8 -> 2019-03-31 | BW72: 12 | BX72: 0 | BY72: 0 | BZ72: 0 | CA72: 0 | CB72: 0 | CC72: 0 | CD72: 0 | CE72: 0 | CF72: 0 | CG72: 0 | CH72: 0 | CI72: 0 | CJ72: 0 | CK72: 0 | CL72: 0 | CM72: 0 | CN72: 0 | CO72: 0 | CP72: 0 | CQ72: 0 | CR72: 0 | CS72: 0 | CT72: 0 | CU72: 0 | CV72: 0 | CW72: 0 | CX72: 0
A73: 50 | E73: =DATE(YEAR(基本情報!$C$9)-1,MONTH(基本情報!$C$9),DAY(基本情報!$C$9))+1 -> 2014-04-01 | I73: 旧定額法 | J73: 旧定率法 | P73: 0 | R73: 0 | S73: 0 | T73: 1 | V73: =IF(ISERROR(VLOOKUP(C73,資産処分計画!$D$14:$G$38,4,FALSE)),"",VLOOKUP(C73,資産処分計画!$D$14:$G$38,4,FALSE)) ->  | W73: 0 | X73: 0 | Y73: 0 | Z73: =損益計画１!M$8 -> 2015-03-31 | AA73: 12 | AB73: 0 | AC73: 0 | AD73: 0 | AE73: 0 | AF73: 0 | AG73: 0 | AH73: 0 | AI73: 0 | AJ73: 0 | AK73: 0 | AL73: =損益計画１!O$8 -> 2016-03-31 | AM73: 12 | AN73: 0 | AO73: 0 | AP73: 0 | AQ73: 0 | AR73: 0 | AS73: 0 | AT73: 0 | AU73: 0 | AV73: 0 | AW73: 0 | AX73: =損益計画１!Q$8 -> 2017-03-31 | AY73: 12 | AZ73: 0 | BA73: 0 | BB73: 0 | BC73: 0 | BD73: 0 | BE73: 0 | BF73: 0 | BG73: 0 | BH73: 0 | BI73: 0 | BJ73: =損益計画１!S$8 -> 2018-03-31 | BK73: 12 | BL73: 0 | BM73: 0 | BN73: 0 | BO73: 0 | BP73: 0 | BQ73: 0 | BR73: 0 | BS73: 0 | BT73: 0 | BU73: 0 | BV73: =損益計画１!U$8 -> 2019-03-31 | BW73: 12 | BX73: 0 | BY73: 0 | BZ73: 0 | CA73: 0 | CB73: 0 | CC73: 0 | CD73: 0 | CE73: 0 | CF73: 0 | CG73: 0 | CH73: 0 | CI73: 0 | CJ73: 0 | CK73: 0 | CL73: 0 | CM73: 0 | CN73: 0 | CO73: 0 | CP73: 0 | CQ73: 0 | CR73: 0 | CS73: 0 | CT73: 0 | CU73: 0 | CV73: 0 | CW73: 0 | CX73: 0
A74: 合計 | O74: =SUM(O24:O73) -> 53040000 | P74: =SUM(P24:P73) -> 36840000 | Q74: =SUM(Q24:Q73) -> 19040649 | W74: =SUM(W24:W73) -> 12354799 | X74: 12085850 | Y74: 30154150 | AI74: 6357137 | AJ74: 5503713 | AK74: 31336287 | AU74: 6797456 | AV74: 4106256 | AW74: 32933744 | BG74: 2418749 | BH74: 1687507 | BI74: 35352493 | BS74: 2418750 | BT74: 4668757 | BU74: 37771243 | CE74: =SUM(CE24:CE73) -> 5400000 | CF74: =SUM(CF24:CF73) -> 0 | CG74: 5400000 | CH74: 0 | CI74: 5400000 | CJ74: =SUM(CJ24:CJ73) -> 12354799 | CK74: =SUM(CK24:CK73) -> 6357137 | CL74: =SUM(CL24:CL73) -> 6797456 | CM74: =SUM(CM24:CM73) -> 2418749 | CN74: =SUM(CN24:CN73) -> 2418750 | CO74: =SUM(CO24:CO73) -> 137990 | CP74: =SUM(CP24:CP73) -> 68995 | CQ74: 68995 | CR74: 0 | CS74: 0 | CT74: =SUM(CT24:CT73) -> 12216809 | CU74: =SUM(CU24:CU73) -> 6288142 | CV74: 6728461 | CW74: 2418749 | CX74: 2418750
V77: 建物 | W77: =SUMIF($B$24:$BU$73,$V77,W$24:W$73) -> 0 | X77: =SUMIF($B$24:$BU$73,$V77,X$24:X$73) -> 0 | Y77: =SUMIF($B$24:$BU$73,$V77,Y$24:Y$73) -> 0 | AI77: =SUMIF($B$24:$BU$73,$V77,AI$24:AI$73) -> 0 | AJ77: =SUMIF($B$24:$BU$73,$V77,AJ$24:AJ$73) -> 0 | AK77: =SUMIF($B$24:$BU$73,$V77,AK$24:AK$73) -> 0 | AU77: =SUMIF($B$24:$BU$73,$V77,AU$24:AU$73) -> 0 | AV77: =SUMIF($B$24:$BU$73,$V77,AV$24:AV$73) -> 0 | AW77: =SUMIF($B$24:$BU$73,$V77,AW$24:AW$73) -> 0 | BG77: =SUMIF($B$24:$BU$73,$V77,BG$24:BG$73) -> 0 | BH77: =SUMIF($B$24:$BU$73,$V77,BH$24:BH$73) -> 0 | BI77: =SUMIF($B$24:$BU$73,$V77,BI$24:BI$73) -> 0 | BS77: =SUMIF($B$24:$BU$73,$V77,BS$24:BS$73) -> 0 | BT77: =SUMIF($B$24:$BU$73,$V77,BT$24:BT$73) -> 0 | BU77: =SUMIF($B$24:$BU$73,$V77,BU$24:BU$73) -> 0
V78: 附属設備 | W78: =SUMIF($B$24:$BU$73,$V78,W$24:W$73) -> 0 | X78: =SUMIF($B$24:$BU$73,$V78,X$24:X$73) -> 0 | Y78: 0 | AI78: =SUMIF($B$24:$BU$73,$V78,AI$24:AI$73) -> 0 | AJ78: =SUMIF($B$24:$BU$73,$V78,AJ$24:AJ$73) -> 0 | AK78: 0 | AU78: =SUMIF($B$24:$BU$73,$V78,AU$24:AU$73) -> 0 | AV78: =SUMIF($B$24:$BU$73,$V78,AV$24:AV$73) -> 0 | AW78: 0 | BG78: =SUMIF($B$24:$BU$73,$V78,BG$24:BG$73) -> 0 | BH78: =SUMIF($B$24:$BU$73,$V78,BH$24:BH$73) -> 0 | BI78: 0 | BS78: =SUMIF($B$24:$BU$73,$V78,BS$24:BS$73) -> 0 | BT78: =SUMIF($B$24:$BU$73,$V78,BT$24:BT$73) -> 0 | BU78: 0
V79: 構築物 | W79: 0 | X79: 0 | Y79: 0 | AI79: 0 | AJ79: 0 | AK79: 0 | AU79: 0 | AV79: 0 | AW79: 0 | BG79: 0 | BH79: 0 | BI79: 0 | BS79: 0 | BT79: 0 | BU79: 0
V80: 機械装置 | W80: 0 | X80: 0 | Y80: 0 | AI80: 0 | AJ80: 0 | AK80: 0 | AU80: 0 | AV80: 0 | AW80: 0 | BG80: 0 | BH80: 0 | BI80: 0 | BS80: 0 | BT80: 0 | BU80: 0
V81: 車両運搬具 | W81: 12216809 | X81: 11947859 | Y81: 29452141 | AI81: 6288142 | AJ81: 5434717 | AK81: 30565283 | AU81: 6728461 | AV81: 4106255 | AW81: 32093745 | BG81: 2418749 | BH81: 1687506 | BI81: 34512494 | BS81: 2418750 | BT81: 4668756 | BU81: 36931244
V82: 工具器具備品 | W82: 137990 | X82: 137991 | Y82: 702009 | AI82: 68995 | AJ82: 68996 | AK82: 771004 | AU82: 68995 | AV82: 1 | AW82: 839999 | BG82: 0 | BH82: 1 | BI82: 839999 | BS82: 0 | BT82: 1 | BU82: 839999
V83: ソフトウェア | W83: 0 | X83: 0 | Y83: 0 | AI83: 0 | AJ83: 0 | AK83: 0 | AU83: 0 | AV83: 0 | AW83: 0 | BG83: 0 | BH83: 0 | BI83: 0 | BS83: 0 | BT83: 0 | BU83: 0
V84: その他無形固定資産 | W84: 0 | X84: 0 | Y84: 0 | AI84: 0 | AJ84: 0 | AK84: 0 | AU84: 0 | AV84: 0 | AW84: 0 | BG84: 0 | BH84: 0 | BI84: 0 | BS84: 0 | BT84: 0 | BU84: 0
A90: ２、既存・更新・新規投資予定の長期前払費用の情報入力
A92: 資産 番号 | B92: 資産の種類 | C92: 資 産 の 名 称 等 | D92: 取得（予定） 年月 | F92: 販管費 | G92: 耐用 年数 | H92: 償却方法 | O92: 取得(予定) 価額 | Q92: 期首簿価 （既存資産のみ） | U92: 取得期 | V92: 除却期 | W92: 計画第一期 償却費 | X92: 計画第一期 簿価 | Y92: 計画第一期 償却累計額 | Z92: 計画第一期 期末日 | AA92: 償却月数 | AC92: 償却費 | AI92: 計画第二期 償却費 | AJ92: 計画第二期 簿価 | AK92: 計画第二期 償却累計額 | AL92: 計画第三期 期末日 | AM92: 償却月数 | AO92: 償却費 | AU92: 計画第三期 償却費 | AV92: 計画第三期 簿価 | AW92: 計画第三期 償却累計額 | AX92: 計画第三期 期末日 | AY92: 償却月数 | BA92: 償却費 | BG92: 計画第四期 償却費 | BH92: 計画第四期 簿価 | BI92: 計画第四期 償却累計額 | BJ92: 計画第四期 期末日 | BK92: 償却月数 | BM92: 償却費 | BS92: 計画第五期 償却費 | BT92: 計画第五期 簿価 | BU92: 計画第五期 償却累計額 | BV92: 計画第五期 期末日 | BW92: 償却月数 | BY92: 償却費 | CE92: 第一期 取得額 | CF92: 第二期 取得額 | CG92: 第三期 取得額 | CH92: 第四期 取得額 | CI92: 第五期 取得額 | CJ92: 第一期 償却費 | CK92: 第二期 償却費 | CL92: 第三期 償却費 | CM92: 第四期 償却費 | CN92: 第五期 償却費
W93: =損益計画１!M$8 -> 2015-03-31 | AI93: =損益計画１!O$8 -> 2016-03-31 | AU93: =損益計画１!Q$8 -> 2017-03-31 | BG93: =損益計画１!S$8 -> 2018-03-31 | BS93: =損益計画１!U$8 -> 2019-03-31
A94: 1 | B94: 長期前払費用 | E94: =DATE(YEAR(基本情報!$C$9)-1,MONTH(基本情報!$C$9),DAY(基本情報!$C$9))+1 -> 2014-04-01 | H94: 均等償却 | L94: =IF(ISERROR(VLOOKUP(G94,INDIRECT(H94),3,FALSE)),"",VLOOKUP(G94,INDIRECT(H94),3,FALSE)) ->  | P94: =IF(U94="前期以前",O94,0) -> 0 | U94: =IF($D94="","",IF($D94<$E94,"前期以前",IF($D94<=W$23,1,IF($D94<=AI$23,2,IF($D94<=AU$23,3,IF($D94<=BG$23,4,5)))))) ->  | V94: =IF(ISERROR(VLOOKUP(C94,資産処分計画!$D$51:$G$56,4,FALSE)),"",VLOOKUP(C94,資産処分計画!$D$51:$G$56,4,FALSE)) ->  | W94: =IF(U94="前期以前",MIN(Q94,AC94),AC94) -> 0 | X94: =IF($U94="前期以前",$O94-Y94,IF($U94<=1,$O94-Y94,0)) -> 0 | Y94: =IF(U94="前期以前",O94-Q94+W94,W94) -> 0 | Z94: =損益計画１!M$8 -> 2015-03-31 | AA94: =IF(Z94-$D94<0,0,IF(DATEDIF($D94,Z94,"M")+1>12,12,DATEDIF($D94,Z94,"M")+1)) -> 12 | AC94: =IF(ISERROR(ROUNDDOWN($O94*AA94/($G94*12),0)),0,ROUNDDOWN($O94*AA94/($G94*12),0)) -> 0 | AI94: =IF(V94<2,0,IF($U94="前期以前",MIN(X94,AO94),IF($U94<=1,MIN(X94,AO94),AO94))) -> 0 | AJ94: =IF($V94<=2,0,IF($U94="前期以前",$O94-AK94,IF($U94<=2,$O94-AK94,0))) -> 0 | AK94: =IF($V94<=2,0,IF($U94="前期以前",$O94-X94+AI94,IF($U94<=1,$O94-X94+AI94,AI94))) -> 0 | AL94: =損益計画１!O$8 -> 2016-03-31 | AM94: =IF(AL94-$D94<0,0,IF(DATEDIF($D94,AL94,"M")+1>12,12,DATEDIF($D94,AL94,"M")+1)) -> 12 | AO94: =IF(ISERROR(ROUNDDOWN($O94*AM94/($G94*12),0)),0,ROUNDDOWN($O94*AM94/($G94*12),0)) -> 0 | AU94: =IF(V94<3,0,IF($U94="前期以前",MIN(AJ94,BA94),IF($U94<=1,MIN(AJ94,BA94),BA94))) -> 0 | AV94: =IF($V94<=3,0,IF($U94="前期以前",$O94-AW94,IF($U94<=2,$O94-AW94,0))) -> 0 | AW94: =IF($V94<=3,0,IF($U94="前期以前",$O94-AJ94+AU94,IF($U94<=2,$O94-AJ94+AU94,AU94))) -> 0 | AX94: =損益計画１!Q$8 -> 2017-03-31 | AY94: =IF(AX94-$D94<0,0,IF(DATEDIF($D94,AX94,"M")+1>12,12,DATEDIF($D94,AX94,"M")+1)) -> 12 | BA94: =IF(ISERROR(ROUNDDOWN($O94*AY94/($G94*12),0)),0,ROUNDDOWN($O94*AY94/($G94*12),0)) -> 0 | BG94: =IF(V94<4,0,IF($U94="前期以前",MIN(AV94,BM94),IF($U94<=1,MIN(AV94,BM94),BM94))) -> 0 | BH94: =IF($V94<=4,0,IF($U94="前期以前",$O94-BI94,IF($U94<=2,$O94-BI94,0))) -> 0 | BI94: =IF($V94<=4,0,IF($U94="前期以前",$O94-AV94+BG94,IF($U94<=3,$O94-AV94+BG94,BG94))) -> 0 | BJ94: =損益計画１!S$8 -> 2018-03-31 | BK94: =IF(BJ94-$D94<0,0,IF(DATEDIF($D94,BJ94,"M")+1>12,12,DATEDIF($D94,BJ94,"M")+1)) -> 12 | BM94: =IF(ISERROR(ROUNDDOWN($O94*BK94/($G94*12),0)),0,ROUNDDOWN($O94*BK94/($G94*12),0)) -> 0 | BS94: =IF(V94<5,0,IF($U94="前期以前",MIN(BH94,BY94),IF($U94<=1,MIN(BH94,BY94),BY94))) -> 0 | BT94: =IF($V94<=5,0,IF($U94="前期以前",$O94-BU94,IF($U94<=2,$O94-BU94,0))) -> 0 | BU94: =IF($V94<=5,0,IF($U94="前期以前",$O94-BH94+BS94,IF($U94<=4,$O94-BH94+BS94,BS94))) -> 0 | BV94: =損益計画１!U$8 -> 2019-03-31 | BW94: =IF(BV94-$D94<0,0,IF(DATEDIF($D94,BV94,"M")+1>12,12,DATEDIF($D94,BV94,"M")+1)) -> 12 | BY94: =IF(ISERROR(ROUNDDOWN($O94*BW94/($G94*12),0)),0,ROUNDDOWN($O94*BW94/($G94*12),0)) -> 0 | CE94: =IF($U94=1,$O94,0) -> 0 | CF94: =IF($U94=2,$O94,0) -> 0 | CG94: =IF($U94=3,$O94,0) -> 0 | CH94: =IF($U94=4,$O94,0) -> 0 | CI94: =IF($U94=5,$O94,0) -> 0 | CJ94: =W94 -> 0 | CK94: =AI94 -> 0 | CL94: =AU94 -> 0 | CM94: =BG94 -> 0 | CN94: =BS94 -> 0
A95: 2 | B95: 長期前払費用 | E95: =DATE(YEAR(基本情報!$C$9)-1,MONTH(基本情報!$C$9),DAY(基本情報!$C$9))+1 -> 2014-04-01 | H95: 均等償却 | P95: 0 | V95: =IF(ISERROR(VLOOKUP(C95,資産処分計画!$D$51:$G$56,4,FALSE)),"",VLOOKUP(C95,資産処分計画!$D$51:$G$56,4,FALSE)) ->  | W95: =IF(U95="前期以前",MIN(Q95,AC95),AC95) -> 0 | X95: 0 | Y95: 0 | Z95: =損益計画１!M$8 -> 2015-03-31 | AA95: 12 | AC95: =IF(ISERROR(ROUNDDOWN($O95*AA95/($G95*12),0)),0,ROUNDDOWN($O95*AA95/($G95*12),0)) -> 0 | AI95: =IF(V95<2,0,IF($U95="前期以前",MIN(X95,AO95),IF($U95<=1,MIN(X95,AO95),AO95))) -> 0 | AJ95: =IF($V95<=2,0,IF($U95="前期以前",$O95-AK95,IF($U95<=2,$O95-AK95,0))) -> 0 | AK95: =IF($V95<=2,0,IF($U95="前期以前",$O95-X95+AI95,IF($U95<=1,$O95-X95+AI95,AI95))) -> 0 | AL95: =損益計画１!O$8 -> 2016-03-31 | AM95: 12 | AO95: =IF(ISERROR(ROUNDDOWN($O95*AM95/($G95*12),0)),0,ROUNDDOWN($O95*AM95/($G95*12),0)) -> 0 | AU95: =IF(V95<3,0,IF($U95="前期以前",MIN(AJ95,BA95),IF($U95<=1,MIN(AJ95,BA95),BA95))) -> 0 | AV95: =IF($V95<=3,0,IF($U95="前期以前",$O95-AW95,IF($U95<=2,$O95-AW95,0))) -> 0 | AW95: =IF($V95<=3,0,IF($U95="前期以前",$O95-AJ95+AU95,IF($U95<=2,$O95-AJ95+AU95,AU95))) -> 0 | AX95: =損益計画１!Q$8 -> 2017-03-31 | AY95: 12 | BA95: =IF(ISERROR(ROUNDDOWN($O95*AY95/($G95*12),0)),0,ROUNDDOWN($O95*AY95/($G95*12),0)) -> 0 | BG95: =IF(V95<4,0,IF($U95="前期以前",MIN(AV95,BM95),IF($U95<=1,MIN(AV95,BM95),BM95))) -> 0 | BH95: =IF($V95<=4,0,IF($U95="前期以前",$O95-BI95,IF($U95<=2,$O95-BI95,0))) -> 0 | BI95: =IF($V95<=4,0,IF($U95="前期以前",$O95-AV95+BG95,IF($U95<=3,$O95-AV95+BG95,BG95))) -> 0 | BJ95: =損益計画１!S$8 -> 2018-03-31 | BK95: 12 | BM95: =IF(ISERROR(ROUNDDOWN($O95*BK95/($G95*12),0)),0,ROUNDDOWN($O95*BK95/($G95*12),0)) -> 0 | BS95: =IF(V95<5,0,IF($U95="前期以前",MIN(BH95,BY95),IF($U95<=1,MIN(BH95,BY95),BY95))) -> 0 | BT95: =IF($V95<=5,0,IF($U95="前期以前",$O95-BU95,IF($U95<=2,$O95-BU95,0))) -> 0 | BU95: =IF($V95<=5,0,IF($U95="前期以前",$O95-BH95+BS95,IF($U95<=4,$O95-BH95+BS95,BS95))) -> 0 | BV95: =損益計画１!U$8 -> 2019-03-31 | BW95: 12 | BY95: =IF(ISERROR(ROUNDDOWN($O95*BW95/($G95*12),0)),0,ROUNDDOWN($O95*BW95/($G95*12),0)) -> 0 | CE95: 0 | CF95: 0 | CG95: 0 | CH95: 0 | CI95: 0 | CJ95: 0 | CK95: 0 | CL95: 0 | CM95: 0 | CN95: 0
A96: 3 | B96: 長期前払費用 | E96: =DATE(YEAR(基本情報!$C$9)-1,MONTH(基本情報!$C$9),DAY(基本情報!$C$9))+1 -> 2014-04-01 | H96: 均等償却 | P96: 0 | V96: =IF(ISERROR(VLOOKUP(C96,資産処分計画!$D$51:$G$56,4,FALSE)),"",VLOOKUP(C96,資産処分計画!$D$51:$G$56,4,FALSE)) ->  | W96: 0 | X96: 0 | Y96: 0 | Z96: =損益計画１!M$8 -> 2015-03-31 | AA96: 12 | AC96: 0 | AI96: 0 | AJ96: 0 | AK96: 0 | AL96: =損益計画１!O$8 -> 2016-03-31 | AM96: 12 | AO96: 0 | AU96: 0 | AV96: 0 | AW96: 0 | AX96: =損益計画１!Q$8 -> 2017-03-31 | AY96: 12 | BA96: 0 | BG96: 0 | BH96: 0 | BI96: 0 | BJ96: =損益計画１!S$8 -> 2018-03-31 | BK96: 12 | BM96: 0 | BS96: 0 | BT96: 0 | BU96: 0 | BV96: =損益計画１!U$8 -> 2019-03-31 | BW96: 12 | BY96: 0 | CE96: 0 | CF96: 0 | CG96: 0 | CH96: 0 | CI96: 0 | CJ96: 0 | CK96: 0 | CL96: 0 | CM96: 0 | CN96: 0
A97: 4 | B97: 長期前払費用 | E97: =DATE(YEAR(基本情報!$C$9)-1,MONTH(基本情報!$C$9),DAY(基本情報!$C$9))+1 -> 2014-04-01 | H97: 均等償却 | P97: 0 | V97: =IF(ISERROR(VLOOKUP(C97,資産処分計画!$D$51:$G$56,4,FALSE)),"",VLOOKUP(C97,資産処分計画!$D$51:$G$56,4,FALSE)) ->  | W97: 0 | X97: 0 | Y97: 0 | Z97: =損益計画１!M$8 -> 2015-03-31 | AA97: 12 | AC97: 0 | AI97: 0 | AJ97: 0 | AK97: 0 | AL97: =損益計画１!O$8 -> 2016-03-31 | AM97: 12 | AO97: 0 | AU97: 0 | AV97: 0 | AW97: 0 | AX97: =損益計画１!Q$8 -> 2017-03-31 | AY97: 12 | BA97: 0 | BG97: 0 | BH97: 0 | BI97: 0 | BJ97: =損益計画１!S$8 -> 2018-03-31 | BK97: 12 | BM97: 0 | BS97: 0 | BT97: 0 | BU97: 0 | BV97: =損益計画１!U$8 -> 2019-03-31 | BW97: 12 | BY97: 0 | CE97: 0 | CF97: 0 | CG97: 0 | CH97: 0 | CI97: 0 | CJ97: 0 | CK97: 0 | CL97: 0 | CM97: 0 | CN97: 0
A98: 5 | B98: 長期前払費用 | E98: =DATE(YEAR(基本情報!$C$9)-1,MONTH(基本情報!$C$9),DAY(基本情報!$C$9))+1 -> 2014-04-01 | H98: 均等償却 | P98: 0 | V98: =IF(ISERROR(VLOOKUP(C98,資産処分計画!$D$51:$G$56,4,FALSE)),"",VLOOKUP(C98,資産処分計画!$D$51:$G$56,4,FALSE)) ->  | W98: 0 | X98: 0 | Y98: 0 | Z98: =損益計画１!M$8 -> 2015-03-31 | AA98: 12 | AC98: 0 | AI98: 0 | AJ98: 0 | AK98: 0 | AL98: =損益計画１!O$8 -> 2016-03-31 | AM98: 12 | AO98: 0 | AU98: 0 | AV98: 0 | AW98: 0 | AX98: =損益計画１!Q$8 -> 2017-03-31 | AY98: 12 | BA98: 0 | BG98: 0 | BH98: 0 | BI98: 0 | BJ98: =損益計画１!S$8 -> 2018-03-31 | BK98: 12 | BM98: 0 | BS98: 0 | BT98: 0 | BU98: 0 | BV98: =損益計画１!U$8 -> 2019-03-31 | BW98: 12 | BY98: 0 | CE98: 0 | CF98: 0 | CG98: 0 | CH98: 0 | CI98: 0 | CJ98: 0 | CK98: 0 | CL98: 0 | CM98: 0 | CN98: 0
A99: 6 | B99: 長期前払費用 | E99: =DATE(YEAR(基本情報!$C$9)-1,MONTH(基本情報!$C$9),DAY(基本情報!$C$9))+1 -> 2014-04-01 | H99: 均等償却 | P99: 0 | V99: =IF(ISERROR(VLOOKUP(C99,資産処分計画!$D$51:$G$56,4,FALSE)),"",VLOOKUP(C99,資産処分計画!$D$51:$G$56,4,FALSE)) ->  | W99: 0 | X99: 0 | Y99: 0 | Z99: =損益計画１!M$8 -> 2015-03-31 | AA99: 12 | AC99: 0 | AI99: 0 | AJ99: 0 | AK99: 0 | AL99: =損益計画１!O$8 -> 2016-03-31 | AM99: 12 | AO99: 0 | AU99: 0 | AV99: 0 | AW99: 0 | AX99: =損益計画１!Q$8 -> 2017-03-31 | AY99: 12 | BA99: 0 | BG99: 0 | BH99: 0 | BI99: 0 | BJ99: =損益計画１!S$8 -> 2018-03-31 | BK99: 12 | BM99: 0 | BS99: 0 | BT99: 0 | BU99: 0 | BV99: =損益計画１!U$8 -> 2019-03-31 | BW99: 12 | BY99: 0 | CE99: 0 | CF99: 0 | CG99: 0 | CH99: 0 | CI99: 0 | CJ99: 0 | CK99: 0 | CL99: 0 | CM99: 0 | CN99: 0
A100: 7 | B100: 長期前払費用 | E100: =DATE(YEAR(基本情報!$C$9)-1,MONTH(基本情報!$C$9),DAY(基本情報!$C$9))+1 -> 2014-04-01 | H100: 均等償却 | P100: 0 | V100: =IF(ISERROR(VLOOKUP(C100,資産処分計画!$D$51:$G$56,4,FALSE)),"",VLOOKUP(C100,資産処分計画!$D$51:$G$56,4,FALSE)) ->  | W100: 0 | X100: 0 | Y100: 0 | Z100: =損益計画１!M$8 -> 2015-03-31 | AA100: 12 | AC100: 0 | AI100: 0 | AJ100: 0 | AK100: 0 | AL100: =損益計画１!O$8 -> 2016-03-31 | AM100: 12 | AO100: 0 | AU100: 0 | AV100: 0 | AW100: 0 | AX100: =損益計画１!Q$8 -> 2017-03-31 | AY100: 12 | BA100: 0 | BG100: 0 | BH100: 0 | BI100: 0 | BJ100: =損益計画１!S$8 -> 2018-03-31 | BK100: 12 | BM100: 0 | BS100: 0 | BT100: 0 | BU100: 0 | BV100: =損益計画１!U$8 -> 2019-03-31 | BW100: 12 | BY100: 0 | CE100: 0 | CF100: 0 | CG100: 0 | CH100: 0 | CI100: 0 | CJ100: 0 | CK100: 0 | CL100: 0 | CM100: 0 | CN100: 0
A101: 8 | B101: 長期前払費用 | E101: =DATE(YEAR(基本情報!$C$9)-1,MONTH(基本情報!$C$9),DAY(基本情報!$C$9))+1 -> 2014-04-01 | H101: 均等償却 | P101: 0 | V101: =IF(ISERROR(VLOOKUP(C101,資産処分計画!$D$51:$G$56,4,FALSE)),"",VLOOKUP(C101,資産処分計画!$D$51:$G$56,4,FALSE)) ->  | W101: 0 | X101: 0 | Y101: 0 | Z101: =損益計画１!M$8 -> 2015-03-31 | AA101: 12 | AC101: 0 | AI101: 0 | AJ101: 0 | AK101: 0 | AL101: =損益計画１!O$8 -> 2016-03-31 | AM101: 12 | AO101: 0 | AU101: 0 | AV101: 0 | AW101: 0 | AX101: =損益計画１!Q$8 -> 2017-03-31 | AY101: 12 | BA101: 0 | BG101: 0 | BH101: 0 | BI101: 0 | BJ101: =損益計画１!S$8 -> 2018-03-31 | BK101: 12 | BM101: 0 | BS101: 0 | BT101: 0 | BU101: 0 | BV101: =損益計画１!U$8 -> 2019-03-31 | BW101: 12 | BY101: 0 | CE101: 0 | CF101: 0 | CG101: 0 | CH101: 0 | CI101: 0 | CJ101: 0 | CK101: 0 | CL101: 0 | CM101: 0 | CN101: 0
A102: 9 | B102: 長期前払費用 | E102: =DATE(YEAR(基本情報!$C$9)-1,MONTH(基本情報!$C$9),DAY(基本情報!$C$9))+1 -> 2014-04-01 | H102: 均等償却 | P102: 0 | V102: =IF(ISERROR(VLOOKUP(C102,資産処分計画!$D$51:$G$56,4,FALSE)),"",VLOOKUP(C102,資産処分計画!$D$51:$G$56,4,FALSE)) ->  | W102: 0 | X102: 0 | Y102: 0 | Z102: =損益計画１!M$8 -> 2015-03-31 | AA102: 12 | AC102: 0 | AI102: 0 | AJ102: 0 | AK102: 0 | AL102: =損益計画１!O$8 -> 2016-03-31 | AM102: 12 | AO102: 0 | AU102: 0 | AV102: 0 | AW102: 0 | AX102: =損益計画１!Q$8 -> 2017-03-31 | AY102: 12 | BA102: 0 | BG102: 0 | BH102: 0 | BI102: 0 | BJ102: =損益計画１!S$8 -> 2018-03-31 | BK102: 12 | BM102: 0 | BS102: 0 | BT102: 0 | BU102: 0 | BV102: =損益計画１!U$8 -> 2019-03-31 | BW102: 12 | BY102: 0 | CE102: 0 | CF102: 0 | CG102: 0 | CH102: 0 | CI102: 0 | CJ102: 0 | CK102: 0 | CL102: 0 | CM102: 0 | CN102: 0
A103: 10 | B103: 長期前払費用 | E103: =DATE(YEAR(基本情報!$C$9)-1,MONTH(基本情報!$C$9),DAY(基本情報!$C$9))+1 -> 2014-04-01 | H103: 均等償却 | P103: 0 | V103: =IF(ISERROR(VLOOKUP(C103,資産処分計画!$D$51:$G$56,4,FALSE)),"",VLOOKUP(C103,資産処分計画!$D$51:$G$56,4,FALSE)) ->  | W103: 0 | X103: 0 | Y103: 0 | Z103: =損益計画１!M$8 -> 2015-03-31 | AA103: 12 | AC103: 0 | AI103: 0 | AJ103: 0 | AK103: 0 | AL103: =損益計画１!O$8 -> 2016-03-31 | AM103: 12 | AO103: 0 | AU103: 0 | AV103: 0 | AW103: 0 | AX103: =損益計画１!Q$8 -> 2017-03-31 | AY103: 12 | BA103: 0 | BG103: 0 | BH103: 0 | BI103: 0 | BJ103: =損益計画１!S$8 -> 2018-03-31 | BK103: 12 | BM103: 0 | BS103: 0 | BT103: 0 | BU103: 0 | BV103: =損益計画１!U$8 -> 2019-03-31 | BW103: 12 | BY103: 0 | CE103: 0 | CF103: 0 | CG103: 0 | CH103: 0 | CI103: 0 | CJ103: 0 | CK103: 0 | CL103: 0 | CM103: 0 | CN103: 0
A104: 合計 | O104: =SUM(O94:O103) -> 0 | Q104: =SUM(Q94:Q103) -> 0 | W104: =SUM(W94:W103) -> 0 | X104: =SUM(X94:X103) -> 0 | Y104: =SUM(Y94:Y103) -> 0 | AI104: =SUM(AI94:AI103) -> 0 | AJ104: =SUM(AJ94:AJ103) -> 0 | AK104: =SUM(AK94:AK103) -> 0 | AU104: =SUM(AU94:AU103) -> 0 | AV104: =SUM(AV94:AV103) -> 0 | AW104: =SUM(AW94:AW103) -> 0 | BG104: =SUM(BG94:BG103) -> 0 | BH104: =SUM(BH94:BH103) -> 0 | BI104: =SUM(BI94:BI103) -> 0 | BS104: =SUM(BS94:BS103) -> 0 | BT104: =SUM(BT94:BT103) -> 0 | BU104: =SUM(BU94:BU103) -> 0 | CE104: =SUM(CE94:CE103) -> 0 | CF104: =SUM(CF94:CF103) -> 0 | CG104: 0 | CH104: 0 | CI104: 0 | CJ104: =SUM(CJ94:CJ103) -> 0 | CK104: =SUM(CK94:CK103) -> 0 | CL104: =SUM(CL94:CL103) -> 0 | CM104: =SUM(CM94:CM103) -> 0 | CN104: =SUM(CN94:CN103) -> 0

Sheet 資産処分計画
B6: =基本情報!C7 -> 株式会社一木運送
C8: 減価償却費の計算方法 | E8: =投資・償却費計画!D7 -> 間接法
B10: １、処分予定の資産の簿価・時価を入力
D12: 資産名 | E12: 資産の種類 | G12: 処分時期 | I12: 直前簿価 | J12: 計画第１期 | K12: 計画第２期 | L12: 計画第３期 | M12: 計画第４期 | N12: 計画第５期
I13: =DATE(YEAR(基本情報!$C$9)-1,MONTH(基本情報!$C$9),DAY(基本情報!$C$9)) -> 2014-03-31 | J13: =DATE(YEAR(基本情報!$C$9),MONTH(基本情報!$C$9),DAY(基本情報!$C$9)) -> 2015-03-31 | K13: =DATE(YEAR(基本情報!$C$9)+1,MONTH(基本情報!$C$9),DAY(基本情報!$C$9)) -> 2016-03-31 | L13: =DATE(YEAR(基本情報!$C$9)+2,MONTH(基本情報!$C$9),DAY(基本情報!$C$9)) -> 2017-03-31 | M13: =DATE(YEAR(基本情報!$C$9)+3,MONTH(基本情報!$C$9),DAY(基本情報!$C$9)) -> 2018-03-31 | N13: =DATE(YEAR(基本情報!$C$9)+4,MONTH(基本情報!$C$9),DAY(基本情報!$C$9)) -> 2019-03-31
B14: 減価償却資産 | C14: 1 | D14: 阿野 デュトロ① | E14: =IF(ISERROR(INDEX(投資・償却費計画!B$24:B$73,MATCH(D14,投資・償却費計画!C$24:C$73,0),1)),"",INDEX(投資・償却費計画!B$24:B$73,MATCH(D14,投資・償却費計画!C$24:C$73,0),1)) -> 車両運搬具 | G14: 2 | H14: 取得価額 | I14: =IF(ISERROR(VLOOKUP(D14,投資・償却費計画!C:Q,14,FALSE)),0,VLOOKUP(D14,投資・償却費計画!C:Q,14,FALSE)) -> 5400000 | J14: =IF($D14="",0,IF($G14<>1,0,VLOOKUP($D14,投資・償却費計画!$C:$BU,13,FALSE))) -> 0 | K14: =IF($D14="",0,IF($G14<>2,0,VLOOKUP($D14,投資・償却費計画!$C:$BU,13,FALSE))) -> 5400000 | L14: =IF($D14="",0,IF($G14<>3,0,VLOOKUP($D14,投資・償却費計画!$C:$BU,13,FALSE))) -> 0 | M14: =IF($D14="",0,IF($G14<>4,0,VLOOKUP($D14,投資・償却費計画!$C:$BU,13,FALSE))) -> 0 | N14: =IF($D14="",0,IF($G14<>5,0,VLOOKUP($D14,投資・償却費計画!$C:$BU,13,FALSE))) -> 0
H15: 簿価 | J15: =J14-J18 -> 0 | K15: =K14-K18 -> 225000 | L15: 0 | M15: 0 | N15: 0
H16: 時価（売却額） | K16: 840000
H17: 処分損益 | J17: =J16-J15 -> 0 | K17: =K16-K15 -> 615000 | L17: =L16-L15 -> 0 | M17: =M16-M15 -> 0 | N17: =N16-N15 -> 0
H18: 減価償却累計額 | J18: =IF($D14="",0,IF($G14<>1,0,VLOOKUP($D14,投資・償却費計画!$C:$BU,13,FALSE)-VLOOKUP($D14,投資・償却費計画!$C:$BU,15,FALSE)-VLOOKUP($D14,投資・償却費計画!$C:$BU,21,FALSE))) -> 0 | K18: =IF($D14="",0,IF($G14<>2,0,VLOOKUP($D14,投資・償却費計画!$C:$BU,23,FALSE)+VLOOKUP($D14,投資・償却費計画!$C:$BU,33,FALSE))) -> 5175000 | L18: =IF($D14="",0,IF($G14<>3,0,VLOOKUP($D14,投資・償却費計画!$C:$BU,35,FALSE)+VLOOKUP($D14,投資・償却費計画!$C:$BU,45,FALSE))) -> 0 | M18: =IF($D14="",0,IF($G14<>4,0,VLOOKUP($D14,投資・償却費計画!$C:$BU,47,FALSE)+VLOOKUP($D14,投資・償却費計画!$C:$BU,57,FALSE))) -> 0 | N18: =IF($D14="",0,IF($G14<>5,0,VLOOKUP($D14,投資・償却費計画!$C:$BU,59,FALSE)+VLOOKUP($D14,投資・償却費計画!$C:$BU,69,FALSE))) -> 0
C19: 2 | D19: 四菱 キャンター② | E19: =IF(ISERROR(INDEX(投資・償却費計画!B$24:B$73,MATCH(D19,投資・償却費計画!C$24:C$73,0),1)),"",INDEX(投資・償却費計画!B$24:B$73,MATCH(D19,投資・償却費計画!C$24:C$73,0),1)) -> 車両運搬具 | G19: 3 | H19: 取得価額 | I19: =IF(ISERROR(VLOOKUP(D19,投資・償却費計画!C:Q,14,FALSE)),0,VLOOKUP(D19,投資・償却費計画!C:Q,14,FALSE)) -> 5200000 | J19: =IF($D19="",0,IF($G19<>1,0,VLOOKUP($D19,投資・償却費計画!$C:$BU,13,FALSE))) -> 0 | K19: =IF($D19="",0,IF($G19<>2,0,VLOOKUP($D19,投資・償却費計画!$C:$BU,13,FALSE))) -> 0 | L19: =IF($D19="",0,IF($G19<>3,0,VLOOKUP($D19,投資・償却費計画!$C:$BU,13,FALSE))) -> 5200000 | M19: =IF($D19="",0,IF($G19<>4,0,VLOOKUP($D19,投資・償却費計画!$C:$BU,13,FALSE))) -> 0 | N19: =IF($D19="",0,IF($G19<>5,0,VLOOKUP($D19,投資・償却費計画!$C:$BU,13,FALSE))) -> 0
H20: 簿価 | J20: =J19-J23 -> 0 | K20: =K19-K23 -> 0 | L20: 1 | M20: 0 | N20: 0
H21: 時価（売却額） | L21: 0
H22: 処分損益 | J22: =J21-J20 -> 0 | K22: =K21-K20 -> 0 | L22: =L21-L20 -> -1 | M22: =M21-M20 -> 0 | N22: =N21-N20 -> 0
H23: 減価償却累計額 | J23: =IF($D19="",0,IF($G19<>1,0,VLOOKUP($D19,投資・償却費計画!$C:$BU,13,FALSE)-VLOOKUP($D19,投資・償却費計画!$C:$BU,15,FALSE)-VLOOKUP($D19,投資・償却費計画!$C:$BU,21,FALSE))) -> 0 | K23: =IF($D19="",0,IF($G19<>2,0,VLOOKUP($D19,投資・償却費計画!$C:$BU,23,FALSE)+VLOOKUP($D19,投資・償却費計画!$C:$BU,33,FALSE))) -> 0 | L23: =IF($D19="",0,IF($G19<>3,0,VLOOKUP($D19,投資・償却費計画!$C:$BU,35,FALSE)+VLOOKUP($D19,投資・償却費計画!$C:$BU,45,FALSE))) -> 5199999 | M23: =IF($D19="",0,IF($G19<>4,0,VLOOKUP($D19,投資・償却費計画!$C:$BU,47,FALSE)+VLOOKUP($D19,投資・償却費計画!$C:$BU,57,FALSE))) -> 0 | N23: =IF($D19="",0,IF($G19<>5,0,VLOOKUP($D19,投資・償却費計画!$C:$BU,59,FALSE)+VLOOKUP($D19,投資・償却費計画!$C:$BU,69,FALSE))) -> 0
C24: 3 | E24: =IF(ISERROR(INDEX(投資・償却費計画!B$24:B$73,MATCH(D24,投資・償却費計画!C$24:C$73,0),1)),"",INDEX(投資・償却費計画!B$24:B$73,MATCH(D24,投資・償却費計画!C$24:C$73,0),1)) ->  | H24: 取得価額 | I24: =IF(ISERROR(VLOOKUP(D24,投資・償却費計画!C:Q,14,FALSE)),0,VLOOKUP(D24,投資・償却費計画!C:Q,14,FALSE)) -> 0 | J24: =IF($D24="",0,IF($G24<>1,0,VLOOKUP($D24,投資・償却費計画!$C:$BU,13,FALSE))) -> 0 | K24: =IF($D24="",0,IF($G24<>2,0,VLOOKUP($D24,投資・償却費計画!$C:$BU,13,FALSE))) -> 0 | L24: =IF($D24="",0,IF($G24<>3,0,VLOOKUP($D24,投資・償却費計画!$C:$BU,13,FALSE))) -> 0 | M24: =IF($D24="",0,IF($G24<>4,0,VLOOKUP($D24,投資・償却費計画!$C:$BU,13,FALSE))) -> 0 | N24: =IF($D24="",0,IF($G24<>5,0,VLOOKUP($D24,投資・償却費計画!$C:$BU,13,FALSE))) -> 0
H25: 簿価 | J25: =J24-J28 -> 0 | K25: =K24-K28 -> 0 | L25: 0 | M25: 0 | N25: 0
H26: 時価（売却額）
H27: 処分損益 | J27: =J26-J25 -> 0 | K27: =K26-K25 -> 0 | L27: =L26-L25 -> 0 | M27: =M26-M25 -> 0 | N27: =N26-N25 -> 0
H28: 減価償却累計額 | J28: =IF($D24="",0,IF($G24<>1,0,VLOOKUP($D24,投資・償却費計画!$C:$BU,13,FALSE)-VLOOKUP($D24,投資・償却費計画!$C:$BU,15,FALSE)-VLOOKUP($D24,投資・償却費計画!$C:$BU,21,FALSE))) -> 0 | K28: =IF($D24="",0,IF($G24<>2,0,VLOOKUP($D24,投資・償却費計画!$C:$BU,23,FALSE)+VLOOKUP($D24,投資・償却費計画!$C:$BU,33,FALSE))) -> 0 | L28: =IF($D24="",0,IF($G24<>3,0,VLOOKUP($D24,投資・償却費計画!$C:$BU,35,FALSE)+VLOOKUP($D24,投資・償却費計画!$C:$BU,45,FALSE))) -> 0 | M28: =IF($D24="",0,IF($G24<>4,0,VLOOKUP($D24,投資・償却費計画!$C:$BU,47,FALSE)+VLOOKUP($D24,投資・償却費計画!$C:$BU,57,FALSE))) -> 0 | N28: =IF($D24="",0,IF($G24<>5,0,VLOOKUP($D24,投資・償却費計画!$C:$BU,59,FALSE)+VLOOKUP($D24,投資・償却費計画!$C:$BU,69,FALSE))) -> 0
C29: 4 | E29: =IF(ISERROR(INDEX(投資・償却費計画!B$24:B$73,MATCH(D29,投資・償却費計画!C$24:C$73,0),1)),"",INDEX(投資・償却費計画!B$24:B$73,MATCH(D29,投資・償却費計画!C$24:C$73,0),1)) ->  | H29: 取得価額 | I29: =IF(ISERROR(VLOOKUP(D29,投資・償却費計画!C:Q,14,FALSE)),0,VLOOKUP(D29,投資・償却費計画!C:Q,14,FALSE)) -> 0 | J29: =IF($D29="",0,IF($G29<>1,0,VLOOKUP($D29,投資・償却費計画!$C:$BU,13,FALSE))) -> 0 | K29: =IF($D29="",0,IF($G29<>2,0,VLOOKUP($D29,投資・償却費計画!$C:$BU,13,FALSE))) -> 0 | L29: =IF($D29="",0,IF($G29<>3,0,VLOOKUP($D29,投資・償却費計画!$C:$BU,13,FALSE))) -> 0 | M29: =IF($D29="",0,IF($G29<>4,0,VLOOKUP($D29,投資・償却費計画!$C:$BU,13,FALSE))) -> 0 | N29: =IF($D29="",0,IF($G29<>5,0,VLOOKUP($D29,投資・償却費計画!$C:$BU,13,FALSE))) -> 0
H30: 簿価 | J30: =J29-J33 -> 0 | K30: =K29-K33 -> 0 | L30: 0 | M30: 0 | N30: 0
H31: 時価（売却額）
H32: 処分損益 | J32: =J31-J30 -> 0 | K32: =K31-K30 -> 0 | L32: =L31-L30 -> 0 | M32: =M31-M30 -> 0 | N32: =N31-N30 -> 0
H33: 減価償却累計額 | J33: =IF($D29="",0,IF($G29<>1,0,VLOOKUP($D29,投資・償却費計画!$C:$BU,13,FALSE)-VLOOKUP($D29,投資・償却費計画!$C:$BU,15,FALSE)-VLOOKUP($D29,投資・償却費計画!$C:$BU,21,FALSE))) -> 0 | K33: =IF($D29="",0,IF($G29<>2,0,VLOOKUP($D29,投資・償却費計画!$C:$BU,23,FALSE)+VLOOKUP($D29,投資・償却費計画!$C:$BU,33,FALSE))) -> 0 | L33: =IF($D29="",0,IF($G29<>3,0,VLOOKUP($D29,投資・償却費計画!$C:$BU,35,FALSE)+VLOOKUP($D29,投資・償却費計画!$C:$BU,45,FALSE))) -> 0 | M33: =IF($D29="",0,IF($G29<>4,0,VLOOKUP($D29,投資・償却費計画!$C:$BU,47,FALSE)+VLOOKUP($D29,投資・償却費計画!$C:$BU,57,FALSE))) -> 0 | N33: =IF($D29="",0,IF($G29<>5,0,VLOOKUP($D29,投資・償却費計画!$C:$BU,59,FALSE)+VLOOKUP($D29,投資・償却費計画!$C:$BU,69,FALSE))) -> 0
C34: 5 | E34: =IF(ISERROR(INDEX(投資・償却費計画!B$24:B$73,MATCH(D34,投資・償却費計画!C$24:C$73,0),1)),"",INDEX(投資・償却費計画!B$24:B$73,MATCH(D34,投資・償却費計画!C$24:C$73,0),1)) ->  | H34: 取得価額 | I34: =IF(ISERROR(VLOOKUP(D34,投資・償却費計画!C:Q,14,FALSE)),0,VLOOKUP(D34,投資・償却費計画!C:Q,14,FALSE)) -> 0 | J34: =IF($D34="",0,IF($G34<>1,0,VLOOKUP($D34,投資・償却費計画!$C:$BU,13,FALSE))) -> 0 | K34: =IF($D34="",0,IF($G34<>2,0,VLOOKUP($D34,投資・償却費計画!$C:$BU,13,FALSE))) -> 0 | L34: =IF($D34="",0,IF($G34<>3,0,VLOOKUP($D34,投資・償却費計画!$C:$BU,13,FALSE))) -> 0 | M34: =IF($D34="",0,IF($G34<>4,0,VLOOKUP($D34,投資・償却費計画!$C:$BU,13,FALSE))) -> 0 | N34: =IF($D34="",0,IF($G34<>5,0,VLOOKUP($D34,投資・償却費計画!$C:$BU,13,FALSE))) -> 0
H35: 簿価 | J35: =J34-J38 -> 0 | K35: =K34-K38 -> 0 | L35: 0 | M35: 0 | N35: 0
H36: 時価（売却額）
H37: 処分損益 | J37: =J36-J35 -> 0 | K37: =K36-K35 -> 0 | L37: =L36-L35 -> 0 | M37: =M36-M35 -> 0 | N37: =N36-N35 -> 0
H38: 減価償却累計額 | J38: =IF($D34="",0,IF($G34<>1,0,VLOOKUP($D34,投資・償却費計画!$C:$BU,13,FALSE)-VLOOKUP($D34,投資・償却費計画!$C:$BU,15,FALSE)-VLOOKUP($D34,投資・償却費計画!$C:$BU,21,FALSE))) -> 0 | K38: =IF($D34="",0,IF($G34<>2,0,VLOOKUP($D34,投資・償却費計画!$C:$BU,23,FALSE)+VLOOKUP($D34,投資・償却費計画!$C:$BU,33,FALSE))) -> 0 | L38: =IF($D34="",0,IF($G34<>3,0,VLOOKUP($D34,投資・償却費計画!$C:$BU,35,FALSE)+VLOOKUP($D34,投資・償却費計画!$C:$BU,45,FALSE))) -> 0 | M38: =IF($D34="",0,IF($G34<>4,0,VLOOKUP($D34,投資・償却費計画!$C:$BU,47,FALSE)+VLOOKUP($D34,投資・償却費計画!$C:$BU,57,FALSE))) -> 0 | N38: =IF($D34="",0,IF($G34<>5,0,VLOOKUP($D34,投資・償却費計画!$C:$BU,59,FALSE)+VLOOKUP($D34,投資・償却費計画!$C:$BU,69,FALSE))) -> 0
B39: 土地 | C39: 1 | E39: 土地 | H39: 簿価
H40: 時価（売却額）
H41: 処分損益 | J41: =J40-J39 -> 0 | K41: =K40-K39 -> 0 | L41: =L40-L39 -> 0 | M41: =M40-M39 -> 0 | N41: =N40-N39 -> 0
C42: 2 | E42: 土地 | H42: 簿価
H43: 時価（売却額）
H44: 処分損益 | J44: =J43-J42 -> 0 | K44: =K43-K42 -> 0 | L44: =L43-L42 -> 0 | M44: =M43-M42 -> 0 | N44: =N43-N42 -> 0
B45: 投資有価証券等 | C45: 1 | E45: 投資有価証券・出資金 | H45: 簿価
H46: 時価（売却額）
H47: 処分損益 | J47: =J46-J45 -> 0 | K47: =K46-K45 -> 0 | L47: =L46-L45 -> 0 | M47: =M46-M45 -> 0 | N47: =N46-N45 -> 0
C48: 2 | E48: 投資有価証券・出資金 | H48: 簿価
H49: 時価（売却額）
H50: 処分損益 | J50: =J49-J48 -> 0 | K50: =K49-K48 -> 0 | L50: =L49-L48 -> 0 | M50: =M49-M48 -> 0 | N50: =N49-N48 -> 0
B51: 長期前払費用 | C51: 1 | E51: 長期前払費用 | H51: 簿価 | J51: =IF($D51="",0,IF($G51<>1,0,VLOOKUP($D51,投資・償却費計画!$C:$BU,14,FALSE)-VLOOKUP($D51,投資・償却費計画!$C:$BU,20,FALSE))) -> 0 | K51: =IF($D51="",0,IF($G51<>2,0,VLOOKUP($D51,投資・償却費計画!$C:$BU,21,FALSE)-VLOOKUP($D51,投資・償却費計画!$C:$BU,32,FALSE))) -> 0 | L51: =IF($D51="",0,IF($G51<>3,0,VLOOKUP($D51,投資・償却費計画!$C:$BU,33,FALSE)-VLOOKUP($D51,投資・償却費計画!$C:$BU,44,FALSE))) -> 0 | M51: =IF($D51="",0,IF($G51<>4,0,VLOOKUP($D51,投資・償却費計画!$C:$BU,45,FALSE)-VLOOKUP($D51,投資・償却費計画!$C:$BU,56,FALSE))) -> 0 | N51: =IF($D51="",0,IF($G51<>5,0,VLOOKUP($D51,投資・償却費計画!$C:$BU,57,FALSE)-VLOOKUP($D51,投資・償却費計画!$C:$BU,68,FALSE))) -> 0
H52: 時価（売却額）
H53: 処分損益 | J53: =J52-J51 -> 0 | K53: =K52-K51 -> 0 | L53: =L52-L51 -> 0 | M53: =M52-M51 -> 0 | N53: =N52-N51 -> 0
C54: 2 | E54: 長期前払費用 | H54: 簿価 | J54: =IF($D54="",0,IF($G54<>1,0,VLOOKUP($D54,投資・償却費計画!$C:$BU,14,FALSE)-VLOOKUP($D54,投資・償却費計画!$C:$BU,20,FALSE))) -> 0 | K54: =IF($D54="",0,IF($G54<>2,0,VLOOKUP($D54,投資・償却費計画!$C:$BU,21,FALSE)-VLOOKUP($D54,投資・償却費計画!$C:$BU,32,FALSE))) -> 0 | L54: =IF($D54="",0,IF($G54<>3,0,VLOOKUP($D54,投資・償却費計画!$C:$BU,33,FALSE)-VLOOKUP($D54,投資・償却費計画!$C:$BU,44,FALSE))) -> 0 | M54: =IF($D54="",0,IF($G54<>4,0,VLOOKUP($D54,投資・償却費計画!$C:$BU,45,FALSE)-VLOOKUP($D54,投資・償却費計画!$C:$BU,56,FALSE))) -> 0 | N54: =IF($D54="",0,IF($G54<>5,0,VLOOKUP($D54,投資・償却費計画!$C:$BU,57,FALSE)-VLOOKUP($D54,投資・償却費計画!$C:$BU,68,FALSE))) -> 0
H55: 時価（売却額）
H56: 処分損益 | J56: =J55-J54 -> 0 | K56: =K55-K54 -> 0 | L56: =L55-L54 -> 0 | M56: =M55-M54 -> 0 | N56: =N55-N54 -> 0
D60: 資産名 | E60: 資産の種類 | I60: 直前簿価 | J60: 計画第１期 | K60: 計画第２期 | L60: 計画第３期 | M60: 計画第４期 | N60: 計画第５期
I61: =DATE(YEAR(基本情報!$C$9)-1,MONTH(基本情報!$C$9),DAY(基本情報!$C$9)) -> 2014-03-31 | J61: =DATE(YEAR(基本情報!$C$9),MONTH(基本情報!$C$9),DAY(基本情報!$C$9)) -> 2015-03-31 | K61: =DATE(YEAR(基本情報!$C$9)+1,MONTH(基本情報!$C$9),DAY(基本情報!$C$9)) -> 2016-03-31 | L61: =DATE(YEAR(基本情報!$C$9)+2,MONTH(基本情報!$C$9),DAY(基本情報!$C$9)) -> 2017-03-31 | M61: =DATE(YEAR(基本情報!$C$9)+3,MONTH(基本情報!$C$9),DAY(基本情報!$C$9)) -> 2018-03-31 | N61: =DATE(YEAR(基本情報!$C$9)+4,MONTH(基本情報!$C$9),DAY(基本情報!$C$9)) -> 2019-03-31
B62: 減価償却資産 | C62: 1 | E62: =E14 -> 車両運搬具 | H62: 取得価額 | I62: =E62&H62 -> 車両運搬具取得価額 | J62: =J14 -> 0 | K62: 5400000 | L62: 0 | M62: 0 | N62: 0
E63: =E62 -> 車両運搬具 | H63: 簿価 | I63: 車両運搬具簿価 | J63: 0 | K63: 225000 | L63: 0 | M63: 0 | N63: 0
E64: =E63 -> 車両運搬具 | H64: 時価 | I64: 車両運搬具時価 | J64: 0 | K64: 840000 | L64: 0 | M64: 0 | N64: 0
E65: =E64 -> 車両運搬具 | H65: 処分損益 | I65: 車両運搬具処分損益 | J65: 0 | K65: 615000 | L65: 0 | M65: 0 | N65: 0
E66: =E65 -> 車両運搬具 | H66: 減価償却累計額 | I66: 車両運搬具減価償却累計額 | J66: 0 | K66: 5175000 | L66: 0 | M66: 0 | N66: 0
C67: 2 | E67: =E19 -> 車両運搬具 | H67: 取得価額 | I67: 車両運搬具取得価額 | J67: 0 | K67: 0 | L67: 5200000 | M67: 0 | N67: 0
E68: =E67 -> 車両運搬具 | H68: 簿価 | I68: 車両運搬具簿価 | J68: 0 | K68: 0 | L68: 1 | M68: 0 | N68: 0
E69: =E68 -> 車両運搬具 | H69: 時価 | I69: 車両運搬具時価 | J69: 0 | K69: 0 | L69: 0 | M69: 0 | N69: 0
E70: =E69 -> 車両運搬具 | H70: 処分損益 | I70: 車両運搬具処分損益 | J70: 0 | K70: 0 | L70: -1 | M70: 0 | N70: 0
E71: =E70 -> 車両運搬具 | H71: 減価償却累計額 | I71: 車両運搬具減価償却累計額 | J71: 0 | K71: 0 | L71: 5199999 | M71: 0 | N71: 0
C72: 3 | E72: =E24 ->  | H72: 取得価額 | I72: 取得価額 | J72: =J24 -> 0 | K72: 0 | L72: 0 | M72: 0 | N72: 0
E73: =E72 ->  | H73: 簿価 | I73: 簿価 | J73: 0 | K73: 0 | L73: 0 | M73: 0 | N73: 0
E74: =E73 ->  | H74: 時価 | I74: 時価 | J74: 0 | K74: 0 | L74: 0 | M74: 0 | N74: 0
E75: =E74 ->  | H75: 処分損益 | I75: 処分損益 | J75: 0 | K75: 0 | L75: 0 | M75: 0 | N75: 0
E76: =E75 ->  | H76: 減価償却累計額 | I76: 減価償却累計額 | J76: 0 | K76: 0 | L76: 0 | M76: 0 | N76: 0
C77: 4 | E77: =E29 ->  | H77: 取得価額 | I77: 取得価額 | J77: 0 | K77: 0 | L77: 0 | M77: 0 | N77: 0
E78: =E77 ->  | H78: 簿価 | I78: 簿価 | J78: 0 | K78: 0 | L78: 0 | M78: 0 | N78: 0
E79: =E78 ->  | H79: 時価 | I79: 時価 | J79: 0 | K79: 0 | L79: 0 | M79: 0 | N79: 0
E80: =E79 ->  | H80: 処分損益 | I80: 処分損益 | J80: 0 | K80: 0 | L80: 0 | M80: 0 | N80: 0
E81: =E80 ->  | H81: 減価償却累計額 | I81: 減価償却累計額 | J81: 0 | K81: 0 | L81: 0 | M81: 0 | N81: 0
C82: 5 | E82: =E34 ->  | H82: 取得価額 | I82: 取得価額 | J82: =J34 -> 0 | K82: 0 | L82: 0 | M82: 0 | N82: 0
E83: =E82 ->  | H83: 簿価 | I83: 簿価 | J83: 0 | K83: 0 | L83: 0 | M83: 0 | N83: 0
E84: =E83 ->  | H84: 時価 | I84: 時価 | J84: 0 | K84: 0 | L84: 0 | M84: 0 | N84: 0
E85: =E84 ->  | H85: 処分損益 | I85: 処分損益 | J85: 0 | K85: 0 | L85: 0 | M85: 0 | N85: 0
E86: =E85 ->  | H86: 減価償却累計額 | I86: 減価償却累計額 | J86: 0 | K86: 0 | L86: 0 | M86: 0 | N86: 0
B87: 土地 | C87: 1 | E87: =E39 -> 土地 | H87: 簿価 | I87: 土地簿価 | J87: 0 | K87: 0 | L87: 0 | M87: 0 | N87: 0
E88: =E87 -> 土地 | H88: 時価 | I88: 土地時価 | J88: 0 | K88: 0 | L88: 0 | M88: 0 | N88: 0
E89: =E88 -> 土地 | H89: 処分損益 | I89: 土地処分損益 | J89: 0 | K89: 0 | L89: 0 | M89: 0 | N89: 0
C90: 2 | E90: =E42 -> 土地 | H90: 簿価 | I90: 土地簿価 | J90: 0 | K90: 0 | L90: 0 | M90: 0 | N90: 0
E91: =E90 -> 土地 | H91: 時価 | I91: 土地時価 | J91: 0 | K91: 0 | L91: 0 | M91: 0 | N91: 0
E92: =E91 -> 土地 | H92: 処分損益 | I92: 土地処分損益 | J92: =J44 -> 0 | K92: 0 | L92: 0 | M92: 0 | N92: 0
B93: 投資有価証券等 | C93: 1 | E93: =E45 -> 投資有価証券・出資金 | H93: 簿価 | I93: 投資有価証券・出資金簿価 | J93: 0 | K93: 0 | L93: 0 | M93: 0 | N93: 0
E94: =E93 -> 投資有価証券・出資金 | H94: 時価 | I94: 投資有価証券・出資金時価 | J94: 0 | K94: 0 | L94: 0 | M94: 0 | N94: 0
E95: =E94 -> 投資有価証券・出資金 | H95: 処分損益 | I95: 投資有価証券・出資金処分損益 | J95: 0 | K95: 0 | L95: 0 | M95: 0 | N95: 0
C96: 2 | E96: =E48 -> 投資有価証券・出資金 | H96: 簿価 | I96: 投資有価証券・出資金簿価 | J96: 0 | K96: 0 | L96: 0 | M96: 0 | N96: 0
E97: =E96 -> 投資有価証券・出資金 | H97: 時価 | I97: 投資有価証券・出資金時価 | J97: 0 | K97: 0 | L97: 0 | M97: 0 | N97: 0
E98: =E97 -> 投資有価証券・出資金 | H98: 処分損益 | I98: 投資有価証券・出資金処分損益 | J98: 0 | K98: 0 | L98: 0 | M98: 0 | N98: 0
B99: 長期前払費用 | C99: 1 | E99: =E51 -> 長期前払費用 | H99: 簿価 | I99: =E99&H99 -> 長期前払費用簿価 | J99: 0 | K99: 0 | L99: 0 | M99: 0 | N99: 0
E100: =E99 -> 長期前払費用 | H100: 時価 | I100: 長期前払費用時価 | J100: 0 | K100: 0 | L100: 0 | M100: 0 | N100: 0
E101: =E100 -> 長期前払費用 | H101: 処分損益 | I101: 長期前払費用処分損益 | J101: 0 | K101: 0 | L101: 0 | M101: 0 | N101: 0
C102: 2 | E102: =E54 -> 長期前払費用 | H102: 簿価 | I102: 長期前払費用簿価 | J102: =J54 -> 0 | K102: 0 | L102: 0 | M102: 0 | N102: 0
E103: =E102 -> 長期前払費用 | H103: 時価 | I103: 長期前払費用時価 | J103: 0 | K103: 0 | L103: 0 | M103: 0 | N103: 0
E104: =E103 -> 長期前払費用 | H104: 処分損益 | I104: 長期前払費用処分損益 | J104: 0 | K104: 0 | L104: 0 | M104: 0 | N104: 0
I105: 土地以外固定資産時価合計 | J105: =SUM(J64,J69,J74,J79,J84,J91) -> 0 | K105: =SUM(K64,K69,K74,K79,K84,K91) -> 840000 | L105: =SUM(L64,L69,L74,L79,L84,L91) -> 0 | M105: =SUM(M64,M69,M74,M79,M84,M91) -> 0 | N105: =SUM(N64,N69,N74,N79,N84,N91) -> 0
I106: 有価証券時価合計 | J106: =SUM(J94,J97) -> 0 | K106: =SUM(K94,K97) -> 0 | L106: =SUM(L94,L97) -> 0 | M106: =SUM(M94,M97) -> 0 | N106: =SUM(N94,N97) -> 0
B108: ２、資産処分額 まとめ
E110: 勘定科目 | I110: 直前簿価 | J110: 計画第１期 | K110: 計画第２期 | L110: 計画第３期 | M110: 計画第４期 | N110: 計画第５期
I111: =DATE(YEAR(基本情報!$C$9)-1,MONTH(基本情報!$C$9),DAY(基本情報!$C$9)) -> 2014-03-31 | J111: =DATE(YEAR(基本情報!$C$9),MONTH(基本情報!$C$9),DAY(基本情報!$C$9)) -> 2015-03-31 | K111: =DATE(YEAR(基本情報!$C$9)+1,MONTH(基本情報!$C$9),DAY(基本情報!$C$9)) -> 2016-03-31 | L111: =DATE(YEAR(基本情報!$C$9)+2,MONTH(基本情報!$C$9),DAY(基本情報!$C$9)) -> 2017-03-31 | M111: =DATE(YEAR(基本情報!$C$9)+3,MONTH(基本情報!$C$9),DAY(基本情報!$C$9)) -> 2018-03-31 | N111: =DATE(YEAR(基本情報!$C$9)+4,MONTH(基本情報!$C$9),DAY(基本情報!$C$9)) -> 2019-03-31
E112: =決算情報登録!C23 -> 建物 | I112: =決算情報登録!E23 -> 0 | J112: =IF($E$8="直接法",SUMIF($I$62:J$98,$E112&"簿価",J$62:J$98),SUMIF($I$62:J$98,$E112&"取得価額",J$62:J$98)) -> 0 | K112: =IF($E$8="直接法",SUMIF($I$62:K$98,$E112&"簿価",K$62:K$98),SUMIF($I$62:K$98,$E112&"取得価額",K$62:K$98)) -> 0 | L112: =IF($E$8="直接法",SUMIF($I$62:L$98,$E112&"簿価",L$62:L$98),SUMIF($I$62:L$98,$E112&"取得価額",L$62:L$98)) -> 0 | M112: =IF($E$8="直接法",SUMIF($I$62:M$98,$E112&"簿価",M$62:M$98),SUMIF($I$62:M$98,$E112&"取得価額",M$62:M$98)) -> 0 | N112: =IF($E$8="直接法",SUMIF($I$62:N$98,$E112&"簿価",N$62:N$98),SUMIF($I$62:N$98,$E112&"取得価額",N$62:N$98)) -> 0
E113: =決算情報登録!C24 -> 附属設備 | I113: =決算情報登録!E24 -> 0 | J113: =IF($E$8="直接法",SUMIF($I$62:J$98,$E113&"簿価",J$62:J$98),SUMIF($I$62:J$98,$E113&"取得価額",J$62:J$98)) -> 0 | K113: =IF($E$8="直接法",SUMIF($I$62:K$98,$E113&"簿価",K$62:K$98),SUMIF($I$62:K$98,$E113&"取得価額",K$62:K$98)) -> 0 | L113: =IF($E$8="直接法",SUMIF($I$62:L$98,$E113&"簿価",L$62:L$98),SUMIF($I$62:L$98,$E113&"取得価額",L$62:L$98)) -> 0 | M113: =IF($E$8="直接法",SUMIF($I$62:M$98,$E113&"簿価",M$62:M$98),SUMIF($I$62:M$98,$E113&"取得価額",M$62:M$98)) -> 0 | N113: =IF($E$8="直接法",SUMIF($I$62:N$98,$E113&"簿価",N$62:N$98),SUMIF($I$62:N$98,$E113&"取得価額",N$62:N$98)) -> 0
E114: =決算情報登録!C25 -> 構築物 | I114: =決算情報登録!E25 -> 0 | J114: =IF($E$8="直接法",SUMIF($I$62:J$98,$E114&"簿価",J$62:J$98),SUMIF($I$62:J$98,$E114&"取得価額",J$62:J$98)) -> 0 | K114: =IF($E$8="直接法",SUMIF($I$62:K$98,$E114&"簿価",K$62:K$98),SUMIF($I$62:K$98,$E114&"取得価額",K$62:K$98)) -> 0 | L114: =IF($E$8="直接法",SUMIF($I$62:L$98,$E114&"簿価",L$62:L$98),SUMIF($I$62:L$98,$E114&"取得価額",L$62:L$98)) -> 0 | M114: =IF($E$8="直接法",SUMIF($I$62:M$98,$E114&"簿価",M$62:M$98),SUMIF($I$62:M$98,$E114&"取得価額",M$62:M$98)) -> 0 | N114: =IF($E$8="直接法",SUMIF($I$62:N$98,$E114&"簿価",N$62:N$98),SUMIF($I$62:N$98,$E114&"取得価額",N$62:N$98)) -> 0
E115: =決算情報登録!C26 -> 機械装置 | I115: =決算情報登録!E26 -> 0 | J115: =IF($E$8="直接法",SUMIF($I$62:J$98,$E115&"簿価",J$62:J$98),SUMIF($I$62:J$98,$E115&"取得価額",J$62:J$98)) -> 0 | K115: =IF($E$8="直接法",SUMIF($I$62:K$98,$E115&"簿価",K$62:K$98),SUMIF($I$62:K$98,$E115&"取得価額",K$62:K$98)) -> 0 | L115: =IF($E$8="直接法",SUMIF($I$62:L$98,$E115&"簿価",L$62:L$98),SUMIF($I$62:L$98,$E115&"取得価額",L$62:L$98)) -> 0 | M115: =IF($E$8="直接法",SUMIF($I$62:M$98,$E115&"簿価",M$62:M$98),SUMIF($I$62:M$98,$E115&"取得価額",M$62:M$98)) -> 0 | N115: =IF($E$8="直接法",SUMIF($I$62:N$98,$E115&"簿価",N$62:N$98),SUMIF($I$62:N$98,$E115&"取得価額",N$62:N$98)) -> 0
E116: =決算情報登録!C27 -> 車両運搬具 | I116: =決算情報登録!E27 -> 36000000 | J116: =IF($E$8="直接法",SUMIF($I$62:J$98,$E116&"簿価",J$62:J$98),SUMIF($I$62:J$98,$E116&"取得価額",J$62:J$98)) -> 0 | K116: =IF($E$8="直接法",SUMIF($I$62:K$98,$E116&"簿価",K$62:K$98),SUMIF($I$62:K$98,$E116&"取得価額",K$62:K$98)) -> 5400000 | L116: =IF($E$8="直接法",SUMIF($I$62:L$98,$E116&"簿価",L$62:L$98),SUMIF($I$62:L$98,$E116&"取得価額",L$62:L$98)) -> 5200000 | M116: =IF($E$8="直接法",SUMIF($I$62:M$98,$E116&"簿価",M$62:M$98),SUMIF($I$62:M$98,$E116&"取得価額",M$62:M$98)) -> 0 | N116: =IF($E$8="直接法",SUMIF($I$62:N$98,$E116&"簿価",N$62:N$98),SUMIF($I$62:N$98,$E116&"取得価額",N$62:N$98)) -> 0
E117: =決算情報登録!C28 -> 工具器具備品 | I117: =決算情報登録!E28 -> 840000 | J117: =IF($E$8="直接法",SUMIF($I$62:J$98,$E117&"簿価",J$62:J$98),SUMIF($I$62:J$98,$E117&"取得価額",J$62:J$98)) -> 0 | K117: =IF($E$8="直接法",SUMIF($I$62:K$98,$E117&"簿価",K$62:K$98),SUMIF($I$62:K$98,$E117&"取得価額",K$62:K$98)) -> 0 | L117: =IF($E$8="直接法",SUMIF($I$62:L$98,$E117&"簿価",L$62:L$98),SUMIF($I$62:L$98,$E117&"取得価額",L$62:L$98)) -> 0 | M117: =IF($E$8="直接法",SUMIF($I$62:M$98,$E117&"簿価",M$62:M$98),SUMIF($I$62:M$98,$E117&"取得価額",M$62:M$98)) -> 0 | N117: =IF($E$8="直接法",SUMIF($I$62:N$98,$E117&"簿価",N$62:N$98),SUMIF($I$62:N$98,$E117&"取得価額",N$62:N$98)) -> 0
E118: =決算情報登録!C29 -> 減価償却累計額 | I118: =決算情報登録!E29 -> -17799351 | J118: =IF($E$8="直接法",0,SUM(J66,J71,J76,J81,J86)) -> 0 | K118: =IF($E$8="直接法",SUMIF($I$62:K$98,$E118&"簿価",K$62:K$98),SUMIF($I$62:K$98,$E118&"取得価額",K$62:K$98)) -> 0 | L118: =IF($E$8="直接法",SUMIF($I$62:L$98,$E118&"簿価",L$62:L$98),SUMIF($I$62:L$98,$E118&"取得価額",L$62:L$98)) -> 0 | M118: =IF($E$8="直接法",SUMIF($I$62:M$98,$E118&"簿価",M$62:M$98),SUMIF($I$62:M$98,$E118&"取得価額",M$62:M$98)) -> 0 | N118: =IF($E$8="直接法",SUMIF($I$62:N$98,$E118&"簿価",N$62:N$98),SUMIF($I$62:N$98,$E118&"取得価額",N$62:N$98)) -> 0
E119: =決算情報登録!C30 -> 土地 | I119: =決算情報登録!E30 -> 0 | J119: =J87+J90 -> 0 | K119: =K87+K90 -> 0 | L119: 0 | M119: 0 | N119: 0
E120: =決算情報登録!C33 -> ソフトウェア | I120: =決算情報登録!E33 -> 0 | J120: =SUMIF($I$62:J$98,$E120&"簿価",J$62:J$98) -> 0 | K120: =SUMIF($I$62:K$98,$E120&"簿価",K$62:K$98) -> 0 | L120: =SUMIF($I$62:L$98,$E120&"簿価",L$62:L$98) -> 0 | M120: =SUMIF($I$62:M$98,$E120&"簿価",M$62:M$98) -> 0 | N120: =SUMIF($I$62:N$98,$E120&"簿価",N$62:N$98) -> 0
E121: =決算情報登録!C34 -> その他無形固定資産 | I121: =決算情報登録!E34 -> 0 | J121: =SUMIF($I$62:J$98,$E121&"簿価",J$62:J$98) -> 0 | K121: =SUMIF($I$62:K$98,$E121&"簿価",K$62:K$98) -> 0 | L121: =SUMIF($I$62:L$98,$E121&"簿価",L$62:L$98) -> 0 | M121: =SUMIF($I$62:M$98,$E121&"簿価",M$62:M$98) -> 0 | N121: =SUMIF($I$62:N$98,$E121&"簿価",N$62:N$98) -> 0
E122: =決算情報登録!C36 -> 投資有価証券・出資金 | I122: =決算情報登録!E36 -> 50000 | J122: =SUMIF($I$62:J$98,$E122&"簿価",J$62:J$98) -> 0 | K122: =SUMIF($I$62:K$98,$E122&"簿価",K$62:K$98) -> 0 | L122: =SUMIF($I$62:L$98,$E122&"簿価",L$62:L$98) -> 0 | M122: =SUMIF($I$62:M$98,$E122&"簿価",M$62:M$98) -> 0 | N122: =SUMIF($I$62:N$98,$E122&"簿価",N$62:N$98) -> 0
E123: 長期前払費用 | I123: =決算情報登録!E39 -> 0 | J123: =SUMIF($I$62:J$104,$E123&"簿価",J$62:J$104) -> 0 | K123: =SUMIF($I$62:K$104,$E123&"簿価",K$62:K$104) -> 0 | L123: =SUMIF($I$62:L$104,$E123&"簿価",L$62:L$104) -> 0 | M123: =SUMIF($I$62:M$104,$E123&"簿価",M$62:M$104) -> 0 | N123: =SUMIF($I$62:N$104,$E123&"簿価",N$62:N$104) -> 0
E124: 固定資産売却益 | J124: =IF(SUM(J65,J70,J75,J80,J85,J89,J92,J101)>0,SUM(J65,J70,J75,J80,J85,J89,J92,J101),0) -> 0 | K124: =IF(SUM(K65,K70,K75,K80,K85,K89,K92,K101)>0,SUM(K65,K70,K75,K80,K85,K89,K92,K101),0) -> 615000 | L124: 0 | M124: 0 | N124: 0
E125: 固定資産処分損 | J125: =IF(SUM(J65,J70,J75,J80,J85,J89,J92,J101)<0,-SUM(J65,J70,J75,J80,J85,J89,J92,J101),0) -> 0 | K125: =IF(SUM(K65,K70,K75,K80,K85,K89,K92,K101)<0,-SUM(K65,K70,K75,K80,K85,K89,K92,K101),0) -> 0 | L125: 1 | M125: 0 | N125: 0
E126: 有価証券売却益 | J126: =IF(SUM(J95,J98)>0,SUM(J95,J98),0) -> 0 | K126: =IF(SUM(K95,K98)>0,SUM(K95,K98),0) -> 0 | L126: 0 | M126: 0 | N126: 0
E127: 有価証券処分損 | J127: =IF(SUM(J95,J98)<0,-SUM(J95,J98),0) -> 0 | K127: =IF(SUM(K95,K98)<0,-SUM(K95,K98),0) -> 0 | L127: 0 | M127: 0 | N127: 0
E128: 減価償却資産売却額 | J128: =SUM(J64,J69,J74,J79,J84) -> 0 | K128: =SUM(K64,K69,K74,K79,K84) -> 840000 | L128: 0 | M128: 0 | N128: 0
E129: 土地売却額 | J129: =SUM(J88,J91) -> 0 | K129: =SUM(K88,K91) -> 0 | L129: 0 | M129: 0 | N129: 0
E130: 投資有価証券等売却額 | J130: =SUM(J94,J97) -> 0 | K130: =SUM(K94,K97) -> 0 | L130: 0 | M130: 0 | N130: 0
E131: 長期前払費用売却額 | J131: =SUM(J100,J103) -> 0 | K131: =SUM(K100,K103) -> 0 | L131: 0 | M131: 0 | N131: 0

Sheet 投資計画まとめ
B6: =基本情報!C7 -> 株式会社一木運送 | I6: 償却方法 | J6: =資産処分計画!E8 -> 間接法
F7: 計画第１期 | G7: 計画第２期 | H7: 計画第３期 | I7: 計画第４期 | J7: 計画第５期
F8: =DATE(YEAR(基本情報!$C$9),MONTH(基本情報!$C$9),DAY(基本情報!$C$9)) -> 2015-03-31 | G8: =DATE(YEAR(基本情報!$C$9)+1,MONTH(基本情報!$C$9),DAY(基本情報!$C$9)) -> 2016-03-31 | H8: =DATE(YEAR(基本情報!$C$9)+2,MONTH(基本情報!$C$9),DAY(基本情報!$C$9)) -> 2017-03-31 | I8: =DATE(YEAR(基本情報!$C$9)+3,MONTH(基本情報!$C$9),DAY(基本情報!$C$9)) -> 2018-03-31 | J8: =DATE(YEAR(基本情報!$C$9)+4,MONTH(基本情報!$C$9),DAY(基本情報!$C$9)) -> 2019-03-31
B9: 1 | C9: =決算情報登録!C23 -> 建物 | E9: 取得 | F9: =SUMIF(投資・償却費計画!$B$24:$CI$73,$C9,投資・償却費計画!CE$24:CE$73) -> 0 | G9: =SUMIF(投資・償却費計画!$B$24:$CI$73,$C9,投資・償却費計画!CF$24:CF$73) -> 0 | H9: =SUMIF(投資・償却費計画!$B$24:$CI$73,$C9,投資・償却費計画!CG$24:CG$73) -> 0 | I9: =SUMIF(投資・償却費計画!$B$24:$CI$73,$C9,投資・償却費計画!CH$24:CH$73) -> 0 | J9: =SUMIF(投資・償却費計画!$B$24:$CI$73,$C9,投資・償却費計画!CI$24:CI$73) -> 0
E10: 償却費 | F10: =SUMIF(投資・償却費計画!$B$24:$CN$73,$C9,投資・償却費計画!CJ$24:CJ$73) -> 0 | G10: =SUMIF(投資・償却費計画!$B$24:$CN$73,$C9,投資・償却費計画!CK$24:CK$73) -> 0 | H10: =SUMIF(投資・償却費計画!$B$24:$CN$73,$C9,投資・償却費計画!CL$24:CL$73) -> 0 | I10: =SUMIF(投資・償却費計画!$B$24:$CN$73,$C9,投資・償却費計画!CM$24:CM$73) -> 0 | J10: =SUMIF(投資・償却費計画!$B$24:$CN$73,$C9,投資・償却費計画!CN$24:CN$73) -> 0
E11: 除却 | F11: =資産処分計画!J112 -> 0 | G11: =資産処分計画!K112 -> 0 | H11: =資産処分計画!L112 -> 0 | I11: =資産処分計画!M112 -> 0 | J11: =資産処分計画!N112 -> 0
E12: B/S簿価 | F12: =IF($J$6="直接法",投資・償却費計画!X77,投資・償却費計画!X77+投資・償却費計画!Y77) -> 0 | G12: =IF($J$6="直接法",投資・償却費計画!AJ77,投資・償却費計画!AK77+投資・償却費計画!AJ77) -> 0 | H12: =IF($J$6="直接法",投資・償却費計画!AV77,投資・償却費計画!AW77+投資・償却費計画!AV77) -> 0 | I12: =IF($J$6="直接法",投資・償却費計画!BH77,投資・償却費計画!BI77+投資・償却費計画!BH77) -> 0 | J12: =IF($J$6="直接法",投資・償却費計画!BT77,投資・償却費計画!BU77+投資・償却費計画!BT77) -> 0
B13: 2 | C13: =決算情報登録!C24 -> 附属設備 | E13: 取得 | F13: =SUMIF(投資・償却費計画!$B$24:$CI$73,$C13,投資・償却費計画!CE$24:CE$73) -> 0 | G13: =SUMIF(投資・償却費計画!$B$24:$CI$73,$C13,投資・償却費計画!CF$24:CF$73) -> 0 | H13: =SUMIF(投資・償却費計画!$B$24:$CI$73,$C13,投資・償却費計画!CG$24:CG$73) -> 0 | I13: =SUMIF(投資・償却費計画!$B$24:$CI$73,$C13,投資・償却費計画!CH$24:CH$73) -> 0 | J13: =SUMIF(投資・償却費計画!$B$24:$CI$73,$C13,投資・償却費計画!CI$24:CI$73) -> 0
E14: 償却費 | F14: =SUMIF(投資・償却費計画!$B$24:$CN$73,$C13,投資・償却費計画!CJ$24:CJ$73) -> 0 | G14: =SUMIF(投資・償却費計画!$B$24:$CN$73,$C13,投資・償却費計画!CK$24:CK$73) -> 0 | H14: =SUMIF(投資・償却費計画!$B$24:$CN$73,$C13,投資・償却費計画!CL$24:CL$73) -> 0 | I14: =SUMIF(投資・償却費計画!$B$24:$CN$73,$C13,投資・償却費計画!CM$24:CM$73) -> 0 | J14: =SUMIF(投資・償却費計画!$B$24:$CN$73,$C13,投資・償却費計画!CN$24:CN$73) -> 0
E15: 除却 | F15: =資産処分計画!J113 -> 0 | G15: =資産処分計画!K113 -> 0 | H15: =資産処分計画!L113 -> 0 | I15: =資産処分計画!M113 -> 0 | J15: =資産処分計画!N113 -> 0
E16: B/S簿価 | F16: =IF($J$6="直接法",投資・償却費計画!X78,投資・償却費計画!X78+投資・償却費計画!Y78) -> 0 | G16: =IF($J$6="直接法",投資・償却費計画!AJ78,投資・償却費計画!AK78+投資・償却費計画!AJ78) -> 0 | H16: =IF($J$6="直接法",投資・償却費計画!AV78,投資・償却費計画!AW78+投資・償却費計画!AV78) -> 0 | I16: =IF($J$6="直接法",投資・償却費計画!BH78,投資・償却費計画!BI78+投資・償却費計画!BH78) -> 0 | J16: =IF($J$6="直接法",投資・償却費計画!BT78,投資・償却費計画!BU78+投資・償却費計画!BT78) -> 0
B17: 3 | C17: =決算情報登録!C25 -> 構築物 | E17: 取得 | F17: =SUMIF(投資・償却費計画!$B$24:$CI$73,$C17,投資・償却費計画!CE$24:CE$73) -> 0 | G17: =SUMIF(投資・償却費計画!$B$24:$CI$73,$C17,投資・償却費計画!CF$24:CF$73) -> 0 | H17: =SUMIF(投資・償却費計画!$B$24:$CI$73,$C17,投資・償却費計画!CG$24:CG$73) -> 0 | I17: =SUMIF(投資・償却費計画!$B$24:$CI$73,$C17,投資・償却費計画!CH$24:CH$73) -> 0 | J17: =SUMIF(投資・償却費計画!$B$24:$CI$73,$C17,投資・償却費計画!CI$24:CI$73) -> 0
E18: 償却費 | F18: =SUMIF(投資・償却費計画!$B$24:$CN$73,$C17,投資・償却費計画!CJ$24:CJ$73) -> 0 | G18: =SUMIF(投資・償却費計画!$B$24:$CN$73,$C17,投資・償却費計画!CK$24:CK$73) -> 0 | H18: =SUMIF(投資・償却費計画!$B$24:$CN$73,$C17,投資・償却費計画!CL$24:CL$73) -> 0 | I18: =SUMIF(投資・償却費計画!$B$24:$CN$73,$C17,投資・償却費計画!CM$24:CM$73) -> 0 | J18: =SUMIF(投資・償却費計画!$B$24:$CN$73,$C17,投資・償却費計画!CN$24:CN$73) -> 0
E19: 除却 | F19: =資産処分計画!J114 -> 0 | G19: =資産処分計画!K114 -> 0 | H19: =資産処分計画!L114 -> 0 | I19: =資産処分計画!M114 -> 0 | J19: =資産処分計画!N114 -> 0
E20: B/S簿価 | F20: =IF($J$6="直接法",投資・償却費計画!X79,投資・償却費計画!X79+投資・償却費計画!Y79) -> 0 | G20: =IF($J$6="直接法",投資・償却費計画!AJ79,投資・償却費計画!AK79+投資・償却費計画!AJ79) -> 0 | H20: =IF($J$6="直接法",投資・償却費計画!AV79,投資・償却費計画!AW79+投資・償却費計画!AV79) -> 0 | I20: =IF($J$6="直接法",投資・償却費計画!BH79,投資・償却費計画!BI79+投資・償却費計画!BH79) -> 0 | J20: =IF($J$6="直接法",投資・償却費計画!BT79,投資・償却費計画!BU79+投資・償却費計画!BT79) -> 0
B21: 4 | C21: =決算情報登録!C26 -> 機械装置 | E21: 取得 | F21: =SUMIF(投資・償却費計画!$B$24:$CI$73,$C21,投資・償却費計画!CE$24:CE$73) -> 0 | G21: =SUMIF(投資・償却費計画!$B$24:$CI$73,$C21,投資・償却費計画!CF$24:CF$73) -> 0 | H21: =SUMIF(投資・償却費計画!$B$24:$CI$73,$C21,投資・償却費計画!CG$24:CG$73) -> 0 | I21: =SUMIF(投資・償却費計画!$B$24:$CI$73,$C21,投資・償却費計画!CH$24:CH$73) -> 0 | J21: =SUMIF(投資・償却費計画!$B$24:$CI$73,$C21,投資・償却費計画!CI$24:CI$73) -> 0
E22: 償却費 | F22: =SUMIF(投資・償却費計画!$B$24:$CN$73,$C21,投資・償却費計画!CJ$24:CJ$73) -> 0 | G22: =SUMIF(投資・償却費計画!$B$24:$CN$73,$C21,投資・償却費計画!CK$24:CK$73) -> 0 | H22: =SUMIF(投資・償却費計画!$B$24:$CN$73,$C21,投資・償却費計画!CL$24:CL$73) -> 0 | I22: =SUMIF(投資・償却費計画!$B$24:$CN$73,$C21,投資・償却費計画!CM$24:CM$73) -> 0 | J22: =SUMIF(投資・償却費計画!$B$24:$CN$73,$C21,投資・償却費計画!CN$24:CN$73) -> 0
E23: 除却 | F23: =資産処分計画!J115 -> 0 | G23: =資産処分計画!K115 -> 0 | H23: =資産処分計画!L115 -> 0 | I23: =資産処分計画!M115 -> 0 | J23: =資産処分計画!N115 -> 0
E24: B/S簿価 | F24: =IF($J$6="直接法",投資・償却費計画!X80,投資・償却費計画!X80+投資・償却費計画!Y80) -> 0 | G24: =IF($J$6="直接法",投資・償却費計画!AJ80,投資・償却費計画!AK80+投資・償却費計画!AJ80) -> 0 | H24: =IF($J$6="直接法",投資・償却費計画!AV80,投資・償却費計画!AW80+投資・償却費計画!AV80) -> 0 | I24: =IF($J$6="直接法",投資・償却費計画!BH80,投資・償却費計画!BI80+投資・償却費計画!BH80) -> 0 | J24: =IF($J$6="直接法",投資・償却費計画!BT80,投資・償却費計画!BU80+投資・償却費計画!BT80) -> 0
B25: 5 | C25: =決算情報登録!C27 -> 車両運搬具 | E25: 取得 | F25: =SUMIF(投資・償却費計画!$B$24:$CI$73,$C25,投資・償却費計画!CE$24:CE$73) -> 5400000 | G25: =SUMIF(投資・償却費計画!$B$24:$CI$73,$C25,投資・償却費計画!CF$24:CF$73) -> 0 | H25: =SUMIF(投資・償却費計画!$B$24:$CI$73,$C25,投資・償却費計画!CG$24:CG$73) -> 5400000 | I25: =SUMIF(投資・償却費計画!$B$24:$CI$73,$C25,投資・償却費計画!CH$24:CH$73) -> 0 | J25: =SUMIF(投資・償却費計画!$B$24:$CI$73,$C25,投資・償却費計画!CI$24:CI$73) -> 5400000
E26: 償却費 | F26: =SUMIF(投資・償却費計画!$B$24:$CN$73,$C25,投資・償却費計画!CJ$24:CJ$73) -> 12216809 | G26: =SUMIF(投資・償却費計画!$B$24:$CN$73,$C25,投資・償却費計画!CK$24:CK$73) -> 6288142 | H26: =SUMIF(投資・償却費計画!$B$24:$CN$73,$C25,投資・償却費計画!CL$24:CL$73) -> 6728461 | I26: =SUMIF(投資・償却費計画!$B$24:$CN$73,$C25,投資・償却費計画!CM$24:CM$73) -> 2418749 | J26: =SUMIF(投資・償却費計画!$B$24:$CN$73,$C25,投資・償却費計画!CN$24:CN$73) -> 2418750
E27: 除却 | F27: =資産処分計画!J116 -> 0 | G27: =資産処分計画!K116 -> 5400000 | H27: =資産処分計画!L116 -> 5200000 | I27: =資産処分計画!M116 -> 0 | J27: =資産処分計画!N116 -> 0
E28: B/S簿価 | F28: =IF($J$6="直接法",投資・償却費計画!X81,投資・償却費計画!X81+投資・償却費計画!Y81) -> 41400000 | G28: =IF($J$6="直接法",投資・償却費計画!AJ81,投資・償却費計画!AK81+投資・償却費計画!AJ81) -> 36000000 | H28: =IF($J$6="直接法",投資・償却費計画!AV81,投資・償却費計画!AW81+投資・償却費計画!AV81) -> 36200000 | I28: =IF($J$6="直接法",投資・償却費計画!BH81,投資・償却費計画!BI81+投資・償却費計画!BH81) -> 36200000 | J28: =IF($J$6="直接法",投資・償却費計画!BT81,投資・償却費計画!BU81+投資・償却費計画!BT81) -> 41600000
B29: 6 | C29: =決算情報登録!C28 -> 工具器具備品 | E29: 取得 | F29: =SUMIF(投資・償却費計画!$B$24:$CI$73,$C29,投資・償却費計画!CE$24:CE$73) -> 0 | G29: =SUMIF(投資・償却費計画!$B$24:$CI$73,$C29,投資・償却費計画!CF$24:CF$73) -> 0 | H29: =SUMIF(投資・償却費計画!$B$24:$CI$73,$C29,投資・償却費計画!CG$24:CG$73) -> 0 | I29: =SUMIF(投資・償却費計画!$B$24:$CI$73,$C29,投資・償却費計画!CH$24:CH$73) -> 0 | J29: =SUMIF(投資・償却費計画!$B$24:$CI$73,$C29,投資・償却費計画!CI$24:CI$73) -> 0
E30: 償却費 | F30: =SUMIF(投資・償却費計画!$B$24:$CN$73,$C29,投資・償却費計画!CJ$24:CJ$73) -> 137990 | G30: =SUMIF(投資・償却費計画!$B$24:$CN$73,$C29,投資・償却費計画!CK$24:CK$73) -> 68995 | H30: =SUMIF(投資・償却費計画!$B$24:$CN$73,$C29,投資・償却費計画!CL$24:CL$73) -> 68995 | I30: =SUMIF(投資・償却費計画!$B$24:$CN$73,$C29,投資・償却費計画!CM$24:CM$73) -> 0 | J30: =SUMIF(投資・償却費計画!$B$24:$CN$73,$C29,投資・償却費計画!CN$24:CN$73) -> 0
E31: 除却 | F31: =資産処分計画!J117 -> 0 | G31: =資産処分計画!K117 -> 0 | H31: =資産処分計画!L117 -> 0 | I31: =資産処分計画!M117 -> 0 | J31: =資産処分計画!N117 -> 0
E32: B/S簿価 | F32: =IF($J$6="直接法",投資・償却費計画!X82,投資・償却費計画!X82+投資・償却費計画!Y82) -> 840000 | G32: =IF($J$6="直接法",投資・償却費計画!AJ82,投資・償却費計画!AK82+投資・償却費計画!AJ82) -> 840000 | H32: =IF($J$6="直接法",投資・償却費計画!AV82,投資・償却費計画!AW82+投資・償却費計画!AV82) -> 840000 | I32: =IF($J$6="直接法",投資・償却費計画!BH82,投資・償却費計画!BI82+投資・償却費計画!BH82) -> 840000 | J32: =IF($J$6="直接法",投資・償却費計画!BT82,投資・償却費計画!BU82+投資・償却費計画!BT82) -> 840000
B33: 7 | C33: =決算情報登録!C33 -> ソフトウェア | E33: 取得 | F33: =SUMIF(投資・償却費計画!$B$24:$CI$73,$C33,投資・償却費計画!CE$24:CE$73) -> 0 | G33: =SUMIF(投資・償却費計画!$B$24:$CI$73,$C33,投資・償却費計画!CF$24:CF$73) -> 0 | H33: =SUMIF(投資・償却費計画!$B$24:$CI$73,$C33,投資・償却費計画!CG$24:CG$73) -> 0 | I33: =SUMIF(投資・償却費計画!$B$24:$CI$73,$C33,投資・償却費計画!CH$24:CH$73) -> 0 | J33: =SUMIF(投資・償却費計画!$B$24:$CI$73,$C33,投資・償却費計画!CI$24:CI$73) -> 0
E34: 償却費 | F34: =SUMIF(投資・償却費計画!$B$24:$CN$73,$C33,投資・償却費計画!CJ$24:CJ$73) -> 0 | G34: =SUMIF(投資・償却費計画!$B$24:$CN$73,$C33,投資・償却費計画!CK$24:CK$73) -> 0 | H34: =SUMIF(投資・償却費計画!$B$24:$CN$73,$C33,投資・償却費計画!CL$24:CL$73) -> 0 | I34: =SUMIF(投資・償却費計画!$B$24:$CN$73,$C33,投資・償却費計画!CM$24:CM$73) -> 0 | J34: =SUMIF(投資・償却費計画!$B$24:$CN$73,$C33,投資・償却費計画!CN$24:CN$73) -> 0
E35: 除却 | F35: =資産処分計画!J120 -> 0 | G35: =資産処分計画!K120 -> 0 | H35: =資産処分計画!L120 -> 0 | I35: =資産処分計画!M120 -> 0 | J35: =資産処分計画!N120 -> 0
E36: B/S簿価 | F36: =投資・償却費計画!X83 -> 0 | G36: =投資・償却費計画!AJ83 -> 0 | H36: =投資・償却費計画!AV83 -> 0 | I36: =投資・償却費計画!BH83 -> 0 | J36: =投資・償却費計画!BT83 -> 0
B37: 8 | C37: =決算情報登録!C34 -> その他無形固定資産 | E37: 取得 | F37: =SUMIF(投資・償却費計画!$B$24:$CI$73,$C37,投資・償却費計画!CE$24:CE$73) -> 0 | G37: =SUMIF(投資・償却費計画!$B$24:$CI$73,$C37,投資・償却費計画!CF$24:CF$73) -> 0 | H37: =SUMIF(投資・償却費計画!$B$24:$CI$73,$C37,投資・償却費計画!CG$24:CG$73) -> 0 | I37: =SUMIF(投資・償却費計画!$B$24:$CI$73,$C37,投資・償却費計画!CH$24:CH$73) -> 0 | J37: =SUMIF(投資・償却費計画!$B$24:$CI$73,$C37,投資・償却費計画!CI$24:CI$73) -> 0
E38: 償却費 | F38: =SUMIF(投資・償却費計画!$B$24:$CN$73,$C37,投資・償却費計画!CJ$24:CJ$73) -> 0 | G38: =SUMIF(投資・償却費計画!$B$24:$CN$73,$C37,投資・償却費計画!CK$24:CK$73) -> 0 | H38: =SUMIF(投資・償却費計画!$B$24:$CN$73,$C37,投資・償却費計画!CL$24:CL$73) -> 0 | I38: =SUMIF(投資・償却費計画!$B$24:$CN$73,$C37,投資・償却費計画!CM$24:CM$73) -> 0 | J38: =SUMIF(投資・償却費計画!$B$24:$CN$73,$C37,投資・償却費計画!CN$24:CN$73) -> 0
E39: 除却 | F39: =資産処分計画!J121 -> 0 | G39: =資産処分計画!K121 -> 0 | H39: =資産処分計画!L121 -> 0 | I39: =資産処分計画!M121 -> 0 | J39: =資産処分計画!N121 -> 0
E40: B/S簿価 | F40: =投資・償却費計画!X84 -> 0 | G40: =投資・償却費計画!AJ84 -> 0 | H40: =投資・償却費計画!AV84 -> 0 | I40: =投資・償却費計画!BH84 -> 0 | J40: =投資・償却費計画!BT84 -> 0
B41: 9 | C41: =決算情報登録!C30 -> 土地 | E41: 取得
E42: 除却 | F42: =資産処分計画!J119 -> 0 | G42: =資産処分計画!K119 -> 0 | H42: =資産処分計画!L119 -> 0 | I42: =資産処分計画!M119 -> 0 | J42: =資産処分計画!N119 -> 0
E43: B/S簿価 | F43: =BS実態調整!F30+F41-F42 -> 0 | G43: =F43+G41-G42 -> 0 | H43: =G43+H41-H42 -> 0 | I43: 0 | J43: 0
B44: 10 | C44: =決算情報登録!C36 -> 投資有価証券・出資金 | E44: 取得
E45: 除却 | F45: =資産処分計画!J122 -> 0 | G45: =資産処分計画!K122 -> 0 | H45: =資産処分計画!L122 -> 0 | I45: =資産処分計画!M122 -> 0 | J45: =資産処分計画!N122 -> 0
E46: B/S簿価 | F46: =BS実態調整!F36+F44-F45 -> 50000 | G46: =F46+G44-G45 -> 50000 | H46: =G46+H44-H45 -> 50000 | I46: 50000 | J46: 50000
B47: 11 | C47: =決算情報登録!C39 -> 長期前払費用 | E47: 取得 | F47: =SUMIF(投資・償却費計画!$B$94:$CI$103,$C47,投資・償却費計画!CE$94:CE$889) -> 0 | G47: =SUMIF(投資・償却費計画!$B$94:$CI$103,$C47,投資・償却費計画!CF$94:CF$889) -> 0 | H47: =SUMIF(投資・償却費計画!$B$94:$CI$103,$C47,投資・償却費計画!CG$94:CG$889) -> 0 | I47: =SUMIF(投資・償却費計画!$B$94:$CI$103,$C47,投資・償却費計画!CH$94:CH$889) -> 0 | J47: =SUMIF(投資・償却費計画!$B$94:$CI$103,$C47,投資・償却費計画!CI$94:CI$889) -> 0
E48: 償却費 | F48: =SUMIF(投資・償却費計画!$B$94:$CN$103,$C47,投資・償却費計画!CJ$94:CJ$103) -> 0 | G48: =SUMIF(投資・償却費計画!$B$94:$CN$103,$C47,投資・償却費計画!CK$94:CK$103) -> 0 | H48: =SUMIF(投資・償却費計画!$B$94:$CN$103,$C47,投資・償却費計画!CL$94:CL$103) -> 0 | I48: =SUMIF(投資・償却費計画!$B$94:$CN$103,$C47,投資・償却費計画!CM$94:CM$103) -> 0 | J48: =SUMIF(投資・償却費計画!$B$94:$CN$103,$C47,投資・償却費計画!CN$94:CN$103) -> 0
E49: 除却 | F49: =資産処分計画!J123 -> 0 | G49: =資産処分計画!K123 -> 0 | H49: =資産処分計画!L123 -> 0 | I49: =資産処分計画!M123 -> 0 | J49: =資産処分計画!N123 -> 0
E50: B/S簿価 | F50: =投資・償却費計画!X104 -> 0 | G50: =投資・償却費計画!AJ104 -> 0 | H50: =投資・償却費計画!AV104 -> 0 | I50: =投資・償却費計画!BH104 -> 0 | J50: =投資・償却費計画!BT104 -> 0
B51: 合計 | E51: 取得 | F51: =SUM(F9,F13,F17,F21,F25,F29,F33,F37,F41,F44) -> 5400000 | G51: =SUM(G9,G13,G17,G21,G25,G29,G33,G37,G41,G44) -> 0 | H51: 5400000 | I51: 0 | J51: 5400000
E52: 償却費 | F52: =SUM(F10,F14,F18,F22,F26,F30,F34,F38) -> 12354799 | G52: =SUM(G10,G14,G18,G22,G26,G30,G34,G38) -> 6357137 | H52: 6797456 | I52: 2418749 | J52: 2418750
E53: 除却 | F53: =SUM(F11,F15,F19,F23,F27,F31,F35,F39,F42,F45) -> 0 | G53: =SUM(G11,G15,G19,G23,G27,G31,G35,G39,G42,G45) -> 5400000 | H53: 5200000 | I53: 0 | J53: 0
B54: うち固定資産合計 | E54: 取得 | F54: =SUM(F9,F13,F17,F21,F25,F29,F33,F37,F41) -> 5400000 | G54: =SUM(G9,G13,G17,G21,G25,G29,G33,G37,G41) -> 0 | H54: 5400000 | I54: 0 | J54: 5400000
E55: 償却費 | F55: =SUM(F10,F14,F18,F22,F26,F30,F34,F38) -> 12354799 | G55: =SUM(G10,G14,G18,G22,G26,G30,G34,G38) -> 6357137 | H55: 6797456 | I55: 2418749 | J55: 2418750
E56: 除却 | F56: =SUM(F11,F15,F19,F23,F27,F31,F35,F39,F42) -> 0 | G56: =SUM(G11,G15,G19,G23,G27,G31,G35,G39,G42) -> 5400000 | H56: 5200000 | I56: 0 | J56: 0

Sheet 償却率表 (hidden)
B2: 平成２４年４月１日以後(200%定率） | H2: 平成１９年４月１日以後（250％定率） | N2: 平成19年３月３１日以前 | R2: 平成19年３月３１日以前 （旧定額） | U2: 平成19年３月３１日以前 （旧定率） | X2: 平成１９年４月１日以後 （新定額） | AA2: 平成１９年４月１日以後 （250％定率） | AF2: 平成２４年４月１日以後 （200％定率）
B3: 耐用年数 | C3: 定率法の償却率 | D3: 改定償却率 | E3: 保証率 | H3: 耐用年数 | I3: 定額法の償却率 | J3: 定率法の償却率 | K3: 改定償却率 | L3: 保証率 | N3: 耐用年数 | O3: 定額法の償却率 | P3: 定率法の償却率 | R3: 耐用年数 | S3: 定額法の償却率 | U3: 耐用年数 | V3: 定率法の償却率 | X3: 耐用年数 | Y3: 定額法の償却率 | AA3: 耐用年数 | AB3: 定率法の償却率 | AC3: 改定償却率 | AD3: 保証率 | AF3: 耐用年数 | AG3: 定率法の償却率 | AH3: 改定償却率 | AI3: 保証率
B4: 2 | C4: 1 | D4: － | E4: － | H4: 2 | I4: 0.5 | J4: 1 | K4: － | L4: － | N4: 2 | O4: 0.5 | P4: 0.684 | R4: 2 | S4: 0.5 | U4: 2 | V4: 0.684 | X4: 2 | Y4: 0.5 | AA4: 2 | AB4: 1 | AC4: － | AD4: － | AF4: 2 | AG4: 1 | AH4: － | AI4: －
B5: 3 | C5: 0.667 | D5: 1 | E5: 0.11089 | H5: 3 | I5: 0.334 | J5: 0.833 | K5: 1 | L5: 0.02789 | N5: 3 | O5: 0.333 | P5: 0.536 | R5: 3 | S5: 0.333 | U5: 3 | V5: 0.536 | X5: 3 | Y5: 0.334 | AA5: 3 | AB5: 0.833 | AC5: 1 | AD5: 0.02789 | AF5: 3 | AG5: 0.667 | AH5: 1 | AI5: 0.11089
B6: 4 | C6: 0.5 | D6: 1 | E6: 0.12499 | H6: 4 | I6: 0.25 | J6: 0.625 | K6: 1 | L6: 0.05274 | N6: 4 | O6: 0.25 | P6: 0.438 | R6: 4 | S6: 0.25 | U6: 4 | V6: 0.438 | X6: 4 | Y6: 0.25 | AA6: 4 | AB6: 0.625 | AC6: 1 | AD6: 0.05274 | AF6: 4 | AG6: 0.5 | AH6: 1 | AI6: 0.12499
B7: 5 | C7: 0.4 | D7: 0.5 | E7: 0.108 | H7: 5 | I7: 0.2 | J7: 0.5 | K7: 1 | L7: 0.06249 | N7: 5 | O7: 0.2 | P7: 0.369 | R7: 5 | S7: 0.2 | U7: 5 | V7: 0.369 | X7: 5 | Y7: 0.2 | AA7: 5 | AB7: 0.5 | AC7: 1 | AD7: 0.06249 | AF7: 5 | AG7: 0.4 | AH7: 0.5 | AI7: 0.108
B8: 6 | C8: 0.333 | D8: 0.334 | E8: 0.09911 | H8: 6 | I8: 0.167 | J8: 0.417 | K8: 0.5 | L8: 0.05776 | N8: 6 | O8: 0.166 | P8: 0.319 | R8: 6 | S8: 0.166 | U8: 6 | V8: 0.319 | X8: 6 | Y8: 0.167 | AA8: 6 | AB8: 0.417 | AC8: 0.5 | AD8: 0.05776 | AF8: 6 | AG8: 0.333 | AH8: 0.334 | AI8: 0.09911
B9: 7 | C9: 0.286 | D9: 0.334 | E9: 0.0868 | H9: 7 | I9: 0.143 | J9: 0.357 | K9: 0.5 | L9: 0.05496 | N9: 7 | O9: 0.142 | P9: 0.28 | R9: 7 | S9: 0.142 | U9: 7 | V9: 0.28 | X9: 7 | Y9: 0.143 | AA9: 7 | AB9: 0.357 | AC9: 0.5 | AD9: 0.05496 | AF9: 7 | AG9: 0.286 | AH9: 0.334 | AI9: 0.0868
B10: 8 | C10: 0.25 | D10: 0.334 | E10: 0.07909 | H10: 8 | I10: 0.125 | J10: 0.313 | K10: 0.334 | L10: 0.05111 | N10: 8 | O10: 0.125 | P10: 0.25 | R10: 8 | S10: 0.125 | U10: 8 | V10: 0.25 | X10: 8 | Y10: 0.125 | AA10: 8 | AB10: 0.313 | AC10: 0.334 | AD10: 0.05111 | AF10: 8 | AG10: 0.25 | AH10: 0.334 | AI10: 0.07909
B11: 9 | C11: 0.222 | D11: 0.25 | E11: 0.07126 | H11: 9 | I11: 0.112 | J11: 0.278 | K11: 0.334 | L11: 0.04731 | N11: 9 | O11: 0.111 | P11: 0.226 | R11: 9 | S11: 0.111 | U11: 9 | V11: 0.226 | X11: 9 | Y11: 0.112 | AA11: 9 | AB11: 0.278 | AC11: 0.334 | AD11: 0.04731 | AF11: 9 | AG11: 0.222 | AH11: 0.25 | AI11: 0.07126
B12: 10 | C12: 0.2 | D12: 0.25 | E12: 0.06552 | H12: 10 | I12: 0.1 | J12: 0.25 | K12: 0.334 | L12: 0.04448 | N12: 10 | O12: 0.1 | P12: 0.206 | R12: 10 | S12: 0.1 | U12: 10 | V12: 0.206 | X12: 10 | Y12: 0.1 | AA12: 10 | AB12: 0.25 | AC12: 0.334 | AD12: 0.04448 | AF12: 10 | AG12: 0.2 | AH12: 0.25 | AI12: 0.06552
B13: 11 | C13: 0.182 | D13: 0.2 | E13: 0.05992 | H13: 11 | I13: 0.091 | J13: 0.227 | K13: 0.25 | L13: 0.04123 | N13: 11 | O13: 0.09 | P13: 0.189 | R13: 11 | S13: 0.09 | U13: 11 | V13: 0.189 | X13: 11 | Y13: 0.091 | AA13: 11 | AB13: 0.227 | AC13: 0.25 | AD13: 0.04123 | AF13: 11 | AG13: 0.182 | AH13: 0.2 | AI13: 0.05992
B14: 12 | C14: 0.167 | D14: 0.2 | E14: 0.05566 | H14: 12 | I14: 0.084 | J14: 0.208 | K14: 0.25 | L14: 0.0387 | N14: 12 | O14: 0.083 | P14: 0.175 | R14: 12 | S14: 0.083 | U14: 12 | V14: 0.175 | X14: 12 | Y14: 0.084 | AA14: 12 | AB14: 0.208 | AC14: 0.25 | AD14: 0.0387 | AF14: 12 | AG14: 0.167 | AH14: 0.2 | AI14: 0.05566
B15: 13 | C15: 0.154 | D15: 0.167 | E15: 0.0518 | H15: 13 | I15: 0.077 | J15: 0.192 | K15: 0.2 | L15: 0.03633 | N15: 13 | O15: 0.076 | P15: 0.162 | R15: 13 | S15: 0.076 | U15: 13 | V15: 0.162 | X15: 13 | Y15: 0.077 | AA15: 13 | AB15: 0.192 | AC15: 0.2 | AD15: 0.03633 | AF15: 13 | AG15: 0.154 | AH15: 0.167 | AI15: 0.0518
B16: 14 | C16: 0.143 | D16: 0.167 | E16: 0.04854 | H16: 14 | I16: 0.072 | J16: 0.179 | K16: 0.2 | L16: 0.03389 | N16: 14 | O16: 0.071 | P16: 0.152 | R16: 14 | S16: 0.071 | U16: 14 | V16: 0.152 | X16: 14 | Y16: 0.072 | AA16: 14 | AB16: 0.179 | AC16: 0.2 | AD16: 0.03389 | AF16: 14 | AG16: 0.143 | AH16: 0.167 | AI16: 0.04854
B17: 15 | C17: 0.133 | D17: 0.143 | E17: 0.04565 | H17: 15 | I17: 0.067 | J17: 0.167 | K17: 0.2 | L17: 0.03217 | N17: 15 | O17: 0.066 | P17: 0.142 | R17: 15 | S17: 0.066 | U17: 15 | V17: 0.142 | X17: 15 | Y17: 0.067 | AA17: 15 | AB17: 0.167 | AC17: 0.2 | AD17: 0.03217 | AF17: 15 | AG17: 0.133 | AH17: 0.143 | AI17: 0.04565
B18: 16 | C18: 0.125 | D18: 0.143 | E18: 0.04294 | H18: 16 | I18: 0.063 | J18: 0.156 | K18: 0.167 | L18: 0.03063 | N18: 16 | O18: 0.062 | P18: 0.134 | R18: 16 | S18: 0.062 | U18: 16 | V18: 0.134 | X18: 16 | Y18: 0.063 | AA18: 16 | AB18: 0.156 | AC18: 0.167 | AD18: 0.03063 | AF18: 16 | AG18: 0.125 | AH18: 0.143 | AI18: 0.04294
B19: 17 | C19: 0.118 | D19: 0.125 | E19: 0.04038 | H19: 17 | I19: 0.059 | J19: 0.147 | K19: 0.167 | L19: 0.02905 | N19: 17 | O19: 0.058 | P19: 0.127 | R19: 17 | S19: 0.058 | U19: 17 | V19: 0.127 | X19: 17 | Y19: 0.059 | AA19: 17 | AB19: 0.147 | AC19: 0.167 | AD19: 0.02905 | AF19: 17 | AG19: 0.118 | AH19: 0.125 | AI19: 0.04038
B20: 18 | C20: 0.111 | D20: 0.112 | E20: 0.03884 | H20: 18 | I20: 0.056 | J20: 0.139 | K20: 0.143 | L20: 0.02757 | N20: 18 | O20: 0.055 | P20: 0.12 | R20: 18 | S20: 0.055 | U20: 18 | V20: 0.12 | X20: 18 | Y20: 0.056 | AA20: 18 | AB20: 0.139 | AC20: 0.143 | AD20: 0.02757 | AF20: 18 | AG20: 0.111 | AH20: 0.112 | AI20: 0.03884
B21: 19 | C21: 0.105 | D21: 0.112 | E21: 0.03693 | H21: 19 | I21: 0.053 | J21: 0.132 | K21: 0.143 | L21: 0.02616 | N21: 19 | O21: 0.052 | P21: 0.114 | R21: 19 | S21: 0.052 | U21: 19 | V21: 0.114 | X21: 19 | Y21: 0.053 | AA21: 19 | AB21: 0.132 | AC21: 0.143 | AD21: 0.02616 | AF21: 19 | AG21: 0.105 | AH21: 0.112 | AI21: 0.03693
B22: 20 | C22: 0.1 | D22: 0.112 | E22: 0.03486 | H22: 20 | I22: 0.05 | J22: 0.125 | K22: 0.143 | L22: 0.02517 | N22: 20 | O22: 0.05 | P22: 0.109 | R22: 20 | S22: 0.05 | U22: 20 | V22: 0.109 | X22: 20 | Y22: 0.05 | AA22: 20 | AB22: 0.125 | AC22: 0.143 | AD22: 0.02517 | AF22: 20 | AG22: 0.1 | AH22: 0.112 | AI22: 0.03486
B23: 21 | C23: 0.095 | D23: 0.1 | E23: 0.03335 | H23: 21 | I23: 0.048 | J23: 0.119 | K23: 0.125 | L23: 0.02408 | N23: 21 | O23: 0.048 | P23: 0.104 | R23: 21 | S23: 0.048 | U23: 21 | V23: 0.104 | X23: 21 | Y23: 0.048 | AA23: 21 | AB23: 0.119 | AC23: 0.125 | AD23: 0.02408 | AF23: 21 | AG23: 0.095 | AH23: 0.1 | AI23: 0.03335
B24: 22 | C24: 0.091 | D24: 0.1 | E24: 0.03182 | H24: 22 | I24: 0.046 | J24: 0.114 | K24: 0.125 | L24: 0.02296 | N24: 22 | O24: 0.046 | P24: 0.099 | R24: 22 | S24: 0.046 | U24: 22 | V24: 0.099 | X24: 22 | Y24: 0.046 | AA24: 22 | AB24: 0.114 | AC24: 0.125 | AD24: 0.02296 | AF24: 22 | AG24: 0.091 | AH24: 0.1 | AI24: 0.03182
B25: 23 | C25: 0.087 | D25: 0.091 | E25: 0.03052 | H25: 23 | I25: 0.044 | J25: 0.109 | K25: 0.112 | L25: 0.02226 | N25: 23 | O25: 0.044 | P25: 0.095 | R25: 23 | S25: 0.044 | U25: 23 | V25: 0.095 | X25: 23 | Y25: 0.044 | AA25: 23 | AB25: 0.109 | AC25: 0.112 | AD25: 0.02226 | AF25: 23 | AG25: 0.087 | AH25: 0.091 | AI25: 0.03052
B26: 24 | C26: 0.083 | D26: 0.084 | E26: 0.02969 | H26: 24 | I26: 0.042 | J26: 0.104 | K26: 0.112 | L26: 0.02157 | N26: 24 | O26: 0.042 | P26: 0.092 | R26: 24 | S26: 0.042 | U26: 24 | V26: 0.092 | X26: 24 | Y26: 0.042 | AA26: 24 | AB26: 0.104 | AC26: 0.112 | AD26: 0.02157 | AF26: 24 | AG26: 0.083 | AH26: 0.084 | AI26: 0.02969
B27: 25 | C27: 0.08 | D27: 0.084 | E27: 0.02841 | H27: 25 | I27: 0.04 | J27: 0.1 | K27: 0.112 | L27: 0.02058 | N27: 25 | O27: 0.04 | P27: 0.088 | R27: 25 | S27: 0.04 | U27: 25 | V27: 0.088 | X27: 25 | Y27: 0.04 | AA27: 25 | AB27: 0.1 | AC27: 0.112 | AD27: 0.02058 | AF27: 25 | AG27: 0.08 | AH27: 0.084 | AI27: 0.02841
B28: 26 | C28: 0.077 | D28: 0.084 | E28: 0.02716 | H28: 26 | I28: 0.039 | J28: 0.096 | K28: 0.1 | L28: 0.01989 | N28: 26 | O28: 0.039 | P28: 0.085 | R28: 26 | S28: 0.039 | U28: 26 | V28: 0.085 | X28: 26 | Y28: 0.039 | AA28: 26 | AB28: 0.096 | AC28: 0.1 | AD28: 0.01989 | AF28: 26 | AG28: 0.077 | AH28: 0.084 | AI28: 0.02716
B29: 27 | C29: 0.074 | D29: 0.077 | E29: 0.02624 | H29: 27 | I29: 0.038 | J29: 0.093 | K29: 0.1 | L29: 0.01902 | N29: 27 | O29: 0.037 | P29: 0.082 | R29: 27 | S29: 0.037 | U29: 27 | V29: 0.082 | X29: 27 | Y29: 0.038 | AA29: 27 | AB29: 0.093 | AC29: 0.1 | AD29: 0.01902 | AF29: 27 | AG29: 0.074 | AH29: 0.077 | AI29: 0.02624
B30: 28 | C30: 0.071 | D30: 0.072 | E30: 0.02568 | H30: 28 | I30: 0.036 | J30: 0.089 | K30: 0.091 | L30: 0.01866 | N30: 28 | O30: 0.036 | P30: 0.079 | R30: 28 | S30: 0.036 | U30: 28 | V30: 0.079 | X30: 28 | Y30: 0.036 | AA30: 28 | AB30: 0.089 | AC30: 0.091 | AD30: 0.01866 | AF30: 28 | AG30: 0.071 | AH30: 0.072 | AI30: 0.02568
B31: 29 | C31: 0.069 | D31: 0.072 | E31: 0.02463 | H31: 29 | I31: 0.035 | J31: 0.086 | K31: 0.091 | L31: 0.01803 | N31: 29 | O31: 0.035 | P31: 0.076 | R31: 29 | S31: 0.035 | U31: 29 | V31: 0.076 | X31: 29 | Y31: 0.035 | AA31: 29 | AB31: 0.086 | AC31: 0.091 | AD31: 0.01803 | AF31: 29 | AG31: 0.069 | AH31: 0.072 | AI31: 0.02463
B32: 30 | C32: 0.067 | D32: 0.072 | E32: 0.02366 | H32: 30 | I32: 0.034 | J32: 0.083 | K32: 0.084 | L32: 0.01766 | N32: 30 | O32: 0.034 | P32: 0.074 | R32: 30 | S32: 0.034 | U32: 30 | V32: 0.074 | X32: 30 | Y32: 0.034 | AA32: 30 | AB32: 0.083 | AC32: 0.084 | AD32: 0.01766 | AF32: 30 | AG32: 0.067 | AH32: 0.072 | AI32: 0.02366
B33: 31 | C33: 0.065 | D33: 0.067 | E33: 0.02286 | H33: 31 | I33: 0.033 | J33: 0.08 | K33: 0.084 | L33: 0.01688 | N33: 31 | O33: 0.033 | P33: 0.072 | R33: 31 | S33: 0.033 | U33: 31 | V33: 0.072 | X33: 31 | Y33: 0.033 | AA33: 31 | AB33: 0.08 | AC33: 0.084 | AD33: 0.01688 | AF33: 31 | AG33: 0.065 | AH33: 0.067 | AI33: 0.02286
B34: 32 | C34: 0.063 | D34: 0.067 | E34: 0.02216 | H34: 32 | I34: 0.032 | J34: 0.078 | K34: 0.084 | L34: 0.01655 | N34: 32 | O34: 0.032 | P34: 0.069 | R34: 32 | S34: 0.032 | U34: 32 | V34: 0.069 | X34: 32 | Y34: 0.032 | AA34: 32 | AB34: 0.078 | AC34: 0.084 | AD34: 0.01655 | AF34: 32 | AG34: 0.063 | AH34: 0.067 | AI34: 0.02216
B35: 33 | C35: 0.061 | D35: 0.063 | E35: 0.02161 | H35: 33 | I35: 0.031 | J35: 0.076 | K35: 0.077 | L35: 0.01585 | N35: 33 | O35: 0.031 | P35: 0.067 | R35: 33 | S35: 0.031 | U35: 33 | V35: 0.067 | X35: 33 | Y35: 0.031 | AA35: 33 | AB35: 0.076 | AC35: 0.077 | AD35: 0.01585 | AF35: 33 | AG35: 0.061 | AH35: 0.063 | AI35: 0.02161
B36: 34 | C36: 0.059 | D36: 0.063 | E36: 0.02097 | H36: 34 | I36: 0.03 | J36: 0.074 | K36: 0.077 | L36: 0.01532 | N36: 34 | O36: 0.03 | P36: 0.066 | R36: 34 | S36: 0.03 | U36: 34 | V36: 0.066 | X36: 34 | Y36: 0.03 | AA36: 34 | AB36: 0.074 | AC36: 0.077 | AD36: 0.01532 | AF36: 34 | AG36: 0.059 | AH36: 0.063 | AI36: 0.02097
B37: 35 | C37: 0.057 | D37: 0.059 | E37: 0.02051 | H37: 35 | I37: 0.029 | J37: 0.07 | K37: 0.072 | L37: 0.01532 | N37: 35 | O37: 0.029 | P37: 0.064 | R37: 35 | S37: 0.029 | U37: 35 | V37: 0.064 | X37: 35 | Y37: 0.029 | AA37: 35 | AB37: 0.07 | AC37: 0.072 | AD37: 0.01532 | AF37: 35 | AG37: 0.057 | AH37: 0.059 | AI37: 0.02051
B38: 36 | C38: 0.056 | D38: 0.059 | E38: 0.01974 | H38: 36 | I38: 0.028 | J38: 0.069 | K38: 0.072 | L38: 0.01494 | N38: 36 | O38: 0.028 | P38: 0.062 | R38: 36 | S38: 0.028 | U38: 36 | V38: 0.062 | X38: 36 | Y38: 0.028 | AA38: 36 | AB38: 0.069 | AC38: 0.072 | AD38: 0.01494 | AF38: 36 | AG38: 0.056 | AH38: 0.059 | AI38: 0.01974
B39: 37 | C39: 0.054 | D39: 0.056 | E39: 0.0195 | H39: 37 | I39: 0.028 | J39: 0.068 | K39: 0.072 | L39: 0.01425 | N39: 37 | O39: 0.027 | P39: 0.06 | R39: 37 | S39: 0.027 | U39: 37 | V39: 0.06 | X39: 37 | Y39: 0.028 | AA39: 37 | AB39: 0.068 | AC39: 0.072 | AD39: 0.01425 | AF39: 37 | AG39: 0.054 | AH39: 0.056 | AI39: 0.0195
B40: 38 | C40: 0.053 | D40: 0.056 | E40: 0.01882 | H40: 38 | I40: 0.027 | J40: 0.066 | K40: 0.067 | L40: 0.01393 | N40: 38 | O40: 0.027 | P40: 0.059 | R40: 38 | S40: 0.027 | U40: 38 | V40: 0.059 | X40: 38 | Y40: 0.027 | AA40: 38 | AB40: 0.066 | AC40: 0.067 | AD40: 0.01393 | AF40: 38 | AG40: 0.053 | AH40: 0.056 | AI40: 0.01882
B41: 39 | C41: 0.051 | D41: 0.053 | E41: 0.0186 | H41: 39 | I41: 0.026 | J41: 0.064 | K41: 0.067 | L41: 0.0137 | N41: 39 | O41: 0.026 | P41: 0.057 | R41: 39 | S41: 0.026 | U41: 39 | V41: 0.057 | X41: 39 | Y41: 0.026 | AA41: 39 | AB41: 0.064 | AC41: 0.067 | AD41: 0.0137 | AF41: 39 | AG41: 0.051 | AH41: 0.053 | AI41: 0.0186
B42: 40 | C42: 0.05 | D42: 0.053 | E42: 0.01791 | H42: 40 | I42: 0.025 | J42: 0.063 | K42: 0.067 | L42: 0.01317 | N42: 40 | O42: 0.025 | P42: 0.056 | R42: 40 | S42: 0.025 | U42: 40 | V42: 0.056 | X42: 40 | Y42: 0.025 | AA42: 40 | AB42: 0.063 | AC42: 0.067 | AD42: 0.01317 | AF42: 40 | AG42: 0.05 | AH42: 0.053 | AI42: 0.01791
B43: 41 | C43: 0.049 | D43: 0.05 | E43: 0.01741 | H43: 41 | I43: 0.025 | J43: 0.06 | K43: 0.063 | L43: 0.01306 | N43: 41 | O43: 0.025 | P43: 0.055 | R43: 41 | S43: 0.025 | U43: 41 | V43: 0.055 | X43: 41 | Y43: 0.025 | AA43: 41 | AB43: 0.06 | AC43: 0.063 | AD43: 0.01306 | AF43: 41 | AG43: 0.049 | AH43: 0.05 | AI43: 0.01741
B44: 42 | C44: 0.048 | D44: 0.05 | E44: 0.01694 | H44: 42 | I44: 0.024 | J44: 0.06 | K44: 0.063 | L44: 0.01261 | N44: 42 | O44: 0.024 | P44: 0.053 | R44: 42 | S44: 0.024 | U44: 42 | V44: 0.053 | X44: 42 | Y44: 0.024 | AA44: 42 | AB44: 0.06 | AC44: 0.063 | AD44: 0.01261 | AF44: 42 | AG44: 0.048 | AH44: 0.05 | AI44: 0.01694
B45: 43 | C45: 0.047 | D45: 0.048 | E45: 0.01664 | H45: 43 | I45: 0.024 | J45: 0.058 | K45: 0.059 | L45: 0.01248 | N45: 43 | O45: 0.024 | P45: 0.052 | R45: 43 | S45: 0.024 | U45: 43 | V45: 0.052 | X45: 43 | Y45: 0.024 | AA45: 43 | AB45: 0.058 | AC45: 0.059 | AD45: 0.01248 | AF45: 43 | AG45: 0.047 | AH45: 0.048 | AI45: 0.01664
B46: 44 | C46: 0.045 | D46: 0.046 | E46: 0.01664 | H46: 44 | I46: 0.023 | J46: 0.057 | K46: 0.059 | L46: 0.0121 | N46: 44 | O46: 0.023 | P46: 0.051 | R46: 44 | S46: 0.023 | U46: 44 | V46: 0.051 | X46: 44 | Y46: 0.023 | AA46: 44 | AB46: 0.057 | AC46: 0.059 | AD46: 0.0121 | AF46: 44 | AG46: 0.045 | AH46: 0.046 | AI46: 0.01664
B47: 45 | C47: 0.044 | D47: 0.046 | E47: 0.01634 | H47: 45 | I47: 0.023 | J47: 0.056 | K47: 0.059 | L47: 0.01175 | N47: 45 | O47: 0.023 | P47: 0.05 | R47: 45 | S47: 0.023 | U47: 45 | V47: 0.05 | X47: 45 | Y47: 0.023 | AA47: 45 | AB47: 0.056 | AC47: 0.059 | AD47: 0.01175 | AF47: 45 | AG47: 0.044 | AH47: 0.046 | AI47: 0.01634
B48: 46 | C48: 0.043 | D48: 0.044 | E48: 0.01601 | H48: 46 | I48: 0.022 | J48: 0.054 | K48: 0.056 | L48: 0.01175 | N48: 46 | O48: 0.022 | P48: 0.049 | R48: 46 | S48: 0.022 | U48: 46 | V48: 0.049 | X48: 46 | Y48: 0.022 | AA48: 46 | AB48: 0.054 | AC48: 0.056 | AD48: 0.01175 | AF48: 46 | AG48: 0.043 | AH48: 0.044 | AI48: 0.01601
B49: 47 | C49: 0.043 | D49: 0.044 | E49: 0.01532 | H49: 47 | I49: 0.022 | J49: 0.053 | K49: 0.056 | L49: 0.01153 | N49: 47 | O49: 0.022 | P49: 0.048 | R49: 47 | S49: 0.022 | U49: 47 | V49: 0.048 | X49: 47 | Y49: 0.022 | AA49: 47 | AB49: 0.053 | AC49: 0.056 | AD49: 0.01153 | AF49: 47 | AG49: 0.043 | AH49: 0.044 | AI49: 0.01532
B50: 48 | C50: 0.042 | D50: 0.044 | E50: 0.01499 | H50: 48 | I50: 0.021 | J50: 0.052 | K50: 0.053 | L50: 0.01126 | N50: 48 | O50: 0.021 | P50: 0.047 | R50: 48 | S50: 0.021 | U50: 48 | V50: 0.047 | X50: 48 | Y50: 0.021 | AA50: 48 | AB50: 0.052 | AC50: 0.053 | AD50: 0.01126 | AF50: 48 | AG50: 0.042 | AH50: 0.044 | AI50: 0.01499
B51: 49 | C51: 0.041 | D51: 0.042 | E51: 0.01475 | H51: 49 | I51: 0.021 | J51: 0.05 | K51: 0.053 | L51: 0.01102 | N51: 49 | O51: 0.021 | P51: 0.046 | R51: 49 | S51: 0.021 | U51: 49 | V51: 0.046 | X51: 49 | Y51: 0.021 | AA51: 49 | AB51: 0.05 | AC51: 0.053 | AD51: 0.01102 | AF51: 49 | AG51: 0.041 | AH51: 0.042 | AI51: 0.01475
B52: 50 | C52: 0.04 | D52: 0.042 | E52: 0.0144 | H52: 50 | I52: 0.02 | J52: 0.05 | K52: 0.053 | L52: 0.01072 | N52: 50 | O52: 0.02 | P52: 0.045 | R52: 50 | S52: 0.02 | U52: 50 | V52: 0.045 | X52: 50 | Y52: 0.02 | AA52: 50 | AB52: 0.05 | AC52: 0.053 | AD52: 0.01072 | AF52: 50 | AG52: 0.04 | AH52: 0.042 | AI52: 0.0144

Sheet 借入・返済計画
A6: １、借入金のある金融機関を入力 | E6: ※期首残高チェック
A7: 番号 | B7: 金融機関名 | E7: 区分 | G7: 明細の残高 | I7: 決算情報 | J7: 一致／不一致
A8: 1 | B8: 四菱大江戸ＵＳＪ銀行 | E8: 短期 | G8: =SUMIF(C$158:J$167,E8,J$158:J$167) -> 0 | I8: =決算情報登録!E51 -> 0 | J8: =IF(G8=I8,"一致","不一致") -> 一致
A9: 2 | B9: 東灘信用金庫 | E9: 長期 | G9: =SUMIF(C$158:J$167,E9,J$158:J$167) -> 33000000 | I9: =決算情報登録!E60 -> 33000000 | J9: =IF(G9=I9,"一致","不一致") -> 一致
A10: 3 | E10: 社債 | G10: 0 | I10: =決算情報登録!E62 -> 0 | J10: =IF(G10=I10,"一致","不一致") -> 一致
A11: 4 | E11: 合計 | G11: =SUM(G8:H10) -> 33000000 | I11: =SUM(I8:I10) -> 33000000
A12: 5 | B12: 役員借入金
A13: 6 | B13: 関連会社
A15: ２、既存借入金の明細を入力 | BY15: =基本情報!C7 -> 株式会社一木運送
A17: 番号 | B17: 借入先 | C17: 借入金の 種類 | D17: 借入日 | E17: 借入 期間 | F17: 返済終了日 | G17: 返済方法 | H17: 利率 | I17: 当初借入額 | J17: 期首残高 | M17: 計画第１期 | Y17: 計画第１期 小計 | Z17: 計画第２期 | AL17: 計画第２期 小計 | AM17: 計画第３期 | AY17: 計画第３期 小計 | AZ17: 計画第４期 | BL17: 計画第４期 小計 | BM17: 計画第５期 | BY17: 計画第５期 小計
M18: =EOMONTH(K19,1) -> 2014-04-30 | N18: =EOMONTH(M18,1) -> 2014-05-31 | O18: =EOMONTH(N18,1) -> 2014-06-30 | P18: 2014-07-31 | Q18: 2014-08-31 | R18: 2014-09-30 | S18: 2014-10-31 | T18: 2014-11-30 | U18: 2014-12-31 | V18: 2015-01-31 | W18: 2015-02-28 | X18: 2015-03-31 | Z18: =EOMONTH(X18,1) -> 2015-04-30 | AA18: 2015-05-31 | AB18: 2015-06-30 | AC18: 2015-07-31 | AD18: 2015-08-31 | AE18: 2015-09-30 | AF18: 2015-10-31 | AG18: 2015-11-30 | AH18: 2015-12-31 | AI18: 2016-01-31 | AJ18: 2016-02-29 | AK18: 2016-03-31 | AM18: =EOMONTH(AK18,1) -> 2016-04-30 | AN18: 2016-05-31 | AO18: 2016-06-30 | AP18: 2016-07-31 | AQ18: 2016-08-31 | AR18: 2016-09-30 | AS18: 2016-10-31 | AT18: 2016-11-30 | AU18: 2016-12-31 | AV18: 2017-01-31 | AW18: 2017-02-28 | AX18: 2017-03-31 | AZ18: =EOMONTH(AX18,1) -> 2017-04-30 | BA18: 2017-05-31 | BB18: 2017-06-30 | BC18: 2017-07-31 | BD18: 2017-08-31 | BE18: 2017-09-30 | BF18: 2017-10-31 | BG18: 2017-11-30 | BH18: 2017-12-31 | BI18: 2018-01-31 | BJ18: 2018-02-28 | BK18: 2018-03-31 | BM18: =EOMONTH(BK18,1) -> 2018-04-30 | BN18: 2018-05-31 | BO18: 2018-06-30 | BP18: 2018-07-31 | BQ18: 2018-08-31 | BR18: 2018-09-30 | BS18: =EOMONTH(BR18,1) -> 2018-10-31 | BT18: 2018-11-30 | BU18: 2018-12-31 | BV18: 2019-01-31 | BW18: 2019-02-28 | BX18: 2019-03-31
A19: 1 | B19: 四菱大江戸ＵＳＪ銀行 | C19: 長期 | D19: 2012-09-30 | E19: 7 | F19: =EOMONTH(D19,E19*12) -> 2019-09-30 | G19: 元金均等 | H19: 0.0185 | I19: 18000000 | J19: 15000000 | K19: =EOMONTH(基本情報!$C$9,-12) -> 2014-03-31 | L19: 返済回 | M19: =IF(M$18>$F19,"",DATEDIF($D19,M$18,"M")) -> 19 | N19: =IF(N$18>$F19,"",DATEDIF($D19,N$18,"M")) -> 20 | O19: 21 | P19: 22 | Q19: 23 | R19: 24 | S19: 25 | T19: 26 | U19: 27 | V19: 28 | W19: 28 | X19: 30 | Z19: =IF(Z$18>$F19,"",DATEDIF($D19,Z$18,"M")) -> 31 | AA19: =IF(AA$18>$F19,"",DATEDIF($D19,AA$18,"M")) -> 32 | AB19: 33 | AC19: 34 | AD19: 35 | AE19: 36 | AF19: 37 | AG19: 38 | AH19: 39 | AI19: 40 | AJ19: 40 | AK19: 42 | AM19: =IF(AM$18>$F19,"",DATEDIF($D19,AM$18,"M")) -> 43 | AN19: =IF(AN$18>$F19,"",DATEDIF($D19,AN$18,"M")) -> 44 | AO19: 45 | AP19: 46 | AQ19: 47 | AR19: 48 | AS19: 49 | AT19: 50 | AU19: 51 | AV19: 52 | AW19: 52 | AX19: 54 | AZ19: =IF(AZ$18>$F19,"",DATEDIF($D19,AZ$18,"M")) -> 55 | BA19: =IF(BA$18>$F19,"",DATEDIF($D19,BA$18,"M")) -> 56 | BB19: 57 | BC19: 58 | BD19: 59 | BE19: 60 | BF19: 61 | BG19: 62 | BH19: 63 | BI19: 64 | BJ19: 64 | BK19: 66 | BM19: =IF(BM$18>$F19,"",DATEDIF($D19,BM$18,"M")) -> 67 | BN19: =IF(BN$18>$F19,"",DATEDIF($D19,BN$18,"M")) -> 68 | BO19: 69 | BP19: 70 | BQ19: 71 | BR19: 72 | BS19: 73 | BT19: 74 | BU19: 75 | BV19: 76 | BW19: 76 | BX19: 78
L20: 返済額 | M20: 214285 | N20: 214285 | O20: 214285 | P20: 214285 | Q20: 214285 | R20: 214285 | S20: 214285 | T20: 214285 | U20: 214285 | V20: 214285 | W20: 214285 | X20: 214285 | Y20: =SUM(M20:X20) -> 2571420 | Z20: 214285 | AA20: 214285 | AB20: 214285 | AC20: 214285 | AD20: 214285 | AE20: 214285 | AF20: 214285 | AG20: 214285 | AH20: 214285 | AI20: 214285 | AJ20: 214285 | AK20: 214285 | AL20: =SUM(Z20:AK20) -> 2571420 | AM20: 214285 | AN20: 214285 | AO20: 214285 | AP20: 214285 | AQ20: 214285 | AR20: 214285 | AS20: 214285 | AT20: 214285 | AU20: 214285 | AV20: 214285 | AW20: 214285 | AX20: 214285 | AY20: =SUM(AM20:AX20) -> 2571420 | AZ20: 214285 | BA20: 214285 | BB20: 214285 | BC20: 214285 | BD20: 214285 | BE20: 214285 | BF20: 214285 | BG20: 214285 | BH20: 214285 | BI20: 214285 | BJ20: 214285 | BK20: 214285 | BL20: =SUM(AZ20:BK20) -> 2571420 | BM20: 214285 | BN20: 214285 | BO20: 214285 | BP20: 214285 | BQ20: 214285 | BR20: 214285 | BS20: 214285 | BT20: 214285 | BU20: 214285 | BV20: 214285 | BW20: 214285 | BX20: 214285 | BY20: =SUM(BM20:BX20) -> 2571420
L21: 残高 | M21: =J19-M20 -> 14785715 | N21: =M21-N20 -> 14571430 | O21: =N21-O20 -> 14357145 | P21: 14142860 | Q21: 13928575 | R21: 13714290 | S21: 13500005 | T21: 13285720 | U21: 13071435 | V21: 12857150 | W21: 12642865 | X21: 12428580 | Z21: =X21-Z20 -> 12214295 | AA21: =Z21-AA20 -> 12000010 | AB21: 11785725 | AC21: 11571440 | AD21: 11357155 | AE21: 11142870 | AF21: 10928585 | AG21: 10714300 | AH21: 10500015 | AI21: 10285730 | AJ21: 10071445 | AK21: 9857160 | AM21: =AK21-AM20 -> 9642875 | AN21: =AM21-AN20 -> 9428590 | AO21: 9214305 | AP21: 9000020 | AQ21: 8785735 | AR21: 8571450 | AS21: 8357165 | AT21: 8142880 | AU21: 7928595 | AV21: 7714310 | AW21: 7500025 | AX21: 7285740 | AZ21: =AX21-AZ20 -> 7071455 | BA21: =AZ21-BA20 -> 6857170 | BB21: 6642885 | BC21: 6428600 | BD21: 6214315 | BE21: 6000030 | BF21: 5785745 | BG21: 5571460 | BH21: 5357175 | BI21: 5142890 | BJ21: 4928605 | BK21: 4714320 | BM21: =BK21-BM20 -> 4500035 | BN21: =BM21-BN20 -> 4285750 | BO21: 4071465 | BP21: 3857180 | BQ21: 3642895 | BR21: 3428610 | BS21: 3214325 | BT21: 3000040 | BU21: 2785755 | BV21: 2571470 | BW21: 2357185 | BX21: 2142900
L22: 利息額 | M22: 21473 | N22: 21142 | O22: 20812 | P22: 20482 | Q22: 20151 | R22: 19821 | S22: 19491 | T22: 19160 | U22: 18830 | V22: 18500 | W22: 18500 | X22: 17839 | Y22: =SUM(M22:X22) -> 236201 | Z22: 17508 | AA22: 17178 | AB22: 16848 | AC22: 16517 | AD22: 16187 | AE22: 15857 | AF22: 15526 | AG22: 15196 | AH22: 14866 | AI22: 14535 | AJ22: 14535 | AK22: 13875 | AL22: =SUM(Z22:AK22) -> 188628 | AM22: 13544 | AN22: 13214 | AO22: 12883 | AP22: 12553 | AQ22: 12223 | AR22: 11892 | AS22: 11562 | AT22: 11232 | AU22: 10901 | AV22: 10571 | AW22: 10571 | AX22: 9910 | AY22: =SUM(AM22:AX22) -> 141056 | AZ22: 9580 | BA22: 9250 | BB22: 8919 | BC22: 8589 | BD22: 8258 | BE22: 7928 | BF22: 7598 | BG22: 7267 | BH22: 6937 | BI22: 6607 | BJ22: 6607 | BK22: 5946 | BL22: =SUM(AZ22:BK22) -> 93486 | BM22: 5616 | BN22: 5285 | BO22: 4955 | BP22: 4625 | BQ22: 4294 | BR22: 3964 | BS22: 3633 | BT22: 3303 | BU22: 2973 | BV22: 2642 | BW22: 2642 | BX22: 1982 | BY22: =SUM(BM22:BX22) -> 45914
A23: 2 | B23: 東灘信用金庫 | C23: 長期 | D23: 2012-11-01 | E23: 7 | F23: =EOMONTH(D23,E23*12) -> 2019-11-30 | G23: 元金均等 | H23: 0.013 | I23: 20000000 | J23: 17000000 | K23: =EOMONTH(基本情報!$C$9,-12) -> 2014-03-31 | L23: 返済回 | M23: =IF(M$18>$F23,"",DATEDIF($D23,M$18,"M")) -> 17 | N23: =IF(N$18>$F23,"",DATEDIF($D23,N$18,"M")) -> 18 | O23: 19 | P23: 20 | Q23: 21 | R23: 22 | S23: 23 | T23: 24 | U23: 25 | V23: 26 | W23: 27 | X23: 28 | Z23: =IF(Z$18>$F23,"",DATEDIF($D23,Z$18,"M")) -> 29 | AA23: =IF(AA$18>$F23,"",DATEDIF($D23,AA$18,"M")) -> 30 | AB23: 31 | AC23: 32 | AD23: 33 | AE23: 34 | AF23: 35 | AG23: 36 | AH23: 37 | AI23: 38 | AJ23: 39 | AK23: 40 | AM23: =IF(AM$18>$F23,"",DATEDIF($D23,AM$18,"M")) -> 41 | AN23: =IF(AN$18>$F23,"",DATEDIF($D23,AN$18,"M")) -> 42 | AO23: 43 | AP23: 44 | AQ23: 45 | AR23: 46 | AS23: 47 | AT23: 48 | AU23: 49 | AV23: 50 | AW23: 51 | AX23: 52 | AZ23: =IF(AZ$18>$F23,"",DATEDIF($D23,AZ$18,"M")) -> 53 | BA23: =IF(BA$18>$F23,"",DATEDIF($D23,BA$18,"M")) -> 54 | BB23: 55 | BC23: 56 | BD23: 57 | BE23: 58 | BF23: 59 | BG23: 60 | BH23: 61 | BI23: 62 | BJ23: 63 | BK23: 64 | BM23: =IF(BM$18>$F23,"",DATEDIF($D23,BM$18,"M")) -> 65 | BN23: =IF(BN$18>$F23,"",DATEDIF($D23,BN$18,"M")) -> 66 | BO23: 67 | BP23: 68 | BQ23: 69 | BR23: 70 | BS23: 71 | BT23: 72 | BU23: 73 | BV23: 74 | BW23: 75 | BX23: 76
L24: 返済額 | M24: 238095 | N24: 238095 | O24: 238095 | P24: 238095 | Q24: 238095 | R24: 238095 | S24: 238095 | T24: 238095 | U24: 238095 | V24: 238095 | W24: 238095 | X24: 238095 | Y24: =SUM(M24:X24) -> 2857140 | Z24: 238095 | AA24: 238095 | AB24: 238095 | AC24: 238095 | AD24: 238095 | AE24: 238095 | AF24: 238095 | AG24: 238095 | AH24: 238095 | AI24: 238095 | AJ24: 238095 | AK24: 238095 | AL24: =SUM(Z24:AK24) -> 2857140 | AM24: 238095 | AN24: 238095 | AO24: 238095 | AP24: 238095 | AQ24: 238095 | AR24: 238095 | AS24: 238095 | AT24: 238095 | AU24: 238095 | AV24: 238095 | AW24: 238095 | AX24: 238095 | AY24: =SUM(AM24:AX24) -> 2857140 | AZ24: 238095 | BA24: 238095 | BB24: 238095 | BC24: 238095 | BD24: 238095 | BE24: 238095 | BF24: 238095 | BG24: 238095 | BH24: 238095 | BI24: 238095 | BJ24: 238095 | BK24: 238095 | BL24: =SUM(AZ24:BK24) -> 2857140 | BM24: 238095 | BN24: 238095 | BO24: 238095 | BP24: 238095 | BQ24: 238095 | BR24: 238095 | BS24: 238095 | BT24: 238095 | BU24: 238095 | BV24: 238095 | BW24: 238095 | BX24: 238095 | BY24: =SUM(BM24:BX24) -> 2857140
L25: 残高 | M25: =J23-M24 -> 16761905 | N25: =M25-N24 -> 16523810 | O25: 16285715 | P25: 16047620 | Q25: 15809525 | R25: 15571430 | S25: 15333335 | T25: 15095240 | U25: 14857145 | V25: 14619050 | W25: 14380955 | X25: 14142860 | Z25: =X25-Z24 -> 13904765 | AA25: =Z25-AA24 -> 13666670 | AB25: 13428575 | AC25: 13190480 | AD25: 12952385 | AE25: 12714290 | AF25: 12476195 | AG25: 12238100 | AH25: 12000005 | AI25: 11761910 | AJ25: 11523815 | AK25: 11285720 | AM25: =AK25-AM24 -> 11047625 | AN25: =AM25-AN24 -> 10809530 | AO25: 10571435 | AP25: 10333340 | AQ25: 10095245 | AR25: 9857150 | AS25: 9619055 | AT25: 9380960 | AU25: 9142865 | AV25: 8904770 | AW25: 8666675 | AX25: 8428580 | AZ25: =AX25-AZ24 -> 8190485 | BA25: =AZ25-BA24 -> 7952390 | BB25: 7714295 | BC25: 7476200 | BD25: 7238105 | BE25: 7000010 | BF25: 6761915 | BG25: 6523820 | BH25: 6285725 | BI25: 6047630 | BJ25: 5809535 | BK25: 5571440 | BM25: =BK25-BM24 -> 5333345 | BN25: =BM25-BN24 -> 5095250 | BO25: 4857155 | BP25: 4619060 | BQ25: 4380965 | BR25: 4142870 | BS25: 3904775 | BT25: 3666680 | BU25: 3428585 | BV25: 3190490 | BW25: 2952395 | BX25: 2714300
L26: 利息額 | M26: 17281 | N26: 17023 | O26: 16765 | P26: 16507 | Q26: 16250 | R26: 15992 | S26: 15734 | T26: 15476 | U26: 15218 | V26: 14960 | W26: 14702 | X26: 14444 | Y26: =SUM(M26:X26) -> 190352 | Z26: 14186 | AA26: 13928 | AB26: 13670 | AC26: 13412 | AD26: 13154 | AE26: 12896 | AF26: 12638 | AG26: 12380 | AH26: 12123 | AI26: 11865 | AJ26: 11607 | AK26: 11349 | AL26: =SUM(Z26:AK26) -> 153208 | AM26: 11091 | AN26: 10833 | AO26: 10575 | AP26: 10317 | AQ26: 10059 | AR26: 9801 | AS26: 9543 | AT26: 9285 | AU26: 9027 | AV26: 8769 | AW26: 8511 | AX26: 8253 | AY26: =SUM(AM26:AX26) -> 116064 | AZ26: 7996 | BA26: 7738 | BB26: 7480 | BC26: 7222 | BD26: 6964 | BE26: 6706 | BF26: 6448 | BG26: 6190 | BH26: 5932 | BI26: 5674 | BJ26: 5416 | BK26: 5158 | BL26: =SUM(AZ26:BK26) -> 78924 | BM26: 4900 | BN26: 4642 | BO26: 4384 | BP26: 4126 | BQ26: 3869 | BR26: 3611 | BS26: 3353 | BT26: 3095 | BU26: 2837 | BV26: 2579 | BW26: 2321 | BX26: 2063 | BY26: =SUM(BM26:BX26) -> 41780
A27: 3 | B27: 役員借入金 | C27: 長期 | D27: 2012-09-01 | E27: 0 | F27: =EOMONTH(D27,E27*12) -> 2012-09-30 | G27: 元金均等 | H27: 0 | I27: 1000000 | J27: 1000000 | K27: =EOMONTH(基本情報!$C$9,-12) -> 2014-03-31 | L27: 返済回 | M27: =IF(M$18>$F27,"",DATEDIF($D27,M$18,"M")) ->  | N27: =IF(N$18>$F27,"",DATEDIF($D27,N$18,"M")) ->  | Z27: =IF(Z$18>$F27,"",DATEDIF($D27,Z$18,"M")) ->  | AA27: =IF(AA$18>$F27,"",DATEDIF($D27,AA$18,"M")) ->  | AM27: =IF(AM$18>$F27,"",DATEDIF($D27,AM$18,"M")) ->  | AN27: =IF(AN$18>$F27,"",DATEDIF($D27,AN$18,"M")) ->  | AZ27: =IF(AZ$18>$F27,"",DATEDIF($D27,AZ$18,"M")) ->  | BA27: =IF(BA$18>$F27,"",DATEDIF($D27,BA$18,"M")) ->  | BM27: =IF(BM$18>$F27,"",DATEDIF($D27,BM$18,"M")) ->  | BN27: =IF(BN$18>$F27,"",DATEDIF($D27,BN$18,"M")) -> 
L28: 返済額 | M28: 0 | N28: 0 | O28: 0 | P28: 0 | Q28: 0 | R28: 0 | S28: 0 | T28: 0 | U28: 0 | V28: 0 | W28: 0 | X28: 0 | Y28: =SUM(M28:X28) -> 0 | Z28: 0 | AA28: 0 | AB28: 0 | AC28: 0 | AD28: 0 | AE28: 0 | AF28: 0 | AG28: 0 | AH28: 0 | AI28: 0 | AJ28: 0 | AK28: 0 | AL28: =SUM(Z28:AK28) -> 0 | AM28: 0 | AN28: 0 | AO28: 0 | AP28: 0 | AQ28: 0 | AR28: 0 | AS28: 0 | AT28: 0 | AU28: 0 | AV28: 0 | AW28: 0 | AX28: 0 | AY28: =SUM(AM28:AX28) -> 0 | AZ28: 0 | BA28: 0 | BB28: 0 | BC28: 0 | BD28: 0 | BE28: 0 | BF28: 0 | BG28: 0 | BH28: 0 | BI28: 0 | BJ28: 0 | BK28: 0 | BL28: =SUM(AZ28:BK28) -> 0 | BM28: 0 | BN28: 0 | BO28: 0 | BP28: 0 | BQ28: 0 | BR28: 0 | BS28: 0 | BT28: 0 | BU28: 0 | BV28: 0 | BW28: 0 | BX28: 0 | BY28: =SUM(BM28:BX28) -> 0
L29: 残高 | M29: =J27-M28 -> 1000000 | N29: =M29-N28 -> 1000000 | O29: 1000000 | P29: 1000000 | Q29: 1000000 | R29: 1000000 | S29: 1000000 | T29: 1000000 | U29: 1000000 | V29: 1000000 | W29: 1000000 | X29: 1000000 | Z29: =X29-Z28 -> 1000000 | AA29: =Z29-AA28 -> 1000000 | AB29: 1000000 | AC29: 1000000 | AD29: 1000000 | AE29: 1000000 | AF29: 1000000 | AG29: 1000000 | AH29: 1000000 | AI29: 1000000 | AJ29: 1000000 | AK29: 1000000 | AM29: =AK29-AM28 -> 1000000 | AN29: =AM29-AN28 -> 1000000 | AO29: 1000000 | AP29: 1000000 | AQ29: 1000000 | AR29: 1000000 | AS29: 1000000 | AT29: 1000000 | AU29: 1000000 | AV29: 1000000 | AW29: 1000000 | AX29: 1000000 | AZ29: =AX29-AZ28 -> 1000000 | BA29: =AZ29-BA28 -> 1000000 | BB29: 1000000 | BC29: 1000000 | BD29: 1000000 | BE29: 1000000 | BF29: 1000000 | BG29: 1000000 | BH29: 1000000 | BI29: 1000000 | BJ29: 1000000 | BK29: 1000000 | BM29: =BK29-BM28 -> 1000000 | BN29: =BM29-BN28 -> 1000000 | BO29: 1000000 | BP29: 1000000 | BQ29: 1000000 | BR29: 1000000 | BS29: 1000000 | BT29: 1000000 | BU29: 1000000 | BV29: 1000000 | BW29: 1000000 | BX29: 1000000
L30: 利息額 | M30: 0 | N30: 0 | O30: 0 | P30: 0 | Q30: 0 | R30: 0 | S30: 0 | T30: 0 | U30: 0 | V30: 0 | W30: 0 | X30: 0 | Y30: =SUM(M30:X30) -> 0 | Z30: 0 | AA30: 0 | AB30: 0 | AC30: 0 | AD30: 0 | AE30: 0 | AF30: 0 | AG30: 0 | AH30: 0 | AI30: 0 | AJ30: 0 | AK30: 0 | AL30: =SUM(Z30:AK30) -> 0 | AM30: 0 | AN30: 0 | AO30: 0 | AP30: 0 | AQ30: 0 | AR30: 0 | AS30: 0 | AT30: 0 | AU30: 0 | AV30: 0 | AW30: 0 | AX30: 0 | AY30: =SUM(AM30:AX30) -> 0 | AZ30: 0 | BA30: 0 | BB30: 0 | BC30: 0 | BD30: 0 | BE30: 0 | BF30: 0 | BG30: 0 | BH30: 0 | BI30: 0 | BJ30: 0 | BK30: 0 | BL30: =SUM(AZ30:BK30) -> 0 | BM30: 0 | BN30: 0 | BO30: 0 | BP30: 0 | BQ30: 0 | BR30: 0 | BS30: 0 | BT30: 0 | BU30: 0 | BV30: 0 | BW30: 0 | BX30: 0 | BY30: =SUM(BM30:BX30) -> 0
A31: 4 | F31: =EOMONTH(D31,E31*12) -> 1900-01-31 | K31: =EOMONTH(基本情報!$C$9,-12) -> 2014-03-31 | L31: 返済回 | M31: =IF(M$18>$F31,"",DATEDIF($D31,M$18,"M")) ->  | N31: =IF(N$18>$F31,"",DATEDIF($D31,N$18,"M")) ->  | Z31: =IF(Z$18>$F31,"",DATEDIF($D31,Z$18,"M")) ->  | AA31: =IF(AA$18>$F31,"",DATEDIF($D31,AA$18,"M")) ->  | AM31: =IF(AM$18>$F31,"",DATEDIF($D31,AM$18,"M")) ->  | AN31: =IF(AN$18>$F31,"",DATEDIF($D31,AN$18,"M")) ->  | AZ31: =IF(AZ$18>$F31,"",DATEDIF($D31,AZ$18,"M")) ->  | BA31: =IF(BA$18>$F31,"",DATEDIF($D31,BA$18,"M")) ->  | BM31: =IF(BM$18>$F31,"",DATEDIF($D31,BM$18,"M")) ->  | BN31: =IF(BN$18>$F31,"",DATEDIF($D31,BN$18,"M")) -> 
L32: 返済額 | M32: 0 | N32: 0 | O32: 0 | P32: 0 | Q32: 0 | R32: 0 | S32: 0 | T32: 0 | U32: 0 | V32: 0 | W32: 0 | X32: 0 | Y32: =SUM(M32:X32) -> 0 | Z32: 0 | AA32: 0 | AB32: 0 | AC32: 0 | AD32: 0 | AE32: 0 | AF32: 0 | AG32: 0 | AH32: 0 | AI32: 0 | AJ32: 0 | AK32: 0 | AL32: =SUM(Z32:AK32) -> 0 | AM32: 0 | AN32: 0 | AO32: 0 | AP32: 0 | AQ32: 0 | AR32: 0 | AS32: 0 | AT32: 0 | AU32: 0 | AV32: 0 | AW32: 0 | AX32: 0 | AY32: =SUM(AM32:AX32) -> 0 | AZ32: 0 | BA32: 0 | BB32: 0 | BC32: 0 | BD32: 0 | BE32: 0 | BF32: 0 | BG32: 0 | BH32: 0 | BI32: 0 | BJ32: 0 | BK32: 0 | BL32: =SUM(AZ32:BK32) -> 0 | BM32: 0 | BN32: 0 | BO32: 0 | BP32: 0 | BQ32: 0 | BR32: 0 | BS32: 0 | BT32: 0 | BU32: 0 | BV32: 0 | BW32: 0 | BX32: 0 | BY32: =SUM(BM32:BX32) -> 0
L33: 残高 | M33: =J31-M32 -> 0 | N33: =M33-N32 -> 0 | O33: 0 | P33: 0 | Q33: 0 | R33: 0 | S33: 0 | T33: 0 | U33: 0 | V33: 0 | W33: 0 | X33: 0 | Z33: =X33-Z32 -> 0 | AA33: =Z33-AA32 -> 0 | AB33: 0 | AC33: 0 | AD33: 0 | AE33: 0 | AF33: 0 | AG33: 0 | AH33: 0 | AI33: 0 | AJ33: 0 | AK33: 0 | AM33: =AK33-AM32 -> 0 | AN33: =AM33-AN32 -> 0 | AO33: 0 | AP33: 0 | AQ33: 0 | AR33: 0 | AS33: 0 | AT33: 0 | AU33: 0 | AV33: 0 | AW33: 0 | AX33: 0 | AZ33: =AX33-AZ32 -> 0 | BA33: =AZ33-BA32 -> 0 | BB33: 0 | BC33: 0 | BD33: 0 | BE33: 0 | BF33: 0 | BG33: 0 | BH33: 0 | BI33: 0 | BJ33: 0 | BK33: 0 | BM33: =BK33-BM32 -> 0 | BN33: =BM33-BN32 -> 0 | BO33: 0 | BP33: 0 | BQ33: 0 | BR33: 0 | BS33: 0 | BT33: 0 | BU33: 0 | BV33: 0 | BW33: 0 | BX33: 0
L34: 利息額 | M34: 0 | N34: 0 | O34: 0 | P34: 0 | Q34: 0 | R34: 0 | S34: 0 | T34: 0 | U34: 0 | V34: 0 | W34: 0 | X34: 0 | Y34: =SUM(M34:X34) -> 0 | Z34: 0 | AA34: 0 | AB34: 0 | AC34: 0 | AD34: 0 | AE34: 0 | AF34: 0 | AG34: 0 | AH34: 0 | AI34: 0 | AJ34: 0 | AK34: 0 | AL34: =SUM(Z34:AK34) -> 0 | AM34: 0 | AN34: 0 | AO34: 0 | AP34: 0 | AQ34: 0 | AR34: 0 | AS34: 0 | AT34: 0 | AU34: 0 | AV34: 0 | AW34: 0 | AX34: 0 | AY34: =SUM(AM34:AX34) -> 0 | AZ34: 0 | BA34: 0 | BB34: 0 | BC34: 0 | BD34: 0 | BE34: 0 | BF34: 0 | BG34: 0 | BH34: 0 | BI34: 0 | BJ34: 0 | BK34: 0 | BL34: =SUM(AZ34:BK34) -> 0 | BM34: 0 | BN34: 0 | BO34: 0 | BP34: 0 | BQ34: 0 | BR34: 0 | BS34: 0 | BT34: 0 | BU34: 0 | BV34: 0 | BW34: 0 | BX34: 0 | BY34: =SUM(BM34:BX34) -> 0
A35: 5 | F35: =EOMONTH(D35,E35*12) -> 1900-01-31 | K35: =EOMONTH(基本情報!$C$9,-12) -> 2014-03-31 | L35: 返済回 | M35: =IF(M$18>$F35,"",DATEDIF($D35,M$18,"M")) ->  | N35: =IF(N$18>$F35,"",DATEDIF($D35,N$18,"M")) ->  | Z35: =IF(Z$18>$F35,"",DATEDIF($D35,Z$18,"M")) ->  | AA35: =IF(AA$18>$F35,"",DATEDIF($D35,AA$18,"M")) ->  | AM35: =IF(AM$18>$F35,"",DATEDIF($D35,AM$18,"M")) ->  | AN35: =IF(AN$18>$F35,"",DATEDIF($D35,AN$18,"M")) ->  | AZ35: =IF(AZ$18>$F35,"",DATEDIF($D35,AZ$18,"M")) ->  | BA35: =IF(BA$18>$F35,"",DATEDIF($D35,BA$18,"M")) ->  | BM35: =IF(BM$18>$F35,"",DATEDIF($D35,BM$18,"M")) ->  | BN35: =IF(BN$18>$F35,"",DATEDIF($D35,BN$18,"M")) -> 
L36: 返済額 | M36: 0 | N36: 0 | O36: 0 | P36: 0 | Q36: 0 | R36: 0 | S36: 0 | T36: 0 | U36: 0 | V36: 0 | W36: 0 | X36: 0 | Y36: =SUM(M36:X36) -> 0 | Z36: 0 | AA36: 0 | AB36: 0 | AC36: 0 | AD36: 0 | AE36: 0 | AF36: 0 | AG36: 0 | AH36: 0 | AI36: 0 | AJ36: 0 | AK36: 0 | AL36: =SUM(Z36:AK36) -> 0 | AM36: 0 | AN36: 0 | AO36: 0 | AP36: 0 | AQ36: 0 | AR36: 0 | AS36: 0 | AT36: 0 | AU36: 0 | AV36: 0 | AW36: 0 | AX36: 0 | AY36: =SUM(AM36:AX36) -> 0 | AZ36: 0 | BA36: 0 | BB36: 0 | BC36: 0 | BD36: 0 | BE36: 0 | BF36: 0 | BG36: 0 | BH36: 0 | BI36: 0 | BJ36: 0 | BK36: 0 | BL36: =SUM(AZ36:BK36) -> 0 | BM36: 0 | BN36: 0 | BO36: 0 | BP36: 0 | BQ36: 0 | BR36: 0 | BS36: 0 | BT36: 0 | BU36: 0 | BV36: 0 | BW36: 0 | BX36: 0 | BY36: =SUM(BM36:BX36) -> 0
L37: 残高 | M37: =J35-M36 -> 0 | N37: =M37-N36 -> 0 | O37: 0 | P37: 0 | Q37: 0 | R37: 0 | S37: 0 | T37: 0 | U37: 0 | V37: 0 | W37: 0 | X37: 0 | Z37: =X37-Z36 -> 0 | AA37: =Z37-AA36 -> 0 | AB37: 0 | AC37: 0 | AD37: 0 | AE37: 0 | AF37: 0 | AG37: 0 | AH37: 0 | AI37: 0 | AJ37: 0 | AK37: 0 | AM37: =AK37-AM36 -> 0 | AN37: =AM37-AN36 -> 0 | AO37: 0 | AP37: 0 | AQ37: 0 | AR37: 0 | AS37: 0 | AT37: 0 | AU37: 0 | AV37: 0 | AW37: 0 | AX37: 0 | AZ37: =AX37-AZ36 -> 0 | BA37: =AZ37-BA36 -> 0 | BB37: 0 | BC37: 0 | BD37: 0 | BE37: 0 | BF37: 0 | BG37: 0 | BH37: 0 | BI37: 0 | BJ37: 0 | BK37: 0 | BM37: =BK37-BM36 -> 0 | BN37: =BM37-BN36 -> 0 | BO37: 0 | BP37: 0 | BQ37: 0 | BR37: 0 | BS37: 0 | BT37: 0 | BU37: 0 | BV37: 0 | BW37: 0 | BX37: 0
L38: 利息額 | M38: 0 | N38: 0 | O38: 0 | P38: 0 | Q38: 0 | R38: 0 | S38: 0 | T38: 0 | U38: 0 | V38: 0 | W38: 0 | X38: 0 | Y38: =SUM(M38:X38) -> 0 | Z38: 0 | AA38: 0 | AB38: 0 | AC38: 0 | AD38: 0 | AE38: 0 | AF38: 0 | AG38: 0 | AH38: 0 | AI38: 0 | AJ38: 0 | AK38: 0 | AL38: =SUM(Z38:AK38) -> 0 | AM38: 0 | AN38: 0 | AO38: 0 | AP38: 0 | AQ38: 0 | AR38: 0 | AS38: 0 | AT38: 0 | AU38: 0 | AV38: 0 | AW38: 0 | AX38: 0 | AY38: =SUM(AM38:AX38) -> 0 | AZ38: 0 | BA38: 0 | BB38: 0 | BC38: 0 | BD38: 0 | BE38: 0 | BF38: 0 | BG38: 0 | BH38: 0 | BI38: 0 | BJ38: 0 | BK38: 0 | BL38: =SUM(AZ38:BK38) -> 0 | BM38: 0 | BN38: 0 | BO38: 0 | BP38: 0 | BQ38: 0 | BR38: 0 | BS38: 0 | BT38: 0 | BU38: 0 | BV38: 0 | BW38: 0 | BX38: 0 | BY38: =SUM(BM38:BX38) -> 0
A39: 6 | F39: =EOMONTH(D39,E39*12) -> 1900-01-31 | K39: =EOMONTH(基本情報!$C$9,-12) -> 2014-03-31 | L39: 返済回 | M39: =IF(M$18>$F39,"",DATEDIF($D39,M$18,"M")) ->  | N39: =IF(N$18>$F39,"",DATEDIF($D39,N$18,"M")) ->  | Z39: =IF(Z$18>$F39,"",DATEDIF($D39,Z$18,"M")) ->  | AA39: =IF(AA$18>$F39,"",DATEDIF($D39,AA$18,"M")) ->  | AM39: =IF(AM$18>$F39,"",DATEDIF($D39,AM$18,"M")) ->  | AN39: =IF(AN$18>$F39,"",DATEDIF($D39,AN$18,"M")) ->  | AZ39: =IF(AZ$18>$F39,"",DATEDIF($D39,AZ$18,"M")) ->  | BA39: =IF(BA$18>$F39,"",DATEDIF($D39,BA$18,"M")) ->  | BM39: =IF(BM$18>$F39,"",DATEDIF($D39,BM$18,"M")) ->  | BN39: =IF(BN$18>$F39,"",DATEDIF($D39,BN$18,"M")) -> 
L40: 返済額 | M40: 0 | N40: 0 | O40: 0 | P40: 0 | Q40: 0 | R40: 0 | S40: 0 | T40: 0 | U40: 0 | V40: 0 | W40: 0 | X40: 0 | Y40: =SUM(M40:X40) -> 0 | Z40: 0 | AA40: 0 | AB40: 0 | AC40: 0 | AD40: 0 | AE40: 0 | AF40: 0 | AG40: 0 | AH40: 0 | AI40: 0 | AJ40: 0 | AK40: 0 | AL40: =SUM(Z40:AK40) -> 0 | AM40: 0 | AN40: 0 | AO40: 0 | AP40: 0 | AQ40: 0 | AR40: 0 | AS40: 0 | AT40: 0 | AU40: 0 | AV40: 0 | AW40: 0 | AX40: 0 | AY40: =SUM(AM40:AX40) -> 0 | AZ40: 0 | BA40: 0 | BB40: 0 | BC40: 0 | BD40: 0 | BE40: 0 | BF40: 0 | BG40: 0 | BH40: 0 | BI40: 0 | BJ40: 0 | BK40: 0 | BL40: =SUM(AZ40:BK40) -> 0 | BM40: 0 | BN40: 0 | BO40: 0 | BP40: 0 | BQ40: 0 | BR40: 0 | BS40: 0 | BT40: 0 | BU40: 0 | BV40: 0 | BW40: 0 | BX40: 0 | BY40: =SUM(BM40:BX40) -> 0
L41: 残高 | M41: =J39-M40 -> 0 | N41: =M41-N40 -> 0 | O41: 0 | P41: 0 | Q41: 0 | R41: 0 | S41: 0 | T41: 0 | U41: 0 | V41: 0 | W41: 0 | X41: 0 | Z41: =X41-Z40 -> 0 | AA41: =Z41-AA40 -> 0 | AB41: 0 | AC41: 0 | AD41: 0 | AE41: 0 | AF41: 0 | AG41: 0 | AH41: 0 | AI41: 0 | AJ41: 0 | AK41: 0 | AM41: =AK41-AM40 -> 0 | AN41: =AM41-AN40 -> 0 | AO41: 0 | AP41: 0 | AQ41: 0 | AR41: 0 | AS41: 0 | AT41: 0 | AU41: 0 | AV41: 0 | AW41: 0 | AX41: 0 | AZ41: =AX41-AZ40 -> 0 | BA41: =AZ41-BA40 -> 0 | BB41: 0 | BC41: 0 | BD41: 0 | BE41: 0 | BF41: 0 | BG41: 0 | BH41: 0 | BI41: 0 | BJ41: 0 | BK41: 0 | BM41: =BK41-BM40 -> 0 | BN41: =BM41-BN40 -> 0 | BO41: 0 | BP41: 0 | BQ41: 0 | BR41: 0 | BS41: 0 | BT41: 0 | BU41: 0 | BV41: 0 | BW41: 0 | BX41: 0
L42: 利息額 | M42: 0 | N42: 0 | O42: 0 | P42: 0 | Q42: 0 | R42: 0 | S42: 0 | T42: 0 | U42: 0 | V42: 0 | W42: 0 | X42: 0 | Y42: =SUM(M42:X42) -> 0 | Z42: 0 | AA42: 0 | AB42: 0 | AC42: 0 | AD42: 0 | AE42: 0 | AF42: 0 | AG42: 0 | AH42: 0 | AI42: 0 | AJ42: 0 | AK42: 0 | AL42: =SUM(Z42:AK42) -> 0 | AM42: 0 | AN42: 0 | AO42: 0 | AP42: 0 | AQ42: 0 | AR42: 0 | AS42: 0 | AT42: 0 | AU42: 0 | AV42: 0 | AW42: 0 | AX42: 0 | AY42: =SUM(AM42:AX42) -> 0 | AZ42: 0 | BA42: 0 | BB42: 0 | BC42: 0 | BD42: 0 | BE42: 0 | BF42: 0 | BG42: 0 | BH42: 0 | BI42: 0 | BJ42: 0 | BK42: 0 | BL42: =SUM(AZ42:BK42) -> 0 | BM42: 0 | BN42: 0 | BO42: 0 | BP42: 0 | BQ42: 0 | BR42: 0 | BS42: 0 | BT42: 0 | BU42: 0 | BV42: 0 | BW42: 0 | BX42: 0 | BY42: =SUM(BM42:BX42) -> 0
A43: 7 | F43: =EOMONTH(D43,E43*12) -> 1900-01-31 | K43: =EOMONTH(基本情報!$C$9,-12) -> 2014-03-31 | L43: 返済回 | M43: =IF(M$18>$F43,"",DATEDIF($D43,M$18,"M")) ->  | N43: =IF(N$18>$F43,"",DATEDIF($D43,N$18,"M")) ->  | Z43: =IF(Z$18>$F43,"",DATEDIF($D43,Z$18,"M")) ->  | AA43: =IF(AA$18>$F43,"",DATEDIF($D43,AA$18,"M")) ->  | AM43: =IF(AM$18>$F43,"",DATEDIF($D43,AM$18,"M")) ->  | AN43: =IF(AN$18>$F43,"",DATEDIF($D43,AN$18,"M")) ->  | AZ43: =IF(AZ$18>$F43,"",DATEDIF($D43,AZ$18,"M")) ->  | BA43: =IF(BA$18>$F43,"",DATEDIF($D43,BA$18,"M")) ->  | BM43: =IF(BM$18>$F43,"",DATEDIF($D43,BM$18,"M")) ->  | BN43: =IF(BN$18>$F43,"",DATEDIF($D43,BN$18,"M")) -> 
L44: 返済額 | M44: 0 | N44: 0 | O44: 0 | P44: 0 | Q44: 0 | R44: 0 | S44: 0 | T44: 0 | U44: 0 | V44: 0 | W44: 0 | X44: 0 | Y44: =SUM(M44:X44) -> 0 | Z44: 0 | AA44: 0 | AB44: 0 | AC44: 0 | AD44: 0 | AE44: 0 | AF44: 0 | AG44: 0 | AH44: 0 | AI44: 0 | AJ44: 0 | AK44: 0 | AL44: =SUM(Z44:AK44) -> 0 | AM44: 0 | AN44: 0 | AO44: 0 | AP44: 0 | AQ44: 0 | AR44: 0 | AS44: 0 | AT44: 0 | AU44: 0 | AV44: 0 | AW44: 0 | AX44: 0 | AY44: =SUM(AM44:AX44) -> 0 | AZ44: 0 | BA44: 0 | BB44: 0 | BC44: 0 | BD44: 0 | BE44: 0 | BF44: 0 | BG44: 0 | BH44: 0 | BI44: 0 | BJ44: 0 | BK44: 0 | BL44: =SUM(AZ44:BK44) -> 0 | BM44: 0 | BN44: 0 | BO44: 0 | BP44: 0 | BQ44: 0 | BR44: 0 | BS44: 0 | BT44: 0 | BU44: 0 | BV44: 0 | BW44: 0 | BX44: 0 | BY44: =SUM(BM44:BX44) -> 0
L45: 残高 | M45: =J43-M44 -> 0 | N45: =M45-N44 -> 0 | O45: 0 | P45: 0 | Q45: 0 | R45: 0 | S45: 0 | T45: 0 | U45: 0 | V45: 0 | W45: 0 | X45: 0 | Z45: =X45-Z44 -> 0 | AA45: =Z45-AA44 -> 0 | AB45: 0 | AC45: 0 | AD45: 0 | AE45: 0 | AF45: 0 | AG45: 0 | AH45: 0 | AI45: 0 | AJ45: 0 | AK45: 0 | AM45: =AK45-AM44 -> 0 | AN45: =AM45-AN44 -> 0 | AO45: 0 | AP45: 0 | AQ45: 0 | AR45: 0 | AS45: 0 | AT45: 0 | AU45: 0 | AV45: 0 | AW45: 0 | AX45: 0 | AZ45: =AX45-AZ44 -> 0 | BA45: =AZ45-BA44 -> 0 | BB45: 0 | BC45: 0 | BD45: 0 | BE45: 0 | BF45: 0 | BG45: 0 | BH45: 0 | BI45: 0 | BJ45: 0 | BK45: 0 | BM45: =BK45-BM44 -> 0 | BN45: =BM45-BN44 -> 0 | BO45: 0 | BP45: 0 | BQ45: 0 | BR45: 0 | BS45: 0 | BT45: 0 | BU45: 0 | BV45: 0 | BW45: 0 | BX45: 0
L46: 利息額 | M46: 0 | N46: 0 | O46: 0 | P46: 0 | Q46: 0 | R46: 0 | S46: 0 | T46: 0 | U46: 0 | V46: 0 | W46: 0 | X46: 0 | Y46: =SUM(M46:X46) -> 0 | Z46: 0 | AA46: 0 | AB46: 0 | AC46: 0 | AD46: 0 | AE46: 0 | AF46: 0 | AG46: 0 | AH46: 0 | AI46: 0 | AJ46: 0 | AK46: 0 | AL46: =SUM(Z46:AK46) -> 0 | AM46: 0 | AN46: 0 | AO46: 0 | AP46: 0 | AQ46: 0 | AR46: 0 | AS46: 0 | AT46: 0 | AU46: 0 | AV46: 0 | AW46: 0 | AX46: 0 | AY46: =SUM(AM46:AX46) -> 0 | AZ46: 0 | BA46: 0 | BB46: 0 | BC46: 0 | BD46: 0 | BE46: 0 | BF46: 0 | BG46: 0 | BH46: 0 | BI46: 0 | BJ46: 0 | BK46: 0 | BL46: =SUM(AZ46:BK46) -> 0 | BM46: 0 | BN46: 0 | BO46: 0 | BP46: 0 | BQ46: 0 | BR46: 0 | BS46: 0 | BT46: 0 | BU46: 0 | BV46: 0 | BW46: 0 | BX46: 0 | BY46: =SUM(BM46:BX46) -> 0
A47: 8 | F47: =EOMONTH(D47,E47*12) -> 1900-01-31 | K47: =EOMONTH(基本情報!$C$9,-12) -> 2014-03-31 | L47: 返済回 | M47: =IF(M$18>$F47,"",DATEDIF($D47,M$18,"M")) ->  | N47: =IF(N$18>$F47,"",DATEDIF($D47,N$18,"M")) ->  | Z47: =IF(Z$18>$F47,"",DATEDIF($D47,Z$18,"M")) ->  | AA47: =IF(AA$18>$F47,"",DATEDIF($D47,AA$18,"M")) ->  | AM47: =IF(AM$18>$F47,"",DATEDIF($D47,AM$18,"M")) ->  | AN47: =IF(AN$18>$F47,"",DATEDIF($D47,AN$18,"M")) ->  | AZ47: =IF(AZ$18>$F47,"",DATEDIF($D47,AZ$18,"M")) ->  | BA47: =IF(BA$18>$F47,"",DATEDIF($D47,BA$18,"M")) ->  | BM47: =IF(BM$18>$F47,"",DATEDIF($D47,BM$18,"M")) ->  | BN47: =IF(BN$18>$F47,"",DATEDIF($D47,BN$18,"M")) -> 
L48: 返済額 | M48: 0 | N48: 0 | O48: 0 | P48: 0 | Q48: 0 | R48: 0 | S48: 0 | T48: 0 | U48: 0 | V48: 0 | W48: 0 | X48: 0 | Y48: =SUM(M48:X48) -> 0 | Z48: 0 | AA48: 0 | AB48: 0 | AC48: 0 | AD48: 0 | AE48: 0 | AF48: 0 | AG48: 0 | AH48: 0 | AI48: 0 | AJ48: 0 | AK48: 0 | AL48: =SUM(Z48:AK48) -> 0 | AM48: 0 | AN48: 0 | AO48: 0 | AP48: 0 | AQ48: 0 | AR48: 0 | AS48: 0 | AT48: 0 | AU48: 0 | AV48: 0 | AW48: 0 | AX48: 0 | AY48: =SUM(AM48:AX48) -> 0 | AZ48: 0 | BA48: 0 | BB48: 0 | BC48: 0 | BD48: 0 | BE48: 0 | BF48: 0 | BG48: 0 | BH48: 0 | BI48: 0 | BJ48: 0 | BK48: 0 | BL48: =SUM(AZ48:BK48) -> 0 | BM48: 0 | BN48: 0 | BO48: 0 | BP48: 0 | BQ48: 0 | BR48: 0 | BS48: 0 | BT48: 0 | BU48: 0 | BV48: 0 | BW48: 0 | BX48: 0 | BY48: =SUM(BM48:BX48) -> 0
L49: 残高 | M49: =J47-M48 -> 0 | N49: =M49-N48 -> 0 | O49: 0 | P49: 0 | Q49: 0 | R49: 0 | S49: 0 | T49: 0 | U49: 0 | V49: 0 | W49: 0 | X49: 0 | Z49: =X49-Z48 -> 0 | AA49: =Z49-AA48 -> 0 | AB49: 0 | AC49: 0 | AD49: 0 | AE49: 0 | AF49: 0 | AG49: 0 | AH49: 0 | AI49: 0 | AJ49: 0 | AK49: 0 | AM49: =AK49-AM48 -> 0 | AN49: =AM49-AN48 -> 0 | AO49: 0 | AP49: 0 | AQ49: 0 | AR49: 0 | AS49: 0 | AT49: 0 | AU49: 0 | AV49: 0 | AW49: 0 | AX49: 0 | AZ49: =AX49-AZ48 -> 0 | BA49: =AZ49-BA48 -> 0 | BB49: 0 | BC49: 0 | BD49: 0 | BE49: 0 | BF49: 0 | BG49: 0 | BH49: 0 | BI49: 0 | BJ49: 0 | BK49: 0 | BM49: =BK49-BM48 -> 0 | BN49: =BM49-BN48 -> 0 | BO49: 0 | BP49: 0 | BQ49: 0 | BR49: 0 | BS49: 0 | BT49: 0 | BU49: 0 | BV49: 0 | BW49: 0 | BX49: 0
L50: 利息額 | M50: 0 | N50: 0 | O50: 0 | P50: 0 | Q50: 0 | R50: 0 | S50: 0 | T50: 0 | U50: 0 | V50: 0 | W50: 0 | X50: 0 | Y50: =SUM(M50:X50) -> 0 | Z50: 0 | AA50: 0 | AB50: 0 | AC50: 0 | AD50: 0 | AE50: 0 | AF50: 0 | AG50: 0 | AH50: 0 | AI50: 0 | AJ50: 0 | AK50: 0 | AL50: =SUM(Z50:AK50) -> 0 | AM50: 0 | AN50: 0 | AO50: 0 | AP50: 0 | AQ50: 0 | AR50: 0 | AS50: 0 | AT50: 0 | AU50: 0 | AV50: 0 | AW50: 0 | AX50: 0 | AY50: =SUM(AM50:AX50) -> 0 | AZ50: 0 | BA50: 0 | BB50: 0 | BC50: 0 | BD50: 0 | BE50: 0 | BF50: 0 | BG50: 0 | BH50: 0 | BI50: 0 | BJ50: 0 | BK50: 0 | BL50: =SUM(AZ50:BK50) -> 0 | BM50: 0 | BN50: 0 | BO50: 0 | BP50: 0 | BQ50: 0 | BR50: 0 | BS50: 0 | BT50: 0 | BU50: 0 | BV50: 0 | BW50: 0 | BX50: 0 | BY50: =SUM(BM50:BX50) -> 0
A51: 9 | F51: =EOMONTH(D51,E51*12) -> 1900-01-31 | K51: =EOMONTH(基本情報!$C$9,-12) -> 2014-03-31 | L51: 返済回 | M51: =IF(M$18>$F51,"",DATEDIF($D51,M$18,"M")) ->  | N51: =IF(N$18>$F51,"",DATEDIF($D51,N$18,"M")) ->  | Z51: =IF(Z$18>$F51,"",DATEDIF($D51,Z$18,"M")) ->  | AA51: =IF(AA$18>$F51,"",DATEDIF($D51,AA$18,"M")) ->  | AM51: =IF(AM$18>$F51,"",DATEDIF($D51,AM$18,"M")) ->  | AN51: =IF(AN$18>$F51,"",DATEDIF($D51,AN$18,"M")) ->  | AZ51: =IF(AZ$18>$F51,"",DATEDIF($D51,AZ$18,"M")) ->  | BA51: =IF(BA$18>$F51,"",DATEDIF($D51,BA$18,"M")) ->  | BM51: =IF(BM$18>$F51,"",DATEDIF($D51,BM$18,"M")) ->  | BN51: =IF(BN$18>$F51,"",DATEDIF($D51,BN$18,"M")) -> 
L52: 返済額 | M52: 0 | N52: 0 | O52: 0 | P52: 0 | Q52: 0 | R52: 0 | S52: 0 | T52: 0 | U52: 0 | V52: 0 | W52: 0 | X52: 0 | Y52: =SUM(M52:X52) -> 0 | Z52: 0 | AA52: 0 | AB52: 0 | AC52: 0 | AD52: 0 | AE52: 0 | AF52: 0 | AG52: 0 | AH52: 0 | AI52: 0 | AJ52: 0 | AK52: 0 | AL52: =SUM(Z52:AK52) -> 0 | AM52: 0 | AN52: 0 | AO52: 0 | AP52: 0 | AQ52: 0 | AR52: 0 | AS52: 0 | AT52: 0 | AU52: 0 | AV52: 0 | AW52: 0 | AX52: 0 | AY52: =SUM(AM52:AX52) -> 0 | AZ52: 0 | BA52: 0 | BB52: 0 | BC52: 0 | BD52: 0 | BE52: 0 | BF52: 0 | BG52: 0 | BH52: 0 | BI52: 0 | BJ52: 0 | BK52: 0 | BL52: =SUM(AZ52:BK52) -> 0 | BM52: 0 | BN52: 0 | BO52: 0 | BP52: 0 | BQ52: 0 | BR52: 0 | BS52: 0 | BT52: 0 | BU52: 0 | BV52: 0 | BW52: 0 | BX52: 0 | BY52: =SUM(BM52:BX52) -> 0
L53: 残高 | M53: =J51-M52 -> 0 | N53: =M53-N52 -> 0 | O53: 0 | P53: 0 | Q53: 0 | R53: 0 | S53: 0 | T53: 0 | U53: 0 | V53: 0 | W53: 0 | X53: 0 | Z53: =X53-Z52 -> 0 | AA53: =Z53-AA52 -> 0 | AB53: 0 | AC53: 0 | AD53: 0 | AE53: 0 | AF53: 0 | AG53: 0 | AH53: 0 | AI53: 0 | AJ53: 0 | AK53: 0 | AM53: =AK53-AM52 -> 0 | AN53: =AM53-AN52 -> 0 | AO53: 0 | AP53: 0 | AQ53: 0 | AR53: 0 | AS53: 0 | AT53: 0 | AU53: 0 | AV53: 0 | AW53: 0 | AX53: 0 | AZ53: =AX53-AZ52 -> 0 | BA53: =AZ53-BA52 -> 0 | BB53: 0 | BC53: 0 | BD53: 0 | BE53: 0 | BF53: 0 | BG53: 0 | BH53: 0 | BI53: 0 | BJ53: 0 | BK53: 0 | BM53: =BK53-BM52 -> 0 | BN53: =BM53-BN52 -> 0 | BO53: 0 | BP53: 0 | BQ53: 0 | BR53: 0 | BS53: 0 | BT53: 0 | BU53: 0 | BV53: 0 | BW53: 0 | BX53: 0
L54: 利息額 | M54: 0 | N54: 0 | O54: 0 | P54: 0 | Q54: 0 | R54: 0 | S54: 0 | T54: 0 | U54: 0 | V54: 0 | W54: 0 | X54: 0 | Y54: =SUM(M54:X54) -> 0 | Z54: 0 | AA54: 0 | AB54: 0 | AC54: 0 | AD54: 0 | AE54: 0 | AF54: 0 | AG54: 0 | AH54: 0 | AI54: 0 | AJ54: 0 | AK54: 0 | AL54: =SUM(Z54:AK54) -> 0 | AM54: 0 | AN54: 0 | AO54: 0 | AP54: 0 | AQ54: 0 | AR54: 0 | AS54: 0 | AT54: 0 | AU54: 0 | AV54: 0 | AW54: 0 | AX54: 0 | AY54: =SUM(AM54:AX54) -> 0 | AZ54: 0 | BA54: 0 | BB54: 0 | BC54: 0 | BD54: 0 | BE54: 0 | BF54: 0 | BG54: 0 | BH54: 0 | BI54: 0 | BJ54: 0 | BK54: 0 | BL54: =SUM(AZ54:BK54) -> 0 | BM54: 0 | BN54: 0 | BO54: 0 | BP54: 0 | BQ54: 0 | BR54: 0 | BS54: 0 | BT54: 0 | BU54: 0 | BV54: 0 | BW54: 0 | BX54: 0 | BY54: =SUM(BM54:BX54) -> 0
A55: 10 | F55: =EOMONTH(D55,E55*12) -> 1900-01-31 | K55: =EOMONTH(基本情報!$C$9,-12) -> 2014-03-31 | L55: 返済回 | M55: =IF(M$18>$F55,"",DATEDIF($D55,M$18,"M")) ->  | N55: =IF(N$18>$F55,"",DATEDIF($D55,N$18,"M")) ->  | Z55: =IF(Z$18>$F55,"",DATEDIF($D55,Z$18,"M")) ->  | AA55: =IF(AA$18>$F55,"",DATEDIF($D55,AA$18,"M")) ->  | AM55: =IF(AM$18>$F55,"",DATEDIF($D55,AM$18,"M")) ->  | AN55: =IF(AN$18>$F55,"",DATEDIF($D55,AN$18,"M")) ->  | AZ55: =IF(AZ$18>$F55,"",DATEDIF($D55,AZ$18,"M")) ->  | BA55: =IF(BA$18>$F55,"",DATEDIF($D55,BA$18,"M")) ->  | BM55: =IF(BM$18>$F55,"",DATEDIF($D55,BM$18,"M")) ->  | BN55: =IF(BN$18>$F55,"",DATEDIF($D55,BN$18,"M")) -> 
L56: 返済額 | M56: 0 | N56: 0 | O56: 0 | P56: 0 | Q56: 0 | R56: 0 | S56: 0 | T56: 0 | U56: 0 | V56: 0 | W56: 0 | X56: 0 | Y56: =SUM(M56:X56) -> 0 | Z56: 0 | AA56: 0 | AB56: 0 | AC56: 0 | AD56: 0 | AE56: 0 | AF56: 0 | AG56: 0 | AH56: 0 | AI56: 0 | AJ56: 0 | AK56: 0 | AL56: =SUM(Z56:AK56) -> 0 | AM56: 0 | AN56: 0 | AO56: 0 | AP56: 0 | AQ56: 0 | AR56: 0 | AS56: 0 | AT56: 0 | AU56: 0 | AV56: 0 | AW56: 0 | AX56: 0 | AY56: =SUM(AM56:AX56) -> 0 | AZ56: 0 | BA56: 0 | BB56: 0 | BC56: 0 | BD56: 0 | BE56: 0 | BF56: 0 | BG56: 0 | BH56: 0 | BI56: 0 | BJ56: 0 | BK56: 0 | BL56: =SUM(AZ56:BK56) -> 0 | BM56: 0 | BN56: 0 | BO56: 0 | BP56: 0 | BQ56: 0 | BR56: 0 | BS56: 0 | BT56: 0 | BU56: 0 | BV56: 0 | BW56: 0 | BX56: 0 | BY56: =SUM(BM56:BX56) -> 0
L57: 残高 | M57: =J55-M56 -> 0 | N57: =M57-N56 -> 0 | O57: 0 | P57: 0 | Q57: 0 | R57: 0 | S57: 0 | T57: 0 | U57: 0 | V57: 0 | W57: 0 | X57: 0 | Z57: =X57-Z56 -> 0 | AA57: =Z57-AA56 -> 0 | AB57: 0 | AC57: 0 | AD57: 0 | AE57: 0 | AF57: 0 | AG57: 0 | AH57: 0 | AI57: 0 | AJ57: 0 | AK57: 0 | AM57: =AK57-AM56 -> 0 | AN57: =AM57-AN56 -> 0 | AO57: 0 | AP57: 0 | AQ57: 0 | AR57: 0 | AS57: 0 | AT57: 0 | AU57: 0 | AV57: 0 | AW57: 0 | AX57: 0 | AZ57: =AX57-AZ56 -> 0 | BA57: =AZ57-BA56 -> 0 | BB57: 0 | BC57: 0 | BD57: 0 | BE57: 0 | BF57: 0 | BG57: 0 | BH57: 0 | BI57: 0 | BJ57: 0 | BK57: 0 | BM57: =BK57-BM56 -> 0 | BN57: =BM57-BN56 -> 0 | BO57: 0 | BP57: 0 | BQ57: 0 | BR57: 0 | BS57: 0 | BT57: 0 | BU57: 0 | BV57: 0 | BW57: 0 | BX57: 0
L58: 利息額 | M58: 0 | N58: 0 | O58: 0 | P58: 0 | Q58: 0 | R58: 0 | S58: 0 | T58: 0 | U58: 0 | V58: 0 | W58: 0 | X58: 0 | Y58: =SUM(M58:X58) -> 0 | Z58: 0 | AA58: 0 | AB58: 0 | AC58: 0 | AD58: 0 | AE58: 0 | AF58: 0 | AG58: 0 | AH58: 0 | AI58: 0 | AJ58: 0 | AK58: 0 | AL58: =SUM(Z58:AK58) -> 0 | AM58: 0 | AN58: 0 | AO58: 0 | AP58: 0 | AQ58: 0 | AR58: 0 | AS58: 0 | AT58: 0 | AU58: 0 | AV58: 0 | AW58: 0 | AX58: 0 | AY58: =SUM(AM58:AX58) -> 0 | AZ58: 0 | BA58: 0 | BB58: 0 | BC58: 0 | BD58: 0 | BE58: 0 | BF58: 0 | BG58: 0 | BH58: 0 | BI58: 0 | BJ58: 0 | BK58: 0 | BL58: =SUM(AZ58:BK58) -> 0 | BM58: 0 | BN58: 0 | BO58: 0 | BP58: 0 | BQ58: 0 | BR58: 0 | BS58: 0 | BT58: 0 | BU58: 0 | BV58: 0 | BW58: 0 | BX58: 0 | BY58: =SUM(BM58:BX58) -> 0
A59: 合計 | I59: =SUM(I19:I58) -> 39000000 | J59: =SUM(J19:J58) -> 33000000
L60: 返済額 | M60: =SUM(M20,M24,M28,M32,M36,M40,M44,M48,M52,M56) -> 452380 | N60: =SUM(N20,N24,N28,N32,N36,N40,N44,N48,N52,N56) -> 452380 | O60: 452380 | P60: 452380 | Q60: 452380 | R60: 452380 | S60: 452380 | T60: 452380 | U60: 452380 | V60: 452380 | W60: 452380 | X60: 452380 | Y60: 5428560 | Z60: 452380 | AA60: 452380 | AB60: 452380 | AC60: 452380 | AD60: 452380 | AE60: 452380 | AF60: 452380 | AG60: 452380 | AH60: 452380 | AI60: 452380 | AJ60: 452380 | AK60: 452380 | AL60: 5428560 | AM60: 452380 | AN60: 452380 | AO60: 452380 | AP60: 452380 | AQ60: 452380 | AR60: 452380 | AS60: 452380 | AT60: 452380 | AU60: 452380 | AV60: 452380 | AW60: 452380 | AX60: 452380 | AY60: 5428560 | AZ60: 452380 | BA60: 452380 | BB60: 452380 | BC60: 452380 | BD60: 452380 | BE60: 452380 | BF60: 452380 | BG60: 452380 | BH60: 452380 | BI60: 452380 | BJ60: 452380 | BK60: 452380 | BL60: 5428560 | BM60: 452380 | BN60: 452380 | BO60: 452380 | BP60: 452380 | BQ60: 452380 | BR60: 452380 | BS60: 452380 | BT60: 452380 | BU60: 452380 | BV60: 452380 | BW60: 452380 | BX60: 452380 | BY60: 5428560
L61: 残高 | M61: =SUM(M21,M25,M29,M33,M37,M41,M45,M49,M53,M57) -> 32547620 | N61: 32095240 | O61: 31642860 | P61: 31190480 | Q61: 30738100 | R61: 30285720 | S61: 29833340 | T61: 29380960 | U61: 28928580 | V61: 28476200 | W61: 28023820 | X61: 27571440 | Y61: 0 | Z61: 27119060 | AA61: 26666680 | AB61: 26214300 | AC61: 25761920 | AD61: 25309540 | AE61: 24857160 | AF61: 24404780 | AG61: 23952400 | AH61: 23500020 | AI61: 23047640 | AJ61: 22595260 | AK61: 22142880 | AL61: 0 | AM61: 21690500 | AN61: 21238120 | AO61: 20785740 | AP61: 20333360 | AQ61: 19880980 | AR61: 19428600 | AS61: 18976220 | AT61: 18523840 | AU61: 18071460 | AV61: 17619080 | AW61: 17166700 | AX61: 16714320 | AY61: 0 | AZ61: 16261940 | BA61: 15809560 | BB61: 15357180 | BC61: 14904800 | BD61: 14452420 | BE61: 14000040 | BF61: 13547660 | BG61: 13095280 | BH61: 12642900 | BI61: 12190520 | BJ61: 11738140 | BK61: 11285760 | BL61: 0 | BM61: 10833380 | BN61: 10381000 | BO61: 9928620 | BP61: 9476240 | BQ61: 9023860 | BR61: 8571480 | BS61: 8119100 | BT61: 7666720 | BU61: 7214340 | BV61: 6761960 | BW61: 6309580 | BX61: 5857200 | BY61: 0
L62: 利息額 | M62: 38754 | N62: 38165 | O62: 37577 | P62: 36989 | Q62: 36401 | R62: 35813 | S62: 35225 | T62: 34636 | U62: 34048 | V62: 33460 | W62: 33202 | X62: 32283 | Y62: 426553 | Z62: 31694 | AA62: 31106 | AB62: 30518 | AC62: 29929 | AD62: 29341 | AE62: 28753 | AF62: 28164 | AG62: 27576 | AH62: 26989 | AI62: 26400 | AJ62: 26142 | AK62: 25224 | AL62: 341836 | AM62: 24635 | AN62: 24047 | AO62: 23458 | AP62: 22870 | AQ62: 22282 | AR62: 21693 | AS62: 21105 | AT62: 20517 | AU62: 19928 | AV62: 19340 | AW62: 19082 | AX62: 18163 | AY62: 257120 | AZ62: 17576 | BA62: 16988 | BB62: 16399 | BC62: 15811 | BD62: 15222 | BE62: 14634 | BF62: 14046 | BG62: 13457 | BH62: 12869 | BI62: 12281 | BJ62: 12023 | BK62: 11104 | BL62: 172410 | BM62: 10516 | BN62: 9927 | BO62: 9339 | BP62: 8751 | BQ62: 8163 | BR62: 7575 | BS62: 6986 | BT62: 6398 | BU62: 5810 | BV62: 5221 | BW62: 4963 | BX62: 4045 | BY62: 87694
A64: 1 | B64: =B19 -> 四菱大江戸ＵＳＪ銀行 | C64: 長期 | D64: 2012-09-30 | E64: 7 | F64: 2019-09-30 | G64: 元金均等 | H64: 0.0185 | I64: 18000000 | J64: 15000000 | K64: 2014-03-31 | L64: 返済額 | M64: =IF(M19="",0,IF($C19="社債",0,IF($G19="",0,IF($E19=0,0,IF($G19="元金均等",MIN(ROUNDDOWN($I19/($E19*12),0),J19),ROUNDDOWN(-PPMT($H19/12,M19,$E19*12,$I19),0)))))) -> 214285 | N64: =IF(N19="",0,IF($C19="社債",0,IF($G19="",0,IF($E19=0,0,IF($G19="元金均等",MIN(ROUNDDOWN($I19/($E19*12),0),M65),ROUNDDOWN(-PPMT($H19/12,N19,$E19*12,$I19),0)))))) -> 214285 | O64: =IF(O19="",0,IF($C19="社債",0,IF($G19="",0,IF($E19=0,0,IF($G19="元金均等",MIN(ROUNDDOWN($I19/($E19*12),0),N65),ROUNDDOWN(-PPMT($H19/12,O19,$E19*12,$I19),0)))))) -> 214285 | P64: 214285 | Q64: 214285 | R64: 214285 | S64: 214285 | T64: 214285 | U64: 214285 | V64: 214285 | W64: 214285 | X64: 214285 | Y64: =SUM(M64:X64) -> 2571420 | Z64: =IF(Z19="",0,IF($C19="社債",0,IF($G19="",0,IF($E19=0,0,IF($G19="元金均等",MIN(ROUNDDOWN($I19/($E19*12),0),X65),MIN(ROUNDDOWN(-PPMT($H19/12,Z19,$E19*12,$I19),0),X65)))))) -> 214285 | AA64: =IF(AA19="",0,IF($C19="社債",0,IF($G19="",0,IF($E19=0,0,IF($G19="元金均等",MIN(ROUNDDOWN($I19/($E19*12),0),Z65),MIN(ROUNDDOWN(-PPMT($H19/12,AA19,$E19*12,$I19),0),Z65)))))) -> 214285 | AB64: =IF(AB19="",0,IF($C19="社債",0,IF($G19="",0,IF($E19=0,0,IF($G19="元金均等",MIN(ROUNDDOWN($I19/($E19*12),0),AA65),MIN(ROUNDDOWN(-PPMT($H19/12,AB19,$E19*12,$I19),0),AA65)))))) -> 214285 | AC64: 214285 | AD64: 214285 | AE64: 214285 | AF64: 214285 | AG64: 214285 | AH64: 214285 | AI64: 214285 | AJ64: 214285 | AK64: 214285 | AL64: =SUM(Z64:AK64) -> 2571420 | AM64: =IF(AM19="",0,IF($C19="社債",0,IF($G19="",0,IF($E19=0,0,IF($G19="元金均等",MIN(ROUNDDOWN($I19/($E19*12),0),AK65),MIN(ROUNDDOWN(-PPMT($H19/12,AM19,$E19*12,$I19),0),AK65)))))) -> 214285 | AN64: =IF(AN19="",0,IF($C19="社債",0,IF($G19="",0,IF($E19=0,0,IF($G19="元金均等",MIN(ROUNDDOWN($I19/($E19*12),0),AM65),MIN(ROUNDDOWN(-PPMT($H19/12,AN19,$E19*12,$I19),0),AM65)))))) -> 214285 | AO64: =IF(AO19="",0,IF($C19="社債",0,IF($G19="",0,IF($E19=0,0,IF($G19="元金均等",MIN(ROUNDDOWN($I19/($E19*12),0),AN65),MIN(ROUNDDOWN(-PPMT($H19/12,AO19,$E19*12,$I19),0),AN65)))))) -> 214285 | AP64: 214285 | AQ64: 214285 | AR64: 214285 | AS64: 214285 | AT64: 214285 | AU64: 214285 | AV64: 214285 | AW64: 214285 | AX64: 214285 | AY64: =SUM(AM64:AX64) -> 2571420 | AZ64: =IF(AZ19="",0,IF($C19="社債",0,IF($G19="",0,IF($E19=0,0,IF($G19="元金均等",MIN(ROUNDDOWN($I19/($E19*12),0),AX65),MIN(ROUNDDOWN(-PPMT($H19/12,AZ19,$E19*12,$I19),0),AX65)))))) -> 214285 | BA64: =IF(BA19="",0,IF($C19="社債",0,IF($G19="",0,IF($E19=0,0,IF($G19="元金均等",MIN(ROUNDDOWN($I19/($E19*12),0),AZ65),MIN(ROUNDDOWN(-PPMT($H19/12,BA19,$E19*12,$I19),0),AZ65)))))) -> 214285 | BB64: =IF(BB19="",0,IF($C19="社債",0,IF($G19="",0,IF($E19=0,0,IF($G19="元金均等",MIN(ROUNDDOWN($I19/($E19*12),0),BA65),MIN(ROUNDDOWN(-PPMT($H19/12,BB19,$E19*12,$I19),0),BA65)))))) -> 214285 | BC64: 214285 | BD64: 214285 | BE64: 214285 | BF64: 214285 | BG64: 214285 | BH64: 214285 | BI64: 214285 | BJ64: 214285 | BK64: 214285 | BL64: =SUM(AZ64:BK64) -> 2571420 | BM64: =IF(BM19="",0,IF($C19="社債",0,IF($G19="",0,IF($E19=0,0,IF($G19="元金均等",MIN(ROUNDDOWN($I19/($E19*12),0),BK65),MIN(ROUNDDOWN(-PPMT($H19/12,BM19,$E19*12,$I19),0),BK65)))))) -> 214285 | BN64: =IF(BN19="",0,IF($C19="社債",0,IF($G19="",0,IF($E19=0,0,IF($G19="元金均等",MIN(ROUNDDOWN($I19/($E19*12),0),BM65),MIN(ROUNDDOWN(-PPMT($H19/12,BN19,$E19*12,$I19),0),BM65)))))) -> 214285 | BO64: =IF(BO19="",0,IF($C19="社債",0,IF($G19="",0,IF($E19=0,0,IF($G19="元金均等",MIN(ROUNDDOWN($I19/($E19*12),0),BN65),MIN(ROUNDDOWN(-PPMT($H19/12,BO19,$E19*12,$I19),0),BN65)))))) -> 214285 | BP64: 214285 | BQ64: 214285 | BR64: 214285 | BS64: 214285 | BT64: 214285 | BU64: 214285 | BV64: 214285 | BW64: 214285 | BX64: 214285 | BY64: =SUM(BM64:BX64) -> 2571420
L65: 残高 | M65: =IF(J19-M64<0,0,J19-M64) -> 14785715 | N65: =IF(M65-N64<0,0,M65-N64) -> 14571430 | O65: =IF(N65-O64<0,0,N65-O64) -> 14357145 | P65: 14142860 | Q65: 13928575 | R65: 13714290 | S65: 13500005 | T65: 13285720 | U65: 13071435 | V65: 12857150 | W65: 12642865 | X65: 12428580 | Z65: =IF(X65-Z64<0,0,X65-Z64) -> 12214295 | AA65: =IF(Z65-AA64<0,0,Z65-AA64) -> 12000010 | AB65: =IF(AA65-AB64<0,0,AA65-AB64) -> 11785725 | AC65: =IF(AB65-AC64<0,0,AB65-AC64) -> 11571440 | AD65: =IF(AC65-AD64<0,0,AC65-AD64) -> 11357155 | AE65: =IF(AD65-AE64<0,0,AD65-AE64) -> 11142870 | AF65: =IF(AE65-AF64<0,0,AE65-AF64) -> 10928585 | AG65: =IF(AF65-AG64<0,0,AF65-AG64) -> 10714300 | AH65: =IF(AG65-AH64<0,0,AG65-AH64) -> 10500015 | AI65: =IF(AH65-AI64<0,0,AH65-AI64) -> 10285730 | AJ65: =IF(AI65-AJ64<0,0,AI65-AJ64) -> 10071445 | AK65: =IF(AJ65-AK64<0,0,AJ65-AK64) -> 9857160 | AM65: =IF(AK65-AM64<0,0,AK65-AM64) -> 9642875 | AN65: =IF(AM65-AN64<0,0,AM65-AN64) -> 9428590 | AO65: =IF(AN65-AO64<0,0,AN65-AO64) -> 9214305 | AP65: =IF(AO65-AP64<0,0,AO65-AP64) -> 9000020 | AQ65: =IF(AP65-AQ64<0,0,AP65-AQ64) -> 8785735 | AR65: =IF(AQ65-AR64<0,0,AQ65-AR64) -> 8571450 | AS65: =IF(AR65-AS64<0,0,AR65-AS64) -> 8357165 | AT65: =IF(AS65-AT64<0,0,AS65-AT64) -> 8142880 | AU65: =IF(AT65-AU64<0,0,AT65-AU64) -> 7928595 | AV65: =IF(AU65-AV64<0,0,AU65-AV64) -> 7714310 | AW65: =IF(AV65-AW64<0,0,AV65-AW64) -> 7500025 | AX65: =IF(AW65-AX64<0,0,AW65-AX64) -> 7285740 | AZ65: =IF(AX65-AZ64<0,0,AX65-AZ64) -> 7071455 | BA65: =IF(AZ65-BA64<0,0,AZ65-BA64) -> 6857170 | BB65: =IF(BA65-BB64<0,0,BA65-BB64) -> 6642885 | BC65: =IF(BB65-BC64<0,0,BB65-BC64) -> 6428600 | BD65: =IF(BC65-BD64<0,0,BC65-BD64) -> 6214315 | BE65: =IF(BD65-BE64<0,0,BD65-BE64) -> 6000030 | BF65: =IF(BE65-BF64<0,0,BE65-BF64) -> 5785745 | BG65: =IF(BF65-BG64<0,0,BF65-BG64) -> 5571460 | BH65: =IF(BG65-BH64<0,0,BG65-BH64) -> 5357175 | BI65: =IF(BH65-BI64<0,0,BH65-BI64) -> 5142890 | BJ65: =IF(BI65-BJ64<0,0,BI65-BJ64) -> 4928605 | BK65: =IF(BJ65-BK64<0,0,BJ65-BK64) -> 4714320 | BM65: =IF(BK65-BM64<0,0,BK65-BM64) -> 4500035 | BN65: =IF(BM65-BN64<0,0,BM65-BN64) -> 4285750 | BO65: =IF(BN65-BO64<0,0,BN65-BO64) -> 4071465 | BP65: =IF(BO65-BP64<0,0,BO65-BP64) -> 3857180 | BQ65: =IF(BP65-BQ64<0,0,BP65-BQ64) -> 3642895 | BR65: =IF(BQ65-BR64<0,0,BQ65-BR64) -> 3428610 | BS65: =IF(BR65-BS64<0,0,BR65-BS64) -> 3214325 | BT65: =IF(BS65-BT64<0,0,BS65-BT64) -> 3000040 | BU65: =IF(BT65-BU64<0,0,BT65-BU64) -> 2785755 | BV65: =IF(BU65-BV64<0,0,BU65-BV64) -> 2571470 | BW65: =IF(BV65-BW64<0,0,BV65-BW64) -> 2357185 | BX65: =IF(BW65-BX64<0,0,BW65-BX64) -> 2142900
L66: 利息額 | M66: =IF($C19="社債",0,IF($G19="元金均等",ROUNDDOWN(-ISPMT($H19/12,M19,$E19*12,$I19),0),ROUNDDOWN(-IPMT($H19/12,M19,$E19*12,$I19),0))) -> 21473 | N66: =IF($C19="社債",0,IF($G19="元金均等",ROUNDDOWN(-ISPMT($H19/12,N19,$E19*12,$I19),0),ROUNDDOWN(-IPMT($H19/12,N19,$E19*12,$I19),0))) -> 21142 | O66: =IF($C19="社債",0,IF($G19="元金均等",ROUNDDOWN(-ISPMT($H19/12,O19,$E19*12,$I19),0),ROUNDDOWN(-IPMT($H19/12,O19,$E19*12,$I19),0))) -> 20812 | P66: 20482 | Q66: 20151 | R66: 19821 | S66: 19491 | T66: 19160 | U66: 18830 | V66: 18500 | W66: 18500 | X66: 17839 | Z66: =IF($C19="社債",0,IF($G19="元金均等",ROUNDDOWN(-ISPMT($H19/12,Z19,$E19*12,$I19),0),ROUNDDOWN(-IPMT($H19/12,Z19,$E19*12,$I19),0))) -> 17508 | AA66: =IF($C19="社債",0,IF($G19="元金均等",ROUNDDOWN(-ISPMT($H19/12,AA19,$E19*12,$I19),0),ROUNDDOWN(-IPMT($H19/12,AA19,$E19*12,$I19),0))) -> 17178 | AB66: =IF($C19="社債",0,IF($G19="元金均等",ROUNDDOWN(-ISPMT($H19/12,AB19,$E19*12,$I19),0),ROUNDDOWN(-IPMT($H19/12,AB19,$E19*12,$I19),0))) -> 16848 | AC66: 16517 | AD66: 16187 | AE66: 15857 | AF66: 15526 | AG66: 15196 | AH66: 14866 | AI66: 14535 | AJ66: 14535 | AK66: 13875 | AM66: =IF($C19="社債",0,IF($G19="元金均等",ROUNDDOWN(-ISPMT($H19/12,AM19,$E19*12,$I19),0),ROUNDDOWN(-IPMT($H19/12,AM19,$E19*12,$I19),0))) -> 13544 | AN66: =IF($C19="社債",0,IF($G19="元金均等",ROUNDDOWN(-ISPMT($H19/12,AN19,$E19*12,$I19),0),ROUNDDOWN(-IPMT($H19/12,AN19,$E19*12,$I19),0))) -> 13214 | AO66: =IF($C19="社債",0,IF($G19="元金均等",ROUNDDOWN(-ISPMT($H19/12,AO19,$E19*12,$I19),0),ROUNDDOWN(-IPMT($H19/12,AO19,$E19*12,$I19),0))) -> 12883 | AP66: 12553 | AQ66: 12223 | AR66: 11892 | AS66: 11562 | AT66: 11232 | AU66: 10901 | AV66: 10571 | AW66: 10571 | AX66: 9910 | AZ66: =IF($C19="社債",0,IF($G19="元金均等",ROUNDDOWN(-ISPMT($H19/12,AZ19,$E19*12,$I19),0),ROUNDDOWN(-IPMT($H19/12,AZ19,$E19*12,$I19),0))) -> 9580 | BA66: =IF($C19="社債",0,IF($G19="元金均等",ROUNDDOWN(-ISPMT($H19/12,BA19,$E19*12,$I19),0),ROUNDDOWN(-IPMT($H19/12,BA19,$E19*12,$I19),0))) -> 9250 | BB66: =IF($C19="社債",0,IF($G19="元金均等",ROUNDDOWN(-ISPMT($H19/12,BB19,$E19*12,$I19),0),ROUNDDOWN(-IPMT($H19/12,BB19,$E19*12,$I19),0))) -> 8919 | BC66: 8589 | BD66: 8258 | BE66: 7928 | BF66: 7598 | BG66: 7267 | BH66: 6937 | BI66: 6607 | BJ66: 6607 | BK66: 5946 | BM66: =IF($C19="社債",0,IF($G19="元金均等",ROUNDDOWN(-ISPMT($H19/12,BM19,$E19*12,$I19),0),ROUNDDOWN(-IPMT($H19/12,BM19,$E19*12,$I19),0))) -> 5616 | BN66: =IF($C19="社債",0,IF($G19="元金均等",ROUNDDOWN(-ISPMT($H19/12,BN19,$E19*12,$I19),0),ROUNDDOWN(-IPMT($H19/12,BN19,$E19*12,$I19),0))) -> 5285 | BO66: =IF($C19="社債",0,IF($G19="元金均等",ROUNDDOWN(-ISPMT($H19/12,BO19,$E19*12,$I19),0),ROUNDDOWN(-IPMT($H19/12,BO19,$E19*12,$I19),0))) -> 4955 | BP66: 4625 | BQ66: 4294 | BR66: 3964 | BS66: 3633 | BT66: 3303 | BU66: 2973 | BV66: 2642 | BW66: 2642 | BX66: 1982
L67: 利息（エラー回避） | M67: =IF(ISERROR(M66),0,M66) -> 21473 | N67: =IF(ISERROR(N66),0,N66) -> 21142 | O67: 20812 | P67: 20482 | Q67: 20151 | R67: 19821 | S67: 19491 | T67: 19160 | U67: 18830 | V67: 18500 | W67: 18500 | X67: 17839 | Y67: =SUM(M67:X67) -> 236201 | Z67: =IF(ISERROR(Z66),0,Z66) -> 17508 | AA67: 17178 | AB67: 16848 | AC67: 16517 | AD67: 16187 | AE67: 15857 | AF67: 15526 | AG67: 15196 | AH67: 14866 | AI67: 14535 | AJ67: 14535 | AK67: 13875 | AL67: =SUM(Z67:AK67) -> 188628 | AM67: =IF(ISERROR(AM66),0,AM66) -> 13544 | AN67: 13214 | AO67: 12883 | AP67: 12553 | AQ67: 12223 | AR67: 11892 | AS67: 11562 | AT67: 11232 | AU67: 10901 | AV67: 10571 | AW67: 10571 | AX67: 9910 | AY67: =SUM(AM67:AX67) -> 141056 | AZ67: =IF(ISERROR(AZ66),0,AZ66) -> 9580 | BA67: 9250 | BB67: 8919 | BC67: 8589 | BD67: 8258 | BE67: 7928 | BF67: 7598 | BG67: 7267 | BH67: 6937 | BI67: 6607 | BJ67: 6607 | BK67: 5946 | BL67: =SUM(AZ67:BK67) -> 93486 | BM67: =IF(ISERROR(BM66),0,BM66) -> 5616 | BN67: 5285 | BO67: 4955 | BP67: 4625 | BQ67: 4294 | BR67: 3964 | BS67: 3633 | BT67: 3303 | BU67: 2973 | BV67: 2642 | BW67: 2642 | BX67: 1982 | BY67: =SUM(BM67:BX67) -> 45914
A68: 2 | B68: =B23 -> 東灘信用金庫 | C68: 長期 | D68: 2012-11-01 | E68: 7 | F68: 2019-11-30 | G68: 元金均等 | H68: 0.013 | I68: 20000000 | J68: 17000000 | K68: 2014-03-31 | L68: 返済額 | M68: =IF(M23="",0,IF($C23="社債",0,IF($G23="",0,IF($E23=0,0,IF($G23="元金均等",MIN(ROUNDDOWN($I23/($E23*12),0),J23),ROUNDDOWN(-PPMT($H23/12,M23,$E23*12,$I23),0)))))) -> 238095 | N68: =IF(N23="",0,IF($C23="社債",0,IF($G23="",0,IF($E23=0,0,IF($G23="元金均等",MIN(ROUNDDOWN($I23/($E23*12),0),M69),ROUNDDOWN(-PPMT($H23/12,N23,$E23*12,$I23),0)))))) -> 238095 | O68: =IF(O23="",0,IF($C23="社債",0,IF($G23="",0,IF($E23=0,0,IF($G23="元金均等",MIN(ROUNDDOWN($I23/($E23*12),0),N69),ROUNDDOWN(-PPMT($H23/12,O23,$E23*12,$I23),0)))))) -> 238095 | P68: 238095 | Q68: 238095 | R68: 238095 | S68: 238095 | T68: 238095 | U68: 238095 | V68: 238095 | W68: 238095 | X68: 238095 | Y68: =SUM(M68:X68) -> 2857140 | Z68: =IF(Z23="",0,IF($C23="社債",0,IF($G23="",0,IF($E23=0,0,IF($G23="元金均等",MIN(ROUNDDOWN($I23/($E23*12),0),X69),MIN(ROUNDDOWN(-PPMT($H23/12,Z23,$E23*12,$I23),0),X69)))))) -> 238095 | AA68: =IF(AA23="",0,IF($C23="社債",0,IF($G23="",0,IF($E23=0,0,IF($G23="元金均等",MIN(ROUNDDOWN($I23/($E23*12),0),Z69),MIN(ROUNDDOWN(-PPMT($H23/12,AA23,$E23*12,$I23),0),Z69)))))) -> 238095 | AB68: =IF(AB23="",0,IF($C23="社債",0,IF($G23="",0,IF($E23=0,0,IF($G23="元金均等",MIN(ROUNDDOWN($I23/($E23*12),0),AA69),MIN(ROUNDDOWN(-PPMT($H23/12,AB23,$E23*12,$I23),0),AA69)))))) -> 238095 | AC68: 238095 | AD68: 238095 | AE68: 238095 | AF68: 238095 | AG68: 238095 | AH68: 238095 | AI68: 238095 | AJ68: 238095 | AK68: 238095 | AL68: =SUM(Z68:AK68) -> 2857140 | AM68: =IF(AM23="",0,IF($C23="社債",0,IF($G23="",0,IF($E23=0,0,IF($G23="元金均等",MIN(ROUNDDOWN($I23/($E23*12),0),AK69),MIN(ROUNDDOWN(-PPMT($H23/12,AM23,$E23*12,$I23),0),AK69)))))) -> 238095 | AN68: =IF(AN23="",0,IF($C23="社債",0,IF($G23="",0,IF($E23=0,0,IF($G23="元金均等",MIN(ROUNDDOWN($I23/($E23*12),0),AM69),MIN(ROUNDDOWN(-PPMT($H23/12,AN23,$E23*12,$I23),0),AM69)))))) -> 238095 | AO68: =IF(AO23="",0,IF($C23="社債",0,IF($G23="",0,IF($E23=0,0,IF($G23="元金均等",MIN(ROUNDDOWN($I23/($E23*12),0),AN69),MIN(ROUNDDOWN(-PPMT($H23/12,AO23,$E23*12,$I23),0),AN69)))))) -> 238095 | AP68: 238095 | AQ68: 238095 | AR68: 238095 | AS68: 238095 | AT68: 238095 | AU68: 238095 | AV68: 238095 | AW68: 238095 | AX68: 238095 | AY68: =SUM(AM68:AX68) -> 2857140 | AZ68: =IF(AZ23="",0,IF($C23="社債",0,IF($G23="",0,IF($E23=0,0,IF($G23="元金均等",MIN(ROUNDDOWN($I23/($E23*12),0),AX69),MIN(ROUNDDOWN(-PPMT($H23/12,AZ23,$E23*12,$I23),0),AX69)))))) -> 238095 | BA68: =IF(BA23="",0,IF($C23="社債",0,IF($G23="",0,IF($E23=0,0,IF($G23="元金均等",MIN(ROUNDDOWN($I23/($E23*12),0),AZ69),MIN(ROUNDDOWN(-PPMT($H23/12,BA23,$E23*12,$I23),0),AZ69)))))) -> 238095 | BB68: =IF(BB23="",0,IF($C23="社債",0,IF($G23="",0,IF($E23=0,0,IF($G23="元金均等",MIN(ROUNDDOWN($I23/($E23*12),0),BA69),MIN(ROUNDDOWN(-PPMT($H23/12,BB23,$E23*12,$I23),0),BA69)))))) -> 238095 | BC68: 238095 | BD68: 238095 | BE68: 238095 | BF68: 238095 | BG68: 238095 | BH68: 238095 | BI68: 238095 | BJ68: 238095 | BK68: 238095 | BL68: =SUM(AZ68:BK68) -> 2857140 | BM68: =IF(BM23="",0,IF($C23="社債",0,IF($G23="",0,IF($E23=0,0,IF($G23="元金均等",MIN(ROUNDDOWN($I23/($E23*12),0),BK69),MIN(ROUNDDOWN(-PPMT($H23/12,BM23,$E23*12,$I23),0),BK69)))))) -> 238095 | BN68: =IF(BN23="",0,IF($C23="社債",0,IF($G23="",0,IF($E23=0,0,IF($G23="元金均等",MIN(ROUNDDOWN($I23/($E23*12),0),BM69),MIN(ROUNDDOWN(-PPMT($H23/12,BN23,$E23*12,$I23),0),BM69)))))) -> 238095 | BO68: =IF(BO23="",0,IF($C23="社債",0,IF($G23="",0,IF($E23=0,0,IF($G23="元金均等",MIN(ROUNDDOWN($I23/($E23*12),0),BN69),MIN(ROUNDDOWN(-PPMT($H23/12,BO23,$E23*12,$I23),0),BN69)))))) -> 238095 | BP68: 238095 | BQ68: 238095 | BR68: 238095 | BS68: 238095 | BT68: 238095 | BU68: 238095 | BV68: 238095 | BW68: 238095 | BX68: 238095 | BY68: =SUM(BM68:BX68) -> 2857140
L69: 残高 | M69: =IF(J23-M68<0,0,J23-M68) -> 16761905 | N69: =IF(M69-N68<0,0,M69-N68) -> 16523810 | O69: =IF(N69-O68<0,0,N69-O68) -> 16285715 | P69: =IF(O69-P68<0,0,O69-P68) -> 16047620 | Q69: =IF(P69-Q68<0,0,P69-Q68) -> 15809525 | R69: =IF(Q69-R68<0,0,Q69-R68) -> 15571430 | S69: =IF(R69-S68<0,0,R69-S68) -> 15333335 | T69: =IF(S69-T68<0,0,S69-T68) -> 15095240 | U69: =IF(T69-U68<0,0,T69-U68) -> 14857145 | V69: =IF(U69-V68<0,0,U69-V68) -> 14619050 | W69: =IF(V69-W68<0,0,V69-W68) -> 14380955 | X69: =IF(W69-X68<0,0,W69-X68) -> 14142860 | Z69: =IF(X69-Z68<0,0,X69-Z68) -> 13904765 | AA69: =IF(Z69-AA68<0,0,Z69-AA68) -> 13666670 | AB69: =IF(AA69-AB68<0,0,AA69-AB68) -> 13428575 | AC69: =IF(AB69-AC68<0,0,AB69-AC68) -> 13190480 | AD69: =IF(AC69-AD68<0,0,AC69-AD68) -> 12952385 | AE69: =IF(AD69-AE68<0,0,AD69-AE68) -> 12714290 | AF69: =IF(AE69-AF68<0,0,AE69-AF68) -> 12476195 | AG69: =IF(AF69-AG68<0,0,AF69-AG68) -> 12238100 | AH69: =IF(AG69-AH68<0,0,AG69-AH68) -> 12000005 | AI69: =IF(AH69-AI68<0,0,AH69-AI68) -> 11761910 | AJ69: =IF(AI69-AJ68<0,0,AI69-AJ68) -> 11523815 | AK69: =IF(AJ69-AK68<0,0,AJ69-AK68) -> 11285720 | AM69: =IF(AK69-AM68<0,0,AK69-AM68) -> 11047625 | AN69: =IF(AM69-AN68<0,0,AM69-AN68) -> 10809530 | AO69: =IF(AN69-AO68<0,0,AN69-AO68) -> 10571435 | AP69: =IF(AO69-AP68<0,0,AO69-AP68) -> 10333340 | AQ69: =IF(AP69-AQ68<0,0,AP69-AQ68) -> 10095245 | AR69: =IF(AQ69-AR68<0,0,AQ69-AR68) -> 9857150 | AS69: =IF(AR69-AS68<0,0,AR69-AS68) -> 9619055 | AT69: =IF(AS69-AT68<0,0,AS69-AT68) -> 9380960 | AU69: =IF(AT69-AU68<0,0,AT69-AU68) -> 9142865 | AV69: =IF(AU69-AV68<0,0,AU69-AV68) -> 8904770 | AW69: =IF(AV69-AW68<0,0,AV69-AW68) -> 8666675 | AX69: =IF(AW69-AX68<0,0,AW69-AX68) -> 8428580 | AZ69: =IF(AX69-AZ68<0,0,AX69-AZ68) -> 8190485 | BA69: =IF(AZ69-BA68<0,0,AZ69-BA68) -> 7952390 | BB69: =IF(BA69-BB68<0,0,BA69-BB68) -> 7714295 | BC69: =IF(BB69-BC68<0,0,BB69-BC68) -> 7476200 | BD69: =IF(BC69-BD68<0,0,BC69-BD68) -> 7238105 | BE69: =IF(BD69-BE68<0,0,BD69-BE68) -> 7000010 | BF69: =IF(BE69-BF68<0,0,BE69-BF68) -> 6761915 | BG69: =IF(BF69-BG68<0,0,BF69-BG68) -> 6523820 | BH69: =IF(BG69-BH68<0,0,BG69-BH68) -> 6285725 | BI69: =IF(BH69-BI68<0,0,BH69-BI68) -> 6047630 | BJ69: =IF(BI69-BJ68<0,0,BI69-BJ68) -> 5809535 | BK69: =IF(BJ69-BK68<0,0,BJ69-BK68) -> 5571440 | BM69: =IF(BK69-BM68<0,0,BK69-BM68) -> 5333345 | BN69: =IF(BM69-BN68<0,0,BM69-BN68) -> 5095250 | BO69: =IF(BN69-BO68<0,0,BN69-BO68) -> 4857155 | BP69: =IF(BO69-BP68<0,0,BO69-BP68) -> 4619060 | BQ69: =IF(BP69-BQ68<0,0,BP69-BQ68) -> 4380965 | BR69: =IF(BQ69-BR68<0,0,BQ69-BR68) -> 4142870 | BS69: =IF(BR69-BS68<0,0,BR69-BS68) -> 3904775 | BT69: =IF(BS69-BT68<0,0,BS69-BT68) -> 3666680 | BU69: =IF(BT69-BU68<0,0,BT69-BU68) -> 3428585 | BV69: =IF(BU69-BV68<0,0,BU69-BV68) -> 3190490 | BW69: =IF(BV69-BW68<0,0,BV69-BW68) -> 2952395 | BX69: =IF(BW69-BX68<0,0,BW69-BX68) -> 2714300
L70: 利息額 | M70: =IF($C23="社債",0,IF($G23="元金均等",ROUNDDOWN(-ISPMT($H23/12,M23,$E23*12,$I23),0),ROUNDDOWN(-IPMT($H23/12,M23,$E23*12,$I23),0))) -> 17281 | N70: =IF($C23="社債",0,IF($G23="元金均等",ROUNDDOWN(-ISPMT($H23/12,N23,$E23*12,$I23),0),ROUNDDOWN(-IPMT($H23/12,N23,$E23*12,$I23),0))) -> 17023 | O70: =IF($C23="社債",0,IF($G23="元金均等",ROUNDDOWN(-ISPMT($H23/12,O23,$E23*12,$I23),0),ROUNDDOWN(-IPMT($H23/12,O23,$E23*12,$I23),0))) -> 16765 | P70: 16507 | Q70: 16250 | R70: 15992 | S70: 15734 | T70: 15476 | U70: 15218 | V70: 14960 | W70: 14702 | X70: 14444 | Z70: =IF($C23="社債",0,IF($G23="元金均等",ROUNDDOWN(-ISPMT($H23/12,Z23,$E23*12,$I23),0),ROUNDDOWN(-IPMT($H23/12,Z23,$E23*12,$I23),0))) -> 14186 | AA70: =IF($C23="社債",0,IF($G23="元金均等",ROUNDDOWN(-ISPMT($H23/12,AA23,$E23*12,$I23),0),ROUNDDOWN(-IPMT($H23/12,AA23,$E23*12,$I23),0))) -> 13928 | AB70: =IF($C23="社債",0,IF($G23="元金均等",ROUNDDOWN(-ISPMT($H23/12,AB23,$E23*12,$I23),0),ROUNDDOWN(-IPMT($H23/12,AB23,$E23*12,$I23),0))) -> 13670 | AC70: 13412 | AD70: 13154 | AE70: 12896 | AF70: 12638 | AG70: 12380 | AH70: 12123 | AI70: 11865 | AJ70: 11607 | AK70: 11349 | AM70: =IF($C23="社債",0,IF($G23="元金均等",ROUNDDOWN(-ISPMT($H23/12,AM23,$E23*12,$I23),0),ROUNDDOWN(-IPMT($H23/12,AM23,$E23*12,$I23),0))) -> 11091 | AN70: =IF($C23="社債",0,IF($G23="元金均等",ROUNDDOWN(-ISPMT($H23/12,AN23,$E23*12,$I23),0),ROUNDDOWN(-IPMT($H23/12,AN23,$E23*12,$I23),0))) -> 10833 | AO70: =IF($C23="社債",0,IF($G23="元金均等",ROUNDDOWN(-ISPMT($H23/12,AO23,$E23*12,$I23),0),ROUNDDOWN(-IPMT($H23/12,AO23,$E23*12,$I23),0))) -> 10575 | AP70: 10317 | AQ70: 10059 | AR70: 9801 | AS70: 9543 | AT70: 9285 | AU70: 9027 | AV70: 8769 | AW70: 8511 | AX70: 8253 | AZ70: =IF($C23="社債",0,IF($G23="元金均等",ROUNDDOWN(-ISPMT($H23/12,AZ23,$E23*12,$I23),0),ROUNDDOWN(-IPMT($H23/12,AZ23,$E23*12,$I23),0))) -> 7996 | BA70: =IF($C23="社債",0,IF($G23="元金均等",ROUNDDOWN(-ISPMT($H23/12,BA23,$E23*12,$I23),0),ROUNDDOWN(-IPMT($H23/12,BA23,$E23*12,$I23),0))) -> 7738 | BB70: =IF($C23="社債",0,IF($G23="元金均等",ROUNDDOWN(-ISPMT($H23/12,BB23,$E23*12,$I23),0),ROUNDDOWN(-IPMT($H23/12,BB23,$E23*12,$I23),0))) -> 7480 | BC70: 7222 | BD70: 6964 | BE70: 6706 | BF70: 6448 | BG70: 6190 | BH70: 5932 | BI70: 5674 | BJ70: 5416 | BK70: 5158 | BM70: =IF($C23="社債",0,IF($G23="元金均等",ROUNDDOWN(-ISPMT($H23/12,BM23,$E23*12,$I23),0),ROUNDDOWN(-IPMT($H23/12,BM23,$E23*12,$I23),0))) -> 4900 | BN70: =IF($C23="社債",0,IF($G23="元金均等",ROUNDDOWN(-ISPMT($H23/12,BN23,$E23*12,$I23),0),ROUNDDOWN(-IPMT($H23/12,BN23,$E23*12,$I23),0))) -> 4642 | BO70: =IF($C23="社債",0,IF($G23="元金均等",ROUNDDOWN(-ISPMT($H23/12,BO23,$E23*12,$I23),0),ROUNDDOWN(-IPMT($H23/12,BO23,$E23*12,$I23),0))) -> 4384 | BP70: 4126 | BQ70: 3869 | BR70: 3611 | BS70: 3353 | BT70: 3095 | BU70: 2837 | BV70: 2579 | BW70: 2321 | BX70: 2063
L71: 利息（エラー回避） | M71: =IF(ISERROR(M70),0,M70) -> 17281 | N71: 17023 | O71: 16765 | P71: 16507 | Q71: 16250 | R71: 15992 | S71: 15734 | T71: 15476 | U71: 15218 | V71: 14960 | W71: 14702 | X71: 14444 | Y71: =SUM(M71:X71) -> 190352 | Z71: =IF(ISERROR(Z70),0,Z70) -> 14186 | AA71: 13928 | AB71: 13670 | AC71: 13412 | AD71: 13154 | AE71: 12896 | AF71: 12638 | AG71: 12380 | AH71: 12123 | AI71: 11865 | AJ71: 11607 | AK71: 11349 | AL71: =SUM(Z71:AK71) -> 153208 | AM71: =IF(ISERROR(AM70),0,AM70) -> 11091 | AN71: 10833 | AO71: 10575 | AP71: 10317 | AQ71: 10059 | AR71: 9801 | AS71: 9543 | AT71: 9285 | AU71: 9027 | AV71: 8769 | AW71: 8511 | AX71: 8253 | AY71: =SUM(AM71:AX71) -> 116064 | AZ71: =IF(ISERROR(AZ70),0,AZ70) -> 7996 | BA71: 7738 | BB71: 7480 | BC71: 7222 | BD71: 6964 | BE71: 6706 | BF71: 6448 | BG71: 6190 | BH71: 5932 | BI71: 5674 | BJ71: 5416 | BK71: 5158 | BL71: =SUM(AZ71:BK71) -> 78924 | BM71: =IF(ISERROR(BM70),0,BM70) -> 4900 | BN71: 4642 | BO71: 4384 | BP71: 4126 | BQ71: 3869 | BR71: 3611 | BS71: 3353 | BT71: 3095 | BU71: 2837 | BV71: 2579 | BW71: 2321 | BX71: 2063 | BY71: =SUM(BM71:BX71) -> 41780
A72: 3 | B72: =B27 -> 役員借入金 | C72: 長期 | D72: 2012-09-01 | E72: 0 | F72: 2012-09-30 | G72: 元金均等 | H72: 0 | I72: 1000000 | J72: 1000000 | K72: 2014-03-31 | L72: 返済額 | M72: =IF(M27="",0,IF($C27="社債",0,IF($G27="",0,IF($E27=0,0,IF($G27="元金均等",MIN(ROUNDDOWN($I27/($E27*12),0),J27),ROUNDDOWN(-PPMT($H27/12,M27,$E27*12,$I27),0)))))) -> 0 | N72: =IF(N27="",0,IF($C27="社債",0,IF($G27="",0,IF($E27=0,0,IF($G27="元金均等",MIN(ROUNDDOWN($I27/($E27*12),0),M73),ROUNDDOWN(-PPMT($H27/12,N27,$E27*12,$I27),0)))))) -> 0 | O72: =IF(O27="",0,IF($C27="社債",0,IF($G27="",0,IF($E27=0,0,IF($G27="元金均等",MIN(ROUNDDOWN($I27/($E27*12),0),N73),ROUNDDOWN(-PPMT($H27/12,O27,$E27*12,$I27),0)))))) -> 0 | P72: 0 | Q72: 0 | R72: 0 | S72: 0 | T72: 0 | U72: 0 | V72: 0 | W72: 0 | X72: 0 | Y72: =SUM(M72:X72) -> 0 | Z72: =IF(Z27="",0,IF($C27="社債",0,IF($G27="",0,IF($E27=0,0,IF($G27="元金均等",MIN(ROUNDDOWN($I27/($E27*12),0),X73),MIN(ROUNDDOWN(-PPMT($H27/12,Z27,$E27*12,$I27),0),X73)))))) -> 0 | AA72: =IF(AA27="",0,IF($C27="社債",0,IF($G27="",0,IF($E27=0,0,IF($G27="元金均等",MIN(ROUNDDOWN($I27/($E27*12),0),Z73),MIN(ROUNDDOWN(-PPMT($H27/12,AA27,$E27*12,$I27),0),Z73)))))) -> 0 | AB72: =IF(AB27="",0,IF($C27="社債",0,IF($G27="",0,IF($E27=0,0,IF($G27="元金均等",MIN(ROUNDDOWN($I27/($E27*12),0),AA73),MIN(ROUNDDOWN(-PPMT($H27/12,AB27,$E27*12,$I27),0),AA73)))))) -> 0 | AC72: 0 | AD72: 0 | AE72: 0 | AF72: 0 | AG72: 0 | AH72: 0 | AI72: 0 | AJ72: 0 | AK72: 0 | AL72: =SUM(Z72:AK72) -> 0 | AM72: =IF(AM27="",0,IF($C27="社債",0,IF($G27="",0,IF($E27=0,0,IF($G27="元金均等",MIN(ROUNDDOWN($I27/($E27*12),0),AK73),MIN(ROUNDDOWN(-PPMT($H27/12,AM27,$E27*12,$I27),0),AK73)))))) -> 0 | AN72: =IF(AN27="",0,IF($C27="社債",0,IF($G27="",0,IF($E27=0,0,IF($G27="元金均等",MIN(ROUNDDOWN($I27/($E27*12),0),AM73),MIN(ROUNDDOWN(-PPMT($H27/12,AN27,$E27*12,$I27),0),AM73)))))) -> 0 | AO72: =IF(AO27="",0,IF($C27="社債",0,IF($G27="",0,IF($E27=0,0,IF($G27="元金均等",MIN(ROUNDDOWN($I27/($E27*12),0),AN73),MIN(ROUNDDOWN(-PPMT($H27/12,AO27,$E27*12,$I27),0),AN73)))))) -> 0 | AP72: 0 | AQ72: 0 | AR72: 0 | AS72: 0 | AT72: 0 | AU72: 0 | AV72: 0 | AW72: 0 | AX72: 0 | AY72: =SUM(AM72:AX72) -> 0 | AZ72: =IF(AZ27="",0,IF($C27="社債",0,IF($G27="",0,IF($E27=0,0,IF($G27="元金均等",MIN(ROUNDDOWN($I27/($E27*12),0),AX73),MIN(ROUNDDOWN(-PPMT($H27/12,AZ27,$E27*12,$I27),0),AX73)))))) -> 0 | BA72: =IF(BA27="",0,IF($C27="社債",0,IF($G27="",0,IF($E27=0,0,IF($G27="元金均等",MIN(ROUNDDOWN($I27/($E27*12),0),AZ73),MIN(ROUNDDOWN(-PPMT($H27/12,BA27,$E27*12,$I27),0),AZ73)))))) -> 0 | BB72: =IF(BB27="",0,IF($C27="社債",0,IF($G27="",0,IF($E27=0,0,IF($G27="元金均等",MIN(ROUNDDOWN($I27/($E27*12),0),BA73),MIN(ROUNDDOWN(-PPMT($H27/12,BB27,$E27*12,$I27),0),BA73)))))) -> 0 | BC72: 0 | BD72: 0 | BE72: 0 | BF72: 0 | BG72: 0 | BH72: 0 | BI72: 0 | BJ72: 0 | BK72: 0 | BL72: =SUM(AZ72:BK72) -> 0 | BM72: =IF(BM27="",0,IF($C27="社債",0,IF($G27="",0,IF($E27=0,0,IF($G27="元金均等",MIN(ROUNDDOWN($I27/($E27*12),0),BK73),MIN(ROUNDDOWN(-PPMT($H27/12,BM27,$E27*12,$I27),0),BK73)))))) -> 0 | BN72: =IF(BN27="",0,IF($C27="社債",0,IF($G27="",0,IF($E27=0,0,IF($G27="元金均等",MIN(ROUNDDOWN($I27/($E27*12),0),BM73),MIN(ROUNDDOWN(-PPMT($H27/12,BN27,$E27*12,$I27),0),BM73)))))) -> 0 | BO72: =IF(BO27="",0,IF($C27="社債",0,IF($G27="",0,IF($E27=0,0,IF($G27="元金均等",MIN(ROUNDDOWN($I27/($E27*12),0),BN73),MIN(ROUNDDOWN(-PPMT($H27/12,BO27,$E27*12,$I27),0),BN73)))))) -> 0 | BP72: 0 | BQ72: 0 | BR72: 0 | BS72: 0 | BT72: 0 | BU72: 0 | BV72: 0 | BW72: 0 | BX72: 0 | BY72: =SUM(BM72:BX72) -> 0
L73: 残高 | M73: =IF(J27-M72<0,0,J27-M72) -> 1000000 | N73: =IF(M73-N72<0,0,M73-N72) -> 1000000 | O73: =IF(N73-O72<0,0,N73-O72) -> 1000000 | P73: =IF(O73-P72<0,0,O73-P72) -> 1000000 | Q73: =IF(P73-Q72<0,0,P73-Q72) -> 1000000 | R73: =IF(Q73-R72<0,0,Q73-R72) -> 1000000 | S73: =IF(R73-S72<0,0,R73-S72) -> 1000000 | T73: =IF(S73-T72<0,0,S73-T72) -> 1000000 | U73: =IF(T73-U72<0,0,T73-U72) -> 1000000 | V73: =IF(U73-V72<0,0,U73-V72) -> 1000000 | W73: =IF(V73-W72<0,0,V73-W72) -> 1000000 | X73: =IF(W73-X72<0,0,W73-X72) -> 1000000 | Z73: =IF(X73-Z72<0,0,X73-Z72) -> 1000000 | AA73: =IF(Z73-AA72<0,0,Z73-AA72) -> 1000000 | AB73: =IF(AA73-AB72<0,0,AA73-AB72) -> 1000000 | AC73: =IF(AB73-AC72<0,0,AB73-AC72) -> 1000000 | AD73: =IF(AC73-AD72<0,0,AC73-AD72) -> 1000000 | AE73: =IF(AD73-AE72<0,0,AD73-AE72) -> 1000000 | AF73: =IF(AE73-AF72<0,0,AE73-AF72) -> 1000000 | AG73: =IF(AF73-AG72<0,0,AF73-AG72) -> 1000000 | AH73: =IF(AG73-AH72<0,0,AG73-AH72) -> 1000000 | AI73: =IF(AH73-AI72<0,0,AH73-AI72) -> 1000000 | AJ73: =IF(AI73-AJ72<0,0,AI73-AJ72) -> 1000000 | AK73: =IF(AJ73-AK72<0,0,AJ73-AK72) -> 1000000 | AM73: =IF(AK73-AM72<0,0,AK73-AM72) -> 1000000 | AN73: =IF(AM73-AN72<0,0,AM73-AN72) -> 1000000 | AO73: =IF(AN73-AO72<0,0,AN73-AO72) -> 1000000 | AP73: =IF(AO73-AP72<0,0,AO73-AP72) -> 1000000 | AQ73: =IF(AP73-AQ72<0,0,AP73-AQ72) -> 1000000 | AR73: =IF(AQ73-AR72<0,0,AQ73-AR72) -> 1000000 | AS73: =IF(AR73-AS72<0,0,AR73-AS72) -> 1000000 | AT73: =IF(AS73-AT72<0,0,AS73-AT72) -> 1000000 | AU73: =IF(AT73-AU72<0,0,AT73-AU72) -> 1000000 | AV73: =IF(AU73-AV72<0,0,AU73-AV72) -> 1000000 | AW73: =IF(AV73-AW72<0,0,AV73-AW72) -> 1000000 | AX73: =IF(AW73-AX72<0,0,AW73-AX72) -> 1000000 | AZ73: =IF(AX73-AZ72<0,0,AX73-AZ72) -> 1000000 | BA73: =IF(AZ73-BA72<0,0,AZ73-BA72) -> 1000000 | BB73: =IF(BA73-BB72<0,0,BA73-BB72) -> 1000000 | BC73: =IF(BB73-BC72<0,0,BB73-BC72) -> 1000000 | BD73: =IF(BC73-BD72<0,0,BC73-BD72) -> 1000000 | BE73: =IF(BD73-BE72<0,0,BD73-BE72) -> 1000000 | BF73: =IF(BE73-BF72<0,0,BE73-BF72) -> 1000000 | BG73: =IF(BF73-BG72<0,0,BF73-BG72) -> 1000000 | BH73: =IF(BG73-BH72<0,0,BG73-BH72) -> 1000000 | BI73: =IF(BH73-BI72<0,0,BH73-BI72) -> 1000000 | BJ73: =IF(BI73-BJ72<0,0,BI73-BJ72) -> 1000000 | BK73: =IF(BJ73-BK72<0,0,BJ73-BK72) -> 1000000 | BM73: =IF(BK73-BM72<0,0,BK73-BM72) -> 1000000 | BN73: =IF(BM73-BN72<0,0,BM73-BN72) -> 1000000 | BO73: =IF(BN73-BO72<0,0,BN73-BO72) -> 1000000 | BP73: =IF(BO73-BP72<0,0,BO73-BP72) -> 1000000 | BQ73: =IF(BP73-BQ72<0,0,BP73-BQ72) -> 1000000 | BR73: =IF(BQ73-BR72<0,0,BQ73-BR72) -> 1000000 | BS73: =IF(BR73-BS72<0,0,BR73-BS72) -> 1000000 | BT73: =IF(BS73-BT72<0,0,BS73-BT72) -> 1000000 | BU73: =IF(BT73-BU72<0,0,BT73-BU72) -> 1000000 | BV73: =IF(BU73-BV72<0,0,BU73-BV72) -> 1000000 | BW73: =IF(BV73-BW72<0,0,BV73-BW72) -> 1000000 | BX73: =IF(BW73-BX72<0,0,BW73-BX72) -> 1000000
L74: 利息額 | M74: =IF($C27="社債",0,IF($G27="元金均等",ROUNDDOWN(-ISPMT($H27/12,M27,$E27*12,$I27),0),ROUNDDOWN(-IPMT($H27/12,M27,$E27*12,$I27),0))) ->  | N74: =IF($C27="社債",0,IF($G27="元金均等",ROUNDDOWN(-ISPMT($H27/12,N27,$E27*12,$I27),0),ROUNDDOWN(-IPMT($H27/12,N27,$E27*12,$I27),0))) ->  | O74: =IF($C27="社債",0,IF($G27="元金均等",ROUNDDOWN(-ISPMT($H27/12,O27,$E27*12,$I27),0),ROUNDDOWN(-IPMT($H27/12,O27,$E27*12,$I27),0))) ->  | Z74: =IF($C27="社債",0,IF($G27="元金均等",ROUNDDOWN(-ISPMT($H27/12,Z27,$E27*12,$I27),0),ROUNDDOWN(-IPMT($H27/12,Z27,$E27*12,$I27),0))) ->  | AA74: =IF($C27="社債",0,IF($G27="元金均等",ROUNDDOWN(-ISPMT($H27/12,AA27,$E27*12,$I27),0),ROUNDDOWN(-IPMT($H27/12,AA27,$E27*12,$I27),0))) ->  | AB74: =IF($C27="社債",0,IF($G27="元金均等",ROUNDDOWN(-ISPMT($H27/12,AB27,$E27*12,$I27),0),ROUNDDOWN(-IPMT($H27/12,AB27,$E27*12,$I27),0))) ->  | AM74: =IF($C27="社債",0,IF($G27="元金均等",ROUNDDOWN(-ISPMT($H27/12,AM27,$E27*12,$I27),0),ROUNDDOWN(-IPMT($H27/12,AM27,$E27*12,$I27),0))) ->  | AN74: =IF($C27="社債",0,IF($G27="元金均等",ROUNDDOWN(-ISPMT($H27/12,AN27,$E27*12,$I27),0),ROUNDDOWN(-IPMT($H27/12,AN27,$E27*12,$I27),0))) ->  | AO74: =IF($C27="社債",0,IF($G27="元金均等",ROUNDDOWN(-ISPMT($H27/12,AO27,$E27*12,$I27),0),ROUNDDOWN(-IPMT($H27/12,AO27,$E27*12,$I27),0))) ->  | AZ74: =IF($C27="社債",0,IF($G27="元金均等",ROUNDDOWN(-ISPMT($H27/12,AZ27,$E27*12,$I27),0),ROUNDDOWN(-IPMT($H27/12,AZ27,$E27*12,$I27),0))) ->  | BA74: =IF($C27="社債",0,IF($G27="元金均等",ROUNDDOWN(-ISPMT($H27/12,BA27,$E27*12,$I27),0),ROUNDDOWN(-IPMT($H27/12,BA27,$E27*12,$I27),0))) ->  | BB74: =IF($C27="社債",0,IF($G27="元金均等",ROUNDDOWN(-ISPMT($H27/12,BB27,$E27*12,$I27),0),ROUNDDOWN(-IPMT($H27/12,BB27,$E27*12,$I27),0))) ->  | BM74: =IF($C27="社債",0,IF($G27="元金均等",ROUNDDOWN(-ISPMT($H27/12,BM27,$E27*12,$I27),0),ROUNDDOWN(-IPMT($H27/12,BM27,$E27*12,$I27),0))) ->  | BN74: =IF($C27="社債",0,IF($G27="元金均等",ROUNDDOWN(-ISPMT($H27/12,BN27,$E27*12,$I27),0),ROUNDDOWN(-IPMT($H27/12,BN27,$E27*12,$I27),0))) ->  | BO74: =IF($C27="社債",0,IF($G27="元金均等",ROUNDDOWN(-ISPMT($H27/12,BO27,$E27*12,$I27),0),ROUNDDOWN(-IPMT($H27/12,BO27,$E27*12,$I27),0))) -> 
L75: 利息（エラー回避） | M75: =IF(ISERROR(M74),0,M74) -> 0 | N75: 0 | O75: 0 | P75: 0 | Q75: 0 | R75: 0 | S75: 0 | T75: 0 | U75: 0 | V75: 0 | W75: 0 | X75: 0 | Y75: =SUM(M75:X75) -> 0 | Z75: =IF(ISERROR(Z74),0,Z74) -> 0 | AA75: 0 | AB75: 0 | AC75: 0 | AD75: 0 | AE75: 0 | AF75: 0 | AG75: 0 | AH75: 0 | AI75: 0 | AJ75: 0 | AK75: 0 | AL75: =SUM(Z75:AK75) -> 0 | AM75: =IF(ISERROR(AM74),0,AM74) -> 0 | AN75: 0 | AO75: 0 | AP75: 0 | AQ75: 0 | AR75: 0 | AS75: 0 | AT75: 0 | AU75: 0 | AV75: 0 | AW75: 0 | AX75: 0 | AY75: =SUM(AM75:AX75) -> 0 | AZ75: =IF(ISERROR(AZ74),0,AZ74) -> 0 | BA75: 0 | BB75: 0 | BC75: 0 | BD75: 0 | BE75: 0 | BF75: 0 | BG75: 0 | BH75: 0 | BI75: 0 | BJ75: 0 | BK75: 0 | BL75: =SUM(AZ75:BK75) -> 0 | BM75: =IF(ISERROR(BM74),0,BM74) -> 0 | BN75: 0 | BO75: 0 | BP75: 0 | BQ75: 0 | BR75: 0 | BS75: 0 | BT75: 0 | BU75: 0 | BV75: 0 | BW75: 0 | BX75: 0 | BY75: =SUM(BM75:BX75) -> 0
A76: 4 | B76: =B31 -> 0 | C76: 0 | D76: 00:00:00 | E76: 0 | F76: 1900-01-31 | G76: 0 | H76: 0 | I76: 0 | J76: 0 | K76: 2014-03-31 | L76: 返済額 | M76: =IF(M31="",0,IF($C31="社債",0,IF($G31="",0,IF($E31=0,0,IF($G31="元金均等",MIN(ROUNDDOWN($I31/($E31*12),0),J31),ROUNDDOWN(-PPMT($H31/12,M31,$E31*12,$I31),0)))))) -> 0 | N76: =IF(N31="",0,IF($C31="社債",0,IF($G31="",0,IF($E31=0,0,IF($G31="元金均等",MIN(ROUNDDOWN($I31/($E31*12),0),M77),ROUNDDOWN(-PPMT($H31/12,N31,$E31*12,$I31),0)))))) -> 0 | O76: =IF(O31="",0,IF($C31="社債",0,IF($G31="",0,IF($E31=0,0,IF($G31="元金均等",MIN(ROUNDDOWN($I31/($E31*12),0),N77),ROUNDDOWN(-PPMT($H31/12,O31,$E31*12,$I31),0)))))) -> 0 | P76: 0 | Q76: 0 | R76: 0 | S76: 0 | T76: 0 | U76: 0 | V76: 0 | W76: 0 | X76: 0 | Y76: =SUM(M76:X76) -> 0 | Z76: =IF(Z31="",0,IF($C31="社債",0,IF($G31="",0,IF($E31=0,0,IF($G31="元金均等",MIN(ROUNDDOWN($I31/($E31*12),0),X77),MIN(ROUNDDOWN(-PPMT($H31/12,Z31,$E31*12,$I31),0),X77)))))) -> 0 | AA76: =IF(AA31="",0,IF($C31="社債",0,IF($G31="",0,IF($E31=0,0,IF($G31="元金均等",MIN(ROUNDDOWN($I31/($E31*12),0),Z77),MIN(ROUNDDOWN(-PPMT($H31/12,AA31,$E31*12,$I31),0),Z77)))))) -> 0 | AB76: =IF(AB31="",0,IF($C31="社債",0,IF($G31="",0,IF($E31=0,0,IF($G31="元金均等",MIN(ROUNDDOWN($I31/($E31*12),0),AA77),MIN(ROUNDDOWN(-PPMT($H31/12,AB31,$E31*12,$I31),0),AA77)))))) -> 0 | AC76: 0 | AD76: 0 | AE76: 0 | AF76: 0 | AG76: 0 | AH76: 0 | AI76: 0 | AJ76: 0 | AK76: 0 | AL76: =SUM(Z76:AK76) -> 0 | AM76: =IF(AM31="",0,IF($C31="社債",0,IF($G31="",0,IF($E31=0,0,IF($G31="元金均等",MIN(ROUNDDOWN($I31/($E31*12),0),AK77),MIN(ROUNDDOWN(-PPMT($H31/12,AM31,$E31*12,$I31),0),AK77)))))) -> 0 | AN76: =IF(AN31="",0,IF($C31="社債",0,IF($G31="",0,IF($E31=0,0,IF($G31="元金均等",MIN(ROUNDDOWN($I31/($E31*12),0),AM77),MIN(ROUNDDOWN(-PPMT($H31/12,AN31,$E31*12,$I31),0),AM77)))))) -> 0 | AO76: =IF(AO31="",0,IF($C31="社債",0,IF($G31="",0,IF($E31=0,0,IF($G31="元金均等",MIN(ROUNDDOWN($I31/($E31*12),0),AN77),MIN(ROUNDDOWN(-PPMT($H31/12,AO31,$E31*12,$I31),0),AN77)))))) -> 0 | AP76: 0 | AQ76: 0 | AR76: 0 | AS76: 0 | AT76: 0 | AU76: 0 | AV76: 0 | AW76: 0 | AX76: 0 | AY76: =SUM(AM76:AX76) -> 0 | AZ76: =IF(AZ31="",0,IF($C31="社債",0,IF($G31="",0,IF($E31=0,0,IF($G31="元金均等",MIN(ROUNDDOWN($I31/($E31*12),0),AX77),MIN(ROUNDDOWN(-PPMT($H31/12,AZ31,$E31*12,$I31),0),AX77)))))) -> 0 | BA76: =IF(BA31="",0,IF($C31="社債",0,IF($G31="",0,IF($E31=0,0,IF($G31="元金均等",MIN(ROUNDDOWN($I31/($E31*12),0),AZ77),MIN(ROUNDDOWN(-PPMT($H31/12,BA31,$E31*12,$I31),0),AZ77)))))) -> 0 | BB76: =IF(BB31="",0,IF($C31="社債",0,IF($G31="",0,IF($E31=0,0,IF($G31="元金均等",MIN(ROUNDDOWN($I31/($E31*12),0),BA77),MIN(ROUNDDOWN(-PPMT($H31/12,BB31,$E31*12,$I31),0),BA77)))))) -> 0 | BC76: 0 | BD76: 0 | BE76: 0 | BF76: 0 | BG76: 0 | BH76: 0 | BI76: 0 | BJ76: 0 | BK76: 0 | BL76: =SUM(AZ76:BK76) -> 0 | BM76: =IF(BM31="",0,IF($C31="社債",0,IF($G31="",0,IF($E31=0,0,IF($G31="元金均等",MIN(ROUNDDOWN($I31/($E31*12),0),BK77),MIN(ROUNDDOWN(-PPMT($H31/12,BM31,$E31*12,$I31),0),BK77)))))) -> 0 | BN76: =IF(BN31="",0,IF($C31="社債",0,IF($G31="",0,IF($E31=0,0,IF($G31="元金均等",MIN(ROUNDDOWN($I31/($E31*12),0),BM77),MIN(ROUNDDOWN(-PPMT($H31/12,BN31,$E31*12,$I31),0),BM77)))))) -> 0 | BO76: =IF(BO31="",0,IF($C31="社債",0,IF($G31="",0,IF($E31=0,0,IF($G31="元金均等",MIN(ROUNDDOWN($I31/($E31*12),0),BN77),MIN(ROUNDDOWN(-PPMT($H31/12,BO31,$E31*12,$I31),0),BN77)))))) -> 0 | BP76: 0 | BQ76: 0 | BR76: 0 | BS76: 0 | BT76: 0 | BU76: 0 | BV76: 0 | BW76: 0 | BX76: 0 | BY76: =SUM(BM76:BX76) -> 0
L77: 残高 | M77: =IF(J31-M76<0,0,J31-M76) -> 0 | N77: =IF(M77-N76<0,0,M77-N76) -> 0 | O77: =IF(N77-O76<0,0,N77-O76) -> 0 | P77: =IF(O77-P76<0,0,O77-P76) -> 0 | Q77: =IF(P77-Q76<0,0,P77-Q76) -> 0 | R77: =IF(Q77-R76<0,0,Q77-R76) -> 0 | S77: =IF(R77-S76<0,0,R77-S76) -> 0 | T77: =IF(S77-T76<0,0,S77-T76) -> 0 | U77: =IF(T77-U76<0,0,T77-U76) -> 0 | V77: =IF(U77-V76<0,0,U77-V76) -> 0 | W77: =IF(V77-W76<0,0,V77-W76) -> 0 | X77: =IF(W77-X76<0,0,W77-X76) -> 0 | Z77: =IF(X77-Z76<0,0,X77-Z76) -> 0 | AA77: =IF(Z77-AA76<0,0,Z77-AA76) -> 0 | AB77: =IF(AA77-AB76<0,0,AA77-AB76) -> 0 | AC77: =IF(AB77-AC76<0,0,AB77-AC76) -> 0 | AD77: =IF(AC77-AD76<0,0,AC77-AD76) -> 0 | AE77: =IF(AD77-AE76<0,0,AD77-AE76) -> 0 | AF77: =IF(AE77-AF76<0,0,AE77-AF76) -> 0 | AG77: =IF(AF77-AG76<0,0,AF77-AG76) -> 0 | AH77: =IF(AG77-AH76<0,0,AG77-AH76) -> 0 | AI77: =IF(AH77-AI76<0,0,AH77-AI76) -> 0 | AJ77: =IF(AI77-AJ76<0,0,AI77-AJ76) -> 0 | AK77: =IF(AJ77-AK76<0,0,AJ77-AK76) -> 0 | AM77: =IF(AK77-AM76<0,0,AK77-AM76) -> 0 | AN77: =IF(AM77-AN76<0,0,AM77-AN76) -> 0 | AO77: =IF(AN77-AO76<0,0,AN77-AO76) -> 0 | AP77: =IF(AO77-AP76<0,0,AO77-AP76) -> 0 | AQ77: =IF(AP77-AQ76<0,0,AP77-AQ76) -> 0 | AR77: =IF(AQ77-AR76<0,0,AQ77-AR76) -> 0 | AS77: =IF(AR77-AS76<0,0,AR77-AS76) -> 0 | AT77: =IF(AS77-AT76<0,0,AS77-AT76) -> 0 | AU77: =IF(AT77-AU76<0,0,AT77-AU76) -> 0 | AV77: =IF(AU77-AV76<0,0,AU77-AV76) -> 0 | AW77: =IF(AV77-AW76<0,0,AV77-AW76) -> 0 | AX77: =IF(AW77-AX76<0,0,AW77-AX76) -> 0 | AZ77: =IF(AX77-AZ76<0,0,AX77-AZ76) -> 0 | BA77: =IF(AZ77-BA76<0,0,AZ77-BA76) -> 0 | BB77: =IF(BA77-BB76<0,0,BA77-BB76) -> 0 | BC77: =IF(BB77-BC76<0,0,BB77-BC76) -> 0 | BD77: =IF(BC77-BD76<0,0,BC77-BD76) -> 0 | BE77: =IF(BD77-BE76<0,0,BD77-BE76) -> 0 | BF77: =IF(BE77-BF76<0,0,BE77-BF76) -> 0 | BG77: =IF(BF77-BG76<0,0,BF77-BG76) -> 0 | BH77: =IF(BG77-BH76<0,0,BG77-BH76) -> 0 | BI77: =IF(BH77-BI76<0,0,BH77-BI76) -> 0 | BJ77: =IF(BI77-BJ76<0,0,BI77-BJ76) -> 0 | BK77: =IF(BJ77-BK76<0,0,BJ77-BK76) -> 0 | BM77: =IF(BK77-BM76<0,0,BK77-BM76) -> 0 | BN77: =IF(BM77-BN76<0,0,BM77-BN76) -> 0 | BO77: =IF(BN77-BO76<0,0,BN77-BO76) -> 0 | BP77: =IF(BO77-BP76<0,0,BO77-BP76) -> 0 | BQ77: =IF(BP77-BQ76<0,0,BP77-BQ76) -> 0 | BR77: =IF(BQ77-BR76<0,0,BQ77-BR76) -> 0 | BS77: =IF(BR77-BS76<0,0,BR77-BS76) -> 0 | BT77: =IF(BS77-BT76<0,0,BS77-BT76) -> 0 | BU77: =IF(BT77-BU76<0,0,BT77-BU76) -> 0 | BV77: =IF(BU77-BV76<0,0,BU77-BV76) -> 0 | BW77: =IF(BV77-BW76<0,0,BV77-BW76) -> 0 | BX77: =IF(BW77-BX76<0,0,BW77-BX76) -> 0
L78: 利息額 | M78: =IF($C31="社債",0,IF($G31="元金均等",ROUNDDOWN(-ISPMT($H31/12,M31,$E31*12,$I31),0),ROUNDDOWN(-IPMT($H31/12,M31,$E31*12,$I31),0))) ->  | N78: =IF($C31="社債",0,IF($G31="元金均等",ROUNDDOWN(-ISPMT($H31/12,N31,$E31*12,$I31),0),ROUNDDOWN(-IPMT($H31/12,N31,$E31*12,$I31),0))) ->  | O78: =IF($C31="社債",0,IF($G31="元金均等",ROUNDDOWN(-ISPMT($H31/12,O31,$E31*12,$I31),0),ROUNDDOWN(-IPMT($H31/12,O31,$E31*12,$I31),0))) ->  | Z78: =IF($C31="社債",0,IF($G31="元金均等",ROUNDDOWN(-ISPMT($H31/12,Z31,$E31*12,$I31),0),ROUNDDOWN(-IPMT($H31/12,Z31,$E31*12,$I31),0))) ->  | AA78: =IF($C31="社債",0,IF($G31="元金均等",ROUNDDOWN(-ISPMT($H31/12,AA31,$E31*12,$I31),0),ROUNDDOWN(-IPMT($H31/12,AA31,$E31*12,$I31),0))) ->  | AB78: =IF($C31="社債",0,IF($G31="元金均等",ROUNDDOWN(-ISPMT($H31/12,AB31,$E31*12,$I31),0),ROUNDDOWN(-IPMT($H31/12,AB31,$E31*12,$I31),0))) ->  | AM78: =IF($C31="社債",0,IF($G31="元金均等",ROUNDDOWN(-ISPMT($H31/12,AM31,$E31*12,$I31),0),ROUNDDOWN(-IPMT($H31/12,AM31,$E31*12,$I31),0))) ->  | AN78: =IF($C31="社債",0,IF($G31="元金均等",ROUNDDOWN(-ISPMT($H31/12,AN31,$E31*12,$I31),0),ROUNDDOWN(-IPMT($H31/12,AN31,$E31*12,$I31),0))) ->  | AO78: =IF($C31="社債",0,IF($G31="元金均等",ROUNDDOWN(-ISPMT($H31/12,AO31,$E31*12,$I31),0),ROUNDDOWN(-IPMT($H31/12,AO31,$E31*12,$I31),0))) ->  | AZ78: =IF($C31="社債",0,IF($G31="元金均等",ROUNDDOWN(-ISPMT($H31/12,AZ31,$E31*12,$I31),0),ROUNDDOWN(-IPMT($H31/12,AZ31,$E31*12,$I31),0))) ->  | BA78: =IF($C31="社債",0,IF($G31="元金均等",ROUNDDOWN(-ISPMT($H31/12,BA31,$E31*12,$I31),0),ROUNDDOWN(-IPMT($H31/12,BA31,$E31*12,$I31),0))) ->  | BB78: =IF($C31="社債",0,IF($G31="元金均等",ROUNDDOWN(-ISPMT($H31/12,BB31,$E31*12,$I31),0),ROUNDDOWN(-IPMT($H31/12,BB31,$E31*12,$I31),0))) ->  | BM78: =IF($C31="社債",0,IF($G31="元金均等",ROUNDDOWN(-ISPMT($H31/12,BM31,$E31*12,$I31),0),ROUNDDOWN(-IPMT($H31/12,BM31,$E31*12,$I31),0))) ->  | BN78: =IF($C31="社債",0,IF($G31="元金均等",ROUNDDOWN(-ISPMT($H31/12,BN31,$E31*12,$I31),0),ROUNDDOWN(-IPMT($H31/12,BN31,$E31*12,$I31),0))) ->  | BO78: =IF($C31="社債",0,IF($G31="元金均等",ROUNDDOWN(-ISPMT($H31/12,BO31,$E31*12,$I31),0),ROUNDDOWN(-IPMT($H31/12,BO31,$E31*12,$I31),0))) -> 
L79: 利息（エラー回避） | M79: =IF(ISERROR(M78),0,M78) -> 0 | N79: 0 | O79: 0 | P79: 0 | Q79: 0 | R79: 0 | S79: 0 | T79: 0 | U79: 0 | V79: 0 | W79: 0 | X79: 0 | Y79: =SUM(M79:X79) -> 0 | Z79: =IF(ISERROR(Z78),0,Z78) -> 0 | AA79: 0 | AB79: 0 | AC79: 0 | AD79: 0 | AE79: 0 | AF79: 0 | AG79: 0 | AH79: 0 | AI79: 0 | AJ79: 0 | AK79: 0 | AL79: =SUM(Z79:AK79) -> 0 | AM79: =IF(ISERROR(AM78),0,AM78) -> 0 | AN79: 0 | AO79: 0 | AP79: 0 | AQ79: 0 | AR79: 0 | AS79: 0 | AT79: 0 | AU79: 0 | AV79: 0 | AW79: 0 | AX79: 0 | AY79: =SUM(AM79:AX79) -> 0 | AZ79: =IF(ISERROR(AZ78),0,AZ78) -> 0 | BA79: 0 | BB79: 0 | BC79: 0 | BD79: 0 | BE79: 0 | BF79: 0 | BG79: 0 | BH79: 0 | BI79: 0 | BJ79: 0 | BK79: 0 | BL79: =SUM(AZ79:BK79) -> 0 | BM79: =IF(ISERROR(BM78),0,BM78) -> 0 | BN79: 0 | BO79: 0 | BP79: 0 | BQ79: 0 | BR79: 0 | BS79: 0 | BT79: 0 | BU79: 0 | BV79: 0 | BW79: 0 | BX79: 0 | BY79: =SUM(BM79:BX79) -> 0
A80: 5 | B80: =B35 -> 0 | C80: 0 | D80: 00:00:00 | E80: 0 | F80: 1900-01-31 | G80: 0 | H80: 0 | I80: 0 | J80: 0 | K80: 2014-03-31 | L80: 返済額 | M80: =IF(M35="",0,IF($C35="社債",0,IF($G35="",0,IF($E35=0,0,IF($G35="元金均等",MIN(ROUNDDOWN($I35/($E35*12),0),J35),ROUNDDOWN(-PPMT($H35/12,M35,$E35*12,$I35),0)))))) -> 0 | N80: =IF(N35="",0,IF($C35="社債",0,IF($G35="",0,IF($E35=0,0,IF($G35="元金均等",MIN(ROUNDDOWN($I35/($E35*12),0),M81),ROUNDDOWN(-PPMT($H35/12,N35,$E35*12,$I35),0)))))) -> 0 | O80: =IF(O35="",0,IF($C35="社債",0,IF($G35="",0,IF($E35=0,0,IF($G35="元金均等",MIN(ROUNDDOWN($I35/($E35*12),0),N81),ROUNDDOWN(-PPMT($H35/12,O35,$E35*12,$I35),0)))))) -> 0 | P80: 0 | Q80: 0 | R80: 0 | S80: 0 | T80: 0 | U80: 0 | V80: 0 | W80: 0 | X80: 0 | Y80: =SUM(M80:X80) -> 0 | Z80: =IF(Z35="",0,IF($C35="社債",0,IF($G35="",0,IF($E35=0,0,IF($G35="元金均等",MIN(ROUNDDOWN($I35/($E35*12),0),X81),MIN(ROUNDDOWN(-PPMT($H35/12,Z35,$E35*12,$I35),0),X81)))))) -> 0 | AA80: =IF(AA35="",0,IF($C35="社債",0,IF($G35="",0,IF($E35=0,0,IF($G35="元金均等",MIN(ROUNDDOWN($I35/($E35*12),0),Z81),MIN(ROUNDDOWN(-PPMT($H35/12,AA35,$E35*12,$I35),0),Z81)))))) -> 0 | AB80: =IF(AB35="",0,IF($C35="社債",0,IF($G35="",0,IF($E35=0,0,IF($G35="元金均等",MIN(ROUNDDOWN($I35/($E35*12),0),AA81),MIN(ROUNDDOWN(-PPMT($H35/12,AB35,$E35*12,$I35),0),AA81)))))) -> 0 | AC80: 0 | AD80: 0 | AE80: 0 | AF80: 0 | AG80: 0 | AH80: 0 | AI80: 0 | AJ80: 0 | AK80: 0 | AL80: =SUM(Z80:AK80) -> 0 | AM80: =IF(AM35="",0,IF($C35="社債",0,IF($G35="",0,IF($E35=0,0,IF($G35="元金均等",MIN(ROUNDDOWN($I35/($E35*12),0),AK81),MIN(ROUNDDOWN(-PPMT($H35/12,AM35,$E35*12,$I35),0),AK81)))))) -> 0 | AN80: =IF(AN35="",0,IF($C35="社債",0,IF($G35="",0,IF($E35=0,0,IF($G35="元金均等",MIN(ROUNDDOWN($I35/($E35*12),0),AM81),MIN(ROUNDDOWN(-PPMT($H35/12,AN35,$E35*12,$I35),0),AM81)))))) -> 0 | AO80: =IF(AO35="",0,IF($C35="社債",0,IF($G35="",0,IF($E35=0,0,IF($G35="元金均等",MIN(ROUNDDOWN($I35/($E35*12),0),AN81),MIN(ROUNDDOWN(-PPMT($H35/12,AO35,$E35*12,$I35),0),AN81)))))) -> 0 | AP80: 0 | AQ80: 0 | AR80: 0 | AS80: 0 | AT80: 0 | AU80: 0 | AV80: 0 | AW80: 0 | AX80: 0 | AY80: =SUM(AM80:AX80) -> 0 | AZ80: =IF(AZ35="",0,IF($C35="社債",0,IF($G35="",0,IF($E35=0,0,IF($G35="元金均等",MIN(ROUNDDOWN($I35/($E35*12),0),AX81),MIN(ROUNDDOWN(-PPMT($H35/12,AZ35,$E35*12,$I35),0),AX81)))))) -> 0 | BA80: =IF(BA35="",0,IF($C35="社債",0,IF($G35="",0,IF($E35=0,0,IF($G35="元金均等",MIN(ROUNDDOWN($I35/($E35*12),0),AZ81),MIN(ROUNDDOWN(-PPMT($H35/12,BA35,$E35*12,$I35),0),AZ81)))))) -> 0 | BB80: =IF(BB35="",0,IF($C35="社債",0,IF($G35="",0,IF($E35=0,0,IF($G35="元金均等",MIN(ROUNDDOWN($I35/($E35*12),0),BA81),MIN(ROUNDDOWN(-PPMT($H35/12,BB35,$E35*12,$I35),0),BA81)))))) -> 0 | BC80: 0 | BD80: 0 | BE80: 0 | BF80: 0 | BG80: 0 | BH80: 0 | BI80: 0 | BJ80: 0 | BK80: 0 | BL80: =SUM(AZ80:BK80) -> 0 | BM80: =IF(BM35="",0,IF($C35="社債",0,IF($G35="",0,IF($E35=0,0,IF($G35="元金均等",MIN(ROUNDDOWN($I35/($E35*12),0),BK81),MIN(ROUNDDOWN(-PPMT($H35/12,BM35,$E35*12,$I35),0),BK81)))))) -> 0 | BN80: =IF(BN35="",0,IF($C35="社債",0,IF($G35="",0,IF($E35=0,0,IF($G35="元金均等",MIN(ROUNDDOWN($I35/($E35*12),0),BM81),MIN(ROUNDDOWN(-PPMT($H35/12,BN35,$E35*12,$I35),0),BM81)))))) -> 0 | BO80: =IF(BO35="",0,IF($C35="社債",0,IF($G35="",0,IF($E35=0,0,IF($G35="元金均等",MIN(ROUNDDOWN($I35/($E35*12),0),BN81),MIN(ROUNDDOWN(-PPMT($H35/12,BO35,$E35*12,$I35),0),BN81)))))) -> 0 | BP80: 0 | BQ80: 0 | BR80: 0 | BS80: 0 | BT80: 0 | BU80: 0 | BV80: 0 | BW80: 0 | BX80: 0 | BY80: =SUM(BM80:BX80) -> 0
L81: 残高 | M81: =IF(J35-M80<0,0,J35-M80) -> 0 | N81: =IF(M81-N80<0,0,M81-N80) -> 0 | O81: =IF(N81-O80<0,0,N81-O80) -> 0 | P81: =IF(O81-P80<0,0,O81-P80) -> 0 | Q81: =IF(P81-Q80<0,0,P81-Q80) -> 0 | R81: =IF(Q81-R80<0,0,Q81-R80) -> 0 | S81: =IF(R81-S80<0,0,R81-S80) -> 0 | T81: =IF(S81-T80<0,0,S81-T80) -> 0 | U81: =IF(T81-U80<0,0,T81-U80) -> 0 | V81: =IF(U81-V80<0,0,U81-V80) -> 0 | W81: =IF(V81-W80<0,0,V81-W80) -> 0 | X81: =IF(W81-X80<0,0,W81-X80) -> 0 | Z81: =IF(X81-Z80<0,0,X81-Z80) -> 0 | AA81: =IF(Z81-AA80<0,0,Z81-AA80) -> 0 | AB81: =IF(AA81-AB80<0,0,AA81-AB80) -> 0 | AC81: =IF(AB81-AC80<0,0,AB81-AC80) -> 0 | AD81: =IF(AC81-AD80<0,0,AC81-AD80) -> 0 | AE81: =IF(AD81-AE80<0,0,AD81-AE80) -> 0 | AF81: =IF(AE81-AF80<0,0,AE81-AF80) -> 0 | AG81: =IF(AF81-AG80<0,0,AF81-AG80) -> 0 | AH81: =IF(AG81-AH80<0,0,AG81-AH80) -> 0 | AI81: =IF(AH81-AI80<0,0,AH81-AI80) -> 0 | AJ81: =IF(AI81-AJ80<0,0,AI81-AJ80) -> 0 | AK81: =IF(AJ81-AK80<0,0,AJ81-AK80) -> 0 | AM81: =IF(AK81-AM80<0,0,AK81-AM80) -> 0 | AN81: =IF(AM81-AN80<0,0,AM81-AN80) -> 0 | AO81: =IF(AN81-AO80<0,0,AN81-AO80) -> 0 | AP81: =IF(AO81-AP80<0,0,AO81-AP80) -> 0 | AQ81: =IF(AP81-AQ80<0,0,AP81-AQ80) -> 0 | AR81: =IF(AQ81-AR80<0,0,AQ81-AR80) -> 0 | AS81: =IF(AR81-AS80<0,0,AR81-AS80) -> 0 | AT81: =IF(AS81-AT80<0,0,AS81-AT80) -> 0 | AU81: =IF(AT81-AU80<0,0,AT81-AU80) -> 0 | AV81: =IF(AU81-AV80<0,0,AU81-AV80) -> 0 | AW81: =IF(AV81-AW80<0,0,AV81-AW80) -> 0 | AX81: =IF(AW81-AX80<0,0,AW81-AX80) -> 0 | AZ81: =IF(AX81-AZ80<0,0,AX81-AZ80) -> 0 | BA81: =IF(AZ81-BA80<0,0,AZ81-BA80) -> 0 | BB81: =IF(BA81-BB80<0,0,BA81-BB80) -> 0 | BC81: =IF(BB81-BC80<0,0,BB81-BC80) -> 0 | BD81: =IF(BC81-BD80<0,0,BC81-BD80) -> 0 | BE81: =IF(BD81-BE80<0,0,BD81-BE80) -> 0 | BF81: =IF(BE81-BF80<0,0,BE81-BF80) -> 0 | BG81: =IF(BF81-BG80<0,0,BF81-BG80) -> 0 | BH81: =IF(BG81-BH80<0,0,BG81-BH80) -> 0 | BI81: =IF(BH81-BI80<0,0,BH81-BI80) -> 0 | BJ81: =IF(BI81-BJ80<0,0,BI81-BJ80) -> 0 | BK81: =IF(BJ81-BK80<0,0,BJ81-BK80) -> 0 | BM81: =IF(BK81-BM80<0,0,BK81-BM80) -> 0 | BN81: =IF(BM81-BN80<0,0,BM81-BN80) -> 0 | BO81: =IF(BN81-BO80<0,0,BN81-BO80) -> 0 | BP81: =IF(BO81-BP80<0,0,BO81-BP80) -> 0 | BQ81: =IF(BP81-BQ80<0,0,BP81-BQ80) -> 0 | BR81: =IF(BQ81-BR80<0,0,BQ81-BR80) -> 0 | BS81: =IF(BR81-BS80<0,0,BR81-BS80) -> 0 | BT81: =IF(BS81-BT80<0,0,BS81-BT80) -> 0 | BU81: =IF(BT81-BU80<0,0,BT81-BU80) -> 0 | BV81: =IF(BU81-BV80<0,0,BU81-BV80) -> 0 | BW81: =IF(BV81-BW80<0,0,BV81-BW80) -> 0 | BX81: =IF(BW81-BX80<0,0,BW81-BX80) -> 0
L82: 利息額 | M82: =IF($C35="社債",0,IF($G35="元金均等",ROUNDDOWN(-ISPMT($H35/12,M35,$E35*12,$I35),0),ROUNDDOWN(-IPMT($H35/12,M35,$E35*12,$I35),0))) ->  | N82: =IF($C35="社債",0,IF($G35="元金均等",ROUNDDOWN(-ISPMT($H35/12,N35,$E35*12,$I35),0),ROUNDDOWN(-IPMT($H35/12,N35,$E35*12,$I35),0))) ->  | O82: =IF($C35="社債",0,IF($G35="元金均等",ROUNDDOWN(-ISPMT($H35/12,O35,$E35*12,$I35),0),ROUNDDOWN(-IPMT($H35/12,O35,$E35*12,$I35),0))) ->  | Z82: =IF($C35="社債",0,IF($G35="元金均等",ROUNDDOWN(-ISPMT($H35/12,Z35,$E35*12,$I35),0),ROUNDDOWN(-IPMT($H35/12,Z35,$E35*12,$I35),0))) ->  | AA82: =IF($C35="社債",0,IF($G35="元金均等",ROUNDDOWN(-ISPMT($H35/12,AA35,$E35*12,$I35),0),ROUNDDOWN(-IPMT($H35/12,AA35,$E35*12,$I35),0))) ->  | AB82: =IF($C35="社債",0,IF($G35="元金均等",ROUNDDOWN(-ISPMT($H35/12,AB35,$E35*12,$I35),0),ROUNDDOWN(-IPMT($H35/12,AB35,$E35*12,$I35),0))) ->  | AM82: =IF($C35="社債",0,IF($G35="元金均等",ROUNDDOWN(-ISPMT($H35/12,AM35,$E35*12,$I35),0),ROUNDDOWN(-IPMT($H35/12,AM35,$E35*12,$I35),0))) ->  | AN82: =IF($C35="社債",0,IF($G35="元金均等",ROUNDDOWN(-ISPMT($H35/12,AN35,$E35*12,$I35),0),ROUNDDOWN(-IPMT($H35/12,AN35,$E35*12,$I35),0))) ->  | AO82: =IF($C35="社債",0,IF($G35="元金均等",ROUNDDOWN(-ISPMT($H35/12,AO35,$E35*12,$I35),0),ROUNDDOWN(-IPMT($H35/12,AO35,$E35*12,$I35),0))) ->  | AZ82: =IF($C35="社債",0,IF($G35="元金均等",ROUNDDOWN(-ISPMT($H35/12,AZ35,$E35*12,$I35),0),ROUNDDOWN(-IPMT($H35/12,AZ35,$E35*12,$I35),0))) ->  | BA82: =IF($C35="社債",0,IF($G35="元金均等",ROUNDDOWN(-ISPMT($H35/12,BA35,$E35*12,$I35),0),ROUNDDOWN(-IPMT($H35/12,BA35,$E35*12,$I35),0))) ->  | BB82: =IF($C35="社債",0,IF($G35="元金均等",ROUNDDOWN(-ISPMT($H35/12,BB35,$E35*12,$I35),0),ROUNDDOWN(-IPMT($H35/12,BB35,$E35*12,$I35),0))) ->  | BM82: =IF($C35="社債",0,IF($G35="元金均等",ROUNDDOWN(-ISPMT($H35/12,BM35,$E35*12,$I35),0),ROUNDDOWN(-IPMT($H35/12,BM35,$E35*12,$I35),0))) ->  | BN82: =IF($C35="社債",0,IF($G35="元金均等",ROUNDDOWN(-ISPMT($H35/12,BN35,$E35*12,$I35),0),ROUNDDOWN(-IPMT($H35/12,BN35,$E35*12,$I35),0))) ->  | BO82: =IF($C35="社債",0,IF($G35="元金均等",ROUNDDOWN(-ISPMT($H35/12,BO35,$E35*12,$I35),0),ROUNDDOWN(-IPMT($H35/12,BO35,$E35*12,$I35),0))) -> 
L83: 利息（エラー回避） | M83: =IF(ISERROR(M82),0,M82) -> 0 | N83: 0 | O83: 0 | P83: 0 | Q83: 0 | R83: 0 | S83: 0 | T83: 0 | U83: 0 | V83: 0 | W83: 0 | X83: 0 | Y83: =SUM(M83:X83) -> 0 | Z83: =IF(ISERROR(Z82),0,Z82) -> 0 | AA83: 0 | AB83: 0 | AC83: 0 | AD83: 0 | AE83: 0 | AF83: 0 | AG83: 0 | AH83: 0 | AI83: 0 | AJ83: 0 | AK83: 0 | AL83: =SUM(Z83:AK83) -> 0 | AM83: =IF(ISERROR(AM82),0,AM82) -> 0 | AN83: 0 | AO83: 0 | AP83: 0 | AQ83: 0 | AR83: 0 | AS83: 0 | AT83: 0 | AU83: 0 | AV83: 0 | AW83: 0 | AX83: 0 | AY83: =SUM(AM83:AX83) -> 0 | AZ83: =IF(ISERROR(AZ82),0,AZ82) -> 0 | BA83: 0 | BB83: 0 | BC83: 0 | BD83: 0 | BE83: 0 | BF83: 0 | BG83: 0 | BH83: 0 | BI83: 0 | BJ83: 0 | BK83: 0 | BL83: =SUM(AZ83:BK83) -> 0 | BM83: =IF(ISERROR(BM82),0,BM82) -> 0 | BN83: 0 | BO83: 0 | BP83: 0 | BQ83: 0 | BR83: 0 | BS83: 0 | BT83: 0 | BU83: 0 | BV83: 0 | BW83: 0 | BX83: 0 | BY83: =SUM(BM83:BX83) -> 0
A84: 6 | B84: =B39 -> 0 | C84: 0 | D84: 00:00:00 | E84: 0 | F84: 1900-01-31 | G84: 0 | H84: 0 | I84: 0 | J84: 0 | K84: 2014-03-31 | L84: 返済額 | M84: =IF(M39="",0,IF($C39="社債",0,IF($G39="",0,IF($E39=0,0,IF($G39="元金均等",MIN(ROUNDDOWN($I39/($E39*12),0),J39),ROUNDDOWN(-PPMT($H39/12,M39,$E39*12,$I39),0)))))) -> 0 | N84: =IF(N39="",0,IF($C39="社債",0,IF($G39="",0,IF($E39=0,0,IF($G39="元金均等",MIN(ROUNDDOWN($I39/($E39*12),0),M85),ROUNDDOWN(-PPMT($H39/12,N39,$E39*12,$I39),0)))))) -> 0 | O84: =IF(O39="",0,IF($C39="社債",0,IF($G39="",0,IF($E39=0,0,IF($G39="元金均等",MIN(ROUNDDOWN($I39/($E39*12),0),N85),ROUNDDOWN(-PPMT($H39/12,O39,$E39*12,$I39),0)))))) -> 0 | P84: 0 | Q84: 0 | R84: 0 | S84: 0 | T84: 0 | U84: 0 | V84: 0 | W84: 0 | X84: 0 | Y84: =SUM(M84:X84) -> 0 | Z84: =IF(Z39="",0,IF($C39="社債",0,IF($G39="",0,IF($E39=0,0,IF($G39="元金均等",MIN(ROUNDDOWN($I39/($E39*12),0),X85),MIN(ROUNDDOWN(-PPMT($H39/12,Z39,$E39*12,$I39),0),X85)))))) -> 0 | AA84: =IF(AA39="",0,IF($C39="社債",0,IF($G39="",0,IF($E39=0,0,IF($G39="元金均等",MIN(ROUNDDOWN($I39/($E39*12),0),Z85),MIN(ROUNDDOWN(-PPMT($H39/12,AA39,$E39*12,$I39),0),Z85)))))) -> 0 | AB84: =IF(AB39="",0,IF($C39="社債",0,IF($G39="",0,IF($E39=0,0,IF($G39="元金均等",MIN(ROUNDDOWN($I39/($E39*12),0),AA85),MIN(ROUNDDOWN(-PPMT($H39/12,AB39,$E39*12,$I39),0),AA85)))))) -> 0 | AC84: 0 | AD84: 0 | AE84: 0 | AF84: 0 | AG84: 0 | AH84: 0 | AI84: 0 | AJ84: 0 | AK84: 0 | AL84: =SUM(Z84:AK84) -> 0 | AM84: =IF(AM39="",0,IF($C39="社債",0,IF($G39="",0,IF($E39=0,0,IF($G39="元金均等",MIN(ROUNDDOWN($I39/($E39*12),0),AK85),MIN(ROUNDDOWN(-PPMT($H39/12,AM39,$E39*12,$I39),0),AK85)))))) -> 0 | AN84: =IF(AN39="",0,IF($C39="社債",0,IF($G39="",0,IF($E39=0,0,IF($G39="元金均等",MIN(ROUNDDOWN($I39/($E39*12),0),AM85),MIN(ROUNDDOWN(-PPMT($H39/12,AN39,$E39*12,$I39),0),AM85)))))) -> 0 | AO84: =IF(AO39="",0,IF($C39="社債",0,IF($G39="",0,IF($E39=0,0,IF($G39="元金均等",MIN(ROUNDDOWN($I39/($E39*12),0),AN85),MIN(ROUNDDOWN(-PPMT($H39/12,AO39,$E39*12,$I39),0),AN85)))))) -> 0 | AP84: 0 | AQ84: 0 | AR84: 0 | AS84: 0 | AT84: 0 | AU84: 0 | AV84: 0 | AW84: 0 | AX84: 0 | AY84: =SUM(AM84:AX84) -> 0 | AZ84: =IF(AZ39="",0,IF($C39="社債",0,IF($G39="",0,IF($E39=0,0,IF($G39="元金均等",MIN(ROUNDDOWN($I39/($E39*12),0),AX85),MIN(ROUNDDOWN(-PPMT($H39/12,AZ39,$E39*12,$I39),0),AX85)))))) -> 0 | BA84: =IF(BA39="",0,IF($C39="社債",0,IF($G39="",0,IF($E39=0,0,IF($G39="元金均等",MIN(ROUNDDOWN($I39/($E39*12),0),AZ85),MIN(ROUNDDOWN(-PPMT($H39/12,BA39,$E39*12,$I39),0),AZ85)))))) -> 0 | BB84: =IF(BB39="",0,IF($C39="社債",0,IF($G39="",0,IF($E39=0,0,IF($G39="元金均等",MIN(ROUNDDOWN($I39/($E39*12),0),BA85),MIN(ROUNDDOWN(-PPMT($H39/12,BB39,$E39*12,$I39),0),BA85)))))) -> 0 | BC84: 0 | BD84: 0 | BE84: 0 | BF84: 0 | BG84: 0 | BH84: 0 | BI84: 0 | BJ84: 0 | BK84: 0 | BL84: =SUM(AZ84:BK84) -> 0 | BM84: =IF(BM39="",0,IF($C39="社債",0,IF($G39="",0,IF($E39=0,0,IF($G39="元金均等",MIN(ROUNDDOWN($I39/($E39*12),0),BK85),MIN(ROUNDDOWN(-PPMT($H39/12,BM39,$E39*12,$I39),0),BK85)))))) -> 0 | BN84: =IF(BN39="",0,IF($C39="社債",0,IF($G39="",0,IF($E39=0,0,IF($G39="元金均等",MIN(ROUNDDOWN($I39/($E39*12),0),BM85),MIN(ROUNDDOWN(-PPMT($H39/12,BN39,$E39*12,$I39),0),BM85)))))) -> 0 | BO84: =IF(BO39="",0,IF($C39="社債",0,IF($G39="",0,IF($E39=0,0,IF($G39="元金均等",MIN(ROUNDDOWN($I39/($E39*12),0),BN85),MIN(ROUNDDOWN(-PPMT($H39/12,BO39,$E39*12,$I39),0),BN85)))))) -> 0 | BP84: 0 | BQ84: 0 | BR84: 0 | BS84: 0 | BT84: 0 | BU84: 0 | BV84: 0 | BW84: 0 | BX84: 0 | BY84: =SUM(BM84:BX84) -> 0
L85: 残高 | M85: =IF(J39-M84<0,0,J39-M84) -> 0 | N85: =IF(M85-N84<0,0,M85-N84) -> 0 | O85: =IF(N85-O84<0,0,N85-O84) -> 0 | P85: =IF(O85-P84<0,0,O85-P84) -> 0 | Q85: =IF(P85-Q84<0,0,P85-Q84) -> 0 | R85: =IF(Q85-R84<0,0,Q85-R84) -> 0 | S85: =IF(R85-S84<0,0,R85-S84) -> 0 | T85: =IF(S85-T84<0,0,S85-T84) -> 0 | U85: =IF(T85-U84<0,0,T85-U84) -> 0 | V85: =IF(U85-V84<0,0,U85-V84) -> 0 | W85: =IF(V85-W84<0,0,V85-W84) -> 0 | X85: =IF(W85-X84<0,0,W85-X84) -> 0 | Z85: =IF(X85-Z84<0,0,X85-Z84) -> 0 | AA85: =IF(Z85-AA84<0,0,Z85-AA84) -> 0 | AB85: =IF(AA85-AB84<0,0,AA85-AB84) -> 0 | AC85: =IF(AB85-AC84<0,0,AB85-AC84) -> 0 | AD85: =IF(AC85-AD84<0,0,AC85-AD84) -> 0 | AE85: =IF(AD85-AE84<0,0,AD85-AE84) -> 0 | AF85: =IF(AE85-AF84<0,0,AE85-AF84) -> 0 | AG85: =IF(AF85-AG84<0,0,AF85-AG84) -> 0 | AH85: =IF(AG85-AH84<0,0,AG85-AH84) -> 0 | AI85: =IF(AH85-AI84<0,0,AH85-AI84) -> 0 | AJ85: =IF(AI85-AJ84<0,0,AI85-AJ84) -> 0 | AK85: =IF(AJ85-AK84<0,0,AJ85-AK84) -> 0 | AM85: =IF(AK85-AM84<0,0,AK85-AM84) -> 0 | AN85: =IF(AM85-AN84<0,0,AM85-AN84) -> 0 | AO85: =IF(AN85-AO84<0,0,AN85-AO84) -> 0 | AP85: =IF(AO85-AP84<0,0,AO85-AP84) -> 0 | AQ85: =IF(AP85-AQ84<0,0,AP85-AQ84) -> 0 | AR85: =IF(AQ85-AR84<0,0,AQ85-AR84) -> 0 | AS85: =IF(AR85-AS84<0,0,AR85-AS84) -> 0 | AT85: =IF(AS85-AT84<0,0,AS85-AT84) -> 0 | AU85: =IF(AT85-AU84<0,0,AT85-AU84) -> 0 | AV85: =IF(AU85-AV84<0,0,AU85-AV84) -> 0 | AW85: =IF(AV85-AW84<0,0,AV85-AW84) -> 0 | AX85: =IF(AW85-AX84<0,0,AW85-AX84) -> 0 | AZ85: =IF(AX85-AZ84<0,0,AX85-AZ84) -> 0 | BA85: =IF(AZ85-BA84<0,0,AZ85-BA84) -> 0 | BB85: =IF(BA85-BB84<0,0,BA85-BB84) -> 0 | BC85: =IF(BB85-BC84<0,0,BB85-BC84) -> 0 | BD85: =IF(BC85-BD84<0,0,BC85-BD84) -> 0 | BE85: =IF(BD85-BE84<0,0,BD85-BE84) -> 0 | BF85: =IF(BE85-BF84<0,0,BE85-BF84) -> 0 | BG85: =IF(BF85-BG84<0,0,BF85-BG84) -> 0 | BH85: =IF(BG85-BH84<0,0,BG85-BH84) -> 0 | BI85: =IF(BH85-BI84<0,0,BH85-BI84) -> 0 | BJ85: =IF(BI85-BJ84<0,0,BI85-BJ84) -> 0 | BK85: =IF(BJ85-BK84<0,0,BJ85-BK84) -> 0 | BM85: =IF(BK85-BM84<0,0,BK85-BM84) -> 0 | BN85: =IF(BM85-BN84<0,0,BM85-BN84) -> 0 | BO85: =IF(BN85-BO84<0,0,BN85-BO84) -> 0 | BP85: =IF(BO85-BP84<0,0,BO85-BP84) -> 0 | BQ85: =IF(BP85-BQ84<0,0,BP85-BQ84) -> 0 | BR85: =IF(BQ85-BR84<0,0,BQ85-BR84) -> 0 | BS85: =IF(BR85-BS84<0,0,BR85-BS84) -> 0 | BT85: =IF(BS85-BT84<0,0,BS85-BT84) -> 0 | BU85: =IF(BT85-BU84<0,0,BT85-BU84) -> 0 | BV85: =IF(BU85-BV84<0,0,BU85-BV84) -> 0 | BW85: =IF(BV85-BW84<0,0,BV85-BW84) -> 0 | BX85: =IF(BW85-BX84<0,0,BW85-BX84) -> 0
L86: 利息額 | M86: =IF($C39="社債",0,IF($G39="元金均等",ROUNDDOWN(-ISPMT($H39/12,M39,$E39*12,$I39),0),ROUNDDOWN(-IPMT($H39/12,M39,$E39*12,$I39),0))) ->  | N86: =IF($C39="社債",0,IF($G39="元金均等",ROUNDDOWN(-ISPMT($H39/12,N39,$E39*12,$I39),0),ROUNDDOWN(-IPMT($H39/12,N39,$E39*12,$I39),0))) ->  | O86: =IF($C39="社債",0,IF($G39="元金均等",ROUNDDOWN(-ISPMT($H39/12,O39,$E39*12,$I39),0),ROUNDDOWN(-IPMT($H39/12,O39,$E39*12,$I39),0))) ->  | Z86: =IF($C39="社債",0,IF($G39="元金均等",ROUNDDOWN(-ISPMT($H39/12,Z39,$E39*12,$I39),0),ROUNDDOWN(-IPMT($H39/12,Z39,$E39*12,$I39),0))) ->  | AA86: =IF($C39="社債",0,IF($G39="元金均等",ROUNDDOWN(-ISPMT($H39/12,AA39,$E39*12,$I39),0),ROUNDDOWN(-IPMT($H39/12,AA39,$E39*12,$I39),0))) ->  | AB86: =IF($C39="社債",0,IF($G39="元金均等",ROUNDDOWN(-ISPMT($H39/12,AB39,$E39*12,$I39),0),ROUNDDOWN(-IPMT($H39/12,AB39,$E39*12,$I39),0))) ->  | AM86: =IF($C39="社債",0,IF($G39="元金均等",ROUNDDOWN(-ISPMT($H39/12,AM39,$E39*12,$I39),0),ROUNDDOWN(-IPMT($H39/12,AM39,$E39*12,$I39),0))) ->  | AN86: =IF($C39="社債",0,IF($G39="元金均等",ROUNDDOWN(-ISPMT($H39/12,AN39,$E39*12,$I39),0),ROUNDDOWN(-IPMT($H39/12,AN39,$E39*12,$I39),0))) ->  | AO86: =IF($C39="社債",0,IF($G39="元金均等",ROUNDDOWN(-ISPMT($H39/12,AO39,$E39*12,$I39),0),ROUNDDOWN(-IPMT($H39/12,AO39,$E39*12,$I39),0))) ->  | AZ86: =IF($C39="社債",0,IF($G39="元金均等",ROUNDDOWN(-ISPMT($H39/12,AZ39,$E39*12,$I39),0),ROUNDDOWN(-IPMT($H39/12,AZ39,$E39*12,$I39),0))) ->  | BA86: =IF($C39="社債",0,IF($G39="元金均等",ROUNDDOWN(-ISPMT($H39/12,BA39,$E39*12,$I39),0),ROUNDDOWN(-IPMT($H39/12,BA39,$E39*12,$I39),0))) ->  | BB86: =IF($C39="社債",0,IF($G39="元金均等",ROUNDDOWN(-ISPMT($H39/12,BB39,$E39*12,$I39),0),ROUNDDOWN(-IPMT($H39/12,BB39,$E39*12,$I39),0))) ->  | BM86: =IF($C39="社債",0,IF($G39="元金均等",ROUNDDOWN(-ISPMT($H39/12,BM39,$E39*12,$I39),0),ROUNDDOWN(-IPMT($H39/12,BM39,$E39*12,$I39),0))) ->  | BN86: =IF($C39="社債",0,IF($G39="元金均等",ROUNDDOWN(-ISPMT($H39/12,BN39,$E39*12,$I39),0),ROUNDDOWN(-IPMT($H39/12,BN39,$E39*12,$I39),0))) ->  | BO86: =IF($C39="社債",0,IF($G39="元金均等",ROUNDDOWN(-ISPMT($H39/12,BO39,$E39*12,$I39),0),ROUNDDOWN(-IPMT($H39/12,BO39,$E39*12,$I39),0))) -> 
L87: 利息（エラー回避） | M87: =IF(ISERROR(M86),0,M86) -> 0 | N87: 0 | O87: 0 | P87: 0 | Q87: 0 | R87: 0 | S87: 0 | T87: 0 | U87: 0 | V87: 0 | W87: 0 | X87: 0 | Y87: =SUM(M87:X87) -> 0 | Z87: =IF(ISERROR(Z86),0,Z86) -> 0 | AA87: 0 | AB87: 0 | AC87: 0 | AD87: 0 | AE87: 0 | AF87: 0 | AG87: 0 | AH87: 0 | AI87: 0 | AJ87: 0 | AK87: 0 | AL87: =SUM(Z87:AK87) -> 0 | AM87: =IF(ISERROR(AM86),0,AM86) -> 0 | AN87: 0 | AO87: 0 | AP87: 0 | AQ87: 0 | AR87: 0 | AS87: 0 | AT87: 0 | AU87: 0 | AV87: 0 | AW87: 0 | AX87: 0 | AY87: =SUM(AM87:AX87) -> 0 | AZ87: =IF(ISERROR(AZ86),0,AZ86) -> 0 | BA87: 0 | BB87: 0 | BC87: 0 | BD87: 0 | BE87: 0 | BF87: 0 | BG87: 0 | BH87: 0 | BI87: 0 | BJ87: 0 | BK87: 0 | BL87: =SUM(AZ87:BK87) -> 0 | BM87: =IF(ISERROR(BM86),0,BM86) -> 0 | BN87: 0 | BO87: 0 | BP87: 0 | BQ87: 0 | BR87: 0 | BS87: 0 | BT87: 0 | BU87: 0 | BV87: 0 | BW87: 0 | BX87: 0 | BY87: =SUM(BM87:BX87) -> 0
A88: 7 | B88: =B43 -> 0 | C88: 0 | D88: 00:00:00 | E88: 0 | F88: 1900-01-31 | G88: 0 | H88: 0 | I88: 0 | J88: 0 | K88: 2014-03-31 | L88: 返済額 | M88: =IF(M43="",0,IF($C43="社債",0,IF($G43="",0,IF($E43=0,0,IF($G43="元金均等",MIN(ROUNDDOWN($I43/($E43*12),0),J43),ROUNDDOWN(-PPMT($H43/12,M43,$E43*12,$I43),0)))))) -> 0 | N88: =IF(N43="",0,IF($C43="社債",0,IF($G43="",0,IF($E43=0,0,IF($G43="元金均等",MIN(ROUNDDOWN($I43/($E43*12),0),M89),ROUNDDOWN(-PPMT($H43/12,N43,$E43*12,$I43),0)))))) -> 0 | O88: =IF(O43="",0,IF($C43="社債",0,IF($G43="",0,IF($E43=0,0,IF($G43="元金均等",MIN(ROUNDDOWN($I43/($E43*12),0),N89),ROUNDDOWN(-PPMT($H43/12,O43,$E43*12,$I43),0)))))) -> 0 | P88: 0 | Q88: 0 | R88: 0 | S88: 0 | T88: 0 | U88: 0 | V88: 0 | W88: 0 | X88: 0 | Y88: =SUM(M88:X88) -> 0 | Z88: =IF(Z43="",0,IF($C43="社債",0,IF($G43="",0,IF($E43=0,0,IF($G43="元金均等",MIN(ROUNDDOWN($I43/($E43*12),0),X89),MIN(ROUNDDOWN(-PPMT($H43/12,Z43,$E43*12,$I43),0),X89)))))) -> 0 | AA88: =IF(AA43="",0,IF($C43="社債",0,IF($G43="",0,IF($E43=0,0,IF($G43="元金均等",MIN(ROUNDDOWN($I43/($E43*12),0),Z89),MIN(ROUNDDOWN(-PPMT($H43/12,AA43,$E43*12,$I43),0),Z89)))))) -> 0 | AB88: =IF(AB43="",0,IF($C43="社債",0,IF($G43="",0,IF($E43=0,0,IF($G43="元金均等",MIN(ROUNDDOWN($I43/($E43*12),0),AA89),MIN(ROUNDDOWN(-PPMT($H43/12,AB43,$E43*12,$I43),0),AA89)))))) -> 0 | AC88: 0 | AD88: 0 | AE88: 0 | AF88: 0 | AG88: 0 | AH88: 0 | AI88: 0 | AJ88: 0 | AK88: 0 | AL88: =SUM(Z88:AK88) -> 0 | AM88: =IF(AM43="",0,IF($C43="社債",0,IF($G43="",0,IF($E43=0,0,IF($G43="元金均等",MIN(ROUNDDOWN($I43/($E43*12),0),AK89),MIN(ROUNDDOWN(-PPMT($H43/12,AM43,$E43*12,$I43),0),AK89)))))) -> 0 | AN88: =IF(AN43="",0,IF($C43="社債",0,IF($G43="",0,IF($E43=0,0,IF($G43="元金均等",MIN(ROUNDDOWN($I43/($E43*12),0),AM89),MIN(ROUNDDOWN(-PPMT($H43/12,AN43,$E43*12,$I43),0),AM89)))))) -> 0 | AO88: =IF(AO43="",0,IF($C43="社債",0,IF($G43="",0,IF($E43=0,0,IF($G43="元金均等",MIN(ROUNDDOWN($I43/($E43*12),0),AN89),MIN(ROUNDDOWN(-PPMT($H43/12,AO43,$E43*12,$I43),0),AN89)))))) -> 0 | AP88: 0 | AQ88: 0 | AR88: 0 | AS88: 0 | AT88: 0 | AU88: 0 | AV88: 0 | AW88: 0 | AX88: 0 | AY88: =SUM(AM88:AX88) -> 0 | AZ88: =IF(AZ43="",0,IF($C43="社債",0,IF($G43="",0,IF($E43=0,0,IF($G43="元金均等",MIN(ROUNDDOWN($I43/($E43*12),0),AX89),MIN(ROUNDDOWN(-PPMT($H43/12,AZ43,$E43*12,$I43),0),AX89)))))) -> 0 | BA88: =IF(BA43="",0,IF($C43="社債",0,IF($G43="",0,IF($E43=0,0,IF($G43="元金均等",MIN(ROUNDDOWN($I43/($E43*12),0),AZ89),MIN(ROUNDDOWN(-PPMT($H43/12,BA43,$E43*12,$I43),0),AZ89)))))) -> 0 | BB88: =IF(BB43="",0,IF($C43="社債",0,IF($G43="",0,IF($E43=0,0,IF($G43="元金均等",MIN(ROUNDDOWN($I43/($E43*12),0),BA89),MIN(ROUNDDOWN(-PPMT($H43/12,BB43,$E43*12,$I43),0),BA89)))))) -> 0 | BC88: 0 | BD88: 0 | BE88: 0 | BF88: 0 | BG88: 0 | BH88: 0 | BI88: 0 | BJ88: 0 | BK88: 0 | BL88: =SUM(AZ88:BK88) -> 0 | BM88: =IF(BM43="",0,IF($C43="社債",0,IF($G43="",0,IF($E43=0,0,IF($G43="元金均等",MIN(ROUNDDOWN($I43/($E43*12),0),BK89),MIN(ROUNDDOWN(-PPMT($H43/12,BM43,$E43*12,$I43),0),BK89)))))) -> 0 | BN88: =IF(BN43="",0,IF($C43="社債",0,IF($G43="",0,IF($E43=0,0,IF($G43="元金均等",MIN(ROUNDDOWN($I43/($E43*12),0),BM89),MIN(ROUNDDOWN(-PPMT($H43/12,BN43,$E43*12,$I43),0),BM89)))))) -> 0 | BO88: =IF(BO43="",0,IF($C43="社債",0,IF($G43="",0,IF($E43=0,0,IF($G43="元金均等",MIN(ROUNDDOWN($I43/($E43*12),0),BN89),MIN(ROUNDDOWN(-PPMT($H43/12,BO43,$E43*12,$I43),0),BN89)))))) -> 0 | BP88: 0 | BQ88: 0 | BR88: 0 | BS88: 0 | BT88: 0 | BU88: 0 | BV88: 0 | BW88: 0 | BX88: 0 | BY88: =SUM(BM88:BX88) -> 0
L89: 残高 | M89: =IF(J43-M88<0,0,J43-M88) -> 0 | N89: =IF(M89-N88<0,0,M89-N88) -> 0 | O89: =IF(N89-O88<0,0,N89-O88) -> 0 | P89: =IF(O89-P88<0,0,O89-P88) -> 0 | Q89: =IF(P89-Q88<0,0,P89-Q88) -> 0 | R89: =IF(Q89-R88<0,0,Q89-R88) -> 0 | S89: =IF(R89-S88<0,0,R89-S88) -> 0 | T89: =IF(S89-T88<0,0,S89-T88) -> 0 | U89: =IF(T89-U88<0,0,T89-U88) -> 0 | V89: =IF(U89-V88<0,0,U89-V88) -> 0 | W89: =IF(V89-W88<0,0,V89-W88) -> 0 | X89: =IF(W89-X88<0,0,W89-X88) -> 0 | Z89: =IF(X89-Z88<0,0,X89-Z88) -> 0 | AA89: =IF(Z89-AA88<0,0,Z89-AA88) -> 0 | AB89: =IF(AA89-AB88<0,0,AA89-AB88) -> 0 | AC89: =IF(AB89-AC88<0,0,AB89-AC88) -> 0 | AD89: =IF(AC89-AD88<0,0,AC89-AD88) -> 0 | AE89: =IF(AD89-AE88<0,0,AD89-AE88) -> 0 | AF89: =IF(AE89-AF88<0,0,AE89-AF88) -> 0 | AG89: =IF(AF89-AG88<0,0,AF89-AG88) -> 0 | AH89: =IF(AG89-AH88<0,0,AG89-AH88) -> 0 | AI89: =IF(AH89-AI88<0,0,AH89-AI88) -> 0 | AJ89: =IF(AI89-AJ88<0,0,AI89-AJ88) -> 0 | AK89: =IF(AJ89-AK88<0,0,AJ89-AK88) -> 0 | AM89: =IF(AK89-AM88<0,0,AK89-AM88) -> 0 | AN89: =IF(AM89-AN88<0,0,AM89-AN88) -> 0 | AO89: =IF(AN89-AO88<0,0,AN89-AO88) -> 0 | AP89: =IF(AO89-AP88<0,0,AO89-AP88) -> 0 | AQ89: =IF(AP89-AQ88<0,0,AP89-AQ88) -> 0 | AR89: =IF(AQ89-AR88<0,0,AQ89-AR88) -> 0 | AS89: =IF(AR89-AS88<0,0,AR89-AS88) -> 0 | AT89: =IF(AS89-AT88<0,0,AS89-AT88) -> 0 | AU89: =IF(AT89-AU88<0,0,AT89-AU88) -> 0 | AV89: =IF(AU89-AV88<0,0,AU89-AV88) -> 0 | AW89: =IF(AV89-AW88<0,0,AV89-AW88) -> 0 | AX89: =IF(AW89-AX88<0,0,AW89-AX88) -> 0 | AZ89: =IF(AX89-AZ88<0,0,AX89-AZ88) -> 0 | BA89: =IF(AZ89-BA88<0,0,AZ89-BA88) -> 0 | BB89: =IF(BA89-BB88<0,0,BA89-BB88) -> 0 | BC89: =IF(BB89-BC88<0,0,BB89-BC88) -> 0 | BD89: =IF(BC89-BD88<0,0,BC89-BD88) -> 0 | BE89: =IF(BD89-BE88<0,0,BD89-BE88) -> 0 | BF89: =IF(BE89-BF88<0,0,BE89-BF88) -> 0 | BG89: =IF(BF89-BG88<0,0,BF89-BG88) -> 0 | BH89: =IF(BG89-BH88<0,0,BG89-BH88) -> 0 | BI89: =IF(BH89-BI88<0,0,BH89-BI88) -> 0 | BJ89: =IF(BI89-BJ88<0,0,BI89-BJ88) -> 0 | BK89: =IF(BJ89-BK88<0,0,BJ89-BK88) -> 0 | BM89: =IF(BK89-BM88<0,0,BK89-BM88) -> 0 | BN89: =IF(BM89-BN88<0,0,BM89-BN88) -> 0 | BO89: =IF(BN89-BO88<0,0,BN89-BO88) -> 0 | BP89: =IF(BO89-BP88<0,0,BO89-BP88) -> 0 | BQ89: =IF(BP89-BQ88<0,0,BP89-BQ88) -> 0 | BR89: =IF(BQ89-BR88<0,0,BQ89-BR88) -> 0 | BS89: =IF(BR89-BS88<0,0,BR89-BS88) -> 0 | BT89: =IF(BS89-BT88<0,0,BS89-BT88) -> 0 | BU89: =IF(BT89-BU88<0,0,BT89-BU88) -> 0 | BV89: =IF(BU89-BV88<0,0,BU89-BV88) -> 0 | BW89: =IF(BV89-BW88<0,0,BV89-BW88) -> 0 | BX89: =IF(BW89-BX88<0,0,BW89-BX88) -> 0
L90: 利息額 | M90: =IF($C43="社債",0,IF($G43="元金均等",ROUNDDOWN(-ISPMT($H43/12,M43,$E43*12,$I43),0),ROUNDDOWN(-IPMT($H43/12,M43,$E43*12,$I43),0))) ->  | N90: =IF($C43="社債",0,IF($G43="元金均等",ROUNDDOWN(-ISPMT($H43/12,N43,$E43*12,$I43),0),ROUNDDOWN(-IPMT($H43/12,N43,$E43*12,$I43),0))) ->  | O90: =IF($C43="社債",0,IF($G43="元金均等",ROUNDDOWN(-ISPMT($H43/12,O43,$E43*12,$I43),0),ROUNDDOWN(-IPMT($H43/12,O43,$E43*12,$I43),0))) ->  | Z90: =IF($C43="社債",0,IF($G43="元金均等",ROUNDDOWN(-ISPMT($H43/12,Z43,$E43*12,$I43),0),ROUNDDOWN(-IPMT($H43/12,Z43,$E43*12,$I43),0))) ->  | AA90: =IF($C43="社債",0,IF($G43="元金均等",ROUNDDOWN(-ISPMT($H43/12,AA43,$E43*12,$I43),0),ROUNDDOWN(-IPMT($H43/12,AA43,$E43*12,$I43),0))) ->  | AB90: =IF($C43="社債",0,IF($G43="元金均等",ROUNDDOWN(-ISPMT($H43/12,AB43,$E43*12,$I43),0),ROUNDDOWN(-IPMT($H43/12,AB43,$E43*12,$I43),0))) ->  | AM90: =IF($C43="社債",0,IF($G43="元金均等",ROUNDDOWN(-ISPMT($H43/12,AM43,$E43*12,$I43),0),ROUNDDOWN(-IPMT($H43/12,AM43,$E43*12,$I43),0))) ->  | AN90: =IF($C43="社債",0,IF($G43="元金均等",ROUNDDOWN(-ISPMT($H43/12,AN43,$E43*12,$I43),0),ROUNDDOWN(-IPMT($H43/12,AN43,$E43*12,$I43),0))) ->  | AO90: =IF($C43="社債",0,IF($G43="元金均等",ROUNDDOWN(-ISPMT($H43/12,AO43,$E43*12,$I43),0),ROUNDDOWN(-IPMT($H43/12,AO43,$E43*12,$I43),0))) ->  | AZ90: =IF($C43="社債",0,IF($G43="元金均等",ROUNDDOWN(-ISPMT($H43/12,AZ43,$E43*12,$I43),0),ROUNDDOWN(-IPMT($H43/12,AZ43,$E43*12,$I43),0))) ->  | BA90: =IF($C43="社債",0,IF($G43="元金均等",ROUNDDOWN(-ISPMT($H43/12,BA43,$E43*12,$I43),0),ROUNDDOWN(-IPMT($H43/12,BA43,$E43*12,$I43),0))) ->  | BB90: =IF($C43="社債",0,IF($G43="元金均等",ROUNDDOWN(-ISPMT($H43/12,BB43,$E43*12,$I43),0),ROUNDDOWN(-IPMT($H43/12,BB43,$E43*12,$I43),0))) ->  | BM90: =IF($C43="社債",0,IF($G43="元金均等",ROUNDDOWN(-ISPMT($H43/12,BM43,$E43*12,$I43),0),ROUNDDOWN(-IPMT($H43/12,BM43,$E43*12,$I43),0))) ->  | BN90: =IF($C43="社債",0,IF($G43="元金均等",ROUNDDOWN(-ISPMT($H43/12,BN43,$E43*12,$I43),0),ROUNDDOWN(-IPMT($H43/12,BN43,$E43*12,$I43),0))) ->  | BO90: =IF($C43="社債",0,IF($G43="元金均等",ROUNDDOWN(-ISPMT($H43/12,BO43,$E43*12,$I43),0),ROUNDDOWN(-IPMT($H43/12,BO43,$E43*12,$I43),0))) -> 
L91: 利息（エラー回避） | M91: =IF(ISERROR(M90),0,M90) -> 0 | N91: 0 | O91: 0 | P91: 0 | Q91: 0 | R91: 0 | S91: 0 | T91: 0 | U91: 0 | V91: 0 | W91: 0 | X91: 0 | Y91: =SUM(M91:X91) -> 0 | Z91: =IF(ISERROR(Z90),0,Z90) -> 0 | AA91: 0 | AB91: 0 | AC91: 0 | AD91: 0 | AE91: 0 | AF91: 0 | AG91: 0 | AH91: 0 | AI91: 0 | AJ91: 0 | AK91: 0 | AL91: =SUM(Z91:AK91) -> 0 | AM91: =IF(ISERROR(AM90),0,AM90) -> 0 | AN91: 0 | AO91: 0 | AP91: 0 | AQ91: 0 | AR91: 0 | AS91: 0 | AT91: 0 | AU91: 0 | AV91: 0 | AW91: 0 | AX91: 0 | AY91: =SUM(AM91:AX91) -> 0 | AZ91: =IF(ISERROR(AZ90),0,AZ90) -> 0 | BA91: 0 | BB91: 0 | BC91: 0 | BD91: 0 | BE91: 0 | BF91: 0 | BG91: 0 | BH91: 0 | BI91: 0 | BJ91: 0 | BK91: 0 | BL91: =SUM(AZ91:BK91) -> 0 | BM91: =IF(ISERROR(BM90),0,BM90) -> 0 | BN91: 0 | BO91: 0 | BP91: 0 | BQ91: 0 | BR91: 0 | BS91: 0 | BT91: 0 | BU91: 0 | BV91: 0 | BW91: 0 | BX91: 0 | BY91: =SUM(BM91:BX91) -> 0
A92: 8 | B92: =B47 -> 0 | C92: 0 | D92: 00:00:00 | E92: 0 | F92: 1900-01-31 | G92: 0 | H92: 0 | I92: 0 | J92: 0 | K92: 2014-03-31 | L92: 返済額 | M92: =IF(M47="",0,IF($C47="社債",0,IF($G47="",0,IF($E47=0,0,IF($G47="元金均等",MIN(ROUNDDOWN($I47/($E47*12),0),J47),ROUNDDOWN(-PPMT($H47/12,M47,$E47*12,$I47),0)))))) -> 0 | N92: =IF(N47="",0,IF($C47="社債",0,IF($G47="",0,IF($E47=0,0,IF($G47="元金均等",MIN(ROUNDDOWN($I47/($E47*12),0),M93),ROUNDDOWN(-PPMT($H47/12,N47,$E47*12,$I47),0)))))) -> 0 | O92: =IF(O47="",0,IF($C47="社債",0,IF($G47="",0,IF($E47=0,0,IF($G47="元金均等",MIN(ROUNDDOWN($I47/($E47*12),0),N93),ROUNDDOWN(-PPMT($H47/12,O47,$E47*12,$I47),0)))))) -> 0 | P92: 0 | Q92: 0 | R92: 0 | S92: 0 | T92: 0 | U92: 0 | V92: 0 | W92: 0 | X92: 0 | Y92: =SUM(M92:X92) -> 0 | Z92: =IF(Z47="",0,IF($C47="社債",0,IF($G47="",0,IF($E47=0,0,IF($G47="元金均等",MIN(ROUNDDOWN($I47/($E47*12),0),X93),MIN(ROUNDDOWN(-PPMT($H47/12,Z47,$E47*12,$I47),0),X93)))))) -> 0 | AA92: =IF(AA47="",0,IF($C47="社債",0,IF($G47="",0,IF($E47=0,0,IF($G47="元金均等",MIN(ROUNDDOWN($I47/($E47*12),0),Z93),MIN(ROUNDDOWN(-PPMT($H47/12,AA47,$E47*12,$I47),0),Z93)))))) -> 0 | AB92: =IF(AB47="",0,IF($C47="社債",0,IF($G47="",0,IF($E47=0,0,IF($G47="元金均等",MIN(ROUNDDOWN($I47/($E47*12),0),AA93),MIN(ROUNDDOWN(-PPMT($H47/12,AB47,$E47*12,$I47),0),AA93)))))) -> 0 | AC92: 0 | AD92: 0 | AE92: 0 | AF92: 0 | AG92: 0 | AH92: 0 | AI92: 0 | AJ92: 0 | AK92: 0 | AL92: =SUM(Z92:AK92) -> 0 | AM92: =IF(AM47="",0,IF($C47="社債",0,IF($G47="",0,IF($E47=0,0,IF($G47="元金均等",MIN(ROUNDDOWN($I47/($E47*12),0),AK93),MIN(ROUNDDOWN(-PPMT($H47/12,AM47,$E47*12,$I47),0),AK93)))))) -> 0 | AN92: =IF(AN47="",0,IF($C47="社債",0,IF($G47="",0,IF($E47=0,0,IF($G47="元金均等",MIN(ROUNDDOWN($I47/($E47*12),0),AM93),MIN(ROUNDDOWN(-PPMT($H47/12,AN47,$E47*12,$I47),0),AM93)))))) -> 0 | AO92: =IF(AO47="",0,IF($C47="社債",0,IF($G47="",0,IF($E47=0,0,IF($G47="元金均等",MIN(ROUNDDOWN($I47/($E47*12),0),AN93),MIN(ROUNDDOWN(-PPMT($H47/12,AO47,$E47*12,$I47),0),AN93)))))) -> 0 | AP92: 0 | AQ92: 0 | AR92: 0 | AS92: 0 | AT92: 0 | AU92: 0 | AV92: 0 | AW92: 0 | AX92: 0 | AY92: =SUM(AM92:AX92) -> 0 | AZ92: =IF(AZ47="",0,IF($C47="社債",0,IF($G47="",0,IF($E47=0,0,IF($G47="元金均等",MIN(ROUNDDOWN($I47/($E47*12),0),AX93),MIN(ROUNDDOWN(-PPMT($H47/12,AZ47,$E47*12,$I47),0),AX93)))))) -> 0 | BA92: =IF(BA47="",0,IF($C47="社債",0,IF($G47="",0,IF($E47=0,0,IF($G47="元金均等",MIN(ROUNDDOWN($I47/($E47*12),0),AZ93),MIN(ROUNDDOWN(-PPMT($H47/12,BA47,$E47*12,$I47),0),AZ93)))))) -> 0 | BB92: =IF(BB47="",0,IF($C47="社債",0,IF($G47="",0,IF($E47=0,0,IF($G47="元金均等",MIN(ROUNDDOWN($I47/($E47*12),0),BA93),MIN(ROUNDDOWN(-PPMT($H47/12,BB47,$E47*12,$I47),0),BA93)))))) -> 0 | BC92: 0 | BD92: 0 | BE92: 0 | BF92: 0 | BG92: 0 | BH92: 0 | BI92: 0 | BJ92: 0 | BK92: 0 | BL92: =SUM(AZ92:BK92) -> 0 | BM92: =IF(BM47="",0,IF($C47="社債",0,IF($G47="",0,IF($E47=0,0,IF($G47="元金均等",MIN(ROUNDDOWN($I47/($E47*12),0),BK93),MIN(ROUNDDOWN(-PPMT($H47/12,BM47,$E47*12,$I47),0),BK93)))))) -> 0 | BN92: =IF(BN47="",0,IF($C47="社債",0,IF($G47="",0,IF($E47=0,0,IF($G47="元金均等",MIN(ROUNDDOWN($I47/($E47*12),0),BM93),MIN(ROUNDDOWN(-PPMT($H47/12,BN47,$E47*12,$I47),0),BM93)))))) -> 0 | BO92: =IF(BO47="",0,IF($C47="社債",0,IF($G47="",0,IF($E47=0,0,IF($G47="元金均等",MIN(ROUNDDOWN($I47/($E47*12),0),BN93),MIN(ROUNDDOWN(-PPMT($H47/12,BO47,$E47*12,$I47),0),BN93)))))) -> 0 | BP92: 0 | BQ92: 0 | BR92: 0 | BS92: 0 | BT92: 0 | BU92: 0 | BV92: 0 | BW92: 0 | BX92: 0 | BY92: =SUM(BM92:BX92) -> 0
L93: 残高 | M93: =IF(J47-M92<0,0,J47-M92) -> 0 | N93: =IF(M93-N92<0,0,M93-N92) -> 0 | O93: =IF(N93-O92<0,0,N93-O92) -> 0 | P93: =IF(O93-P92<0,0,O93-P92) -> 0 | Q93: =IF(P93-Q92<0,0,P93-Q92) -> 0 | R93: =IF(Q93-R92<0,0,Q93-R92) -> 0 | S93: =IF(R93-S92<0,0,R93-S92) -> 0 | T93: =IF(S93-T92<0,0,S93-T92) -> 0 | U93: =IF(T93-U92<0,0,T93-U92) -> 0 | V93: =IF(U93-V92<0,0,U93-V92) -> 0 | W93: =IF(V93-W92<0,0,V93-W92) -> 0 | X93: =IF(W93-X92<0,0,W93-X92) -> 0 | Z93: =IF(X93-Z92<0,0,X93-Z92) -> 0 | AA93: =IF(Z93-AA92<0,0,Z93-AA92) -> 0 | AB93: =IF(AA93-AB92<0,0,AA93-AB92) -> 0 | AC93: =IF(AB93-AC92<0,0,AB93-AC92) -> 0 | AD93: =IF(AC93-AD92<0,0,AC93-AD92) -> 0 | AE93: =IF(AD93-AE92<0,0,AD93-AE92) -> 0 | AF93: =IF(AE93-AF92<0,0,AE93-AF92) -> 0 | AG93: =IF(AF93-AG92<0,0,AF93-AG92) -> 0 | AH93: =IF(AG93-AH92<0,0,AG93-AH92) -> 0 | AI93: =IF(AH93-AI92<0,0,AH93-AI92) -> 0 | AJ93: =IF(AI93-AJ92<0,0,AI93-AJ92) -> 0 | AK93: =IF(AJ93-AK92<0,0,AJ93-AK92) -> 0 | AM93: =IF(AK93-AM92<0,0,AK93-AM92) -> 0 | AN93: =IF(AM93-AN92<0,0,AM93-AN92) -> 0 | AO93: =IF(AN93-AO92<0,0,AN93-AO92) -> 0 | AP93: =IF(AO93-AP92<0,0,AO93-AP92) -> 0 | AQ93: =IF(AP93-AQ92<0,0,AP93-AQ92) -> 0 | AR93: =IF(AQ93-AR92<0,0,AQ93-AR92) -> 0 | AS93: =IF(AR93-AS92<0,0,AR93-AS92) -> 0 | AT93: =IF(AS93-AT92<0,0,AS93-AT92) -> 0 | AU93: =IF(AT93-AU92<0,0,AT93-AU92) -> 0 | AV93: =IF(AU93-AV92<0,0,AU93-AV92) -> 0 | AW93: =IF(AV93-AW92<0,0,AV93-AW92) -> 0 | AX93: =IF(AW93-AX92<0,0,AW93-AX92) -> 0 | AZ93: =IF(AX93-AZ92<0,0,AX93-AZ92) -> 0 | BA93: =IF(AZ93-BA92<0,0,AZ93-BA92) -> 0 | BB93: =IF(BA93-BB92<0,0,BA93-BB92) -> 0 | BC93: =IF(BB93-BC92<0,0,BB93-BC92) -> 0 | BD93: =IF(BC93-BD92<0,0,BC93-BD92) -> 0 | BE93: =IF(BD93-BE92<0,0,BD93-BE92) -> 0 | BF93: =IF(BE93-BF92<0,0,BE93-BF92) -> 0 | BG93: =IF(BF93-BG92<0,0,BF93-BG92) -> 0 | BH93: =IF(BG93-BH92<0,0,BG93-BH92) -> 0 | BI93: =IF(BH93-BI92<0,0,BH93-BI92) -> 0 | BJ93: =IF(BI93-BJ92<0,0,BI93-BJ92) -> 0 | BK93: =IF(BJ93-BK92<0,0,BJ93-BK92) -> 0 | BM93: =IF(BK93-BM92<0,0,BK93-BM92) -> 0 | BN93: =IF(BM93-BN92<0,0,BM93-BN92) -> 0 | BO93: =IF(BN93-BO92<0,0,BN93-BO92) -> 0 | BP93: =IF(BO93-BP92<0,0,BO93-BP92) -> 0 | BQ93: =IF(BP93-BQ92<0,0,BP93-BQ92) -> 0 | BR93: =IF(BQ93-BR92<0,0,BQ93-BR92) -> 0 | BS93: =IF(BR93-BS92<0,0,BR93-BS92) -> 0 | BT93: =IF(BS93-BT92<0,0,BS93-BT92) -> 0 | BU93: =IF(BT93-BU92<0,0,BT93-BU92) -> 0 | BV93: =IF(BU93-BV92<0,0,BU93-BV92) -> 0 | BW93: =IF(BV93-BW92<0,0,BV93-BW92) -> 0 | BX93: =IF(BW93-BX92<0,0,BW93-BX92) -> 0
L94: 利息額 | M94: =IF($C47="社債",0,IF($G47="元金均等",ROUNDDOWN(-ISPMT($H47/12,M47,$E47*12,$I47),0),ROUNDDOWN(-IPMT($H47/12,M47,$E47*12,$I47),0))) ->  | N94: =IF($C47="社債",0,IF($G47="元金均等",ROUNDDOWN(-ISPMT($H47/12,N47,$E47*12,$I47),0),ROUNDDOWN(-IPMT($H47/12,N47,$E47*12,$I47),0))) ->  | O94: =IF($C47="社債",0,IF($G47="元金均等",ROUNDDOWN(-ISPMT($H47/12,O47,$E47*12,$I47),0),ROUNDDOWN(-IPMT($H47/12,O47,$E47*12,$I47),0))) ->  | Z94: =IF($C47="社債",0,IF($G47="元金均等",ROUNDDOWN(-ISPMT($H47/12,Z47,$E47*12,$I47),0),ROUNDDOWN(-IPMT($H47/12,Z47,$E47*12,$I47),0))) ->  | AA94: =IF($C47="社債",0,IF($G47="元金均等",ROUNDDOWN(-ISPMT($H47/12,AA47,$E47*12,$I47),0),ROUNDDOWN(-IPMT($H47/12,AA47,$E47*12,$I47),0))) ->  | AB94: =IF($C47="社債",0,IF($G47="元金均等",ROUNDDOWN(-ISPMT($H47/12,AB47,$E47*12,$I47),0),ROUNDDOWN(-IPMT($H47/12,AB47,$E47*12,$I47),0))) ->  | AM94: =IF($C47="社債",0,IF($G47="元金均等",ROUNDDOWN(-ISPMT($H47/12,AM47,$E47*12,$I47),0),ROUNDDOWN(-IPMT($H47/12,AM47,$E47*12,$I47),0))) ->  | AN94: =IF($C47="社債",0,IF($G47="元金均等",ROUNDDOWN(-ISPMT($H47/12,AN47,$E47*12,$I47),0),ROUNDDOWN(-IPMT($H47/12,AN47,$E47*12,$I47),0))) ->  | AO94: =IF($C47="社債",0,IF($G47="元金均等",ROUNDDOWN(-ISPMT($H47/12,AO47,$E47*12,$I47),0),ROUNDDOWN(-IPMT($H47/12,AO47,$E47*12,$I47),0))) ->  | AZ94: =IF($C47="社債",0,IF($G47="元金均等",ROUNDDOWN(-ISPMT($H47/12,AZ47,$E47*12,$I47),0),ROUNDDOWN(-IPMT($H47/12,AZ47,$E47*12,$I47),0))) ->  | BA94: =IF($C47="社債",0,IF($G47="元金均等",ROUNDDOWN(-ISPMT($H47/12,BA47,$E47*12,$I47),0),ROUNDDOWN(-IPMT($H47/12,BA47,$E47*12,$I47),0))) ->  | BB94: =IF($C47="社債",0,IF($G47="元金均等",ROUNDDOWN(-ISPMT($H47/12,BB47,$E47*12,$I47),0),ROUNDDOWN(-IPMT($H47/12,BB47,$E47*12,$I47),0))) ->  | BM94: =IF($C47="社債",0,IF($G47="元金均等",ROUNDDOWN(-ISPMT($H47/12,BM47,$E47*12,$I47),0),ROUNDDOWN(-IPMT($H47/12,BM47,$E47*12,$I47),0))) ->  | BN94: =IF($C47="社債",0,IF($G47="元金均等",ROUNDDOWN(-ISPMT($H47/12,BN47,$E47*12,$I47),0),ROUNDDOWN(-IPMT($H47/12,BN47,$E47*12,$I47),0))) ->  | BO94: =IF($C47="社債",0,IF($G47="元金均等",ROUNDDOWN(-ISPMT($H47/12,BO47,$E47*12,$I47),0),ROUNDDOWN(-IPMT($H47/12,BO47,$E47*12,$I47),0))) -> 
L95: 利息（エラー回避） | M95: =IF(ISERROR(M94),0,M94) -> 0 | N95: 0 | O95: 0 | P95: 0 | Q95: 0 | R95: 0 | S95: 0 | T95: 0 | U95: 0 | V95: 0 | W95: 0 | X95: 0 | Y95: =SUM(M95:X95) -> 0 | Z95: =IF(ISERROR(Z94),0,Z94) -> 0 | AA95: 0 | AB95: 0 | AC95: 0 | AD95: 0 | AE95: 0 | AF95: 0 | AG95: 0 | AH95: 0 | AI95: 0 | AJ95: 0 | AK95: 0 | AL95: =SUM(Z95:AK95) -> 0 | AM95: =IF(ISERROR(AM94),0,AM94) -> 0 | AN95: 0 | AO95: 0 | AP95: 0 | AQ95: 0 | AR95: 0 | AS95: 0 | AT95: 0 | AU95: 0 | AV95: 0 | AW95: 0 | AX95: 0 | AY95: =SUM(AM95:AX95) -> 0 | AZ95: =IF(ISERROR(AZ94),0,AZ94) -> 0 | BA95: 0 | BB95: 0 | BC95: 0 | BD95: 0 | BE95: 0 | BF95: 0 | BG95: 0 | BH95: 0 | BI95: 0 | BJ95: 0 | BK95: 0 | BL95: =SUM(AZ95:BK95) -> 0 | BM95: =IF(ISERROR(BM94),0,BM94) -> 0 | BN95: 0 | BO95: 0 | BP95: 0 | BQ95: 0 | BR95: 0 | BS95: 0 | BT95: 0 | BU95: 0 | BV95: 0 | BW95: 0 | BX95: 0 | BY95: =SUM(BM95:BX95) -> 0
A96: 9 | B96: =B51 -> 0 | C96: 0 | D96: 00:00:00 | E96: 0 | F96: 1900-01-31 | G96: 0 | H96: 0 | I96: 0 | J96: 0 | K96: 2014-03-31 | L96: 返済額 | M96: =IF(M51="",0,IF($C51="社債",0,IF($G51="",0,IF($E51=0,0,IF($G51="元金均等",MIN(ROUNDDOWN($I51/($E51*12),0),J51),ROUNDDOWN(-PPMT($H51/12,M51,$E51*12,$I51),0)))))) -> 0 | N96: =IF(N51="",0,IF($C51="社債",0,IF($G51="",0,IF($E51=0,0,IF($G51="元金均等",MIN(ROUNDDOWN($I51/($E51*12),0),M97),ROUNDDOWN(-PPMT($H51/12,N51,$E51*12,$I51),0)))))) -> 0 | O96: =IF(O51="",0,IF($C51="社債",0,IF($G51="",0,IF($E51=0,0,IF($G51="元金均等",MIN(ROUNDDOWN($I51/($E51*12),0),N97),ROUNDDOWN(-PPMT($H51/12,O51,$E51*12,$I51),0)))))) -> 0 | P96: 0 | Q96: 0 | R96: 0 | S96: 0 | T96: 0 | U96: 0 | V96: 0 | W96: 0 | X96: 0 | Y96: =SUM(M96:X96) -> 0 | Z96: =IF(Z51="",0,IF($C51="社債",0,IF($G51="",0,IF($E51=0,0,IF($G51="元金均等",MIN(ROUNDDOWN($I51/($E51*12),0),X97),MIN(ROUNDDOWN(-PPMT($H51/12,Z51,$E51*12,$I51),0),X97)))))) -> 0 | AA96: =IF(AA51="",0,IF($C51="社債",0,IF($G51="",0,IF($E51=0,0,IF($G51="元金均等",MIN(ROUNDDOWN($I51/($E51*12),0),Z97),MIN(ROUNDDOWN(-PPMT($H51/12,AA51,$E51*12,$I51),0),Z97)))))) -> 0 | AB96: =IF(AB51="",0,IF($C51="社債",0,IF($G51="",0,IF($E51=0,0,IF($G51="元金均等",MIN(ROUNDDOWN($I51/($E51*12),0),AA97),MIN(ROUNDDOWN(-PPMT($H51/12,AB51,$E51*12,$I51),0),AA97)))))) -> 0 | AC96: 0 | AD96: 0 | AE96: 0 | AF96: 0 | AG96: 0 | AH96: 0 | AI96: 0 | AJ96: 0 | AK96: 0 | AL96: =SUM(Z96:AK96) -> 0 | AM96: =IF(AM51="",0,IF($C51="社債",0,IF($G51="",0,IF($E51=0,0,IF($G51="元金均等",MIN(ROUNDDOWN($I51/($E51*12),0),AK97),MIN(ROUNDDOWN(-PPMT($H51/12,AM51,$E51*12,$I51),0),AK97)))))) -> 0 | AN96: =IF(AN51="",0,IF($C51="社債",0,IF($G51="",0,IF($E51=0,0,IF($G51="元金均等",MIN(ROUNDDOWN($I51/($E51*12),0),AM97),MIN(ROUNDDOWN(-PPMT($H51/12,AN51,$E51*12,$I51),0),AM97)))))) -> 0 | AO96: =IF(AO51="",0,IF($C51="社債",0,IF($G51="",0,IF($E51=0,0,IF($G51="元金均等",MIN(ROUNDDOWN($I51/($E51*12),0),AN97),MIN(ROUNDDOWN(-PPMT($H51/12,AO51,$E51*12,$I51),0),AN97)))))) -> 0 | AP96: 0 | AQ96: 0 | AR96: 0 | AS96: 0 | AT96: 0 | AU96: 0 | AV96: 0 | AW96: 0 | AX96: 0 | AY96: =SUM(AM96:AX96) -> 0 | AZ96: =IF(AZ51="",0,IF($C51="社債",0,IF($G51="",0,IF($E51=0,0,IF($G51="元金均等",MIN(ROUNDDOWN($I51/($E51*12),0),AX97),MIN(ROUNDDOWN(-PPMT($H51/12,AZ51,$E51*12,$I51),0),AX97)))))) -> 0 | BA96: =IF(BA51="",0,IF($C51="社債",0,IF($G51="",0,IF($E51=0,0,IF($G51="元金均等",MIN(ROUNDDOWN($I51/($E51*12),0),AZ97),MIN(ROUNDDOWN(-PPMT($H51/12,BA51,$E51*12,$I51),0),AZ97)))))) -> 0 | BB96: =IF(BB51="",0,IF($C51="社債",0,IF($G51="",0,IF($E51=0,0,IF($G51="元金均等",MIN(ROUNDDOWN($I51/($E51*12),0),BA97),MIN(ROUNDDOWN(-PPMT($H51/12,BB51,$E51*12,$I51),0),BA97)))))) -> 0 | BC96: 0 | BD96: 0 | BE96: 0 | BF96: 0 | BG96: 0 | BH96: 0 | BI96: 0 | BJ96: 0 | BK96: 0 | BL96: =SUM(AZ96:BK96) -> 0 | BM96: =IF(BM51="",0,IF($C51="社債",0,IF($G51="",0,IF($E51=0,0,IF($G51="元金均等",MIN(ROUNDDOWN($I51/($E51*12),0),BK97),MIN(ROUNDDOWN(-PPMT($H51/12,BM51,$E51*12,$I51),0),BK97)))))) -> 0 | BN96: =IF(BN51="",0,IF($C51="社債",0,IF($G51="",0,IF($E51=0,0,IF($G51="元金均等",MIN(ROUNDDOWN($I51/($E51*12),0),BM97),MIN(ROUNDDOWN(-PPMT($H51/12,BN51,$E51*12,$I51),0),BM97)))))) -> 0 | BO96: =IF(BO51="",0,IF($C51="社債",0,IF($G51="",0,IF($E51=0,0,IF($G51="元金均等",MIN(ROUNDDOWN($I51/($E51*12),0),BN97),MIN(ROUNDDOWN(-PPMT($H51/12,BO51,$E51*12,$I51),0),BN97)))))) -> 0 | BP96: 0 | BQ96: 0 | BR96: 0 | BS96: 0 | BT96: 0 | BU96: 0 | BV96: 0 | BW96: 0 | BX96: 0 | BY96: =SUM(BM96:BX96) -> 0
L97: 残高 | M97: =IF(J51-M96<0,0,J51-M96) -> 0 | N97: =IF(M97-N96<0,0,M97-N96) -> 0 | O97: =IF(N97-O96<0,0,N97-O96) -> 0 | P97: =IF(O97-P96<0,0,O97-P96) -> 0 | Q97: =IF(P97-Q96<0,0,P97-Q96) -> 0 | R97: =IF(Q97-R96<0,0,Q97-R96) -> 0 | S97: =IF(R97-S96<0,0,R97-S96) -> 0 | T97: =IF(S97-T96<0,0,S97-T96) -> 0 | U97: =IF(T97-U96<0,0,T97-U96) -> 0 | V97: =IF(U97-V96<0,0,U97-V96) -> 0 | W97: =IF(V97-W96<0,0,V97-W96) -> 0 | X97: =IF(W97-X96<0,0,W97-X96) -> 0 | Z97: =IF(X97-Z96<0,0,X97-Z96) -> 0 | AA97: =IF(Z97-AA96<0,0,Z97-AA96) -> 0 | AB97: =IF(AA97-AB96<0,0,AA97-AB96) -> 0 | AC97: =IF(AB97-AC96<0,0,AB97-AC96) -> 0 | AD97: =IF(AC97-AD96<0,0,AC97-AD96) -> 0 | AE97: =IF(AD97-AE96<0,0,AD97-AE96) -> 0 | AF97: =IF(AE97-AF96<0,0,AE97-AF96) -> 0 | AG97: =IF(AF97-AG96<0,0,AF97-AG96) -> 0 | AH97: =IF(AG97-AH96<0,0,AG97-AH96) -> 0 | AI97: =IF(AH97-AI96<0,0,AH97-AI96) -> 0 | AJ97: =IF(AI97-AJ96<0,0,AI97-AJ96) -> 0 | AK97: =IF(AJ97-AK96<0,0,AJ97-AK96) -> 0 | AM97: =IF(AK97-AM96<0,0,AK97-AM96) -> 0 | AN97: =IF(AM97-AN96<0,0,AM97-AN96) -> 0 | AO97: =IF(AN97-AO96<0,0,AN97-AO96) -> 0 | AP97: =IF(AO97-AP96<0,0,AO97-AP96) -> 0 | AQ97: =IF(AP97-AQ96<0,0,AP97-AQ96) -> 0 | AR97: =IF(AQ97-AR96<0,0,AQ97-AR96) -> 0 | AS97: =IF(AR97-AS96<0,0,AR97-AS96) -> 0 | AT97: =IF(AS97-AT96<0,0,AS97-AT96) -> 0 | AU97: =IF(AT97-AU96<0,0,AT97-AU96) -> 0 | AV97: =IF(AU97-AV96<0,0,AU97-AV96) -> 0 | AW97: =IF(AV97-AW96<0,0,AV97-AW96) -> 0 | AX97: =IF(AW97-AX96<0,0,AW97-AX96) -> 0 | AZ97: =IF(AX97-AZ96<0,0,AX97-AZ96) -> 0 | BA97: =IF(AZ97-BA96<0,0,AZ97-BA96) -> 0 | BB97: =IF(BA97-BB96<0,0,BA97-BB96) -> 0 | BC97: =IF(BB97-BC96<0,0,BB97-BC96) -> 0 | BD97: =IF(BC97-BD96<0,0,BC97-BD96) -> 0 | BE97: =IF(BD97-BE96<0,0,BD97-BE96) -> 0 | BF97: =IF(BE97-BF96<0,0,BE97-BF96) -> 0 | BG97: =IF(BF97-BG96<0,0,BF97-BG96) -> 0 | BH97: =IF(BG97-BH96<0,0,BG97-BH96) -> 0 | BI97: =IF(BH97-BI96<0,0,BH97-BI96) -> 0 | BJ97: =IF(BI97-BJ96<0,0,BI97-BJ96) -> 0 | BK97: =IF(BJ97-BK96<0,0,BJ97-BK96) -> 0 | BM97: =IF(BK97-BM96<0,0,BK97-BM96) -> 0 | BN97: =IF(BM97-BN96<0,0,BM97-BN96) -> 0 | BO97: =IF(BN97-BO96<0,0,BN97-BO96) -> 0 | BP97: =IF(BO97-BP96<0,0,BO97-BP96) -> 0 | BQ97: =IF(BP97-BQ96<0,0,BP97-BQ96) -> 0 | BR97: =IF(BQ97-BR96<0,0,BQ97-BR96) -> 0 | BS97: =IF(BR97-BS96<0,0,BR97-BS96) -> 0 | BT97: =IF(BS97-BT96<0,0,BS97-BT96) -> 0 | BU97: =IF(BT97-BU96<0,0,BT97-BU96) -> 0 | BV97: =IF(BU97-BV96<0,0,BU97-BV96) -> 0 | BW97: =IF(BV97-BW96<0,0,BV97-BW96) -> 0 | BX97: =IF(BW97-BX96<0,0,BW97-BX96) -> 0
L98: 利息額 | M98: =IF($C51="社債",0,IF($G51="元金均等",ROUNDDOWN(-ISPMT($H51/12,M51,$E51*12,$I51),0),ROUNDDOWN(-IPMT($H51/12,M51,$E51*12,$I51),0))) ->  | N98: =IF($C51="社債",0,IF($G51="元金均等",ROUNDDOWN(-ISPMT($H51/12,N51,$E51*12,$I51),0),ROUNDDOWN(-IPMT($H51/12,N51,$E51*12,$I51),0))) ->  | O98: =IF($C51="社債",0,IF($G51="元金均等",ROUNDDOWN(-ISPMT($H51/12,O51,$E51*12,$I51),0),ROUNDDOWN(-IPMT($H51/12,O51,$E51*12,$I51),0))) ->  | Z98: =IF($C51="社債",0,IF($G51="元金均等",ROUNDDOWN(-ISPMT($H51/12,Z51,$E51*12,$I51),0),ROUNDDOWN(-IPMT($H51/12,Z51,$E51*12,$I51),0))) ->  | AA98: =IF($C51="社債",0,IF($G51="元金均等",ROUNDDOWN(-ISPMT($H51/12,AA51,$E51*12,$I51),0),ROUNDDOWN(-IPMT($H51/12,AA51,$E51*12,$I51),0))) ->  | AB98: =IF($C51="社債",0,IF($G51="元金均等",ROUNDDOWN(-ISPMT($H51/12,AB51,$E51*12,$I51),0),ROUNDDOWN(-IPMT($H51/12,AB51,$E51*12,$I51),0))) ->  | AM98: =IF($C51="社債",0,IF($G51="元金均等",ROUNDDOWN(-ISPMT($H51/12,AM51,$E51*12,$I51),0),ROUNDDOWN(-IPMT($H51/12,AM51,$E51*12,$I51),0))) ->  | AN98: =IF($C51="社債",0,IF($G51="元金均等",ROUNDDOWN(-ISPMT($H51/12,AN51,$E51*12,$I51),0),ROUNDDOWN(-IPMT($H51/12,AN51,$E51*12,$I51),0))) ->  | AO98: =IF($C51="社債",0,IF($G51="元金均等",ROUNDDOWN(-ISPMT($H51/12,AO51,$E51*12,$I51),0),ROUNDDOWN(-IPMT($H51/12,AO51,$E51*12,$I51),0))) ->  | AZ98: =IF($C51="社債",0,IF($G51="元金均等",ROUNDDOWN(-ISPMT($H51/12,AZ51,$E51*12,$I51),0),ROUNDDOWN(-IPMT($H51/12,AZ51,$E51*12,$I51),0))) ->  | BA98: =IF($C51="社債",0,IF($G51="元金均等",ROUNDDOWN(-ISPMT($H51/12,BA51,$E51*12,$I51),0),ROUNDDOWN(-IPMT($H51/12,BA51,$E51*12,$I51),0))) ->  | BB98: =IF($C51="社債",0,IF($G51="元金均等",ROUNDDOWN(-ISPMT($H51/12,BB51,$E51*12,$I51),0),ROUNDDOWN(-IPMT($H51/12,BB51,$E51*12,$I51),0))) ->  | BM98: =IF($C51="社債",0,IF($G51="元金均等",ROUNDDOWN(-ISPMT($H51/12,BM51,$E51*12,$I51),0),ROUNDDOWN(-IPMT($H51/12,BM51,$E51*12,$I51),0))) ->  | BN98: =IF($C51="社債",0,IF($G51="元金均等",ROUNDDOWN(-ISPMT($H51/12,BN51,$E51*12,$I51),0),ROUNDDOWN(-IPMT($H51/12,BN51,$E51*12,$I51),0))) ->  | BO98: =IF($C51="社債",0,IF($G51="元金均等",ROUNDDOWN(-ISPMT($H51/12,BO51,$E51*12,$I51),0),ROUNDDOWN(-IPMT($H51/12,BO51,$E51*12,$I51),0))) -> 
L99: 利息（エラー回避） | M99: =IF(ISERROR(M98),0,M98) -> 0 | N99: 0 | O99: 0 | P99: 0 | Q99: 0 | R99: 0 | S99: 0 | T99: 0 | U99: 0 | V99: 0 | W99: 0 | X99: 0 | Y99: =SUM(M99:X99) -> 0 | Z99: =IF(ISERROR(Z98),0,Z98) -> 0 | AA99: 0 | AB99: 0 | AC99: 0 | AD99: 0 | AE99: 0 | AF99: 0 | AG99: 0 | AH99: 0 | AI99: 0 | AJ99: 0 | AK99: 0 | AL99: =SUM(Z99:AK99) -> 0 | AM99: =IF(ISERROR(AM98),0,AM98) -> 0 | AN99: 0 | AO99: 0 | AP99: 0 | AQ99: 0 | AR99: 0 | AS99: 0 | AT99: 0 | AU99: 0 | AV99: 0 | AW99: 0 | AX99: 0 | AY99: =SUM(AM99:AX99) -> 0 | AZ99: =IF(ISERROR(AZ98),0,AZ98) -> 0 | BA99: 0 | BB99: 0 | BC99: 0 | BD99: 0 | BE99: 0 | BF99: 0 | BG99: 0 | BH99: 0 | BI99: 0 | BJ99: 0 | BK99: 0 | BL99: =SUM(AZ99:BK99) -> 0 | BM99: =IF(ISERROR(BM98),0,BM98) -> 0 | BN99: 0 | BO99: 0 | BP99: 0 | BQ99: 0 | BR99: 0 | BS99: 0 | BT99: 0 | BU99: 0 | BV99: 0 | BW99: 0 | BX99: 0 | BY99: =SUM(BM99:BX99) -> 0
